Workbook

Sheet Instructions
B2: Show summer times as | C2: BST
B49: Version Control: | C49: Ver | D49: Date | E49: Change | F49: Author / Contributor
C51: 1.00 | D51: 01/03/2010 | E51: Initial Release | F51: P.Orr
C52: 1.01 | D52: 26/04/2010 | E52: Add BST view option, and Liverpool and Dover times. | F52: P. Orr / N. Hackney
C53: 1.02 | D53: 12/01/2011 | E53: 2011 data inserted | F53: P.Orr
C54: 1.03 | D54: 29/10/2010 | E54: 2012 data inserted | F54: P.Orr
C55: 1.04 | D55: 09/03/2012 | E55: Victoria Dock gate operation times added | F55: P.Orr
C56: 1.05 | D56: 2012-02-03 | E56: 2013 data inserted REPLACED with 2014 data 09/02/2014 | F56: P. Orr

Sheet 4 day view
D1: 10 | E1: 11 | F1: 12 | G1: 13 | H1: 14 | I1: 15 | J1: 16 | K1: 17 | L1: 18 | M1: 19 | N1: 20 | O1: 21 | P1: 22 | Q1: 23 | R1: 24 | S1: 25
A2: =MATCH(B3,Tides!D11:D1420,0) -> 460 | B2: 9 | C2: 10 | D2: =$A$2+D1 -> 470 | E2: 471 | F2: 472 | G2: 473 | H2: 474 | I2: 475 | J2: 476 | K2: 477 | L2: 478 | M2: 479 | N2: 480 | O2: 481 | P2: 482 | Q2: 483 | R2: 484 | S2: 485
A3: 5 | B3: =TODAY()+ C3 - 365 -> 2025-04-30 | C3: 1904-12-31 | D3: =INDIRECT("'Tides'!"&ADDRESS(D$2,$A3)) -> 2025-04-30 | E3: Wed | H3: 2025-05-01 | I3: Thu | L3: 2025-05-02 | M3: Fri | P3: 2025-05-03 | Q3: Sat
A4: 3 | D4: 2025-04-29T23:25:00 | E4: 2025-04-30T05:35:00 | F4: 2025-04-30T11:51:00 | G4: 2025-04-30T17:58:00 | H4: 2025-05-01T00:11:00 | I4: 2025-05-01T06:25:00 | J4: 2025-05-01T12:42:00 | K4: 2025-05-01T18:47:00 | L4: 2025-05-02T01:01:00 | M4: 2025-05-02T07:19:00 | N4: 2025-05-02T13:37:00 | O4: 2025-05-02T19:40:00 | P4: 2025-05-03T01:55:00 | Q4: 2025-05-03T08:19:00 | R4: 2025-05-03T14:39:00 | S4: 2025-05-03T20:40:00
A5: 13 | B5: =IF(Instructions!C2="BST","All Times Local","All Times UTC") -> All Times Local | C5: =INDIRECT("'Tides'!"&ADDRESS(C$2,$A5)) -> State | D5: HW | E5: LW | F5: HW | G5: LW | H5: HW | I5: LW | J5: HW | K5: LW | L5: HW | M5: LW | N5: HW | O5: LW | P5: HW | Q5: LW | R5: HW | S5: LW
A6: 11 | B6: =INDIRECT("'Tides'!"&ADDRESS(B$2,$A6)) -> HOLYHEAD | C6: Time | D6: 44315.01736 | E6: 44315.27431 | F6: 44315.53542 | G6: 44315.79028 | H6: 44316.04931 | I6: 44316.30903 | J6: 44316.57083 | K6: 44316.82431 | L6: 44317.08403 | M6: 44317.34653 | N6: 44317.60903 | O6: 44317.86111 | P6: 44318.12153 | Q6: 44318.38819 | R6: 44318.65208 | S6: 44318.90278
A7: 12 | B7: =INDIRECT("'Tides 2010'!"&ADDRESS(B$2,$A7)) ->  | C7: Ht | D7: 5.74 | E7: 0.42 | F7: 5.76 | G7: 0.69 | H7: 5.59 | I7: 0.64 | J7: 5.46 | K7: 1.07 | L7: 5.35 | M7: 0.95 | N7: 5.1 | O7: 1.49 | P7: 5.06 | Q7: 1.3 | R7: 4.72 | S7: 1.89
A8: 19 | B8: =INDIRECT("'Tides'!"&ADDRESS(B$2,$A8)) -> Beaumaris | C8: Time | D8: 44315.03371 | E8: 44315.31115 | F8: 44315.55252 | G8: 44315.82623 | H8: 44316.06635 | I8: 44316.34394 | J8: 44316.58698 | K8: 44316.85837 | L8: 44317.09962 | M8: 44317.37936 | N8: 44317.62358 | O8: 44317.89313 | P8: 44318.13556 | Q8: 44318.41871 | R8: 44318.66484 | S8: 44318.93248
A9: 20 | B9: =INDIRECT("'Tides 2010'!"&ADDRESS(B$2,$A9)) ->  | C9: Ht | D9: 7.739130435 | E9: 0.4236641221 | F9: 7.766956522 | G9: 0.7740458015 | H9: 7.530434783 | I9: 0.7091603053 | J9: 7.349565217 | K9: 1.267175573 | L9: 7.196521739 | M9: 1.111450382 | N9: 6.848695652 | O9: 1.81221374 | P9: 6.793043478 | Q9: 1.565648855 | R9: 6.32 | S9: 2.33129771
A10: 21 | B10: =INDIRECT("'Tides'!"&ADDRESS(B$2,$A10)) -> SLACK | C10: Time | D10: 44315.09968 | E10: 44315.37712 | F10: 44315.61849 | G10: 44315.89221 | H10: 44316.13232 | I10: 44316.40992 | J10: 44316.65295 | K10: 44316.92434 | L10: 44317.1656 | M10: 44317.44533 | N10: 44317.68955 | O10: 44317.9591 | P10: 44318.20153 | Q10: 44318.48468 | R10: 44318.73082 | S10: 44318.99846
A11: 22 | B11: =INDIRECT("'Tides'!"&ADDRESS(B$2,$A11)) -> Menai Bridge | C11: Time | D11: 44315.03684 | E11: 44315.28294 | F11: 44315.5559 | G11: 44315.80002 | H11: 44316.06971 | I11: 44316.32007 | J11: 44316.59005 | K11: 44316.83641 | L11: 44317.10251 | M11: 44317.36018 | N11: 44317.62612 | O11: 44317.87577 | P11: 44318.13792 | Q11: 44318.40474 | R11: 44318.66678 | S11: 44318.92033
A12: 23 | B12: =INDIRECT("'Tides 2010'!"&ADDRESS(B$2,$A12)) ->  | C12: Ht | D12: 7.430434783 | E12: 0.3458015267 | F12: 7.456521739 | G12: 0.6755725191 | H12: 7.234782609 | I12: 0.6145038168 | J12: 7.065217391 | K12: 1.139694656 | L12: 6.92173913 | M12: 0.993129771 | N12: 6.595652174 | O12: 1.652671756 | P12: 6.543478261 | Q12: 1.420610687 | R12: 6.1 | S12: 2.141221374
A13: 24 | B13: =INDIRECT("'Tides'!"&ADDRESS(B$2,$A13)) -> Swellies SLACK | C13: Time | D13: =INDIRECT("'Tides'!"&ADDRESS(D$2,$A13)) -> 44314.96389 | E13: 44315.21389 | F13: 44315.48125 | G13: 44315.73125 | H13: 44315.99583 | I13: 44316.24583 | J13: 44316.51667 | K13: 44316.76667 | L13: 44317.03056 | M13: 44317.28056 | N13: 44317.55625 | O13: 44317.80625 | P13: 44318.06944 | Q13: 44318.31944 | R13: 44318.59931 | S13: 44318.84931
A14: 25 | B14: =INDIRECT("'Tides'!"&ADDRESS(B$2,$A14)) -> P'dinorwic | C14: Time | D14: 44315.00627 | E14: 44315.29311 | F14: 44315.52483 | G14: 44315.80775 | H14: 44316.03868 | I14: 44316.32494 | J14: 44316.55961 | K14: 44316.83895 | L14: 44317.07243 | M14: 44317.35932 | N14: 44317.59674 | O14: 44317.87269 | P14: 44318.10889 | Q14: 44318.39751 | R14: 44318.6386 | S14: 44318.91088
A15: 26 | B15: =INDIRECT("'Tides 2010'!"&ADDRESS(B$2,$A15)) ->  | C15: Ht | D15: 5.704347826 | E15: 0.534351145 | F15: 5.725217391 | G15: 0.7816793893 | H15: 5.547826087 | I15: 0.7358778626 | J15: 5.412173913 | K15: 1.129770992 | L15: 5.297391304 | M15: 1.019847328 | N15: 5.036521739 | O15: 1.514503817 | P15: 4.994782609 | Q15: 1.340458015 | R15: 4.64 | S15: 1.880916031
A16: 27 | B16: =INDIRECT("'Tides'!"&ADDRESS(B$2,$A16)) -> P.D. SLACK | C16: Time | D16: 44314.99585 | E16: 44315.24508 | F16: 44315.51441 | G16: 44315.76238 | H16: 44316.02826 | I16: 44316.2827 | J16: 44316.54919 | K16: 44316.79925 | L16: 44317.06202 | M16: 44317.32332 | N16: 44317.58632 | O16: 44317.83912 | P16: 44318.09848 | Q16: 44318.36846 | R16: 44318.62818 | S16: 44318.88426
A17: 28 | B17: =INDIRECT("'Tides'!"&ADDRESS(B$2,$A17)) -> Caern'fon | C17: Time | D17: 44314.99653 | E17: 44315.28337 | F17: 44315.51458 | G17: 44315.79846 | H17: 44316.02847 | I17: 44316.31617 | J17: 44316.55 | K17: 44316.83059 | L17: 44317.06319 | M17: 44317.35158 | N17: 44317.58819 | O17: 44317.86535 | P17: 44318.10069 | Q17: 44318.39093 | R17: 44318.63125 | S17: 44318.90471
A18: 29 | B18: =INDIRECT("'Tides 2010'!"&ADDRESS(B$2,$A18)) ->  | C18: Ht | D18: 5.304347826 | E18: 0.3122137405 | F18: 5.325217391 | G18: 0.5801526718 | H18: 5.147826087 | I18: 0.5305343511 | J18: 5.012173913 | K18: 0.9572519084 | L18: 4.897391304 | M18: 0.8381679389 | N18: 4.636521739 | O18: 1.374045802 | P18: 4.594782609 | Q18: 1.185496183 | R18: 4.24 | S18: 1.770992366
A19: 30 | B19: =INDIRECT("'Tides'!"&ADDRESS(B$2,$A19)) -> Victoria Dock Gt | C19: Gate | D19: =INDIRECT("'Tides'!"&ADDRESS(D$2,$A19)) -> Opn | E19: Cls | F19: Opn | G19: Cls | H19: Opn | I19: Cls | J19: Opn | K19: Cls | L19: Opn | M19: Cls | N19: Opn | O19: Cls | P19: Opn | Q19: Cls | R19: Opn | S19: Cls
A20: 31 | B20: =INDIRECT("'Tides 2010'!"&ADDRESS(B$2,$A20)) ->  | C20: =INDIRECT("'Tides'!"&ADDRESS(C$2,$A20)) -> Time | D20: 44314.88194 | E20: 44315.11111 | F20: 44315.4 | G20: 44315.62917 | H20: 44315.91389 | I20: 44316.14306 | J20: 44316.43542 | K20: 44316.66458 | L20: 44316.94861 | M20: 44317.17778 | N20: 44317.47361 | O20: 44317.70278 | P20: 44317.98611 | Q20: 44318.21528 | R20: 44318.51667 | S20: 44318.74583
A21: 32 | B21: =INDIRECT("'Tides'!"&ADDRESS(B$2,$A21)) -> Ft Belan | C21: Time | D21: 44314.99127 | E21: 44315.25829 | F21: 44315.50807 | G21: 44315.77515 | H21: 44316.02206 | I21: 44316.29495 | J21: 44316.54508 | K21: 44316.81107 | L21: 44317.05919 | M21: 44317.33453 | N21: 44317.58593 | O21: 44317.84992 | P21: 44318.0993 | Q21: 44318.37851 | R21: 44318.63197 | S21: 44318.8939
A22: 33 | B22: =INDIRECT("'Tides 2010'!"&ADDRESS(B$2,$A22)) ->  | C22: Ht | D22: 4.695652174 | E22: 0.334351145 | F22: 4.714782609 | G22: 0.5816793893 | H22: 4.552173913 | I22: 0.5358778626 | J22: 4.427826087 | K22: 0.9297709924 | L22: 4.322608696 | M22: 0.8198473282 | N22: 4.083478261 | O22: 1.314503817 | P22: 4.045217391 | Q22: 1.140458015 | R22: 3.72 | S22: 1.680916031
A23: 34 | B23: =INDIRECT("'Tides'!"&ADDRESS(B$2,$A23)) -> Llanddwyn | C23: Time | D23: 44314.96663 | E23: 44315.25415 | F23: 44315.48368 | G23: 44315.77056 | H23: 44315.99765 | I23: 44316.28983 | J23: 44316.52037 | K23: 44316.80554 | L23: 44317.0343 | M23: 44317.32838 | N23: 44317.56069 | O23: 44317.84336 | P23: 44318.07388 | Q23: 44318.3712 | R23: 44318.60613 | S23: 44318.88619
A24: 35 | B24: =INDIRECT("'Tides 2010'!"&ADDRESS(B$2,$A24)) ->  | C24: Ht | D24: 4.986956522 | E24: 0.434351145 | F24: 5.004347826 | G24: 0.6816793893 | H24: 4.856521739 | I24: 0.6358778626 | J24: 4.743478261 | K24: 1.029770992 | L24: 4.647826087 | M24: 0.9198473282 | N24: 4.430434783 | O24: 1.414503817 | P24: 4.395652174 | Q24: 1.240458015 | R24: 4.1 | S24: 1.780916031
A25: 36 | B25: =INDIRECT("'Tides'!"&ADDRESS(B$2,$A25)) -> Trwyn Dimnor | C25: Time | D25: 44315.03405 | E25: 44315.30802 | F25: 44315.5526 | G25: 44315.82332 | H25: 44316.06645 | I25: 44316.34129 | J25: 44316.58738 | K25: 44316.85593 | L25: 44317.10021 | M25: 44317.37723 | N25: 44317.62452 | O25: 44317.8912 | P25: 44318.13667 | Q25: 44318.41716 | R25: 44318.66638 | S25: 44318.93113
A26: 37 | B26: =INDIRECT("'Tides 2010'!"&ADDRESS(B$2,$A26)) ->  | C26: Ht | D26: 7.639130435 | E26: 0.5458015267 | F26: 7.666956522 | G26: 0.8755725191 | H26: 7.430434783 | I26: 0.8145038168 | J26: 7.249565217 | K26: 1.339694656 | L26: 7.096521739 | M26: 1.193129771 | N26: 6.748695652 | O26: 1.852671756 | P26: 6.693043478 | Q26: 1.620610687 | R26: 6.22 | S26: 2.341221374
A27: 38 | B27: =INDIRECT("'Tides'!"&ADDRESS(B$2,$A27)) -> Moelfre | C27: Time | D27: 44315.03438 | E27: 44315.30802 | F27: 44315.55269 | G27: 44315.82332 | H27: 44316.06656 | I27: 44316.34129 | J27: 44316.58779 | K27: 44316.85593 | L27: 44317.1008 | M27: 44317.37723 | N27: 44317.62545 | O27: 44317.8912 | P27: 44318.13778 | Q27: 44318.41716 | R27: 44318.66791 | S27: 44318.93113
A28: 39 | B28: =INDIRECT("'Tides 2010'!"&ADDRESS(B$2,$A28)) ->  | C28: Ht | D28: 7.647826087 | E28: 0.5458015267 | F28: 7.677391304 | G28: 0.8755725191 | H28: 7.426086957 | I28: 0.8145038168 | J28: 7.233913043 | K28: 1.339694656 | L28: 7.071304348 | M28: 1.193129771 | N28: 6.70173913 | O28: 1.852671756 | P28: 6.642608696 | Q28: 1.620610687 | R28: 6.14 | S28: 2.341221374
A29: 40 | B29: =INDIRECT("'Tides'!"&ADDRESS(B$2,$A29)) -> Amlwch | C29: Time | D29: 44315.03057 | E29: 44315.29794 | F29: 44315.54913 | G29: 44315.81346 | H29: 44316.06298 | I29: 44316.33169 | J29: 44316.58391 | K29: 44316.84655 | L29: 44317.09674 | M29: 44317.36815 | N29: 44317.62105 | O29: 44317.88233 | P29: 44318.1332 | Q29: 44318.40866 | R29: 44318.66291 | S29: 44318.92284
A30: 41 | B30: =INDIRECT("'Tides 2010'!"&ADDRESS(B$2,$A30)) ->  | C30: Ht | D30: 7.330434783 | E30: 0.5458015267 | F30: 7.356521739 | G30: 0.8755725191 | H30: 7.134782609 | I30: 0.8145038168 | J30: 6.965217391 | K30: 1.339694656 | L30: 6.82173913 | M30: 1.193129771 | N30: 6.495652174 | O30: 1.852671756 | P30: 6.443478261 | Q30: 1.620610687 | R30: 6 | S30: 2.341221374
A31: 42 | B31: =INDIRECT("'Tides'!"&ADDRESS(B$2,$A31)) -> Cemaes | C31: Time | D31: 44315.03159 | E31: 44315.30175 | F31: 44315.54939 | G31: 44315.8175 | H31: 44316.0633 | I31: 44316.33599 | J31: 44316.58513 | K31: 44316.85105 | L31: 44317.09851 | M31: 44317.37296 | N31: 44317.62385 | O31: 44317.88735 | P31: 44318.13653 | Q31: 44318.41405 | R31: 44318.66751 | S31: 44318.92843
A32: 43 | B32: =INDIRECT("'Tides 2010'!"&ADDRESS(B$2,$A32)) ->  | C32: Ht | D32: 6.730434783 | E32: 0.4679389313 | F32: 6.756521739 | G32: 0.7770992366 | H32: 6.534782609 | I32: 0.7198473282 | J32: 6.365217391 | K32: 1.21221374 | L32: 6.22173913 | M32: 1.07480916 | N32: 5.895652174 | O32: 1.693129771 | P32: 5.843478261 | Q32: 1.475572519 | R32: 5.4 | S32: 2.151145038
A33: 44 | B33: =INDIRECT("'Tides'!"&ADDRESS(B$2,$A33)) -> Skrries SLACK | C33: Time | D33: 44315.00694 | E33: 44315.26389 | F33: 44315.525 | G33: 44315.77986 | H33: 44316.03889 | I33: 44316.29861 | J33: 44316.56042 | K33: 44316.81389 | L33: 44317.07361 | M33: 44317.33611 | N33: 44317.59861 | O33: 44317.85069 | P33: 44318.11111 | Q33: 44318.37778 | R33: 44318.64167 | S33: 44318.89236
A34: 45 | B34: =INDIRECT("'Tides'!"&ADDRESS(B$2,$A34)) -> Sth.Stck SLACK | C34: Time | D34: 44315.02778 | E34: 44315.28819 | F34: 44315.54583 | G34: 44315.80417 | H34: 44316.05972 | I34: 44316.32292 | J34: 44316.58125 | K34: 44316.83819 | L34: 44317.09444 | M34: 44317.36042 | N34: 44317.61944 | O34: 44317.875 | P34: 44318.13194 | Q34: 44318.40208 | R34: 44318.6625 | S34: 44318.91667
A35: 46 | B35: =INDIRECT("'Tides'!"&ADDRESS(B$2,$A35)) -> Tr'ddr Bay | C35: Time | D35: 44314.98746 | E35: 44315.26389 | F35: 44315.50451 | G35: 44315.77986 | H35: 44316.01848 | I35: 44316.29861 | J35: 44316.5412 | K35: 44316.81389 | L35: 44317.05513 | M35: 44317.33611 | N35: 44317.58152 | O35: 44317.85069 | P35: 44318.09471 | Q35: 44318.37778 | R35: 44318.62697 | S35: =INDIRECT("'Tides'!"&ADDRESS(S$2,$A35)) -> 44318.89236
A36: 47 | B36: =INDIRECT("'Tides 2010'!"&ADDRESS(B$2,$A36)) ->  | C36: Ht | D36: 5.304347826 | E36: 0.534351145 | F36: 5.325217391 | G36: 0.7816793893 | H36: 5.147826087 | I36: 0.7358778626 | J36: 5.012173913 | K36: 1.129770992 | L36: 4.897391304 | M36: 1.019847328 | N36: 4.636521739 | O36: 1.514503817 | P36: 4.594782609 | Q36: 1.340458015 | R36: 4.24 | S36: 1.880916031
A37: 48 | B37: =INDIRECT("'Tides'!"&ADDRESS(B$2,$A37)) -> Porth T'castell | C37: Time | D37: 44314.98746 | E37: 44315.27016 | F37: 44315.50451 | G37: 44315.78569 | H37: 44316.01848 | I37: 44316.30392 | J37: 44316.5412 | K37: 44316.81877 | L37: 44317.05513 | M37: 44317.34037 | N37: 44317.58152 | O37: 44317.85455 | P37: 44318.09471 | Q37: 44318.38088 | R37: 44318.62697 | S37: 44318.89506
A38: 49 | B38: =INDIRECT("'Tides 2010'!"&ADDRESS(B$2,$A38)) ->  | C38: Ht | D38: 5.104347826 | E38: 0.4122137405 | F38: 5.125217391 | G38: 0.6801526718 | H38: 4.947826087 | I38: 0.6305343511 | J38: 4.812173913 | K38: 1.057251908 | L38: 4.697391304 | M38: 0.9381679389 | N38: 4.436521739 | O38: 1.474045802 | P38: 4.394782609 | Q38: 1.285496183 | R38: 4.04 | S38: 1.870992366
A39: 50 | B39: =INDIRECT("'Tides'!"&ADDRESS(B$2,$A39)) -> Trefor | C39: Time | D39: 44314.96629 | E39: 44315.25415 | F39: 44315.48359 | G39: 44315.77056 | H39: 44315.99754 | I39: 44316.28983 | J39: 44316.51997 | K39: 44316.80554 | L39: 44317.03371 | M39: 44317.32838 | N39: 44317.55975 | O39: 44317.84336 | P39: 44318.07277 | Q39: 44318.3712 | R39: 44318.6046 | S39: 44318.88619
A40: 51 | B40: =INDIRECT("'Tides 2010'!"&ADDRESS(B$2,$A40)) ->  | C40: Ht | D40: 4.913043478 | E40: 0.334351145 | F40: 4.935652174 | G40: 0.5816793893 | H40: 4.743478261 | I40: 0.5358778626 | J40: 4.596521739 | K40: 0.9297709924 | L40: 4.472173913 | M40: 0.8198473282 | N40: 4.189565217 | O40: 1.314503817 | P40: 4.144347826 | Q40: 1.140458015 | R40: 3.76 | S40: 1.680916031
A41: 52 | B41: =INDIRECT("'Tides'!"&ADDRESS(B$2,$A41)) -> Porth Dinllaen | C41: Time | D41: 44314.96282 | E41: 44315.25068 | F41: 44315.48012 | G41: 44315.76709 | H41: 44315.99407 | I41: 44316.28636 | J41: 44316.51649 | K41: 44316.80206 | L41: 44317.03024 | M41: 44317.3249 | N41: 44317.55628 | O41: 44317.83989 | P41: 44318.0693 | Q41: 44318.36773 | R41: 44318.60113 | S41: 44318.88272
A42: 53 | B42: =INDIRECT("'Tides 2010'!"&ADDRESS(B$2,$A42)) ->  | C42: Ht | D42: 4.704347826 | E42: 0.2122137405 | F42: 4.725217391 | G42: 0.4801526718 | H42: 4.547826087 | I42: 0.4305343511 | J42: 4.412173913 | K42: 0.8572519084 | L42: 4.297391304 | M42: 0.7381679389 | N42: 4.036521739 | O42: 1.274045802 | P42: 3.994782609 | Q42: 1.085496183 | R42: 3.64 | S42: 1.670992366
A43: 54 | B43: =INDIRECT("'Tides'!"&ADDRESS(B$2,$A43)) -> Port Ysgaden | C43: Time | D43: 44314.95935 | E43: 44315.24687 | F43: 44315.47665 | G43: 44315.76306 | H43: 44315.9906 | I43: 44316.28207 | J43: 44316.51302 | K43: 44316.79756 | L43: 44317.02677 | M43: 44317.32009 | N43: 44317.55281 | O43: 44317.83488 | P43: 44318.06583 | Q43: 44318.36234 | R43: 44318.59766 | S43: 44318.87712
A44: 55 | B44: =INDIRECT("'Tides 2010'!"&ADDRESS(B$2,$A44)) ->  | C44: Ht | D44: 4.595652174 | E44: 0.3122137405 | F44: 4.614782609 | G44: 0.5801526718 | H44: 4.452173913 | I44: 0.5305343511 | J44: 4.327826087 | K44: 0.9572519084 | L44: 4.222608696 | M44: 0.8381679389 | N44: 3.983478261 | O44: 1.374045802 | P44: 3.945217391 | Q44: 1.185496183 | R44: 3.62 | S44: 1.770992366
A45: 56 | B45: =INDIRECT("'Tides'!"&ADDRESS(B$2,$A45)) -> Bardsey Is | C45: Time | D45: 44314.91879 | E45: 44315.20173 | F45: 44315.43785 | G45: 44315.71792 | H45: 44315.95166 | I45: 44316.23693 | J45: 44316.47199 | K45: 44316.75242 | L45: 44316.98445 | M45: 44317.27495 | N45: 44317.50806 | O45: 44317.78974 | P45: 44318.01987 | Q45: 44318.3172 | R45: 44318.54873 | S45: 44318.83198
A46: 57 | B46: =INDIRECT("'Tides 2010'!"&ADDRESS(B$2,$A46)) ->  | C46: Ht | D46: 4.504347826 | E46: 0.4007633588 | F46: 4.525217391 | G46: 0.586259542 | H46: 4.347826087 | I46: 0.5519083969 | J46: 4.212173913 | K46: 0.8473282443 | L46: 4.097391304 | M46: 0.7648854962 | N46: 3.836521739 | O46: 1.135877863 | P46: 3.794782609 | Q46: 1.005343511 | R46: 3.44 | S46: 1.410687023
A47: 58 | B47: =INDIRECT("'Tides'!"&ADDRESS(B$2,$A47)) -> Sound SLACK | C47: Time | D47: 44315.00694 | E47: 44315.29861 | F47: 44315.525 | G47: 44315.81458 | H47: 44316.03889 | I47: 44316.33333 | J47: 44316.56042 | K47: 44316.84861 | L47: 44317.07361 | M47: 44317.37083 | N47: 44317.59861 | O47: 44317.88542 | P47: 44318.11111 | Q47: 44318.4125 | R47: 44318.64167 | S47: 44318.92708
A48: 3
A49: 60 | B49: =INDIRECT("'Tides'!"&ADDRESS(B$2,$A49)) -> L'pool G'stone | C49: Time | D49: 44315.04722 | E49: 44315.34097 | F49: 44315.56458 | G49: 44315.85556 | H49: 44316.07917 | I49: 44316.37292 | J49: 44316.6 | K49: 44316.88611 | L49: 44317.11389 | M49: 44317.40625 | N49: 44317.63958 | O49: 44317.91875 | P49: 44318.15278 | Q49: 44318.44236 | R49: =INDIRECT("'Tides'!"&ADDRESS(R$2,$A49)) -> 44318.68264 | S49: =INDIRECT("'Tides'!"&ADDRESS(S$2,$A49)) -> 44318.95486
A50: 61 | B50: Dover (approx) | C50: Time | D50: 44315.04861 | E50: 44315.30556 | F50: 44315.56667 | G50: 44315.82153 | H50: 44316.08056 | I50: 44316.34028 | J50: 44316.60208 | K50: 44316.85556 | L50: 44317.11528 | M50: 44317.37778 | N50: 44317.64028 | O50: 44317.89236 | P50: 44318.15278 | Q50: 44318.41944 | R50: =INDIRECT("'Tides'!"&ADDRESS(R$2,$A50)) -> 44318.68333 | S50: =INDIRECT("'Tides'!"&ADDRESS(S$2,$A50)) -> 44318.93403

Sheet Tides
A1: Time | B1: Adjustment to apply | C1: Raw HOLYHEAD DateTime | G1: MHWS | K1: 5.64 | S1: 7.6 | V1: 7.3 | Y1: 5.6 | AB1: 5.2 | AF1: 4.6 | AH1: 4.9 | AJ1: 7.5 | AL1: 7.5 | AN1: 7.2 | AP1: 6.6 | AT1: 5.2 | AV1: 5 | AX1: 4.8 | AZ1: 4.6 | BB1: 4.5 | BD1: 4.4 | BK1: Raw Lpl DateTime | BL1: Lpl Time (local)
G2: MHWN | K2: 4.49 | S2: 6 | V2: 5.8 | X2: vs Lpl | Y2: 4.4 | AB2: 4 | AF2: 3.5 | AH2: 3.9 | AJ2: 5.9 | AL2: 5.8 | AN2: 5.7 | AP2: 5.1 | AT2: 4 | AV2: 3.8 | AX2: 3.5 | AZ2: 3.4 | BB2: 3.4 | BD2: 3.2
A3: BST Offset | G3: MLWN | K3: 2.02 | S3: 2.5 | V3: 2.3 | X3: HW time | Y3: 2 | AB3: 1.9 | AF3: 1.8 | AH3: 1.9 | AJ3: 2.5 | AL3: 2.5 | AN3: 2.5 | AP3: 2.3 | AT3: 2 | AV3: 2 | AX3: 1.8 | AZ3: 1.8 | BB3: 1.9 | BD3: 1.5
G4: MLWS | K4: 0.71 | S4: 0.8 | V4: 0.7 | Y4: 0.8 | AB4: 0.6 | AF4: 0.6 | AH4: 0.7 | AJ4: 0.9 | AL4: 0.9 | AN4: 0.9 | AP4: 0.8 | AT4: 0.8 | AV4: 0.7 | AX4: 0.6 | AZ4: 0.5 | BB4: 0.6 | BD4: 0.6
G5: T Diff HW Sp | K5: @ | L5: 00:00:00 | M5: 12:00:00 | S5: 00:25:00 | U5: 02:00:00 | V5: 00:30:00 | X5: HW slk:- | Y5: -0.01041666667 | AA5: -0.02083333333 | AB5: -0.02083333333 | AF5: -0.02777777778 | AH5: -0.05208333333 | AJ5: 00:25:00 | AL5: 00:25:00 | AN5: 00:20:00 | AP5: 00:20:00 | AR5: -0.01041666667 | AS5: 00:15:00 | AT5: -0.03125 | AV5: -0.03125 | AX5: -0.05208333333 | AZ5: -0.05555555556 | BB5: -0.05902777778 | BD5: -0.09722222222 | BF5: -0.01041666667 | BI5: 00:45:00
G6: T Diff HW Np | K6: @ | L6: 06:00:00 | M6: 18:00:00 | S6: 00:10:00 | U6: 01:45:00 | V6: 00:10:00 | X6: =-0.0416666666666667*2 -> -0.08333333333 | Y6: -0.01736111111 | AA6: -0.02777777778 | AB6: -0.02083333333 | AF6: -0.01041666667 | AH6: -0.03819444444 | AJ6: 00:15:00 | AL6: 00:20:00 | AN6: 00:10:00 | AP6: 00:25:00 | AR6: -0.01041666667 | AS6: 00:15:00 | AT6: -0.01736111111 | AV6: -0.01736111111 | AX6: -0.04166666667 | AZ6: -0.04513888889 | BB6: -0.04861111111 | BD6: -0.1111111111 | BF6: -0.01041666667 | BI6: 00:45:00
G7: T Diff LW Sp | K7: @ | L7: 05:00:00 | M7: 17:00:00 | S7: 00:55:00 | U7: 02:30:00 | V7: 00:10:00 | X7: LW slk:- | Y7: 00:30:00 | AA7: -0.03125 | AB7: 00:15:00 | AD7: +/- HW | AF7: -0.01736111111 | AH7: -0.02083333333 | AJ7: 00:50:00 | AL7: 00:50:00 | AN7: 00:35:00 | AP7: 00:40:00 | AR7: -0.01041666667 | AS7: 00:20:00 | AT7: -0.01041666667 | AV7: -0.003472222222 | AX7: -0.02083333333 | AZ7: -0.02430555556 | BB7: -0.02777777778 | BD7: -0.07291666667 | BF7: 00:35:00 | BI7: 00:45:00
G8: T Diff LW Np | K8: @ | L8: 11:00:00 | M8: 23:00:00 | S8: 00:35:00 | U8: 02:10:00 | V8: 00:35:00 | X8: =0.0416666666666667*4 -> 04:00:00 | Y8: 00:00:00 | AA8: -0.01041666667 | AB8: -0.003472222222 | AD8: 02:45:00 | AF8: -0.003472222222 | AH8: -0.01388888889 | AJ8: 00:35:00 | AL8: 00:35:00 | AN8: 00:25:00 | AP8: 00:35:00 | AR8: -0.01041666667 | AS8: 00:20:00 | AT8: -0.01041666667 | AV8: -0.01041666667 | AX8: -0.01388888889 | AZ8: -0.01736111111 | BB8: -0.02430555556 | BD8: -0.06944444444 | BF8: 00:35:00 | BI8: 00:45:00
G9: Place | K9: HOLYHEAD | S9: Beaumaris | U9: SLACK | V9: Menai Bridge | X9: Swellies SLACK | Y9: P'dinorwic | AA9: P.D. SLACK | AB9: Caern'fon | AD9: Victoria Dock Gt | AF9: Ft Belan | AH9: Llanddwyn | AJ9: Trwyn Dimnor | AL9: Moelfre | AN9: Amlwch | AP9: Cemaes | AR9: Skrries SLACK | AS9: Sth.Stck SLACK | AT9: Tr'ddr Bay | AV9: Porth T'castell | AX9: Trefor | AZ9: Porth Dinllaen | BB9: Port Ysgaden | BD9: Bardsey Is | BF9: Sound SLACK | BH9: L'pool G'stone | BI9: Dover (approx)
K10: =$A$1 -> Time | L10: Ht | M10: State | N10: %SpHt | O10: Time | P10: SpTm | Q10: NpTm | R10: %SpTm | S10: Time | T10: Ht | U10: Time | V10: Time | W10: Ht | X10: Time | Y10: Time | Z10: Ht | AA10: Time | AB10: Time | AC10: Ht | AD10: Gate | AE10: Time | AF10: Time | AG10: Ht | AH10: Time | AI10: Ht | AJ10: Time | AK10: Ht | AL10: Time | AM10: Ht | AN10: Time | AO10: Ht | AP10: Time | AQ10: Ht | AR10: Time | AS10: Time | AT10: Time | AU10: Ht | AV10: Time | AW10: Ht | AX10: Time | AY10: Ht | AZ10: Time | BA10: Ht | BB10: Time | BC10: Ht | BD10: Time | BE10: Ht | BF10: Time | BH10: Time | BI10: Time
A11: 0 | B11: =IF(Instructions!$C$2="BST",A11,0) -> 0 | C11: 2025-01-01T04:52:00 | D11: =DATE(YEAR(K11),MONTH(K11),DAY(K11)) -> 2025-01-01 | E11: =IF(D11=D10,IF(J10="","",J10),D11) -> 2025-01-01 | F11: =MONTH(K11) -> 1 | G11: =IF(H11="","",TEXT(F11*29,"mmm")) -> Jan | H11: =IF(I11=I10,"",DAY(K11)) -> 1 | I11: =WEEKDAY(K11,2) -> 3 | J11: =IF(I11=I10,"",TEXT(I11+2,"ddd")) -> Wed | K11: =C11+B11/24 -> 44196.20278 | L11: 1.32 | M11: LW | N11: =IF(M11="HW",(L11-K$2)/(K$1-K$2),(L11-K$3)/(K$4-K$3)) -> 0.534351145 | O11: =C11-INT(C11) -> 04:52:00 | P11: =IF(M11="HW",IF(AND(O11>=L$5,O11<L$6),L$5,IF(AND(O11>=L$6,O11<M$5),M$5,IF(AND(O11>=M$5,O11<M$6),M$5,IF(O11>=M$6,L$5+1,L$5)))),IF(AND(O11>=L$7,O11<L$8),L$7,IF(AND(O11>=L$8,O11<M$7),M$7,IF(AND(O11>=M$7,O11<M$8),M$7,IF(O11>=M$8,L$7+1,L$7))))) -> 05:00:00 | Q11: =IF(M11="HW",IF(AND(O11>=L$5,O11<L$6),L$6,IF(AND(O11>=L$6,O11<M$5),L$6,IF(AND(O11>=M$5,O11<M$6),M$6,IF(O11>=M$6,M$6,M$6-1)))),IF(AND(O11>=L$7,O11<L$8),L$8,IF(AND(O11>=L$8,O11<M$7),L$8,IF(AND(O11>=M$7,O11<M$8),M$8,IF(O11>=M$8,M$8,M$8-1))))) -> -0.04166666667 | R11: =ABS((O11-Q11)/(P11-Q11)) -> 0.9777777778 | S11: =IF($M11="HW",$K11+S$6+(S$5-S$6)*$R11,$K11+S$8+(S$7-S$8)*$R11) -> 44196.24066 | T11: =IF($M11="HW",S$2+(S$1-S$2)*$N11,S$3+(S$4-S$3)*$N11) -> 1.591603053 | U11: 44196.30664 | V11: 44196.21011 | W11: =IF($M11="HW",V$2+(V$1-V$2)*$N11,V$3+(V$4-V$3)*$N11) -> 1.445038168 | X11: =IF($M11="HW",$BL11+X$6,$K11-1/24) -> 44196.16111 | Y11: =IF($M11="HW",$K11+Y$6+(Y$5-Y$6)*$R11,$K11+Y$8+(Y$7-Y$8)*$R11) -> 44196.22315 | Z11: =IF($M11="HW",Y$2+(Y$1-Y$2)*$N11,Y$3+(Y$4-Y$3)*$N11) -> 1.358778626 | AA11: =IF($M11="HW",$K11+AA$6+(AA$5-AA$6)*$R11,$K11+AA$8+(AA$7-AA$8)*$R11) -> 44196.17199 | AB11: =IF($M11="HW",$K11+AB$6+(AB$5-AB$6)*$R11,$K11+AB$8+(AB$7-AB$8)*$R11) -> 44196.21289 | AC11: =IF($M11="HW",AB$2+(AB$1-AB$2)*$N11,AB$3+(AB$4-AB$3)*$N11) -> 1.205343511 | AD11: =IF($M11="HW","Opn","Cls") -> Cls | AE11: =IF($M11="HW",$AB11-AD$8,IF($AB10="HW",$AB11+AD$8,"?")) -> ? | AF11: =IF($M11="HW",$K11+AF$6+(AF$5-AF$6)*$R11,$K11+AF$8+(AF$7-AF$8)*$R11) -> 44196.18573 | AG11: =IF($M11="HW",AF$2+(AF$1-AF$2)*$N11,AF$3+(AF$4-AF$3)*$N11) -> 1.158778626 | AH11: =IF($M11="HW",$K11+AH$6+(AH$5-AH$6)*$R11,$K11+AH$8+(AH$7-AH$8)*$R11) -> 44196.1821 | AI11: =IF($M11="HW",AH$2+(AH$1-AH$2)*$N11,AH$3+(AH$4-AH$3)*$N11) -> 1.258778626 | AJ11: =IF($M11="HW",$K11+AJ$6+(AJ$5-AJ$6)*$R11,$K11+AJ$8+(AJ$7-AJ$8)*$R11) -> 44196.23727 | AK11: =IF($M11="HW",AJ$2+(AJ$1-AJ$2)*$N11,AJ$3+(AJ$4-AJ$3)*$N11) -> 1.645038168 | AL11: =IF($M11="HW",$K11+AL$6+(AL$5-AL$6)*$R11,$K11+AL$8+(AL$7-AL$8)*$R11) -> 44196.23727 | AM11: =IF($M11="HW",AL$2+(AL$1-AL$2)*$N11,AL$3+(AL$4-AL$3)*$N11) -> 1.645038168 | AN11: =IF($M11="HW",$K11+AN$6+(AN$5-AN$6)*$R11,$K11+AN$8+(AN$7-AN$8)*$R11) -> 44196.22693 | AO11: =IF($M11="HW",AN$2+(AN$1-AN$2)*$N11,AN$3+(AN$4-AN$3)*$N11) -> 1.645038168 | AP11: =IF($M11="HW",$K11+AP$6+(AP$5-AP$6)*$R11,$K11+AP$8+(AP$7-AP$8)*$R11) -> 44196.23048 | AQ11: =IF($M11="HW",AP$2+(AP$1-AP$2)*$N11,AP$3+(AP$4-AP$3)*$N11) -> 1.498473282 | AR11: =IF($M11="HW",$K11+AR$6+(AR$5-AR$6)*$R11,$K11+AR$8+(AR$7-AR$8)*$R11) -> 44196.19236 | AS11: 44196.21667 | AT11: =IF($M11="HW",$K11+AT$6+(AT$5-AT$6)*$R11,$K11+AT$8+(AT$7-AT$8)*$R11) -> 44196.19236 | AU11: =IF($M11="HW",AT$2+(AT$1-AT$2)*$N11,AT$3+(AT$4-AT$3)*$N11) -> 1.358778626 | AV11: =IF($M11="HW",$K11+AV$6+(AV$5-AV$6)*$R11,$K11+AV$8+(AV$7-AV$8)*$R11) -> 44196.19915 | AW11: =IF($M11="HW",AV$2+(AV$1-AV$2)*$N11,AV$3+(AV$4-AV$3)*$N11) -> 1.305343511 | AX11: =IF($M11="HW",$K11+AX$6+(AX$5-AX$6)*$R11,$K11+AX$8+(AX$7-AX$8)*$R11) -> 44196.1821 | AY11: =IF($M11="HW",AX$2+(AX$1-AX$2)*$N11,AX$3+(AX$4-AX$3)*$N11) -> 1.158778626 | AZ11: =IF($M11="HW",$K11+AZ$6+(AZ$5-AZ$6)*$R11,$K11+AZ$8+(AZ$7-AZ$8)*$R11) -> 44196.17863 | BA11: =IF($M11="HW",AZ$2+(AZ$1-AZ$2)*$N11,AZ$3+(AZ$4-AZ$3)*$N11) -> 1.105343511 | BB11: =IF($M11="HW",$K11+BB$6+(BB$5-BB$6)*$R11,$K11+BB$8+(BB$7-BB$8)*$R11) -> 44196.17508 | BC11: =IF($M11="HW",BB$2+(BB$1-BB$2)*$N11,BB$3+(BB$4-BB$3)*$N11) -> 1.205343511 | BD11: =IF($M11="HW",$K11+BD$6+(BD$5-BD$6)*$R11,$K11+BD$8+(BD$7-BD$8)*$R11) -> 44196.12994 | BE11: =IF($M11="HW",BD$2+(BD$1-BD$2)*$N11,BD$3+(BD$4-BD$3)*$N11) -> 1.019083969 | BF11: =IF($M11="HW",$K11+BF$6+(BF$5-BF$6)*$R11,$K11+BF$8+(BF$7-BF$8)*$R11) -> 44196.22708 | BH11: =BL11 -> 44196.26458 | BI11: 44196.23403 | BK11: 2025-01-01T06:21:00 | BL11: =BK11+B11/24 -> 44196.26458
A12: 0 | B12: =IF(Instructions!$C$2="BST",A12,0) -> 0 | C12: 2025-01-01T11:07:00 | D12: 2025-01-01 | E12: Wed | F12: =MONTH(K12) -> 1 | G12: =IF(H12="","",TEXT(F12*29,"mmm")) ->  | H12: =IF(I12=I11,"",DAY(K12)) ->  | I12: 3 | J12: =IF(I12=I11,"",TEXT(I12+2,"ddd")) ->  | K12: 44196.46319 | L12: 5.64 | M12: HW | N12: 1 | O12: 11:07:00 | P12: 12:00:00 | Q12: 06:00:00 | R12: =ABS((O12-Q12)/(P12-Q12)) -> 0.8527777778 | S12: 44196.47902 | T12: 7.6 | U12: 44196.54499 | V12: 44196.48198 | W12: 7.3 | X12: =IF($M12="HW",$BK12+X$6+$B12/24,$BK11+4/24+$B12/24) -> 44196.41181 | Y12: 44196.45176 | Z12: =IF($M12="HW",Y$2+(Y$1-Y$2)*$N12,Y$3+(Y$4-Y$3)*$N12) -> 5.6 | AA12: 44196.44134 | AB12: 44196.44236 | AC12: =IF($M12="HW",AB$2+(AB$1-AB$2)*$N12,AB$3+(AB$4-AB$3)*$N12) -> 5.2 | AD12: Opn | AE12: =IF($M12="HW",$AB12-AD$8,$AB11+AD$8) -> 44196.32778 | AF12: 44196.43797 | AG12: =IF($M12="HW",AF$2+(AF$1-AF$2)*$N12,AF$3+(AF$4-AF$3)*$N12) -> 4.6 | AH12: 44196.41316 | AI12: =IF($M12="HW",AH$2+(AH$1-AH$2)*$N12,AH$3+(AH$4-AH$3)*$N12) -> 4.9 | AJ12: 44196.47953 | AK12: =IF($M12="HW",AJ$2+(AJ$1-AJ$2)*$N12,AJ$3+(AJ$4-AJ$3)*$N12) -> 7.5 | AL12: 44196.48004 | AM12: =IF($M12="HW",AL$2+(AL$1-AL$2)*$N12,AL$3+(AL$4-AL$3)*$N12) -> 7.5 | AN12: 44196.47606 | AO12: =IF($M12="HW",AN$2+(AN$1-AN$2)*$N12,AN$3+(AN$4-AN$3)*$N12) -> 7.2 | AP12: 44196.47759 | AQ12: =IF($M12="HW",AP$2+(AP$1-AP$2)*$N12,AP$3+(AP$4-AP$3)*$N12) -> 6.6 | AR12: 44196.45278 | AS12: 44196.47361 | AT12: 44196.43399 | AU12: =IF($M12="HW",AT$2+(AT$1-AT$2)*$N12,AT$3+(AT$4-AT$3)*$N12) -> 5.2 | AV12: 44196.43399 | AW12: =IF($M12="HW",AV$2+(AV$1-AV$2)*$N12,AV$3+(AV$4-AV$3)*$N12) -> 5 | AX12: 44196.41264 | AY12: =IF($M12="HW",AX$2+(AX$1-AX$2)*$N12,AX$3+(AX$4-AX$3)*$N12) -> 4.8 | AZ12: 44196.40917 | BA12: =IF($M12="HW",AZ$2+(AZ$1-AZ$2)*$N12,AZ$3+(AZ$4-AZ$3)*$N12) -> 4.6 | BB12: 44196.4057 | BC12: =IF($M12="HW",BB$2+(BB$1-BB$2)*$N12,BB$3+(BB$4-BB$3)*$N12) -> 4.5 | BD12: 44196.36393 | BE12: =IF($M12="HW",BD$2+(BD$1-BD$2)*$N12,BD$3+(BD$4-BD$3)*$N12) -> 4.4 | BF12: 44196.45278 | BH12: =BL12 -> 44196.49514 | BI12: 44196.49444 | BK12: 2025-01-01T11:53:00 | BL12: 44196.49514
A13: 0 | B13: =IF(Instructions!$C$2="BST",A13,0) -> 0 | C13: 2025-01-01T17:17:00 | D13: 2025-01-01 | F13: 1 | I13: 3 | K13: 44196.72014 | L13: 1.12 | M13: LW | N13: 0.6870229008 | O13: 17:17:00 | P13: 17:00:00 | Q13: 23:00:00 | R13: 0.9527777778 | S13: 44196.75768 | T13: 1.332061069 | U13: 44196.82365 | V13: 44196.7279 | W13: 1.200763359 | X13: 44196.66181 | Y13: 44196.73999 | Z13: 1.175572519 | AA13: 44196.68987 | AB13: 44196.7299 | AC13: 1.006870229 | AD13: Cls | AE13: 44196.55694 | AF13: 44196.70343 | AG13: 0.9755725191 | AH13: 44196.69963 | AI13: 1.075572519 | AJ13: 44196.75437 | AK13: 1.400763359 | AL13: 44196.75437 | AM13: 1.400763359 | AN13: 44196.74412 | AO13: 1.400763359 | AP13: 44196.74775 | AQ13: 1.269465649 | AR13: 44196.70972 | AS13: 44196.73403 | AT13: 44196.70972 | AU13: 1.175572519 | AV13: 44196.71634 | AW13: 1.106870229 | AX13: 44196.69963 | AY13: 0.9755725191 | AZ13: 44196.69616 | BA13: 0.906870229 | BB13: 44196.69253 | BC13: 1.006870229 | BD13: 44196.64739 | BE13: 0.8816793893 | BF13: 44196.74444 | BH13: 44196.78194 | BI13: 44196.75139 | BK13: 2025-01-01T18:46:00 | BL13: 44196.78194
A14: 0 | B14: =IF(Instructions!$C$2="BST",A14,0) -> 0 | C14: 2025-01-01T23:31:00 | D14: 2025-01-01 | F14: 1 | I14: 3 | J14: =IF(I14=I13,"",TEXT(I14+2,"ddd")) ->  | K14: 44196.97986 | L14: 5.34 | M14: HW | N14: 0.7391304348 | O14: 23:31:00 | P14: 1 | Q14: 18:00:00 | R14: 0.9194444444 | S14: 44196.99638 | T14: 7.182608696 | U14: 44197.06236 | V14: 44196.99958 | W14: 6.908695652 | X14: 44196.92917 | Y14: 44196.96889 | Z14: =IF($M14="HW",Y$2+(Y$1-Y$2)*$N14,Y$3+(Y$4-Y$3)*$N14) -> 5.286956522 | AA14: 44196.95847 | AB14: 44196.95903 | AC14: =IF($M14="HW",AB$2+(AB$1-AB$2)*$N14,AB$3+(AB$4-AB$3)*$N14) -> 4.886956522 | AD14: Opn | AE14: 44196.84444 | AF14: 44196.95348 | AG14: =IF($M14="HW",AF$2+(AF$1-AF$2)*$N14,AF$3+(AF$4-AF$3)*$N14) -> 4.313043478 | AH14: 44196.9289 | AI14: =IF($M14="HW",AH$2+(AH$1-AH$2)*$N14,AH$3+(AH$4-AH$3)*$N14) -> 4.639130435 | AJ14: 44196.99666 | AK14: =IF($M14="HW",AJ$2+(AJ$1-AJ$2)*$N14,AJ$3+(AJ$4-AJ$3)*$N14) -> 7.082608696 | AL14: 44196.99694 | AM14: =IF($M14="HW",AL$2+(AL$1-AL$2)*$N14,AL$3+(AL$4-AL$3)*$N14) -> 7.056521739 | AN14: 44196.99319 | AO14: =IF($M14="HW",AN$2+(AN$1-AN$2)*$N14,AN$3+(AN$4-AN$3)*$N14) -> 6.808695652 | AP14: 44196.99403 | AQ14: =IF($M14="HW",AP$2+(AP$1-AP$2)*$N14,AP$3+(AP$4-AP$3)*$N14) -> 6.208695652 | AR14: 44196.96944 | AS14: 44196.99028 | AT14: 44196.94973 | AU14: =IF($M14="HW",AT$2+(AT$1-AT$2)*$N14,AT$3+(AT$4-AT$3)*$N14) -> 4.886956522 | AV14: 44196.94973 | AW14: =IF($M14="HW",AV$2+(AV$1-AV$2)*$N14,AV$3+(AV$4-AV$3)*$N14) -> 4.686956522 | AX14: 44196.92862 | AY14: =IF($M14="HW",AX$2+(AX$1-AX$2)*$N14,AX$3+(AX$4-AX$3)*$N14) -> 4.460869565 | AZ14: 44196.92514 | BA14: =IF($M14="HW",AZ$2+(AZ$1-AZ$2)*$N14,AZ$3+(AZ$4-AZ$3)*$N14) -> 4.286956522 | BB14: 44196.92167 | BC14: =IF($M14="HW",BB$2+(BB$1-BB$2)*$N14,BB$3+(BB$4-BB$3)*$N14) -> 4.213043478 | BD14: 44196.88152 | BE14: =IF($M14="HW",BD$2+(BD$1-BD$2)*$N14,BD$3+(BD$4-BD$3)*$N14) -> 4.086956522 | BF14: 44196.96944 | BH14: 44197.0125 | BI14: 44197.01111 | BK14: 2025-01-02T00:18:00 | BL14: 44197.0125
A15: 0 | B15: =IF(Instructions!$C$2="BST",A15,0) -> 0 | C15: 2025-01-02T05:31:00 | D15: 2025-01-02 | E15: 2025-01-02 | F15: 1 | G15: Jan | H15: 2 | I15: 4 | J15: Thu | K15: 44197.22986 | L15: 1.27 | M15: LW | N15: 0.572519084 | O15: 05:31:00 | P15: 05:00:00 | Q15: 11:00:00 | R15: 0.9138888889 | S15: 44197.26686 | T15: 1.526717557 | U15: 44197.33283 | V15: 44197.2383 | W15: 1.383969466 | X15: 44197.17917 | Y15: 44197.2489 | Z15: 1.312977099 | AA15: 44197.20041 | AB15: 44197.23908 | AC15: 1.155725191 | AD15: Cls | AE15: 44197.07361 | AF15: 44197.2137 | AG15: 1.112977099 | AH15: 44197.20963 | AI15: 1.212977099 | AJ15: 44197.26369 | AK15: 1.583969466 | AL15: 44197.26369 | AM15: 1.583969466 | AN15: 44197.25357 | AO15: 1.583969466 | AP15: 44197.25734 | AQ15: 1.441221374 | AR15: 44197.21944 | AS15: 44197.24375 | AT15: 44197.21944 | AU15: 1.312977099 | AV15: 44197.22579 | AW15: 1.255725191 | AX15: 44197.20963 | AY15: 1.112977099 | AZ15: 44197.20615 | BA15: 1.055725191 | BB15: 44197.20238 | BC15: 1.155725191 | BD15: 44197.15724 | BE15: 0.9847328244 | BF15: 44197.25417 | BH15: 44197.29306 | BI15: 44197.26111 | BK15: 2025-01-02T07:02:00 | BL15: 44197.29306
A16: 0 | B16: =IF(Instructions!$C$2="BST",A16,0) -> 0 | C16: 2025-01-02T11:46:00 | D16: 2025-01-02 | E16: Thu | F16: 1 | I16: 4 | K16: 44197.49028 | L16: 5.7 | M16: HW | N16: 1.052173913 | O16: 11:46:00 | P16: 12:00:00 | Q16: 06:00:00 | R16: 0.9611111111 | S16: 44197.50723 | T16: 7.683478261 | U16: 44197.57321 | V16: 44197.51057 | W16: 7.37826087 | X16: 44197.43889 | Y16: 44197.47959 | Z16: 5.662608696 | AA16: 44197.46917 | AB16: 44197.46944 | AC16: 5.262608696 | AD16: Opn | AE16: 44197.35486 | AF16: 44197.46318 | AG16: 4.657391304 | AH16: 44197.43873 | AI16: 4.952173913 | AJ16: 44197.50737 | AK16: 7.583478261 | AL16: 44197.5075 | AM16: 7.588695652 | AN16: 44197.5039 | AO16: 7.27826087 | AP16: 44197.5043 | AQ16: 6.67826087 | AR16: 44197.47986 | AS16: 44197.50069 | AT16: 44197.45957 | AU16: 5.262608696 | AV16: 44197.45957 | AW16: 5.062608696 | AX16: 44197.4386 | AY16: 4.867826087 | AZ16: 44197.43513 | BA16: 4.662608696 | BB16: 44197.43166 | BC16: 4.557391304 | BD16: 44197.39252 | BE16: 4.462608696 | BF16: 44197.47986 | BH16: 44197.52222 | BI16: 44197.52153 | BK16: 2025-01-02T12:32:00 | BL16: 44197.52222
A17: 0 | B17: =IF(Instructions!$C$2="BST",A17,0) -> 0 | C17: 2025-01-02T17:57:00 | D17: 2025-01-02 | F17: 1 | I17: 4 | K17: 44197.74792 | L17: 1.02 | M17: LW | N17: 0.7633587786 | O17: 17:57:00 | P17: 17:00:00 | Q17: 23:00:00 | R17: 0.8416666667 | S17: 44197.78391 | T17: 1.202290076 | U17: 44197.84988 | V17: 44197.75761 | W17: 1.078625954 | X17: 44197.68889 | Y17: 44197.76545 | Z17: 1.083969466 | AA17: 44197.71997 | AB17: 44197.75613 | AC17: 0.9076335878 | AD17: Cls | AE17: 44197.58403 | AF17: 44197.73275 | AG17: 0.8839694656 | AH17: 44197.72818 | AI17: 0.9839694656 | AJ17: 44197.78099 | AK17: 1.278625954 | AL17: 44197.78099 | AM17: 1.278625954 | AN17: 44197.77112 | AO17: 1.278625954 | AP17: 44197.77514 | AQ17: 1.154961832 | AR17: 44197.7375 | AS17: 44197.76181 | AT17: 44197.7375 | AU17: 1.083969466 | AV17: 44197.74334 | AW17: 1.007633588 | AX17: 44197.72818 | AY17: 0.8839694656 | AZ17: 44197.72471 | BA17: 0.8076335878 | BB17: 44197.72069 | BC17: 0.9076335878 | BD17: 44197.67555 | BE17: 0.8129770992 | BF17: 44197.77222 | BH17: 44197.81111 | BI17: 44197.77917 | BK17: 2025-01-02T19:28:00 | BL17: 44197.81111
A18: 0 | B18: =IF(Instructions!$C$2="BST",A18,0) -> 0 | C18: 2025-01-03T00:12:00 | D18: 2025-01-03 | E18: 2025-01-03 | F18: 1 | G18: Jan | H18: 3 | I18: 5 | J18: Fri | K18: 44198.00833 | L18: 5.32 | M18: HW | N18: 0.7217391304 | O18: 00:12:00 | P18: 00:00:00 | Q18: 06:00:00 | R18: 0.9666666667 | S18: 44198.02535 | T18: 7.154782609 | U18: 44198.09132 | V18: 44198.0287 | W18: 6.882608696 | X18: 44197.95694 | Y18: 44197.99769 | Z18: =IF($M18="HW",Y$2+(Y$1-Y$2)*$N18,Y$3+(Y$4-Y$3)*$N18) -> 5.266086957 | AA18: 44197.98727 | AB18: 44197.9875 | AC18: =IF($M18="HW",AB$2+(AB$1-AB$2)*$N18,AB$3+(AB$4-AB$3)*$N18) -> 4.866086957 | AD18: Opn | AE18: 44197.87292 | AF18: 44197.98113 | AG18: =IF($M18="HW",AF$2+(AF$1-AF$2)*$N18,AF$3+(AF$4-AF$3)*$N18) -> 4.293913043 | AH18: 44197.95671 | AI18: =IF($M18="HW",AH$2+(AH$1-AH$2)*$N18,AH$3+(AH$4-AH$3)*$N18) -> 4.62173913 | AJ18: 44198.02546 | AK18: =IF($M18="HW",AJ$2+(AJ$1-AJ$2)*$N18,AJ$3+(AJ$4-AJ$3)*$N18) -> 7.054782609 | AL18: 44198.02558 | AM18: =IF($M18="HW",AL$2+(AL$1-AL$2)*$N18,AL$3+(AL$4-AL$3)*$N18) -> 7.026956522 | AN18: 44198.02199 | AO18: =IF($M18="HW",AN$2+(AN$1-AN$2)*$N18,AN$3+(AN$4-AN$3)*$N18) -> 6.782608696 | AP18: 44198.02234 | AQ18: =IF($M18="HW",AP$2+(AP$1-AP$2)*$N18,AP$3+(AP$4-AP$3)*$N18) -> 6.182608696 | AR18: 44197.99792 | AS18: 44198.01875 | AT18: 44197.97755 | AU18: =IF($M18="HW",AT$2+(AT$1-AT$2)*$N18,AT$3+(AT$4-AT$3)*$N18) -> 4.866086957 | AV18: 44197.97755 | AW18: =IF($M18="HW",AV$2+(AV$1-AV$2)*$N18,AV$3+(AV$4-AV$3)*$N18) -> 4.666086957 | AX18: 44197.9566 | AY18: =IF($M18="HW",AX$2+(AX$1-AX$2)*$N18,AX$3+(AX$4-AX$3)*$N18) -> 4.43826087 | AZ18: 44197.95312 | BA18: =IF($M18="HW",AZ$2+(AZ$1-AZ$2)*$N18,AZ$3+(AZ$4-AZ$3)*$N18) -> 4.266086957 | BB18: 44197.94965 | BC18: =IF($M18="HW",BB$2+(BB$1-BB$2)*$N18,BB$3+(BB$4-BB$3)*$N18) -> 4.193913043 | BD18: 44197.91065 | BE18: =IF($M18="HW",BD$2+(BD$1-BD$2)*$N18,BD$3+(BD$4-BD$3)*$N18) -> 4.066086957 | BF18: 44197.99792 | BH18: 44198.04028 | BI18: 44198.03958 | BK18: 2025-01-03T00:58:00 | BL18: 44198.04028
A19: 0 | B19: =IF(Instructions!$C$2="BST",A19,0) -> 0 | C19: 2025-01-03T06:12:00 | D19: 2025-01-03 | E19: Fri | F19: 1 | I19: 5 | K19: 44198.25833 | L19: 1.26 | M19: LW | N19: 0.5801526718 | O19: 06:12:00 | P19: 05:00:00 | Q19: 11:00:00 | R19: 0.8 | S19: 44198.29375 | T19: 1.513740458 | U19: 44198.35972 | V19: 44198.26875 | W19: 1.371755725 | X19: 44198.20694 | Y19: 44198.275 | Z19: 1.303816794 | AA19: 44198.23125 | AB19: 44198.26597 | AC19: 1.145801527 | AD19: Cls | AE19: 44198.10208 | AF19: 44198.24375 | AG19: 1.103816794 | AH19: 44198.23889 | AI19: 1.203816794 | AJ19: 44198.29097 | AK19: 1.571755725 | AL19: 44198.29097 | AM19: 1.571755725 | AN19: 44198.28125 | AO19: 1.571755725 | AP19: 44198.28542 | AQ19: 1.429770992 | AR19: 44198.24792 | AS19: 44198.27222 | AT19: 44198.24792 | AU19: 1.303816794 | AV19: 44198.25347 | AW19: 1.245801527 | AX19: 44198.23889 | AY19: 1.103816794 | AZ19: 44198.23542 | BA19: 1.045801527 | BB19: 44198.23125 | BC19: 1.145801527 | BD19: 44198.18611 | BE19: 0.9778625954 | BF19: 44198.28264 | BH19: 44198.32153 | BI19: 44198.28958 | BK19: 2025-01-03T07:43:00 | BL19: 44198.32153
A20: 0 | B20: =IF(Instructions!$C$2="BST",A20,0) -> 0 | C20: 2025-01-03T12:26:00 | D20: 2025-01-03 | F20: 1 | I20: 5 | K20: 44198.51806 | L20: 5.7 | M20: HW | N20: 1.052173913 | O20: 12:26:00 | P20: 12:00:00 | Q20: 18:00:00 | R20: 0.9277777778 | S20: 44198.53466 | T20: 7.683478261 | U20: 44198.60064 | V20: 44198.53789 | W20: 7.37826087 | X20: 44198.46667 | Y20: 44198.50714 | Z20: 5.662608696 | AA20: 44198.49672 | AB20: 44198.49722 | AC20: 5.262608696 | AD20: Opn | AE20: 44198.38264 | AF20: 44198.49153 | AG20: 4.657391304 | AH20: 44198.46698 | AI20: 4.952173913 | AJ20: 44198.53492 | AK20: 7.583478261 | AL20: 44198.53517 | AM20: 7.588695652 | AN20: 44198.53144 | AO20: 7.27826087 | AP20: 44198.5322 | AQ20: 6.67826087 | AR20: 44198.50764 | AS20: 44198.52847 | AT20: 44198.48781 | AU20: 5.262608696 | AV20: 44198.48781 | AW20: 5.062608696 | AX20: 44198.46672 | AY20: 4.867826087 | AZ20: 44198.46325 | BA20: 4.662608696 | BB20: 44198.45978 | BC20: 4.557391304 | BD20: 44198.41983 | BE20: 4.462608696 | BF20: 44198.50764 | BH20: 44198.55 | BI20: 44198.54931 | BK20: 2025-01-03T13:12:00 | BL20: 44198.55
A21: 0 | B21: =IF(Instructions!$C$2="BST",A21,0) -> 0 | C21: 2025-01-03T18:40:00 | D21: 2025-01-03 | F21: 1 | I21: 5 | K21: 44198.77778 | L21: 0.99 | M21: LW | N21: 0.786259542 | O21: 18:40:00 | P21: 17:00:00 | Q21: 23:00:00 | R21: 0.7222222222 | S21: 44198.81211 | T21: 1.163358779 | U21: 44198.87809 | V21: 44198.78954 | W21: 1.041984733 | X21: 44198.71667 | Y21: 44198.79282 | Z21: 1.05648855 | AA21: 44198.75231 | AB21: 44198.78434 | AC21: 0.8778625954 | AD21: Cls | AE21: 44198.61181 | AF21: 44198.76427 | AG21: 0.8564885496 | AH21: 44198.75887 | AI21: 0.9564885496 | AJ21: 44198.80961 | AK21: 1.241984733 | AL21: 44198.80961 | AM21: 1.241984733 | AN21: 44198.80015 | AO21: 1.241984733 | AP21: 44198.80459 | AQ21: 1.120610687 | AR21: 44198.76736 | AS21: 44198.79167 | AT21: 44198.76736 | AU21: 1.05648855 | AV21: 44198.77238 | AW21: 0.9778625954 | AX21: 44198.75887 | AY21: 0.8564885496 | AZ21: 44198.7554 | BA21: 0.7778625954 | BB21: 44198.75096 | BC21: 0.8778625954 | BD21: 44198.70583 | BE21: 0.7923664122 | BF21: 44198.80208 | BH21: 44198.83958 | BI21: 44198.80903 | BK21: 2025-01-03T20:09:00 | BL21: 44198.83958
A22: 0 | B22: =IF(Instructions!$C$2="BST",A22,0) -> 0 | C22: 2025-01-04T00:55:00 | D22: 2025-01-04 | E22: 2025-01-04 | F22: 1 | G22: Jan | H22: 4 | I22: 6 | J22: Sat | K22: 44199.03819 | L22: 5.25 | M22: HW | N22: 0.6608695652 | O22: 00:55:00 | P22: 00:00:00 | Q22: 06:00:00 | R22: 0.8472222222 | S22: 44199.05396 | T22: 7.057391304 | U22: 44199.11994 | V22: 44199.05691 | W22: 6.791304348 | X22: 44198.98611 | Y22: 44199.02672 | Z22: 5.193043478 | AA22: 44199.0163 | AB22: 44199.01736 | AC22: 4.793043478 | AD22: Opn | AE22: 44198.90278 | AF22: 44199.01307 | AG22: 4.226956522 | AH22: 44198.98823 | AI22: 4.560869565 | AJ22: 44199.05449 | AK22: 6.957391304 | AL22: 44199.05503 | AM22: 6.923478261 | AN22: 44199.05102 | AO22: 6.691304348 | AP22: 44199.05261 | AQ22: 6.091304348 | AR22: 44199.02778 | AS22: 44199.04861 | AT22: 44199.00907 | AU22: 4.793043478 | AV22: 44199.00907 | AW22: 4.593043478 | AX22: 44198.9877 | AY22: 4.359130435 | AZ22: 44198.98423 | BA22: 4.193043478 | BB22: 44198.98076 | BC22: 4.126956522 | BD22: 44198.93885 | BE22: 3.993043478 | BF22: 44199.02778 | BH22: 44199.06944 | BI22: 44199.06944 | BK22: 2025-01-04T01:40:00 | BL22: 44199.06944
A23: 0 | B23: =IF(Instructions!$C$2="BST",A23,0) -> 0 | C23: 2025-01-04T06:55:00 | D23: 2025-01-04 | E23: Sat | F23: 1 | I23: 6 | K23: 44199.28819 | L23: 1.31 | M23: LW | N23: 0.5419847328 | O23: 06:55:00 | P23: 05:00:00 | Q23: 11:00:00 | R23: 0.6805555556 | S23: 44199.32195 | T23: 1.578625954 | U23: 44199.38792 | V23: 44199.30068 | W23: 1.432824427 | X23: 44199.23611 | Y23: 44199.30237 | Z23: 1.349618321 | AA23: 44199.2636 | AB23: 44199.29417 | AC23: 1.195419847 | AD23: Cls | AE23: 44199.13194 | AF23: 44199.27527 | AG23: 1.149618321 | AH23: 44199.26958 | AI23: 1.249618321 | AJ23: 44199.31959 | AK23: 1.632824427 | AL23: 44199.31959 | AM23: 1.632824427 | AN23: 44199.31028 | AO23: 1.632824427 | AP23: 44199.31486 | AQ23: 1.487022901 | AR23: 44199.27778 | AS23: 44199.30208 | AT23: 44199.27778 | AU23: 1.349618321 | AV23: 44199.2825 | AW23: 1.295419847 | AX23: 44199.26958 | AY23: 1.149618321 | AZ23: 44199.26611 | BA23: 1.095419847 | BB23: 44199.26153 | BC23: 1.195419847 | BD23: 44199.21639 | BE23: 1.01221374 | BF23: 44199.3125 | BH23: 44199.35 | BI23: 44199.31944 | BK23: 2025-01-04T08:24:00 | BL23: 44199.35
A24: 0 | B24: =IF(Instructions!$C$2="BST",A24,0) -> 0 | C24: 2025-01-04T13:09:00 | D24: 2025-01-04 | F24: 1 | I24: 6 | K24: 44199.54792 | L24: 5.65 | M24: HW | N24: 1.008695652 | O24: 13:09:00 | P24: 12:00:00 | Q24: 18:00:00 | R24: 0.8083333333 | S24: 44199.56328 | T24: 7.613913043 | U24: 44199.62925 | V24: 44199.56609 | W24: 7.313043478 | X24: 44199.49583 | Y24: 44199.53617 | Z24: 5.610434783 | AA24: 44199.52575 | AB24: 44199.52708 | AC24: 5.210434783 | AD24: Opn | AE24: 44199.4125 | AF24: 44199.52347 | AG24: 4.609565217 | AH24: 44199.4985 | AI24: 4.908695652 | AJ24: 44199.56395 | AK24: 7.513913043 | AL24: 44199.56461 | AM24: 7.514782609 | AN24: 44199.56047 | AO24: 7.213043478 | AP24: 44199.56247 | AQ24: 6.613043478 | AR24: 44199.5375 | AS24: 44199.55833 | AT24: 44199.51933 | AU24: 5.210434783 | AV24: 44199.51933 | AW24: 5.010434783 | AX24: 44199.49783 | AY24: 4.811304348 | AZ24: 44199.49436 | BA24: 4.610434783 | BB24: 44199.49089 | BC24: 4.509565217 | BD24: 44199.44803 | BE24: 4.410434783 | BF24: 44199.5375 | BH24: 44199.57917 | BI24: 44199.57917 | BK24: 2025-01-04T13:54:00 | BL24: 44199.57917
A25: 0 | B25: =IF(Instructions!$C$2="BST",A25,0) -> 0 | C25: 2025-01-04T19:26:00 | D25: 2025-01-04 | F25: 1 | I25: 6 | K25: 44199.80972 | L25: 1.02 | M25: LW | N25: 0.7633587786 | O25: 19:26:00 | P25: 17:00:00 | Q25: 23:00:00 | R25: 0.5944444445 | S25: 44199.84228 | T25: 1.202290076 | U25: 44199.90826 | V25: 44199.82371 | W25: 1.078625954 | X25: 44199.74583 | Y25: 44199.82211 | Z25: 1.083969466 | AA25: 44199.78692 | AB25: 44199.81451 | AC25: 0.9076335878 | AD25: Cls | AE25: 44199.64167 | AF25: 44199.79799 | AG25: 0.8839694656 | AH25: 44199.79171 | AI25: 0.9839694656 | AJ25: 44199.84022 | AK25: 1.278625954 | AL25: 44199.84022 | AM25: 1.278625954 | AN25: 44199.83121 | AO25: 1.278625954 | AP25: 44199.83609 | AQ25: 1.154961832 | AR25: 44199.79931 | AS25: 44199.82361 | AT25: 44199.79931 | AU25: 1.083969466 | AV25: 44199.80343 | AW25: 1.007633588 | AX25: 44199.79171 | AY25: 0.8839694656 | AZ25: 44199.78823 | BA25: 0.8076335878 | BB25: 44199.78335 | BC25: 0.9076335878 | BD25: 44199.73821 | BE25: 0.8129770992 | BF25: 44199.83403 | BH25: 44199.86944 | BI25: 44199.84097 | BK25: 2025-01-04T20:52:00 | BL25: 44199.86944
A26: 0 | B26: =IF(Instructions!$C$2="BST",A26,0) -> 0 | C26: 2025-01-05T01:40:00 | D26: 2025-01-05 | E26: 2025-01-05 | F26: 1 | G26: Jan | H26: 5 | I26: 7 | J26: Sun | K26: 44200.06944 | L26: 5.15 | M26: HW | N26: 0.5739130435 | O26: 01:40:00 | P26: 00:00:00 | Q26: 06:00:00 | R26: 0.7222222222 | S26: 44200.08391 | T26: 6.91826087 | U26: 44200.14988 | V26: 44200.08642 | W26: 6.660869565 | X26: 44200.01736 | Y26: 44200.0571 | Z26: =IF($M26="HW",Y$2+(Y$1-Y$2)*$N26,Y$3+(Y$4-Y$3)*$N26) -> 5.088695652 | AA26: 44200.04668 | AB26: 44200.04861 | AC26: =IF($M26="HW",AB$2+(AB$1-AB$2)*$N26,AB$3+(AB$4-AB$3)*$N26) -> 4.688695652 | AD26: Opn | AE26: 44199.93403 | AF26: 44200.04649 | AG26: =IF($M26="HW",AF$2+(AF$1-AF$2)*$N26,AF$3+(AF$4-AF$3)*$N26) -> 4.131304348 | AH26: 44200.02122 | AI26: =IF($M26="HW",AH$2+(AH$1-AH$2)*$N26,AH$3+(AH$4-AH$3)*$N26) -> 4.473913043 | AJ26: 44200.08488 | AK26: =IF($M26="HW",AJ$2+(AJ$1-AJ$2)*$N26,AJ$3+(AJ$4-AJ$3)*$N26) -> 6.81826087 | AL26: 44200.08584 | AM26: =IF($M26="HW",AL$2+(AL$1-AL$2)*$N26,AL$3+(AL$4-AL$3)*$N26) -> 6.775652174 | AN26: 44200.0814 | AO26: =IF($M26="HW",AN$2+(AN$1-AN$2)*$N26,AN$3+(AN$4-AN$3)*$N26) -> 6.560869565 | AP26: 44200.0843 | AQ26: =IF($M26="HW",AP$2+(AP$1-AP$2)*$N26,AP$3+(AP$4-AP$3)*$N26) -> 5.960869565 | AR26: 44200.05903 | AS26: 44200.07986 | AT26: 44200.04205 | AU26: =IF($M26="HW",AT$2+(AT$1-AT$2)*$N26,AT$3+(AT$4-AT$3)*$N26) -> 4.688695652 | AV26: 44200.04205 | AW26: =IF($M26="HW",AV$2+(AV$1-AV$2)*$N26,AV$3+(AV$4-AV$3)*$N26) -> 4.488695652 | AX26: 44200.02025 | AY26: =IF($M26="HW",AX$2+(AX$1-AX$2)*$N26,AX$3+(AX$4-AX$3)*$N26) -> 4.246086957 | AZ26: 44200.01678 | BA26: =IF($M26="HW",AZ$2+(AZ$1-AZ$2)*$N26,AZ$3+(AZ$4-AZ$3)*$N26) -> 4.088695652 | BB26: 44200.01331 | BC26: =IF($M26="HW",BB$2+(BB$1-BB$2)*$N26,BB$3+(BB$4-BB$3)*$N26) -> 4.031304348 | BD26: 44199.96836 | BE26: =IF($M26="HW",BD$2+(BD$1-BD$2)*$N26,BD$3+(BD$4-BD$3)*$N26) -> 3.888695652 | BF26: 44200.05903 | BH26: 44200.10069 | BI26: 44200.10069 | BK26: 2025-01-05T02:25:00 | BL26: 44200.10069
A27: 0 | B27: =IF(Instructions!$C$2="BST",A27,0) -> 0 | C27: 2025-01-05T07:41:00 | D27: 2025-01-05 | E27: Sun | F27: 1 | I27: 7 | K27: 44200.32014 | L27: 1.4 | M27: LW | N27: 0.4732824427 | O27: 07:41:00 | P27: 05:00:00 | Q27: 11:00:00 | R27: 0.5527777778 | S27: 44200.35212 | T27: 1.695419847 | U27: 44200.41809 | V27: 44200.33485 | W27: 1.542748092 | X27: 44200.26736 | Y27: 44200.33166 | Z27: 1.432061069 | AA27: 44200.29821 | AB27: 44200.32434 | AC27: 1.284732824 | AD27: Cls | AE27: 44200.16319 | AF27: 44200.30899 | AG27: 1.232061069 | AH27: 44200.30241 | AI27: 1.332061069 | AJ27: 44200.3502 | AK27: 1.742748092 | AL27: 44200.3502 | AM27: 1.742748092 | AN27: 44200.34134 | AO27: 1.742748092 | AP27: 44200.34636 | AQ27: 1.590076336 | AR27: 44200.30972 | AS27: 44200.33403 | AT27: 44200.30972 | AU27: 1.432061069 | AV27: 44200.31356 | AW27: 1.384732824 | AX27: 44200.30241 | AY27: 1.232061069 | AZ27: 44200.29894 | BA27: 1.184732824 | BB27: 44200.29391 | BC27: 1.284732824 | BD27: 44200.24878 | BE27: 1.074045802 | BF27: 44200.34444 | BH27: 44200.37917 | BI27: 44200.35139 | BK27: 2025-01-05T09:06:00 | BL27: 44200.37917
A28: 0 | B28: =IF(Instructions!$C$2="BST",A28,0) -> 0 | C28: 2025-01-05T13:55:00 | D28: 2025-01-05 | F28: 1 | I28: 7 | K28: 44200.57986 | L28: 5.54 | M28: HW | N28: 0.9130434783 | O28: 13:55:00 | P28: 12:00:00 | Q28: 18:00:00 | R28: 0.6805555556 | S28: =IF($M28="HW",$K28+S$6+(S$5-S$6)*$R28,$K28+S$8+(S$7-S$8)*$R28) -> 44200.59389 | T28: 7.460869565 | U28: 44200.65987 | V28: 44200.59626 | W28: 7.169565217 | X28: 44200.52708 | Y28: =IF($M28="HW",$K28+Y$6+(Y$5-Y$6)*$R28,$K28+Y$8+(Y$7-Y$8)*$R28) -> 44200.56723 | Z28: 5.495652174 | AA28: 44200.55681 | AB28: 44200.55903 | AC28: 5.095652174 | AD28: Opn | AE28: 44200.44444 | AF28: 44200.55763 | AG28: 4.504347826 | AH28: 44200.53221 | AI28: 4.813043478 | AJ28: 44200.595 | AK28: 7.360869565 | AL28: 44200.59611 | AM28: 7.352173913 | AN28: 44200.59153 | AO28: 7.069565217 | AP28: 44200.59486 | AQ28: 6.469565217 | AR28: =IF($M28="HW",$K28+AR$6+(AR$5-AR$6)*$R28,$K28+AR$8+(AR$7-AR$8)*$R28) -> 44200.56944 | AS28: 44200.59028 | AT28: 44200.55305 | AU28: 5.095652174 | AV28: 44200.55305 | AW28: 4.895652174 | AX28: 44200.53111 | AY28: 4.686956522 | AZ28: 44200.52763 | BA28: 4.495652174 | BB28: 44200.52416 | BC28: 4.404347826 | BD28: 44200.4782 | BE28: 4.295652174 | BF28: =IF($M28="HW",$K28+BF$6+(BF$5-BF$6)*$R28,$K28+BF$8+(BF$7-BF$8)*$R28) -> 44200.56944 | BH28: 44200.61042 | BI28: 44200.61111 | BK28: 2025-01-05T14:39:00 | BL28: 44200.61042
A29: 0 | B29: =IF(Instructions!$C$2="BST",A29,0) -> 0 | C29: 2025-01-05T20:15:00 | D29: 2025-01-05 | F29: 1 | I29: 7 | K29: 44200.84375 | L29: 1.13 | M29: LW | N29: 0.679389313 | O29: 20:15:00 | P29: 17:00:00 | Q29: 23:00:00 | R29: 0.4583333333 | S29: 44200.87442 | T29: 1.345038168 | U29: 44200.94039 | V29: 44200.8601 | W29: 1.212977099 | X29: 44200.77708 | Y29: 44200.8533 | Z29: 1.184732824 | AA29: 44200.82378 | AB29: 44200.84664 | AC29: 1.016793893 | AD29: Cls | AE29: 44200.67361 | AF29: 44200.83391 | AG29: 0.9847328244 | AH29: 44200.82668 | AI29: 1.084732824 | AJ29: 44200.87283 | AK29: 1.412977099 | AL29: 44200.87283 | AM29: 1.412977099 | AN29: 44200.86429 | AO29: 1.412977099 | AP29: 44200.86965 | AQ29: 1.280916031 | AR29: 44200.83333 | AS29: 44200.85764 | AT29: 44200.83333 | AU29: 1.184732824 | AV29: 44200.83652 | AW29: 1.116793893 | AX29: 44200.82668 | AY29: 0.9847328244 | AZ29: 44200.82321 | BA29: 0.9167938931 | BB29: 44200.81785 | BC29: 1.016793893 | BD29: 44200.77271 | BE29: 0.8885496183 | BF29: 44200.86806 | BH29: 44200.90069 | BI29: 44200.875 | BK29: 2025-01-05T21:37:00 | BL29: 44200.90069
A30: 0 | B30: =IF(Instructions!$C$2="BST",A30,0) -> 0 | C30: 2025-01-06T02:30:00 | D30: 2025-01-06 | E30: 2025-01-06 | F30: 1 | G30: Jan | H30: 6 | I30: 1 | J30: Mon | K30: 44201.10417 | L30: 5.01 | M30: HW | N30: 0.452173913 | O30: 02:30:00 | P30: 00:00:00 | Q30: 06:00:00 | R30: 0.5833333333 | S30: 44201.11719 | T30: 6.723478261 | U30: 44201.18316 | V30: 44201.11921 | W30: 6.47826087 | X30: 44201.05 | Y30: 44201.09086 | Z30: 4.942608696 | AA30: 44201.08044 | AB30: 44201.08333 | AC30: 4.542608696 | AD30: Opn | AE30: 44200.96875 | AF30: 44201.08362 | AG30: 3.997391304 | AH30: 44201.05787 | AI30: 4.352173913 | AJ30: 44201.11863 | AK30: 6.623478261 | AL30: 44201.12008 | AM30: 6.568695652 | AN30: 44201.11516 | AO30: 6.37826087 | AP30: 44201.1195 | AQ30: 5.77826087 | AR30: 44201.09375 | AS30: 44201.11458 | AT30: 44201.0787 | AU30: 4.542608696 | AV30: 44201.0787 | AW30: 4.342608696 | AX30: 44201.05642 | AY30: 4.087826087 | AZ30: 44201.05295 | BA30: 3.942608696 | BB30: 44201.04948 | BC30: 3.897391304 | BD30: 44201.00116 | BE30: 3.742608696 | BF30: 44201.09375 | BH30: 44201.13333 | BI30: 44201.13542 | BK30: 2025-01-06T03:12:00 | BL30: 44201.13333
A31: 0 | B31: =IF(Instructions!$C$2="BST",A31,0) -> 0 | C31: 2025-01-06T08:32:00 | D31: 2025-01-06 | E31: Mon | F31: 1 | I31: 1 | K31: 44201.35556 | L31: 1.54 | M31: LW | N31: 0.3664122137 | O31: 08:32:00 | P31: 05:00:00 | Q31: 11:00:00 | R31: 0.4111111111 | S31: 44201.38557 | T31: 1.877099237 | U31: 44201.45154 | V31: 44201.37272 | W31: 1.713740458 | X31: 44201.3 | Y31: 44201.36412 | Z31: 1.560305344 | AA31: 44201.33657 | AB31: 44201.35779 | AC31: 1.423664122 | AD31: Cls | AE31: 44201.19792 | AF31: 44201.34637 | AG31: 1.360305344 | AH31: 44201.33881 | AI31: 1.460305344 | AJ31: 44201.38414 | AK31: 1.913740458 | AL31: 44201.38414 | AM31: 1.913740458 | AN31: 44201.37577 | AO31: 1.913740458 | AP31: 44201.38129 | AQ31: 1.750381679 | AR31: 44201.34514 | AS31: 44201.36944 | AT31: 44201.34514 | AU31: 1.560305344 | AV31: 44201.34799 | AW31: 1.523664122 | AX31: 44201.33881 | AY31: 1.360305344 | AZ31: 44201.33534 | BA31: 1.323664122 | BB31: 44201.32982 | BC31: 1.423664122 | BD31: 44201.28468 | BE31: 1.170229008 | BF31: 44201.37986 | BH31: 44201.41181 | BI31: 44201.38681 | BK31: 2025-01-06T09:53:00 | BL31: 44201.41181
A32: 0 | B32: =IF(Instructions!$C$2="BST",A32,0) -> 0 | C32: 2025-01-06T14:47:00 | D32: 2025-01-06 | F32: 1 | I32: 1 | K32: 44201.61597 | L32: 5.39 | M32: HW | N32: 0.7826086957 | O32: 14:47:00 | P32: 12:00:00 | Q32: 18:00:00 | R32: 0.5361111111 | S32: 44201.6285 | T32: 7.252173913 | U32: 44201.69447 | V32: 44201.63036 | W32: 6.973913043 | X32: 44201.5625 | Y32: 44201.60233 | Z32: 5.339130435 | AA32: 44201.59192 | AB32: 44201.59514 | AC32: 4.939130435 | AD32: Opn | AE32: 44201.48056 | AF32: 44201.59625 | AG32: 4.360869565 | AH32: 44201.57033 | AI32: 4.682608696 | AJ32: 44201.63011 | AK32: 7.152173913 | AL32: 44201.63172 | AM32: 7.130434783 | AN32: 44201.62664 | AO32: 6.873913043 | AP32: 44201.63147 | AQ32: 6.273913043 | AR32: 44201.60556 | AS32: 44201.62639 | AT32: 44201.59117 | AU32: 4.939130435 | AV32: 44201.59117 | AW32: 4.739130435 | AX32: 44201.56872 | AY32: 4.517391304 | AZ32: 44201.56525 | BA32: 4.339130435 | BB32: 44201.56178 | BC32: 4.260869565 | BD32: 44201.51231 | BE32: 4.139130435 | BF32: 44201.60556 | BH32: 44201.64583 | BI32: 44201.64722 | BK32: 2025-01-06T15:30:00 | BL32: 44201.64583
A33: 0 | B33: =IF(Instructions!$C$2="BST",A33,0) -> 0 | C33: 2025-01-06T21:10:00 | D33: 2025-01-06 | F33: 1 | I33: 1 | K33: 44201.88194 | L33: 1.29 | M33: LW | N33: 0.5572519084 | O33: 21:10:00 | P33: 17:00:00 | Q33: 23:00:00 | R33: 0.3055555556 | S33: 44201.91049 | T33: 1.552671756 | U33: 44201.97647 | V33: 44201.90095 | W33: 1.408396947 | X33: 44201.8125 | Y33: 44201.88831 | Z33: 1.33129771 | AA33: 44201.86516 | AB33: 44201.88272 | AC33: 1.175572519 | AD33: Cls | AE33: 44201.70972 | AF33: 44201.87423 | AG33: 1.13129771 | AH33: 44201.86593 | AI33: 1.23129771 | AJ33: 44201.90943 | AK33: 1.608396947 | AL33: 44201.90943 | AM33: 1.608396947 | AN33: 44201.90143 | AO33: 1.608396947 | AP33: 44201.90731 | AQ33: 1.464122137 | AR33: 44201.87153 | AS33: 44201.89583 | AT33: 44201.87153 | AU33: 1.33129771 | AV33: 44201.87365 | AW33: 1.275572519 | AX33: 44201.86593 | AY33: 1.13129771 | AZ33: 44201.86246 | BA33: 1.075572519 | BB33: 44201.85658 | BC33: 1.175572519 | BD33: 44201.81144 | BE33: 0.9984732824 | BF33: 44201.90625 | BH33: 44201.93472 | BI33: 44201.91319 | BK33: 2025-01-06T22:26:00 | BL33: 44201.93472
A34: 0 | B34: =IF(Instructions!$C$2="BST",A34,0) -> 0 | C34: 2025-01-07T03:26:00 | D34: 2025-01-07 | E34: 2025-01-07 | F34: 1 | G34: Jan | H34: 7 | I34: 2 | J34: Tue | K34: 44202.14306 | L34: 4.86 | M34: HW | N34: 0.3217391304 | O34: 03:26:00 | P34: 00:00:00 | Q34: 06:00:00 | R34: 0.4277777778 | S34: 44202.15446 | T34: 6.514782609 | U34: 44202.22043 | V34: 44202.15594 | W34: 6.282608696 | X34: 44202.0875 | Y34: 44202.12867 | Z34: 4.786086957 | AA34: 44202.11825 | AB34: 44202.12222 | AC34: 4.386086957 | AD34: Opn | AE34: 44202.00764 | AF34: 44202.12521 | AG34: 3.853913043 | AH34: 44202.09892 | AI34: 4.22173913 | AJ34: 44202.15644 | AK34: 6.414782609 | AL34: 44202.15843 | AM34: 6.346956522 | AN34: 44202.15297 | AO34: 6.182608696 | AP34: 44202.15893 | AQ34: 5.582608696 | AR34: 44202.13264 | AS34: 44202.15347 | AT34: 44202.11975 | AU34: 4.386086957 | AV34: 44202.11975 | AW34: 4.186086957 | AX34: 44202.09693 | AY34: 3.91826087 | AZ34: 44202.09346 | BA34: 3.786086957 | BB34: 44202.08999 | BC34: 3.753913043 | BD34: 44202.03789 | BE34: 3.586086957 | BF34: 44202.13264 | BH34: 44202.17083 | BI34: 44202.17431 | BK34: 2025-01-07T04:06:00 | BL34: 44202.17083
A35: 0 | B35: =IF(Instructions!$C$2="BST",A35,0) -> 0 | C35: 2025-01-07T09:31:00 | D35: 2025-01-07 | E35: Tue | F35: 1 | I35: 2 | K35: 44202.39653 | L35: 1.7 | M35: LW | N35: 0.2442748092 | O35: 09:31:00 | P35: 05:00:00 | Q35: 11:00:00 | R35: 0.2472222222 | S35: 44202.42427 | T35: 2.084732824 | U35: 44202.49024 | V35: 44202.41654 | W35: 1.909160305 | X35: 44202.3375 | Y35: 44202.40168 | Z35: 1.706870229 | AA35: 44202.38096 | AB35: 44202.39649 | AC35: 1.582442748 | AD35: Cls | AE35: 44202.23681 | AF35: 44202.38962 | AG35: 1.506870229 | AH35: 44202.38092 | AI35: 1.606870229 | AJ35: 44202.42341 | AK35: 2.109160305 | AL35: 44202.42341 | AM35: 2.109160305 | AN35: 44202.41561 | AO35: 2.109160305 | AP35: 44202.42169 | AQ35: 1.933587786 | AR35: 44202.38611 | AS35: 44202.41042 | AT35: 44202.38611 | AU35: 1.706870229 | AV35: 44202.38783 | AW35: 1.682442748 | AX35: 44202.38092 | AY35: 1.506870229 | AZ35: 44202.37745 | BA35: 1.482442748 | BB35: 44202.37136 | BC35: 1.582442748 | BD35: 44202.32622 | BE35: 1.280152672 | BF35: 44202.42083 | BH35: 44202.44861 | BI35: 44202.42778 | BK35: 2025-01-07T10:46:00 | BL35: 44202.44861
A36: 0 | B36: =IF(Instructions!$C$2="BST",A36,0) -> 0 | C36: 2025-01-07T15:46:00 | D36: 2025-01-07 | F36: 1 | I36: 2 | K36: 44202.65694 | L36: 5.2 | M36: HW | N36: 0.6173913043 | O36: 15:46:00 | P36: 12:00:00 | Q36: 18:00:00 | R36: 0.3722222222 | S36: 44202.66777 | T36: 6.987826087 | U36: 44202.73374 | V36: 44202.66906 | W36: 6.726086957 | X36: 44202.60208 | Y36: 44202.64217 | Z36: 5.140869565 | AA36: 44202.63175 | AB36: 44202.63611 | AC36: 4.740869565 | AD36: Opn | AE36: 44202.52153 | AF36: 44202.64007 | AG36: 4.179130435 | AH36: 44202.61358 | AI36: 4.517391304 | AJ36: 44202.66995 | AK36: 6.887826087 | AL36: 44202.67213 | AM36: 6.849565217 | AN36: 44202.66647 | AO36: 6.626086957 | AP36: 44202.67301 | AQ36: 6.026086957 | AR36: 44202.64653 | AS36: 44202.66736 | AT36: 44202.63441 | AU36: 4.740869565 | AV36: 44202.63441 | AW36: 4.540869565 | AX36: 44202.6114 | AY36: 4.302608696 | AZ36: 44202.60793 | BA36: 4.140869565 | BB36: 44202.60446 | BC36: 4.079130435 | BD36: 44202.551 | BE36: 3.940869565 | BF36: 44202.64653 | BH36: 44202.68542 | BI36: 44202.68819 | BK36: 2025-01-07T16:27:00 | BL36: 44202.68542
A37: 0 | B37: =IF(Instructions!$C$2="BST",A37,0) -> 0 | C37: 2025-01-07T22:12:00 | D37: 2025-01-07 | F37: 1 | I37: 2 | K37: 44202.925 | L37: 1.47 | M37: LW | N37: 0.4198473282 | O37: 22:12:00 | P37: 17:00:00 | Q37: 23:00:00 | R37: 0.1333333333 | S37: 44202.95116 | T37: 1.786259542 | U37: 44203.01713 | V37: 44202.94699 | W37: 1.628244275 | X37: 44202.85208 | Y37: 44202.92778 | Z37: 1.496183206 | AA37: 44202.91181 | AB37: 44202.92338 | AC37: 1.354198473 | AD37: Cls | AE37: 44202.75069 | AF37: 44202.91968 | AG37: 1.296183206 | AH37: 44202.91019 | AI37: 1.396183206 | AJ37: 44202.95069 | AK37: 1.828244275 | AL37: 44202.95069 | AM37: 1.828244275 | AN37: 44202.94329 | AO37: 1.828244275 | AP37: 44202.94977 | AQ37: 1.670229008 | AR37: 44202.91458 | AS37: 44202.93889 | AT37: 44202.91458 | AU37: 1.496183206 | AV37: 44202.91551 | AW37: 1.454198473 | AX37: 44202.91019 | AY37: 1.296183206 | AZ37: 44202.90671 | BA37: 1.254198473 | BB37: 44202.90023 | BC37: 1.354198473 | BD37: 44202.85509 | BE37: 1.122137405 | BF37: 44202.94931 | BH37: 44202.97431 | BI37: 44202.95625 | BK37: 2025-01-07T23:23:00 | BL37: 44202.97431
A38: 0 | B38: =IF(Instructions!$C$2="BST",A38,0) -> 0 | C38: 2025-01-08T04:31:00 | D38: 2025-01-08 | E38: 2025-01-08 | F38: 1 | G38: Jan | H38: 8 | I38: 3 | J38: Wed | K38: 44203.18819 | L38: 4.75 | M38: HW | N38: 0.2260869565 | O38: 04:31:00 | P38: 00:00:00 | Q38: 06:00:00 | R38: 0.2472222222 | S38: 44203.19771 | T38: 6.36173913 | U38: 44203.26369 | V38: 44203.19857 | W38: 6.139130435 | X38: 44203.12917 | Y38: 44203.17255 | Z38: 4.671304348 | AA38: 44203.16213 | AB38: 44203.16736 | AC38: 4.271304348 | AD38: Opn | AE38: 44203.05278 | AF38: 44203.17349 | AG38: 3.748695652 | AH38: 44203.14657 | AI38: 4.126086957 | AJ38: 44203.20033 | AK38: 6.26173913 | AL38: 44203.20294 | AM38: 6.184347826 | AN38: 44203.19686 | AO38: 6.039130435 | AP38: 44203.2047 | AQ38: 5.439130435 | AR38: 44203.17778 | AS38: 44203.19861 | AT38: 44203.1674 | AU38: 4.271304348 | AV38: 44203.1674 | AW38: 4.071304348 | AX38: 44203.14395 | AY38: 3.793913043 | AZ38: 44203.14048 | BA38: 3.671304348 | BB38: 44203.13701 | BC38: 3.648695652 | BD38: 44203.08052 | BE38: 3.471304348 | BF38: 44203.17778 | BH38: 44203.2125 | BI38: 44203.21944 | BK38: 2025-01-08T05:06:00 | BL38: 44203.2125
A39: 0 | B39: =IF(Instructions!$C$2="BST",A39,0) -> 0 | C39: 2025-01-08T10:38:00 | D39: 2025-01-08 | E39: Wed | F39: 1 | I39: 3 | K39: 44203.44306 | L39: 1.83 | M39: LW | N39: 0.1450381679 | O39: 10:38:00 | P39: 05:00:00 | Q39: 11:00:00 | R39: 0.0611111111 | S39: 44203.46821 | T39: 2.253435115 | U39: 44203.53418 | V39: 44203.4663 | W39: 2.067938931 | X39: 44203.37917 | Y39: 44203.44433 | Z39: 1.825954198 | AA39: 44203.43137 | AB39: 44203.44043 | AC39: 1.711450382 | AD39: Cls | AE39: 44203.28194 | AF39: 44203.43873 | AG39: 1.625954198 | AH39: 44203.42874 | AI39: 1.725954198 | AJ39: 44203.468 | AK39: 2.267938931 | AL39: 44203.468 | AM39: 2.267938931 | AN39: 44203.46084 | AO39: 2.267938931 | AP39: 44203.46757 | AQ39: 2.082442748 | AR39: 44203.43264 | AS39: 44203.45694 | AT39: 44203.43264 | AU39: 1.825954198 | AV39: 44203.43306 | AW39: 1.811450382 | AX39: 44203.42874 | AY39: 1.625954198 | AZ39: 44203.42527 | BA39: 1.611450382 | BB39: 44203.41854 | BC39: 1.711450382 | BD39: 44203.3734 | BE39: 1.369465649 | BF39: 44203.46736 | BH39: 44203.49236 | BI39: 44203.47431 | BK39: 2025-01-08T11:49:00 | BL39: 44203.49236
A40: 0 | B40: =IF(Instructions!$C$2="BST",A40,0) -> 0 | C40: 2025-01-08T16:55:00 | D40: 2025-01-08 | F40: 1 | I40: 3 | K40: 44203.70486 | L40: 5.04 | M40: HW | N40: 0.4782608696 | O40: 16:55:00 | P40: 12:00:00 | Q40: 18:00:00 | R40: 0.1805555556 | S40: 44203.71369 | T40: 6.765217391 | U40: 44203.77966 | V40: 44203.71431 | W40: 6.517391304 | X40: 44203.64792 | Y40: 44203.68875 | Z40: 4.973913043 | AA40: 44203.67834 | AB40: 44203.68403 | AC40: 4.573913043 | AD40: Opn | AE40: 44203.56944 | AF40: 44203.69131 | AG40: 4.026086957 | AH40: 44203.66416 | AI40: 4.37826087 | AJ40: 44203.71653 | AK40: 6.665217391 | AL40: 44203.71938 | AM40: 6.613043478 | AN40: 44203.71306 | AO40: 6.417391304 | AP40: 44203.7216 | AQ40: 5.817391304 | AR40: 44203.69444 | AS40: 44203.71528 | AT40: 44203.68499 | AU40: 4.573913043 | AV40: 44203.68499 | AW40: 4.373913043 | AX40: 44203.66131 | AY40: 4.12173913 | AZ40: 44203.65784 | BA40: 3.973913043 | BB40: 44203.65437 | BC40: 3.926086957 | BD40: 44203.59626 | BE40: 3.773913043 | BF40: 44203.69444 | BH40: 44203.73125 | BI40: 44203.73611 | BK40: 2025-01-08T17:33:00 | BL40: 44203.73125
A41: 0 | B41: =IF(Instructions!$C$2="BST",A41,0) -> 0 | C41: 2025-01-08T23:21:00 | D41: 2025-01-08 | F41: 1 | I41: 3 | K41: 44203.97292 | L41: 1.6 | M41: LW | N41: 0.320610687 | O41: 23:21:00 | P41: 1.208333333 | Q41: 23:00:00 | R41: 0.05833333333 | S41: 44203.99803 | T41: 1.954961832 | U41: 44204.064 | V41: 44203.99621 | W41: 1.787022901 | X41: 44203.89792 | Y41: 44203.97413 | Z41: 1.615267176 | AA41: 44203.96128 | AB41: 44203.97025 | AC41: 1.483206107 | AD41: Cls | AE41: 44203.79861 | AF41: 44203.96863 | AG41: 1.415267176 | AH41: 44203.95862 | AI41: 1.515267176 | AJ41: 44203.99783 | AK41: 1.987022901 | AL41: 44203.99783 | AM41: 1.987022901 | AN41: 44203.99068 | AO41: 1.987022901 | AP41: 44203.99742 | AQ41: 1.819083969 | AR41: 44203.9625 | AS41: 44203.98681 | AT41: 44203.9625 | AU41: 1.615267176 | AV41: 44203.96291 | AW41: 1.583206107 | AX41: 44203.95862 | AY41: 1.415267176 | AZ41: 44203.95515 | BA41: 1.383206107 | BB41: 44203.94841 | BC41: 1.483206107 | BD41: 44203.90327 | BE41: 1.211450382 | BF41: 44203.99722 | BH41: 44204.02083 | BI41: 44204.00417 | BK41: 2025-01-09T00:30:00 | BL41: 44204.02083
A42: 0 | B42: =IF(Instructions!$C$2="BST",A42,0) -> 0 | C42: 2025-01-09T05:45:00 | D42: 2025-01-09 | E42: 2025-01-09 | F42: 1 | G42: Jan | H42: 9 | I42: 4 | J42: Thu | K42: 44204.23958 | L42: 4.72 | M42: HW | N42: 0.2 | O42: 05:45:00 | P42: 00:00:00 | Q42: 06:00:00 | R42: 0.04166666666 | S42: 44204.24696 | T42: 6.32 | U42: 44204.31293 | V42: 44204.24711 | W42: 6.1 | X42: 44204.17778 | Y42: 44204.22251 | Z42: =IF($M42="HW",Y$2+(Y$1-Y$2)*$N42,Y$3+(Y$4-Y$3)*$N42) -> 4.64 | AA42: 44204.21209 | AB42: 44204.21875 | AC42: =IF($M42="HW",AB$2+(AB$1-AB$2)*$N42,AB$3+(AB$4-AB$3)*$N42) -> 4.24 | AD42: Opn | AE42: 44204.10417 | AF42: 44204.22844 | AG42: =IF($M42="HW",AF$2+(AF$1-AF$2)*$N42,AF$3+(AF$4-AF$3)*$N42) -> 3.72 | AH42: 44204.20081 | AI42: =IF($M42="HW",AH$2+(AH$1-AH$2)*$N42,AH$3+(AH$4-AH$3)*$N42) -> 4.1 | AJ42: 44204.25029 | AK42: =IF($M42="HW",AJ$2+(AJ$1-AJ$2)*$N42,AJ$3+(AJ$4-AJ$3)*$N42) -> 6.22 | AL42: 44204.25362 | AM42: =IF($M42="HW",AL$2+(AL$1-AL$2)*$N42,AL$3+(AL$4-AL$3)*$N42) -> 6.14 | AN42: 44204.24682 | AO42: =IF($M42="HW",AN$2+(AN$1-AN$2)*$N42,AN$3+(AN$4-AN$3)*$N42) -> 6 | AP42: 44204.2568 | AQ42: =IF($M42="HW",AP$2+(AP$1-AP$2)*$N42,AP$3+(AP$4-AP$3)*$N42) -> 5.4 | AR42: 44204.22917 | AS42: 44204.25 | AT42: 44204.22164 | AU42: =IF($M42="HW",AT$2+(AT$1-AT$2)*$N42,AT$3+(AT$4-AT$3)*$N42) -> 4.24 | AV42: 44204.22164 | AW42: =IF($M42="HW",AV$2+(AV$1-AV$2)*$N42,AV$3+(AV$4-AV$3)*$N42) -> 4.04 | AX42: 44204.19748 | AY42: =IF($M42="HW",AX$2+(AX$1-AX$2)*$N42,AX$3+(AX$4-AX$3)*$N42) -> 3.76 | AZ42: 44204.19401 | BA42: =IF($M42="HW",AZ$2+(AZ$1-AZ$2)*$N42,AZ$3+(AZ$4-AZ$3)*$N42) -> 3.64 | BB42: 44204.19054 | BC42: =IF($M42="HW",BB$2+(BB$1-BB$2)*$N42,BB$3+(BB$4-BB$3)*$N42) -> 3.62 | BD42: 44204.12905 | BE42: =IF($M42="HW",BD$2+(BD$1-BD$2)*$N42,BD$3+(BD$4-BD$3)*$N42) -> 3.44 | BF42: 44204.22917 | BH42: 44204.26111 | BI42: 44204.27083 | BK42: 2025-01-09T06:16:00 | BL42: 44204.26111
A43: 0 | B43: =IF(Instructions!$C$2="BST",A43,0) -> 0 | C43: 2025-01-09T11:53:00 | D43: 2025-01-09 | E43: Thu | F43: 1 | I43: 4 | K43: 44204.49514 | L43: 1.85 | M43: LW | N43: 0.1297709924 | O43: 11:53:00 | P43: 17:00:00 | Q43: 11:00:00 | R43: 0.1472222222 | S43: 44204.52149 | T43: 2.279389313 | U43: 44204.58746 | V43: 44204.51689 | W43: 2.092366412 | X43: 44204.42778 | Y43: 44204.49821 | Z43: 1.844274809 | AA43: 44204.48166 | AB43: 44204.49371 | AC43: 1.73129771 | AD43: Cls | AE43: 44204.33333 | AF43: 44204.48962 | AG43: 1.644274809 | AH43: 44204.48023 | AI43: 1.744274809 | AJ43: 44204.52098 | AK43: 2.292366412 | AL43: 44204.52098 | AM43: 2.292366412 | AN43: 44204.51352 | AO43: 2.292366412 | AP43: 44204.51996 | AQ43: 2.105343511 | AR43: 44204.48472 | AS43: 44204.50903 | AT43: 44204.48472 | AU43: 1.844274809 | AV43: 44204.48574 | AW43: 1.83129771 | AX43: 44204.48023 | AY43: 1.644274809 | AZ43: 44204.47676 | BA43: 1.63129771 | BB43: 44204.47032 | BC43: 1.73129771 | BD43: 44204.42518 | BE43: 1.383206107 | BF43: 44204.51944 | BH43: 44204.54444 | BI43: 44204.52639 | BK43: 2025-01-09T13:04:00 | BL43: 44204.54444
A44: 0 | B44: =IF(Instructions!$C$2="BST",A44,0) -> 0 | C44: 2025-01-09T18:12:00 | D44: 2025-01-09 | F44: 1 | I44: 4 | K44: 44204.75833 | L44: 4.96 | M44: HW | N44: 0.4086956522 | O44: 18:12:00 | P44: 1 | Q44: 18:00:00 | R44: 0.03333333333 | S44: =IF($M44="HW",$K44+S$6+(S$5-S$6)*$R44,$K44+S$8+(S$7-S$8)*$R44) -> 44204.76562 | T44: 6.653913043 | U44: 44204.8316 | V44: 44204.76574 | W44: 6.413043478 | X44: 44204.7 | Y44: =IF($M44="HW",$K44+Y$6+(Y$5-Y$6)*$R44,$K44+Y$8+(Y$7-Y$8)*$R44) -> 44204.7412 | Z44: 4.890434783 | AA44: 44204.73079 | AB44: 44204.7375 | AC44: 4.490434783 | AD44: Opn | AE44: 44204.62292 | AF44: 44204.74734 | AG44: 3.949565217 | AH44: 44204.71968 | AI44: 4.308695652 | AJ44: 44204.76898 | AK44: 6.553913043 | AL44: 44204.77234 | AM44: 6.494782609 | AN44: 44204.76551 | AO44: 6.313043478 | AP44: 44204.77558 | AQ44: 5.713043478 | AR44: =IF($M44="HW",$K44+AR$6+(AR$5-AR$6)*$R44,$K44+AR$8+(AR$7-AR$8)*$R44) -> 44204.74792 | AS44: 44204.76875 | AT44: 44204.74051 | AU44: 4.490434783 | AV44: 44204.74051 | AW44: 4.290434783 | AX44: 44204.71632 | AY44: 4.031304348 | AZ44: 44204.71285 | BA44: 3.890434783 | BB44: 44204.70937 | BC44: 3.849565217 | BD44: 44204.64769 | BE44: 3.690434783 | BF44: =IF($M44="HW",$K44+BF$6+(BF$5-BF$6)*$R44,$K44+BF$8+(BF$7-BF$8)*$R44) -> 44204.74792 | BH44: 44204.78333 | BI44: 44204.78958 | BK44: 2025-01-09T18:48:00 | BL44: 44204.78333
A45: 0 | B45: =IF(Instructions!$C$2="BST",A45,0) -> 0 | C45: 2025-01-10T00:33:00 | D45: 2025-01-10 | E45: 2025-01-10 | F45: 1 | G45: Jan | H45: 10 | I45: 5 | J45: Fri | K45: 44205.02292 | L45: 1.64 | M45: LW | N45: 0.2900763359 | O45: 00:33:00 | P45: 05:00:00 | Q45: -0.04166666667 | R45: 0.2583333333 | S45: 44205.05081 | T45: 2.006870229 | U45: 44205.11678 | V45: 44205.04274 | W45: 1.835877863 | X45: 44204.95 | Y45: 44205.0283 | Z45: 1.651908397 | AA45: 44205.00712 | AB45: 44205.02303 | AC45: 1.522900763 | AD45: Cls | AE45: 44204.85208 | AF45: 44205.01586 | AG45: 1.451908397 | AH45: 44205.00723 | AI45: 1.551908397 | AJ45: 44205.04991 | AK45: 2.035877863 | AL45: 44205.04991 | AM45: 2.035877863 | AN45: 44205.04207 | AO45: 2.035877863 | AP45: 44205.04812 | AQ45: 1.864885496 | AR45: 44205.0125 | AS45: 44205.03681 | AT45: 44205.0125 | AU45: 1.651908397 | AV45: 44205.01429 | AW45: 1.622900763 | AX45: 44205.00723 | AY45: 1.451908397 | AZ45: 44205.00376 | BA45: 1.422900763 | BB45: 44204.99771 | BC45: 1.522900763 | BD45: 44204.95258 | BE45: 1.238931298 | BF45: 44205.04722 | BH45: 44205.07292 | BI45: 44205.05417 | BK45: 2025-01-10T01:45:00 | BL45: 44205.07292
A46: 0 | B46: =IF(Instructions!$C$2="BST",A46,0) -> 0 | C46: 2025-01-10T07:00:00 | D46: 2025-01-10 | E46: Fri | F46: 1 | I46: 5 | K46: 44205.29167 | L46: 4.82 | M46: HW | N46: 0.2869565217 | O46: 07:00:00 | P46: 12:00:00 | Q46: 06:00:00 | R46: 0.1666666667 | S46: 44205.30035 | T46: 6.459130435 | U46: 44205.36632 | V46: 44205.30093 | W46: 6.230434783 | X46: 44205.23264 | Y46: 44205.27546 | Z46: 4.744347826 | AA46: 44205.26505 | AB46: 44205.27083 | AC46: 4.344347826 | AD46: Opn | AE46: 44205.15625 | AF46: 44205.27836 | AG46: 3.815652174 | AH46: 44205.25116 | AI46: 4.186956522 | AJ46: 44205.30324 | AK46: 6.359130435 | AL46: 44205.30613 | AM46: 6.287826087 | AN46: 44205.29977 | AO46: 6.130434783 | AP46: 44205.30845 | AQ46: 5.530434783 | AR46: 44205.28125 | AS46: 44205.30208 | AT46: 44205.27199 | AU46: 4.344347826 | AV46: 44205.27199 | AW46: 4.144347826 | AX46: 44205.24826 | AY46: 3.873043478 | AZ46: 44205.24479 | BA46: 3.744347826 | BB46: 44205.24132 | BC46: 3.715652174 | BD46: 44205.18287 | BE46: 3.544347826 | BF46: 44205.28125 | BH46: 44205.31597 | BI46: 44205.32292 | BK46: 2025-01-10T07:35:00 | BL46: 44205.31597
A47: 0 | B47: =IF(Instructions!$C$2="BST",A47,0) -> 0 | C47: 2025-01-10T13:07:00 | D47: 2025-01-10 | F47: 1 | I47: 5 | K47: 44205.54653 | L47: 1.74 | M47: LW | N47: 0.213740458 | O47: 13:07:00 | P47: 17:00:00 | Q47: 11:00:00 | R47: 0.3527777778 | S47: 44205.57573 | T47: 2.136641221 | U47: 44205.64171 | V47: 44205.56471 | W47: 1.958015267 | X47: 44205.48264 | Y47: 44205.55388 | Z47: 1.74351145 | AA47: 44205.52876 | AB47: 44205.54796 | AC47: 1.622137405 | AD47: Cls | AE47: 44205.38542 | AF47: 44205.53816 | AG47: 1.54351145 | AH47: 44205.53019 | AI47: 1.64351145 | AJ47: 44205.57451 | AK47: 2.158015267 | AL47: 44205.57451 | AM47: 2.158015267 | AN47: 44205.56634 | AO47: 2.158015267 | AP47: 44205.57206 | AQ47: 1.979389313 | AR47: 44205.53611 | AS47: 44205.56042 | AT47: 44205.53611 | AU47: 1.74351145 | AV47: 44205.53856 | AW47: 1.722137405 | AX47: 44205.53019 | AY47: 1.54351145 | AZ47: 44205.52672 | BA47: 1.522137405 | BB47: 44205.521 | BC47: 1.622137405 | BD47: 44205.47586 | BE47: 1.307633588 | BF47: 44205.57083 | BH47: 44205.6 | BI47: 44205.57778 | BK47: 2025-01-10T14:24:00 | BL47: 44205.6
A48: 0 | B48: =IF(Instructions!$C$2="BST",A48,0) -> 0 | C48: 2025-01-10T19:27:00 | D48: 2025-01-10 | F48: 1 | I48: 5 | K48: 44205.81042 | L48: 5.02 | M48: HW | N48: 0.4608695652 | O48: 19:27:00 | P48: 1 | Q48: 18:00:00 | R48: 0.2416666667 | S48: 44205.81988 | T48: 6.737391304 | U48: 44205.88585 | V48: 44205.82072 | W48: 6.491304348 | X48: 44205.75486 | Y48: 44205.79473 | Z48: 4.953043478 | AA48: 44205.78432 | AB48: 44205.78958 | AC48: 4.553043478 | AD48: Opn | AE48: 44205.675 | AF48: 44205.7958 | AG48: 4.006956522 | AH48: 44205.76887 | AI48: 4.360869565 | AJ48: 44205.82251 | AK48: 6.637391304 | AL48: 44205.82514 | AM48: 6.583478261 | AN48: 44205.81904 | AO48: 6.391304348 | AP48: 44205.82694 | AQ48: 5.791304348 | AR48: 44205.8 | AS48: 44205.82083 | AT48: 44205.7897 | AU48: 4.553043478 | AV48: 44205.7897 | AW48: 4.353043478 | AX48: 44205.76623 | AY48: 4.099130435 | AZ48: 44205.76276 | BA48: 3.953043478 | BB48: 44205.75929 | BC48: 3.906956522 | BD48: 44205.70266 | BE48: 3.753043478 | BF48: 44205.8 | BH48: 44205.83819 | BI48: 44205.84167 | BK48: 2025-01-10T20:07:00 | BL48: 44205.83819
A49: 0 | B49: =IF(Instructions!$C$2="BST",A49,0) -> 0 | C49: 2025-01-11T01:39:00 | D49: 2025-01-11 | E49: 2025-01-11 | F49: 1 | G49: Jan | H49: 11 | I49: 6 | J49: Sat | K49: 44206.06875 | L49: 1.57 | M49: LW | N49: 0.3435114504 | O49: 01:39:00 | P49: 05:00:00 | Q49: -0.04166666667 | R49: 0.4416666667 | S49: 44206.09919 | T49: 1.916030534 | U49: 44206.16516 | V49: 44206.08539 | W49: 1.750381679 | X49: 44206.00486 | Y49: 44206.07795 | Z49: 1.58778626 | AA49: 44206.04913 | AB49: 44206.07141 | AC49: 1.453435115 | AD49: Cls | AE49: 44205.90417 | AF49: 44206.05914 | AG49: 1.38778626 | AH49: 44206.05179 | AI49: 1.48778626 | AJ49: 44206.09766 | AK49: 1.950381679 | AL49: 44206.09766 | AM49: 1.950381679 | AN49: 44206.08918 | AO49: 1.950381679 | AP49: 44206.09459 | AQ49: 1.784732824 | AR49: 44206.05833 | AS49: 44206.08264 | AT49: 44206.05833 | AU49: 1.58778626 | AV49: 44206.0614 | AW49: 1.553435115 | AX49: 44206.05179 | AY49: 1.38778626 | AZ49: 44206.04832 | BA49: 1.353435115 | BB49: 44206.04291 | BC49: 1.453435115 | BD49: 44205.99777 | BE49: 1.190839695 | BF49: 44206.09306 | BH49: 44206.12431 | BI49: 44206.1 | BK49: 2025-01-11T02:59:00 | BL49: 44206.12431
A50: 0 | B50: =IF(Instructions!$C$2="BST",A50,0) -> 0 | C50: 2025-01-11T08:05:00 | D50: 2025-01-11 | E50: Sat | F50: 1 | I50: 6 | K50: 44206.33681 | L50: 5.03 | M50: HW | N50: 0.4695652174 | O50: 08:05:00 | P50: 12:00:00 | Q50: 06:00:00 | R50: 0.3472222222 | S50: 44206.34737 | T50: 6.751304348 | U50: 44206.41334 | V50: 44206.34857 | W50: 6.504347826 | X50: 44206.28194 | Y50: 44206.32186 | Z50: 4.963478261 | AA50: 44206.31144 | AB50: 44206.31597 | AC50: 4.563478261 | AD50: Opn | AE50: 44206.20139 | AF50: 44206.32036 | AG50: 4.016521739 | AH50: 44206.29379 | AI50: 4.369565217 | AJ50: 44206.34963 | AK50: 6.651304348 | AL50: 44206.3519 | AM50: 6.59826087 | AN50: 44206.34616 | AO50: 6.404347826 | AP50: 44206.35296 | AQ50: 5.804347826 | AR50: 44206.32639 | AS50: 44206.34722 | AT50: 44206.31462 | AU50: 4.563478261 | AV50: 44206.31462 | AW50: 4.363478261 | AX50: 44206.29152 | AY50: 4.110434783 | AZ50: 44206.28805 | BA50: 3.963478261 | BB50: 44206.28458 | BC50: 3.916521739 | BD50: 44206.23052 | BE50: 3.763478261 | BF50: 44206.32639 | BH50: 44206.36528 | BI50: 44206.36806 | BK50: 2025-01-11T08:46:00 | BL50: 44206.36528
A51: 0 | B51: =IF(Instructions!$C$2="BST",A51,0) -> 0 | C51: 2025-01-11T14:12:00 | D51: 2025-01-11 | F51: 1 | I51: 6 | K51: 44206.59167 | L51: 1.52 | M51: LW | N51: 0.3816793893 | O51: 14:12:00 | P51: 17:00:00 | Q51: 11:00:00 | R51: 0.5333333333 | S51: 44206.62338 | T51: 1.851145038 | U51: 44206.68935 | V51: 44206.60671 | W51: 1.689312977 | X51: 44206.53194 | Y51: 44206.60278 | Z51: 1.541984733 | AA51: 44206.57014 | AB51: 44206.5956 | AC51: 1.403816794 | AD51: Cls | AE51: 44206.43056 | AF51: 44206.58079 | AG51: 1.341984733 | AH51: 44206.57407 | AI51: 1.441984733 | AJ51: 44206.62153 | AK51: 1.889312977 | AL51: 44206.62153 | AM51: 1.889312977 | AN51: 44206.61273 | AO51: 1.889312977 | AP51: 44206.61782 | AQ51: 1.727480916 | AR51: 44206.58125 | AS51: 44206.60556 | AT51: 44206.58125 | AU51: 1.541984733 | AV51: 44206.58495 | AW51: 1.503816794 | AX51: 44206.57407 | AY51: 1.341984733 | AZ51: 44206.5706 | BA51: 1.303816794 | BB51: 44206.56551 | BC51: 1.403816794 | BD51: 44206.52037 | BE51: 1.15648855 | BF51: 44206.61597 | BH51: 44206.64931 | BI51: 44206.62292 | BK51: 2025-01-11T15:35:00 | BL51: 44206.64931
A52: 0 | B52: =IF(Instructions!$C$2="BST",A52,0) -> 0 | C52: 2025-01-11T20:30:00 | D52: 2025-01-11 | F52: 1 | I52: 6 | K52: 44206.85417 | L52: 5.15 | M52: HW | N52: 0.5739130435 | O52: 20:30:00 | P52: 1 | Q52: 18:00:00 | R52: 0.4166666667 | S52: 44206.86545 | T52: 6.91826087 | U52: 44206.93142 | V52: 44206.8669 | W52: 6.660869565 | X52: 44206.80208 | Y52: 44206.8397 | Z52: 5.088695652 | AA52: 44206.82928 | AB52: 44206.83333 | AC52: 4.688695652 | AD52: Opn | AE52: 44206.71875 | AF52: 44206.83652 | AG52: 4.131304348 | AH52: 44206.81019 | AI52: 4.473913043 | AJ52: 44206.86748 | AK52: 6.81826087 | AL52: 44206.8695 | AM52: 6.775652174 | AN52: 44206.864 | AO52: 6.560869565 | AP52: 44206.87008 | AQ52: 5.960869565 | AR52: 44206.84375 | AS52: 44206.86458 | AT52: 44206.83102 | AU52: 4.688695652 | AV52: 44206.83102 | AW52: 4.488695652 | AX52: 44206.80816 | AY52: 4.246086957 | AZ52: 44206.80469 | BA52: 4.088695652 | BB52: 44206.80122 | BC52: 4.031304348 | BD52: 44206.74884 | BE52: 3.888695652 | BF52: 44206.84375 | BH52: 44206.88542 | BI52: 44206.88542 | BK52: 2025-01-11T21:15:00 | BL52: 44206.88542
A53: 0 | B53: =IF(Instructions!$C$2="BST",A53,0) -> 0 | C53: 2025-01-12T02:36:00 | D53: 2025-01-12 | E53: 2025-01-12 | F53: 1 | G53: Jan | H53: 12 | I53: 7 | J53: Sun | K53: 44207.10833 | L53: 1.44 | M53: LW | N53: 0.4427480916 | O53: 02:36:00 | P53: 05:00:00 | Q53: -0.04166666667 | R53: 0.6 | S53: 44207.14097 | T53: 1.747328244 | U53: 44207.20694 | V53: 44207.12222 | W53: 1.591603053 | X53: 44207.05208 | Y53: 44207.12083 | Z53: 1.46870229 | AA53: 44207.08542 | AB53: 44207.11319 | AC53: 1.324427481 | AD53: Cls | AE53: 44206.94792 | AF53: 44207.09653 | AG53: 1.26870229 | AH53: 44207.09028 | AI53: 1.36870229 | AJ53: 44207.13889 | AK53: 1.791603053 | AL53: 44207.13889 | AM53: 1.791603053 | AN53: 44207.12986 | AO53: 1.791603053 | AP53: 44207.13472 | AQ53: 1.635877863 | AR53: 44207.09792 | AS53: 44207.12222 | AT53: 44207.09792 | AU53: 1.46870229 | AV53: 44207.10208 | AW53: 1.424427481 | AX53: 44207.09028 | AY53: 1.26870229 | AZ53: 44207.08681 | BA53: 1.224427481 | BB53: 44207.08194 | BC53: 1.324427481 | BD53: 44207.03681 | BE53: 1.101526718 | BF53: 44207.13264 | BH53: 44207.16875 | BI53: 44207.13958 | BK53: 2025-01-12T04:03:00 | BL53: 44207.16875
A54: 0 | B54: =IF(Instructions!$C$2="BST",A54,0) -> 0 | C54: 2025-01-12T09:00:00 | D54: 2025-01-12 | E54: Sun | F54: 1 | I54: 7 | K54: 44207.375 | L54: 5.27 | M54: HW | N54: 0.6782608696 | O54: 09:00:00 | P54: 12:00:00 | Q54: 06:00:00 | R54: 0.5 | S54: 44207.38715 | T54: 7.085217391 | U54: 44207.45312 | V54: 44207.38889 | W54: 6.817391304 | X54: 44207.32222 | Y54: 44207.36111 | Z54: 5.213913043 | AA54: 44207.35069 | AB54: 44207.35417 | AC54: 4.813913043 | AD54: Opn | AE54: 44207.23958 | AF54: 44207.3559 | AG54: 4.246086957 | AH54: 44207.32986 | AI54: 4.57826087 | AJ54: 44207.38889 | AK54: 6.985217391 | AL54: 44207.39062 | AM54: 6.953043478 | AN54: 44207.38542 | AO54: 6.717391304 | AP54: 44207.39062 | AQ54: 6.117391304 | AR54: 44207.36458 | AS54: 44207.38542 | AT54: 44207.35069 | AU54: 4.813913043 | AV54: 44207.35069 | AW54: 4.613913043 | AX54: 44207.32812 | AY54: 4.38173913 | AZ54: 44207.32465 | BA54: 4.213913043 | BB54: 44207.32118 | BC54: 4.146086957 | BD54: 44207.27083 | BE54: 4.013913043 | BF54: 44207.36458 | BH54: 44207.40556 | BI54: 44207.40625 | BK54: 2025-01-12T09:44:00 | BL54: 44207.40556
A55: 0 | B55: =IF(Instructions!$C$2="BST",A55,0) -> 0 | C55: 2025-01-12T15:07:00 | D55: 2025-01-12 | F55: 1 | I55: 7 | K55: 44207.62986 | L55: 1.28 | M55: LW | N55: 0.5648854962 | O55: 15:07:00 | P55: 17:00:00 | Q55: 11:00:00 | R55: 0.6861111111 | S55: 44207.6637 | T55: 1.539694656 | U55: 44207.72967 | V55: 44207.64226 | W55: 1.396183206 | X55: 44207.57222 | Y55: 44207.64416 | Z55: 1.322137405 | AA55: 44207.60515 | AB55: 44207.63592 | AC55: 1.165648855 | AD55: Cls | AE55: 44207.46875 | AF55: 44207.61686 | AG55: 1.122137405 | AH55: 44207.61121 | AI55: 1.222137405 | AJ55: 44207.66131 | AK55: 1.596183206 | AL55: 44207.66131 | AM55: 1.596183206 | AN55: 44207.65199 | AO55: 1.596183206 | AP55: 44207.65655 | AQ55: 1.452671756 | AR55: 44207.61944 | AS55: 44207.64375 | AT55: 44207.61944 | AU55: 1.322137405 | AV55: 44207.62421 | AW55: 1.265648855 | AX55: 44207.61121 | AY55: 1.122137405 | AZ55: 44207.60774 | BA55: 1.065648855 | BB55: 44207.60317 | BC55: 1.165648855 | BD55: 44207.55803 | BE55: 0.9916030534 | BF55: 44207.65417 | BH55: 44207.69167 | BI55: 44207.66111 | BK55: 2025-01-12T16:36:00 | BL55: 44207.69167
A56: 0 | B56: =IF(Instructions!$C$2="BST",A56,0) -> 0 | C56: 2025-01-12T21:25:00 | D56: 2025-01-12 | F56: 1 | I56: 7 | K56: 44207.89236 | L56: 5.29 | M56: HW | N56: 0.6956521739 | O56: 21:25:00 | P56: 1 | Q56: 18:00:00 | R56: 0.5694444444 | S56: 44207.90524 | T56: 7.113043478 | U56: 44207.97121 | V56: 44207.90721 | W56: 6.843478261 | X56: 44207.84028 | Y56: 44207.87895 | Z56: 5.234782609 | AA56: 44207.86854 | AB56: 44207.87153 | AC56: 4.834782609 | AD56: Opn | AE56: 44207.75694 | AF56: 44207.87206 | AG56: 4.265217391 | AH56: 44207.84626 | AI56: 4.595652174 | AJ56: 44207.90673 | AK56: 7.013043478 | AL56: 44207.90823 | AM56: 6.982608696 | AN56: 44207.90326 | AO56: 6.743478261 | AP56: 44207.90774 | AQ56: 6.143478261 | AR56: 44207.88194 | AS56: 44207.90278 | AT56: 44207.86709 | AU56: 4.834782609 | AV56: 44207.86709 | AW56: 4.634782609 | AX56: 44207.84476 | AY56: 4.404347826 | AZ56: 44207.84129 | BA56: 4.234782609 | BB56: 44207.83782 | BC56: 4.165217391 | BD56: 44207.78916 | BE56: 4.034782609 | BF56: 44207.88194 | BH56: 44207.92361 | BI56: 44207.92361 | BK56: 2025-01-12T22:10:00 | BL56: 44207.92361
A57: 0 | B57: =IF(Instructions!$C$2="BST",A57,0) -> 0 | C57: 2025-01-13T03:27:00 | D57: 2025-01-13 | E57: 2025-01-13 | F57: 1 | G57: Jan | H57: 13 | I57: 1 | J57: Mon | K57: 44208.14375 | L57: 1.3 | M57: LW | N57: 0.5496183206 | O57: 03:27:00 | P57: 05:00:00 | Q57: -0.04166666667 | R57: 0.7416666667 | S57: 44208.17836 | T57: 1.565648855 | U57: 44208.24433 | V57: 44208.15518 | W57: 1.420610687 | X57: 44208.09028 | Y57: 44208.1592 | Z57: 1.340458015 | AA57: 44208.11788 | AB57: 44208.15058 | AC57: 1.185496183 | AD57: Cls | AE57: 44207.98611 | AF57: 44208.12998 | AG57: 1.140458015 | AH57: 44208.12471 | AI57: 1.240458015 | AJ57: 44208.17578 | AK57: 1.620610687 | AL57: 44208.17578 | AM57: 1.620610687 | AN57: 44208.16626 | AO57: 1.620610687 | AP57: 44208.17063 | AQ57: 1.475572519 | AR57: 44208.13333 | AS57: 44208.15764 | AT57: 44208.13333 | AU57: 1.340458015 | AV57: 44208.13848 | AW57: 1.285496183 | AX57: 44208.12471 | AY57: 1.140458015 | AZ57: 44208.12124 | BA57: 1.085496183 | BB57: 44208.11687 | BC57: 1.185496183 | BD57: 44208.07173 | BE57: 1.005343511 | BF57: 44208.16806 | BH57: 44208.20694 | BI57: 44208.175 | BK57: 2025-01-13T04:58:00 | BL57: 44208.20694
A58: 0 | B58: =IF(Instructions!$C$2="BST",A58,0) -> 0 | C58: 2025-01-13T09:48:00 | D58: 2025-01-13 | E58: Mon | F58: 1 | I58: 1 | K58: 44208.40833 | L58: 5.48 | M58: HW | N58: 0.8608695652 | O58: 09:48:00 | P58: 12:00:00 | Q58: 06:00:00 | R58: 0.6333333333 | S58: 44208.42188 | T58: 7.377391304 | U58: 44208.48785 | V58: 44208.42407 | W58: 7.091304348 | X58: 44208.35625 | Y58: 44208.39537 | Z58: 5.433043478 | AA58: 44208.38495 | AB58: 44208.3875 | AC58: 5.033043478 | AD58: Opn | AE58: 44208.27292 | AF58: 44208.38692 | AG58: 4.446956522 | AH58: 44208.36134 | AI58: 4.760869565 | AJ58: 44208.42315 | AK58: 7.277391304 | AL58: 44208.42442 | AM58: 7.263478261 | AN58: 44208.41968 | AO58: 6.991304348 | AP58: 44208.4235 | AQ58: 6.391304348 | AR58: 44208.39792 | AS58: 44208.41875 | AT58: 44208.38218 | AU58: 5.033043478 | AV58: 44208.38218 | AW58: 4.833043478 | AX58: 44208.36007 | AY58: 4.619130435 | AZ58: 44208.3566 | BA58: 4.433043478 | BB58: 44208.35313 | BC58: 4.346956522 | BD58: 44208.30602 | BE58: 4.233043478 | BF58: 44208.39792 | BH58: 44208.43958 | BI58: 44208.43958 | BK58: 2025-01-13T10:33:00 | BL58: 44208.43958
A59: 0 | B59: =IF(Instructions!$C$2="BST",A59,0) -> 0 | C59: 2025-01-13T15:56:00 | D59: 2025-01-13 | F59: 1 | I59: 1 | K59: 44208.66389 | L59: 1.06 | M59: LW | N59: 0.7328244275 | O59: 15:56:00 | P59: 17:00:00 | Q59: 11:00:00 | R59: 0.8222222222 | S59: 44208.69961 | T59: 1.254198473 | U59: 44208.76559 | V59: 44208.67392 | W59: 1.127480916 | X59: 44208.60625 | Y59: 44208.68102 | Z59: 1.120610687 | AA59: 44208.63634 | AB59: 44208.67184 | AC59: 0.9473282443 | AD59: Cls | AE59: 44208.50208 | AF59: 44208.649 | AG59: 0.920610687 | AH59: 44208.64429 | AI59: 1.020610687 | AJ59: 44208.69676 | AK59: 1.327480916 | AL59: 44208.69676 | AM59: 1.327480916 | AN59: 44208.68696 | AO59: 1.327480916 | AP59: 44208.69105 | AQ59: 1.200763359 | AR59: 44208.65347 | AS59: 44208.67778 | AT59: 44208.65347 | AU59: 1.120610687 | AV59: 44208.65918 | AW59: 1.047328244 | AX59: 44208.64429 | AY59: 0.920610687 | AZ59: 44208.64082 | BA59: 0.8473282443 | BB59: 44208.63673 | BC59: 0.9473282443 | BD59: 44208.59159 | BE59: 0.8404580153 | BF59: 44208.68819 | BH59: 44208.72778 | BI59: 44208.69514 | BK59: 2025-01-13T17:28:00 | BL59: 44208.72778
A60: 0 | B60: =IF(Instructions!$C$2="BST",A60,0) -> 0 | C60: 2025-01-13T22:12:00 | D60: 2025-01-13 | F60: 1 | I60: 1 | K60: 44208.925 | L60: 5.38 | M60: HW | N60: 0.7739130435 | O60: 22:12:00 | P60: 1 | Q60: 18:00:00 | R60: 0.7 | S60: 44208.93924 | T60: 7.23826087 | U60: 44209.00521 | V60: 44208.94167 | W60: 6.960869565 | X60: 44208.87361 | Y60: 44208.9125 | Z60: 5.328695652 | AA60: 44208.90208 | AB60: 44208.90417 | AC60: 4.928695652 | AD60: Opn | AE60: 44208.78958 | AF60: 44208.90243 | AG60: 4.351304348 | AH60: 44208.87708 | AI60: 4.673913043 | AJ60: 44208.94028 | AK60: 7.13826087 | AL60: 44208.94132 | AM60: 7.115652174 | AN60: 44208.93681 | AO60: 6.860869565 | AP60: 44208.93993 | AQ60: 6.260869565 | AR60: 44208.91458 | AS60: 44208.93542 | AT60: 44208.89792 | AU60: 4.928695652 | AV60: 44208.89792 | AW60: 4.728695652 | AX60: 44208.87604 | AY60: 4.506086957 | AZ60: 44208.87257 | BA60: 4.328695652 | BB60: 44208.8691 | BC60: 4.251304348 | BD60: 44208.82361 | BE60: 4.128695652 | BF60: 44208.91458 | BH60: 44208.95694 | BI60: 44208.95625 | BK60: 2025-01-13T22:58:00 | BL60: 44208.95694
A61: 0 | B61: =IF(Instructions!$C$2="BST",A61,0) -> 0 | C61: 2025-01-14T04:12:00 | D61: 2025-01-14 | E61: 2025-01-14 | F61: 1 | G61: Jan | H61: 14 | I61: 2 | J61: Tue | K61: 44209.175 | L61: 1.2 | M61: LW | N61: 0.6259541985 | O61: 04:12:00 | P61: 05:00:00 | Q61: -0.04166666667 | R61: 0.8666666667 | S61: =IF($M61="HW",$K61+S$6+(S$5-S$6)*$R61,$K61+S$8+(S$7-S$8)*$R61) -> 44209.21134 | T61: 1.435877863 | U61: 44209.27731 | V61: 44209.18426 | W61: 1.298473282 | X61: 44209.12361 | Y61: =IF($M61="HW",$K61+Y$6+(Y$5-Y$6)*$R61,$K61+Y$8+(Y$7-Y$8)*$R61) -> 44209.19306 | Z61: 1.248854962 | AA61: 44209.14653 | AB61: 44209.18356 | AC61: 1.086259542 | AD61: Cls | AE61: 44209.01875 | AF61: 44209.15949 | AG61: 1.048854962 | AH61: 44209.15509 | AI61: 1.148854962 | AJ61: 44209.20833 | AK61: 1.498473282 | AL61: 44209.20833 | AM61: 1.498473282 | AN61: 44209.19838 | AO61: 1.498473282 | AP61: 44209.20231 | AQ61: 1.361068702 | AR61: =IF($M61="HW",$K61+AR$6+(AR$5-AR$6)*$R61,$K61+AR$8+(AR$7-AR$8)*$R61) -> 44209.16458 | AS61: 44209.18889 | AT61: 44209.16458 | AU61: 1.248854962 | AV61: 44209.1706 | AW61: 1.186259542 | AX61: 44209.15509 | AY61: 1.048854962 | AZ61: 44209.15162 | BA61: 0.986259542 | BB61: 44209.14769 | BC61: 1.086259542 | BD61: 44209.10255 | BE61: 0.9366412214 | BF61: =IF($M61="HW",$K61+BF$6+(BF$5-BF$6)*$R61,$K61+BF$8+(BF$7-BF$8)*$R61) -> 44209.19931 | BH61: 44209.24028 | BI61: 44209.20625 | BK61: 2025-01-14T05:46:00 | BL61: 44209.24028
A62: 0 | B62: =IF(Instructions!$C$2="BST",A62,0) -> 0 | C62: 2025-01-14T10:31:00 | D62: 2025-01-14 | E62: Tue | F62: 1 | I62: 2 | K62: 44209.43819 | L62: 5.63 | M62: HW | N62: 0.9913043478 | O62: 10:31:00 | P62: 12:00:00 | Q62: 06:00:00 | R62: 0.7527777778 | S62: 44209.45298 | T62: 7.586086957 | U62: 44209.51895 | V62: 44209.45559 | W62: 7.286956522 | X62: 44209.38681 | Y62: 44209.42606 | Z62: 5.589565217 | AA62: 44209.41564 | AB62: 44209.41736 | AC62: 5.189565217 | AD62: Opn | AE62: 44209.30278 | AF62: 44209.41471 | AG62: 4.590434783 | AH62: 44209.38954 | AI62: 4.891304348 | AJ62: 44209.45384 | AK62: 7.486086957 | AL62: 44209.4547 | AM62: 7.485217391 | AN62: 44209.45037 | AO62: 7.186956522 | AP62: 44209.45294 | AQ62: 6.586956522 | AR62: 44209.42778 | AS62: 44209.44861 | AT62: 44209.41038 | AU62: 5.189565217 | AV62: 44209.41038 | AW62: 4.989565217 | AX62: 44209.38869 | AY62: 4.788695652 | AZ62: 44209.38521 | BA62: 4.589565217 | BB62: 44209.38174 | BC62: 4.490434783 | BD62: 44209.33754 | BE62: 4.389565217 | BF62: 44209.42778 | BH62: 44209.47014 | BI62: 44209.46944 | BK62: 2025-01-14T11:17:00 | BL62: 44209.47014
A63: 0 | B63: =IF(Instructions!$C$2="BST",A63,0) -> 0 | C63: 2025-01-14T16:41:00 | D63: 2025-01-14 | F63: 1 | I63: 2 | K63: 44209.69514 | L63: 0.92 | M63: LW | N63: 0.8396946565 | O63: 16:41:00 | P63: 17:00:00 | Q63: 11:00:00 | R63: 0.9472222222 | S63: 44209.7326 | T63: 1.072519084 | U63: 44209.79857 | V63: 44209.703 | W63: 0.9564885496 | X63: 44209.63681 | Y63: 44209.71487 | Z63: 0.9923664122 | AA63: 44209.66499 | AB63: 44209.70482 | AC63: 0.8083969466 | AD63: Cls | AE63: 44209.53194 | AF63: 44209.67851 | AG63: 0.7923664122 | AH63: 44209.67467 | AI63: 0.8923664122 | AJ63: 44209.72931 | AK63: 1.15648855 | AL63: 44209.72931 | AM63: 1.15648855 | AN63: 44209.71908 | AO63: 1.15648855 | AP63: 44209.72273 | AQ63: 1.040458015 | AR63: 44209.68472 | AS63: 44209.70903 | AT63: 44209.68472 | AU63: 0.9923664122 | AV63: 44209.6913 | AW63: 0.9083969466 | AX63: 44209.67467 | AY63: 0.7923664122 | AZ63: 44209.6712 | BA63: 0.7083969466 | BB63: 44209.66754 | BC63: 0.8083969466 | BD63: 44209.62241 | BE63: 0.7442748092 | BF63: 44209.71944 | BH63: 44209.76042 | BI63: 44209.72639 | BK63: 2025-01-14T18:15:00 | BL63: 44209.76042
A64: 0 | B64: =IF(Instructions!$C$2="BST",A64,0) -> 0 | C64: 2025-01-14T22:55:00 | D64: 2025-01-14 | F64: 1 | I64: 2 | K64: 44209.95486 | L64: 5.41 | M64: HW | N64: 0.8 | O64: 22:55:00 | P64: 1 | Q64: 18:00:00 | R64: 0.8194444444 | S64: 44209.97034 | T64: 7.28 | U64: 44210.03631 | V64: 44209.97319 | W64: 7 | X64: 44209.90417 | Y64: 44209.94319 | Z64: 5.36 | AA64: 44209.93277 | AB64: 44209.93403 | AC64: 4.96 | AD64: Opn | AE64: 44209.81944 | AF64: 44209.93022 | AG64: 4.38 | AH64: 44209.90529 | AI64: 4.7 | AJ64: 44209.97097 | AK64: 7.18 | AL64: 44209.9716 | AM64: 7.16 | AN64: 44209.9675 | AO64: 6.9 | AP64: 44209.96938 | AQ64: 6.3 | AR64: 44209.94444 | AS64: 44209.96528 | AT64: 44209.92612 | AU64: 4.96 | AV64: 44209.92612 | AW64: 4.76 | AX64: 44209.90466 | AY64: 4.54 | AZ64: 44209.90119 | BA64: 4.36 | BB64: 44209.89771 | BC64: 4.28 | BD64: 44209.85513 | BE64: 4.16 | BF64: 44209.94444 | BH64: 44209.9875 | BI64: 44209.98611 | BK64: 2025-01-14T23:42:00 | BL64: 44209.9875
A65: 0 | B65: =IF(Instructions!$C$2="BST",A65,0) -> 0 | C65: 2025-01-15T04:53:00 | D65: 2025-01-15 | E65: 2025-01-15 | F65: 1 | G65: Jan | H65: 15 | I65: 3 | J65: Wed | K65: 44210.20347 | L65: 1.14 | M65: LW | N65: 0.6717557252 | O65: 04:53:00 | P65: 05:00:00 | Q65: -0.04166666667 | R65: 0.9805555556 | S65: 44210.2414 | T65: 1.358015267 | U65: 44210.30737 | V65: 44210.21075 | W65: 1.22519084 | X65: 44210.15417 | Y65: 44210.2239 | Z65: 1.19389313 | AA65: 44210.17263 | AB65: 44210.21362 | AC65: 1.026717557 | AD65: Cls | AE65: 44210.04861 | AF65: 44210.18638 | AG65: 0.9938931298 | AH65: 44210.18277 | AI65: 1.09389313 | AJ65: 44210.23799 | AK65: 1.42519084 | AL65: 44210.23799 | AM65: 1.42519084 | AN65: 44210.22764 | AO65: 1.42519084 | AP65: 44210.23118 | AQ65: 1.292366412 | AR65: 44210.19306 | AS65: 44210.21736 | AT65: 44210.19306 | AU65: 1.19389313 | AV65: 44210.19986 | AW65: 1.126717557 | AX65: 44210.18277 | AY65: 0.9938931298 | AZ65: 44210.1793 | BA65: 0.9267175573 | BB65: 44210.17576 | BC65: 1.026717557 | BD65: 44210.13062 | BE65: 0.8954198473 | BF65: 44210.22778 | BH65: 44210.27014 | BI65: 44210.23472 | BK65: 2025-01-15T06:29:00 | BL65: 44210.27014
A66: 0 | B66: =IF(Instructions!$C$2="BST",A66,0) -> 0 | C66: 2025-01-15T11:11:00 | D66: 2025-01-15 | E66: Wed | F66: 1 | I66: 3 | K66: 44210.46597 | L66: 5.71 | M66: HW | N66: 1.060869565 | O66: 11:11:00 | P66: 12:00:00 | Q66: 06:00:00 | R66: 0.8638888889 | S66: 44210.48192 | T66: 7.697391304 | U66: 44210.54789 | V66: 44210.48492 | W66: 7.391304348 | X66: 44210.41528 | Y66: 44210.45461 | Z66: 5.673043478 | AA66: 44210.44419 | AB66: 44210.44514 | AC66: 5.273043478 | AD66: Opn | AE66: 44210.33056 | AF66: 44210.44056 | AG66: 4.666956522 | AH66: 44210.41578 | AI66: 4.960869565 | AJ66: 44210.48239 | AK66: 7.597391304 | AL66: 44210.48286 | AM66: 7.603478261 | AN66: 44210.47892 | AO66: 7.291304348 | AP66: 44210.48033 | AQ66: 6.691304348 | AR66: 44210.45556 | AS66: 44210.47639 | AT66: 44210.43661 | AU66: 5.273043478 | AV66: 44210.43661 | AW66: 5.073043478 | AX66: 44210.41531 | AY66: 4.879130435 | AZ66: 44210.41183 | BA66: 4.673043478 | BB66: 44210.40836 | BC66: 4.566956522 | BD66: 44210.36686 | BE66: 4.473043478 | BF66: 44210.45556 | BH66: 44210.49861 | BI66: 44210.49722 | BK66: 2025-01-15T11:58:00 | BL66: 44210.49861
A67: 0 | B67: =IF(Instructions!$C$2="BST",A67,0) -> 0 | C67: 2025-01-15T17:24:00 | D67: 2025-01-15 | F67: 1 | I67: 3 | K67: 44210.725 | L67: 0.86 | M67: LW | N67: 0.8854961832 | O67: 17:24:00 | P67: 17:00:00 | Q67: 23:00:00 | R67: 0.9333333333 | S67: 44210.76227 | T67: 0.9946564885 | U67: 44210.82824 | V67: 44210.7331 | W67: 0.8832061069 | X67: 44210.66528 | Y67: 44210.74444 | Z67: 0.9374045802 | AA67: 44210.69514 | AB67: 44210.73449 | AC67: 0.7488549618 | AD67: Cls | AE67: 44210.55972 | AF67: 44210.70856 | AG67: 0.7374045802 | AH67: 44210.70463 | AI67: 0.8374045802 | AJ67: 44210.75903 | AK67: 1.083206107 | AL67: 44210.75903 | AM67: 1.083206107 | AN67: 44210.74884 | AO67: 1.083206107 | AP67: 44210.75255 | AQ67: 0.9717557252 | AR67: 44210.71458 | AS67: 44210.73889 | AT67: 44210.71458 | AU67: 0.9374045802 | AV67: 44210.72106 | AW67: 0.8488549618 | AX67: 44210.70463 | AY67: 0.7374045802 | AZ67: 44210.70116 | BA67: 0.6488549618 | BB67: 44210.69745 | BC67: 0.7488549618 | BD67: 44210.65231 | BE67: 0.7030534351 | BF67: 44210.74931 | BH67: 44210.79028 | BI67: 44210.75625 | BK67: 2025-01-15T18:58:00 | BL67: 44210.79028
A68: 0 | B68: =IF(Instructions!$C$2="BST",A68,0) -> 0 | C68: 2025-01-15T23:36:00 | D68: 2025-01-15 | F68: 1 | I68: 3 | K68: 44210.98333 | L68: 5.37 | M68: HW | N68: 0.7652173913 | O68: 23:36:00 | P68: 1 | Q68: 18:00:00 | R68: 0.9333333333 | S68: 44211 | T68: 7.224347826 | U68: 44211.06597 | V68: 44211.00324 | W68: 6.947826087 | X68: 44210.93264 | Y68: 44210.97245 | Z68: 5.31826087 | AA68: 44210.96204 | AB68: 44210.9625 | AC68: 4.91826087 | AD68: Opn | AE68: 44210.84792 | AF68: 44210.95671 | AG68: 4.34173913 | AH68: 44210.93218 | AI68: 4.665217391 | AJ68: 44211.00023 | AK68: 7.124347826 | AL68: 44211.00046 | AM68: 7.100869565 | AN68: 44210.99676 | AO68: 6.847826087 | AP68: 44210.99745 | AQ68: 6.247826087 | AR68: 44210.97292 | AS68: 44210.99375 | AT68: 44210.95301 | AU68: 4.91826087 | AV68: 44210.95301 | AW68: 4.71826087 | AX68: 44210.93194 | AY68: 4.494782609 | AZ68: 44210.92847 | BA68: 4.31826087 | BB68: 44210.925 | BC68: 4.24173913 | BD68: 44210.88519 | BE68: 4.11826087 | BF68: 44210.97292 | BH68: 44211.01597 | BI68: 44211.01458 | BK68: 2025-01-16T00:23:00 | BL68: 44211.01597
A69: 0 | B69: =IF(Instructions!$C$2="BST",A69,0) -> 0 | C69: 2025-01-16T05:33:00 | D69: 2025-01-16 | E69: 2025-01-16 | F69: 1 | G69: Jan | H69: 16 | I69: 4 | J69: Thu | K69: 44211.23125 | L69: 1.14 | M69: LW | N69: 0.6717557252 | O69: 05:33:00 | P69: 05:00:00 | Q69: 11:00:00 | R69: 0.9083333333 | S69: 44211.26817 | T69: 1.358015267 | U69: 44211.33414 | V69: 44211.23979 | W69: 1.22519084 | X69: 44211.18264 | Y69: 44211.25017 | Z69: 1.19389313 | AA69: 44211.20191 | AB69: 44211.24039 | AC69: 1.026717557 | AD69: Cls | AE69: 44211.07708 | AF69: 44211.21516 | AG69: 0.9938931298 | AH69: 44211.21105 | AI69: 1.09389313 | AJ69: 44211.26502 | AK69: 1.42519084 | AL69: 44211.26502 | AM69: 1.42519084 | AN69: 44211.25492 | AO69: 1.42519084 | AP69: 44211.25871 | AQ69: 1.292366412 | AR69: 44211.22083 | AS69: 44211.24514 | AT69: 44211.22083 | AU69: 1.19389313 | AV69: 44211.22714 | AW69: 1.126717557 | AX69: 44211.21105 | AY69: 0.9938931298 | AZ69: 44211.20758 | BA69: 0.9267175573 | BB69: 44211.20379 | BC69: 1.026717557 | BD69: 44211.15865 | BE69: 0.8954198473 | BF69: 44211.25556 | BH69: 44211.29722 | BI69: 44211.2625 | BK69: 2025-01-16T07:08:00 | BL69: 44211.29722
A70: 0 | B70: =IF(Instructions!$C$2="BST",A70,0) -> 0 | C70: 2025-01-16T11:50:00 | D70: 2025-01-16 | E70: Thu | F70: 1 | I70: 4 | K70: 44211.49306 | L70: 5.69 | M70: HW | N70: 1.043478261 | O70: 11:50:00 | P70: 12:00:00 | Q70: 06:00:00 | R70: 0.9722222222 | S70: 44211.51013 | T70: 7.669565217 | U70: 44211.5761 | V70: 44211.5135 | W70: 7.365217391 | X70: 44211.44167 | Y70: 44211.48245 | Z70: 5.652173913 | AA70: 44211.47203 | AB70: 44211.47222 | AC70: 5.252173913 | AD70: Opn | AE70: 44211.35764 | AF70: 44211.46576 | AG70: 4.647826087 | AH70: 44211.44136 | AI70: 4.943478261 | AJ70: 44211.51022 | AK70: 7.569565217 | AL70: 44211.51032 | AM70: 7.573913043 | AN70: 44211.50675 | AO70: 7.265217391 | AP70: 44211.50704 | AQ70: 6.665217391 | AR70: 44211.48264 | AS70: 44211.50347 | AT70: 44211.46219 | AU70: 5.252173913 | AV70: 44211.46219 | AW70: 5.052173913 | AX70: 44211.44126 | AY70: 4.856521739 | AZ70: 44211.43779 | BA70: 4.652173913 | BB70: 44211.43432 | BC70: 4.547826087 | BD70: 44211.39545 | BE70: 4.452173913 | BF70: 44211.48264 | BH70: 44211.525 | BI70: 44211.52431 | BK70: 2025-01-16T12:36:00 | BL70: 44211.525
A71: 0 | B71: =IF(Instructions!$C$2="BST",A71,0) -> 0 | C71: 2025-01-16T18:04:00 | D71: 2025-01-16 | F71: 1 | I71: 4 | K71: 44211.75278 | L71: 0.89 | M71: LW | N71: 0.8625954198 | O71: 18:04:00 | P71: 17:00:00 | Q71: 23:00:00 | R71: 0.8222222222 | S71: 44211.7885 | T71: 1.033587786 | U71: 44211.85448 | V71: 44211.76281 | W71: 0.9198473282 | X71: 44211.69167 | Y71: 44211.76991 | Z71: 0.9648854962 | AA71: 44211.72523 | AB71: 44211.76073 | AC71: 0.7786259542 | AD71: Cls | AE71: 44211.58681 | AF71: 44211.73789 | AG71: 0.7648854962 | AH71: 44211.73318 | AI71: 0.8648854962 | AJ71: 44211.78565 | AK71: 1.119847328 | AL71: 44211.78565 | AM71: 1.119847328 | AN71: 44211.77585 | AO71: 1.119847328 | AP71: 44211.77994 | AQ71: 1.00610687 | AR71: 44211.74236 | AS71: 44211.76667 | AT71: 44211.74236 | AU71: 0.9648854962 | AV71: 44211.74807 | AW71: 0.8786259542 | AX71: 44211.73318 | AY71: 0.7648854962 | AZ71: 44211.72971 | BA71: 0.6786259542 | BB71: 44211.72562 | BC71: 0.7786259542 | BD71: 44211.68048 | BE71: 0.7236641221 | BF71: 44211.77708 | BH71: 44211.81736 | BI71: 44211.78403 | BK71: 2025-01-16T19:37:00 | BL71: 44211.81736
A72: 0 | B72: =IF(Instructions!$C$2="BST",A72,0) -> 0 | C72: 2025-01-17T00:14:00 | D72: 2025-01-17 | E72: 2025-01-17 | F72: 1 | G72: Jan | H72: 17 | I72: 5 | J72: Fri | K72: 44212.00972 | L72: 5.26 | M72: HW | N72: 0.6695652174 | O72: 00:14:00 | P72: 00:00:00 | Q72: 06:00:00 | R72: 0.9611111111 | S72: 44212.02668 | T72: 7.071304348 | U72: 44212.09265 | V72: 44212.03002 | W72: 6.804347826 | X72: 44211.95903 | Y72: 44211.99904 | Z72: 5.203478261 | AA72: 44211.98862 | AB72: 44211.98889 | AC72: 4.803478261 | AD72: Opn | AE72: 44211.87431 | AF72: 44211.98262 | AG72: 4.236521739 | AH72: 44211.95818 | AI72: 4.569565217 | AJ72: 44212.02681 | AK72: 6.971304348 | AL72: 44212.02695 | AM72: 6.93826087 | AN72: 44212.02334 | AO72: 6.704347826 | AP72: 44212.02375 | AQ72: 6.104347826 | AR72: 44211.99931 | AS72: 44212.02014 | AT72: 44211.97901 | AU72: 4.803478261 | AV72: 44211.97901 | AW72: 4.603478261 | AX72: 44211.95804 | AY72: 4.370434783 | AZ72: 44211.95457 | BA72: 4.203478261 | BB72: 44211.9511 | BC72: 4.136521739 | BD72: 44211.91196 | BE72: 4.003478261 | BF72: 44211.99931 | BH72: 44212.04236 | BI72: 44212.04097 | BK72: 2025-01-17T01:01:00 | BL72: 44212.04236
A73: 0 | B73: =IF(Instructions!$C$2="BST",A73,0) -> 0 | C73: 2025-01-17T06:11:00 | D73: 2025-01-17 | E73: Fri | F73: 1 | I73: 5 | K73: 44212.25764 | L73: 1.22 | M73: LW | N73: 0.6106870229 | O73: 06:11:00 | P73: 05:00:00 | Q73: 11:00:00 | R73: 0.8027777778 | S73: 44212.29309 | T73: 1.461832061 | U73: 44212.35907 | V73: 44212.26801 | W73: 1.322900763 | X73: 44212.20903 | Y73: 44212.27436 | Z73: 1.267175573 | AA73: 44212.2305 | AB73: 44212.26532 | AC73: 1.10610687 | AD73: Cls | AE73: 44212.10347 | AF73: 44212.24302 | AG73: 1.067175573 | AH73: 44212.23818 | AI73: 1.167175573 | AJ73: 44212.29031 | AK73: 1.522900763 | AL73: 44212.29031 | AM73: 1.522900763 | AN73: 44212.28057 | AO73: 1.522900763 | AP73: 44212.28473 | AQ73: 1.383969466 | AR73: 44212.24722 | AS73: 44212.27153 | AT73: 44212.24722 | AU73: 1.267175573 | AV73: 44212.2528 | AW73: 1.20610687 | AX73: 44212.23818 | AY73: 1.067175573 | AZ73: 44212.2347 | BA73: 1.00610687 | BB73: 44212.23055 | BC73: 1.10610687 | BD73: 44212.18541 | BE73: 0.9503816794 | BF73: 44212.28194 | BH73: 44212.32153 | BI73: 44212.28889 | BK73: 2025-01-17T07:43:00 | BL73: 44212.32153
A74: 0 | B74: =IF(Instructions!$C$2="BST",A74,0) -> 0 | C74: 2025-01-17T12:26:00 | D74: 2025-01-17 | F74: 1 | I74: 5 | K74: 44212.51806 | L74: 5.59 | M74: HW | N74: 0.9565217391 | O74: 12:26:00 | P74: 12:00:00 | Q74: 18:00:00 | R74: 0.9277777778 | S74: 44212.53466 | T74: 7.530434783 | U74: 44212.60064 | V74: 44212.53789 | W74: 7.234782609 | X74: 44212.46667 | Y74: 44212.50714 | Z74: =IF($M74="HW",Y$2+(Y$1-Y$2)*$N74,Y$3+(Y$4-Y$3)*$N74) -> 5.547826087 | AA74: 44212.49672 | AB74: 44212.49722 | AC74: =IF($M74="HW",AB$2+(AB$1-AB$2)*$N74,AB$3+(AB$4-AB$3)*$N74) -> 5.147826087 | AD74: Opn | AE74: 44212.38264 | AF74: 44212.49153 | AG74: =IF($M74="HW",AF$2+(AF$1-AF$2)*$N74,AF$3+(AF$4-AF$3)*$N74) -> 4.552173913 | AH74: 44212.46698 | AI74: =IF($M74="HW",AH$2+(AH$1-AH$2)*$N74,AH$3+(AH$4-AH$3)*$N74) -> 4.856521739 | AJ74: 44212.53492 | AK74: =IF($M74="HW",AJ$2+(AJ$1-AJ$2)*$N74,AJ$3+(AJ$4-AJ$3)*$N74) -> 7.430434783 | AL74: 44212.53517 | AM74: =IF($M74="HW",AL$2+(AL$1-AL$2)*$N74,AL$3+(AL$4-AL$3)*$N74) -> 7.426086957 | AN74: 44212.53144 | AO74: =IF($M74="HW",AN$2+(AN$1-AN$2)*$N74,AN$3+(AN$4-AN$3)*$N74) -> 7.134782609 | AP74: 44212.5322 | AQ74: =IF($M74="HW",AP$2+(AP$1-AP$2)*$N74,AP$3+(AP$4-AP$3)*$N74) -> 6.534782609 | AR74: 44212.50764 | AS74: 44212.52847 | AT74: 44212.48781 | AU74: =IF($M74="HW",AT$2+(AT$1-AT$2)*$N74,AT$3+(AT$4-AT$3)*$N74) -> 5.147826087 | AV74: 44212.48781 | AW74: =IF($M74="HW",AV$2+(AV$1-AV$2)*$N74,AV$3+(AV$4-AV$3)*$N74) -> 4.947826087 | AX74: 44212.46672 | AY74: =IF($M74="HW",AX$2+(AX$1-AX$2)*$N74,AX$3+(AX$4-AX$3)*$N74) -> 4.743478261 | AZ74: 44212.46325 | BA74: =IF($M74="HW",AZ$2+(AZ$1-AZ$2)*$N74,AZ$3+(AZ$4-AZ$3)*$N74) -> 4.547826087 | BB74: 44212.45978 | BC74: =IF($M74="HW",BB$2+(BB$1-BB$2)*$N74,BB$3+(BB$4-BB$3)*$N74) -> 4.452173913 | BD74: 44212.41983 | BE74: =IF($M74="HW",BD$2+(BD$1-BD$2)*$N74,BD$3+(BD$4-BD$3)*$N74) -> 4.347826087 | BF74: 44212.50764 | BH74: 44212.55 | BI74: 44212.54931 | BK74: 2025-01-17T13:12:00 | BL74: 44212.55
A75: 0 | B75: =IF(Instructions!$C$2="BST",A75,0) -> 0 | C75: 2025-01-17T18:42:00 | D75: =DATE(YEAR(K75),MONTH(K75),DAY(K75)) -> 2025-01-17 | E75: =IF(D75=D74,IF(J74="","",J74),D75) ->  | F75: 1 | I75: 5 | K75: =C75+B75/24 -> 44212.77917 | L75: 1.01 | M75: LW | N75: =IF(M75="HW",(L75-K$2)/(K$1-K$2),(L75-K$3)/(K$4-K$3)) -> 0.7709923664 | O75: =C75-INT(C75) -> 18:42:00 | P75: =IF(M75="HW",IF(AND(O75>=L$5,O75<L$6),L$5,IF(AND(O75>=L$6,O75<M$5),M$5,IF(AND(O75>=M$5,O75<M$6),M$5,IF(O75>=M$6,L$5+1,L$5)))),IF(AND(O75>=L$7,O75<L$8),L$7,IF(AND(O75>=L$8,O75<M$7),M$7,IF(AND(O75>=M$7,O75<M$8),M$7,IF(O75>=M$8,L$7+1,L$7))))) -> 17:00:00 | Q75: =IF(M75="HW",IF(AND(O75>=L$5,O75<L$6),L$6,IF(AND(O75>=L$6,O75<M$5),L$6,IF(AND(O75>=M$5,O75<M$6),M$6,IF(O75>=M$6,M$6,M$6-1)))),IF(AND(O75>=L$7,O75<L$8),L$8,IF(AND(O75>=L$8,O75<M$7),L$8,IF(AND(O75>=M$7,O75<M$8),M$8,IF(O75>=M$8,M$8,M$8-1))))) -> 23:00:00 | R75: 0.7166666667 | S75: 44212.81343 | T75: =IF($M75="HW",S$2+(S$1-S$2)*$N75,S$3+(S$4-S$3)*$N75) -> 1.189312977 | U75: 44212.8794 | V75: 44212.79103 | W75: =IF($M75="HW",V$2+(V$1-V$2)*$N75,V$3+(V$4-V$3)*$N75) -> 1.066412214 | X75: 44212.71667 | Y75: 44212.7941 | Z75: 1.07480916 | AA75: 44212.75382 | AB75: =IF($M75="HW",$K75+AB$6+(AB$5-AB$6)*$R75,$K75+AB$8+(AB$7-AB$8)*$R75) -> 44212.78565 | AC75: 0.8977099237 | AD75: =IF($M75="HW","Opn","Cls") -> Cls | AE75: 44212.61181 | AF75: =IF($M75="HW",$K75+AF$6+(AF$5-AF$6)*$R75,$K75+AF$8+(AF$7-AF$8)*$R75) -> 44212.76574 | AG75: 0.8748091603 | AH75: =IF($M75="HW",$K75+AH$6+(AH$5-AH$6)*$R75,$K75+AH$8+(AH$7-AH$8)*$R75) -> 44212.7603 | AI75: 0.9748091603 | AJ75: =IF($M75="HW",$K75+AJ$6+(AJ$5-AJ$6)*$R75,$K75+AJ$8+(AJ$7-AJ$8)*$R75) -> 44212.81094 | AK75: 1.266412214 | AL75: =IF($M75="HW",$K75+AL$6+(AL$5-AL$6)*$R75,$K75+AL$8+(AL$7-AL$8)*$R75) -> 44212.81094 | AM75: 1.266412214 | AN75: =IF($M75="HW",$K75+AN$6+(AN$5-AN$6)*$R75,$K75+AN$8+(AN$7-AN$8)*$R75) -> 44212.8015 | AO75: 1.266412214 | AP75: =IF($M75="HW",$K75+AP$6+(AP$5-AP$6)*$R75,$K75+AP$8+(AP$7-AP$8)*$R75) -> 44212.80596 | AQ75: 1.14351145 | AR75: 44212.76875 | AS75: 44212.79306 | AT75: =IF($M75="HW",$K75+AT$6+(AT$5-AT$6)*$R75,$K75+AT$8+(AT$7-AT$8)*$R75) -> 44212.76875 | AU75: 1.07480916 | AV75: =IF($M75="HW",$K75+AV$6+(AV$5-AV$6)*$R75,$K75+AV$8+(AV$7-AV$8)*$R75) -> 44212.77373 | AW75: 0.9977099237 | AX75: =IF($M75="HW",$K75+AX$6+(AX$5-AX$6)*$R75,$K75+AX$8+(AX$7-AX$8)*$R75) -> 44212.7603 | AY75: 0.8748091603 | AZ75: =IF($M75="HW",$K75+AZ$6+(AZ$5-AZ$6)*$R75,$K75+AZ$8+(AZ$7-AZ$8)*$R75) -> 44212.75683 | BA75: 0.7977099237 | BB75: =IF($M75="HW",$K75+BB$6+(BB$5-BB$6)*$R75,$K75+BB$8+(BB$7-BB$8)*$R75) -> 44212.75237 | BC75: 0.8977099237 | BD75: =IF($M75="HW",$K75+BD$6+(BD$5-BD$6)*$R75,$K75+BD$8+(BD$7-BD$8)*$R75) -> 44212.70723 | BE75: 0.8061068702 | BF75: 44212.80347 | BH75: 44212.84167 | BI75: 44212.81042 | BK75: 2025-01-17T20:12:00 | BL75: =BK75+B75/24 -> 44212.84167
A76: 0 | B76: =IF(Instructions!$C$2="BST",A76,0) -> 0 | C76: 2025-01-18T00:50:00 | D76: 2025-01-18 | E76: 2025-01-18 | F76: =MONTH(K76) -> 1 | G76: =IF(H76="","",TEXT(F76*29,"mmm")) -> Jan | H76: =IF(I76=I75,"",DAY(K76)) -> 18 | I76: =WEEKDAY(K76,2) -> 6 | J76: =IF(I76=I75,"",TEXT(I76+2,"ddd")) -> Sat | K76: 44213.03472 | L76: 5.12 | M76: HW | N76: 0.547826087 | O76: 00:50:00 | P76: 00:00:00 | Q76: 06:00:00 | R76: =ABS((O76-Q76)/(P76-Q76)) -> 0.8611111111 | S76: 44213.05064 | T76: 6.876521739 | U76: 44213.11661 | V76: 44213.05363 | W76: 6.62173913 | X76: =IF($M76="HW",$BK76+X$6+$B76/24,$BK75+4/24+$B76/24) -> 44212.98472 | Y76: 44213.02334 | Z76: 5.057391304 | AA76: =IF($M76="HW",$K76+AA$6+(AA$5-AA$6)*$R76,$K76+AA$8+(AA$7-AA$8)*$R76) -> 44213.01292 | AB76: 44213.01389 | AC76: 4.657391304 | AD76: Opn | AE76: =IF($M76="HW",$AB76-AD$8,$AB75+AD$8) -> 44212.89931 | AF76: 44213.00936 | AG76: 4.102608696 | AH76: 44212.98457 | AI76: 4.447826087 | AJ76: 44213.05112 | AK76: 6.776521739 | AL76: 44213.0516 | AM76: 6.731304348 | AN76: 44213.04765 | AO76: 6.52173913 | AP76: 44213.04909 | AQ76: 5.92173913 | AR76: 44213.02431 | AS76: 44213.04514 | AT76: 44213.0054 | AU76: 4.657391304 | AV76: 44213.0054 | AW76: 4.457391304 | AX76: 44212.98409 | AY76: 4.212173913 | AZ76: 44212.98061 | BA76: 4.057391304 | BB76: 44212.97714 | BC76: 4.002608696 | BD76: 44212.93557 | BE76: 3.857391304 | BF76: 44213.02431 | BH76: =BL76 -> 44213.06806 | BI76: 44213.06597 | BK76: 2025-01-18T01:38:00 | BL76: 44213.06806
A77: 0 | B77: =IF(Instructions!$C$2="BST",A77,0) -> 0 | C77: 2025-01-18T06:47:00 | D77: 2025-01-18 | E77: Sat | F77: 1 | I77: 6 | K77: 44213.28264 | L77: 1.34 | M77: LW | N77: 0.5190839695 | O77: 06:47:00 | P77: 05:00:00 | Q77: 11:00:00 | R77: 0.7027777778 | S77: =IF($M77="HW",$K77+S$6+(S$5-S$6)*$R77,$K77+S$8+(S$7-S$8)*$R77) -> 44213.31671 | T77: 1.617557252 | U77: 44213.38268 | V77: 44213.29474 | W77: 1.469465649 | X77: 44213.23472 | Y77: =IF($M77="HW",$K77+Y$6+(Y$5-Y$6)*$R77,$K77+Y$8+(Y$7-Y$8)*$R77) -> 44213.29728 | Z77: 1.377099237 | AA77: 44213.25758 | AB77: 44213.28893 | AC77: 1.22519084 | AD77: Cls | AE77: 44213.12847 | AF77: 44213.26941 | AG77: 1.177099237 | AH77: 44213.26387 | AI77: 1.277099237 | AJ77: 44213.31427 | AK77: 1.669465649 | AL77: 44213.31427 | AM77: 1.669465649 | AN77: 44213.30488 | AO77: 1.669465649 | AP77: 44213.30938 | AQ77: 1.521374046 | AR77: =IF($M77="HW",$K77+AR$6+(AR$5-AR$6)*$R77,$K77+AR$8+(AR$7-AR$8)*$R77) -> 44213.27222 | AS77: 44213.29653 | AT77: 44213.27222 | AU77: 1.377099237 | AV77: 44213.2771 | AW77: 1.32519084 | AX77: 44213.26387 | AY77: 1.177099237 | AZ77: 44213.2604 | BA77: 1.12519084 | BB77: 44213.25589 | BC77: 1.22519084 | BD77: 44213.21075 | BE77: 1.032824427 | BF77: =IF($M77="HW",$K77+BF$6+(BF$5-BF$6)*$R77,$K77+BF$8+(BF$7-BF$8)*$R77) -> 44213.30694 | BH77: 44213.34375 | BI77: 44213.31389 | BK77: 2025-01-18T08:15:00 | BL77: 44213.34375
A78: 0 | B78: =IF(Instructions!$C$2="BST",A78,0) -> 0 | C78: 2025-01-18T13:01:00 | D78: 2025-01-18 | F78: 1 | I78: 6 | K78: 44213.54236 | L78: 5.44 | M78: HW | N78: 0.8260869565 | O78: 13:01:00 | P78: 12:00:00 | Q78: 18:00:00 | R78: 0.8305555556 | S78: 44213.55796 | T78: 7.32173913 | U78: 44213.62393 | V78: 44213.56084 | W78: 7.039130435 | X78: 44213.49097 | Y78: 44213.53077 | Z78: 5.391304348 | AA78: 44213.52035 | AB78: 44213.52153 | AC78: 4.991304348 | AD78: Opn | AE78: 44213.40694 | AF78: 44213.51753 | AG78: 4.408695652 | AH78: 44213.49263 | AI78: 4.726086957 | AJ78: 44213.55855 | AK78: 7.22173913 | AL78: 44213.55913 | AM78: 7.204347826 | AN78: 44213.55507 | AO78: 6.939130435 | AP78: 44213.55684 | AQ78: 6.339130435 | AR78: 44213.53194 | AS78: 44213.55278 | AT78: 44213.51346 | AU78: 4.991304348 | AV78: 44213.51346 | AW78: 4.791304348 | AX78: 44213.49204 | AY78: 4.573913043 | AZ78: 44213.48857 | BA78: 4.391304348 | BB78: 44213.4851 | BC78: 4.308695652 | BD78: 44213.44279 | BE78: 4.191304348 | BF78: 44213.53194 | BH78: 44213.57431 | BI78: 44213.57361 | BK78: 2025-01-18T13:47:00 | BL78: 44213.57431
A79: 0 | B79: =IF(Instructions!$C$2="BST",A79,0) -> 0 | C79: 2025-01-18T19:19:00 | D79: 2025-01-18 | F79: 1 | I79: 6 | K79: 44213.80486 | L79: 1.2 | M79: LW | N79: 0.6259541985 | O79: 19:19:00 | P79: 17:00:00 | Q79: 23:00:00 | R79: 0.6138888889 | S79: 44213.83769 | T79: 1.435877863 | U79: 44213.90367 | V79: 44213.81851 | W79: 1.298473282 | X79: 44213.74097 | Y79: 44213.81765 | Z79: 1.248854962 | AA79: 44213.78166 | AB79: 44213.80992 | AC79: 1.086259542 | AD79: Cls | AE79: 44213.63611 | AF79: 44213.79286 | AG79: 1.048854962 | AH79: 44213.78671 | AI79: 1.148854962 | AJ79: 44213.83556 | AK79: 1.498473282 | AL79: 44213.83556 | AM79: 1.498473282 | AN79: 44213.82649 | AO79: 1.498473282 | AP79: 44213.8313 | AQ79: 1.361068702 | AR79: 44213.79444 | AS79: 44213.81875 | AT79: 44213.79444 | AU79: 1.248854962 | AV79: 44213.79871 | AW79: 1.186259542 | AX79: 44213.78671 | AY79: 1.048854962 | AZ79: 44213.78324 | BA79: 0.986259542 | BB79: 44213.77842 | BC79: 1.086259542 | BD79: 44213.73329 | BE79: 0.9366412214 | BF79: 44213.82917 | BH79: 44213.86458 | BI79: 44213.83611 | BK79: 2025-01-18T20:45:00 | BL79: 44213.86458
A80: 0 | B80: =IF(Instructions!$C$2="BST",A80,0) -> 0 | C80: 2025-01-19T01:26:00 | D80: 2025-01-19 | E80: 2025-01-19 | F80: 1 | G80: Jan | H80: 19 | I80: 7 | J80: Sun | K80: 44214.05972 | L80: 4.96 | M80: HW | N80: 0.4086956522 | O80: 01:26:00 | P80: 00:00:00 | Q80: 06:00:00 | R80: 0.7611111111 | S80: 44214.07459 | T80: 6.653913043 | U80: 44214.14057 | V80: 44214.07724 | W80: 6.413043478 | X80: 44214.00903 | Y80: 44214.04765 | Z80: 4.890434783 | AA80: 44214.03723 | AB80: 44214.03889 | AC80: 4.490434783 | AD80: Opn | AE80: 44213.92431 | AF80: 44214.03609 | AG80: 3.949565217 | AH80: 44214.01096 | AI80: 4.308695652 | AJ80: 44214.07542 | AK80: 6.553913043 | AL80: 44214.07625 | AM80: 6.494782609 | AN80: 44214.07195 | AO80: 6.313043478 | AP80: 44214.07444 | AQ80: 5.713043478 | AR80: 44214.04931 | AS80: 44214.07014 | AT80: 44214.03179 | AU80: 4.490434783 | AV80: 44214.03179 | AW80: 4.290434783 | AX80: 44214.01013 | AY80: 4.031304348 | AZ80: 44214.00666 | BA80: 3.890434783 | BB80: 44214.00318 | BC80: 3.849565217 | BD80: 44213.95918 | BE80: 3.690434783 | BF80: 44214.04931 | BH80: 44214.09236 | BI80: 44214.09097 | BK80: 2025-01-19T02:13:00 | BL80: 44214.09236
A81: 0 | B81: =IF(Instructions!$C$2="BST",A81,0) -> 0 | C81: 2025-01-19T07:23:00 | D81: 2025-01-19 | E81: Sun | F81: 1 | I81: 7 | K81: 44214.30764 | L81: 1.52 | M81: LW | N81: 0.3816793893 | O81: 07:23:00 | P81: 05:00:00 | Q81: 11:00:00 | R81: 0.6027777778 | S81: 44214.34032 | T81: 1.851145038 | U81: 44214.40629 | V81: 44214.32148 | W81: 1.689312977 | X81: 44214.25903 | Y81: 44214.3202 | Z81: 1.541984733 | AA81: 44214.28466 | AB81: 44214.31254 | AC81: 1.403816794 | AD81: Cls | AE81: 44214.15347 | AF81: 44214.29579 | AG81: 1.341984733 | AH81: 44214.28956 | AI81: 1.441984733 | AJ81: 44214.33822 | AK81: 1.889312977 | AL81: 44214.33822 | AM81: 1.889312977 | AN81: 44214.32919 | AO81: 1.889312977 | AP81: 44214.33404 | AQ81: 1.727480916 | AR81: 44214.29722 | AS81: 44214.32153 | AT81: 44214.29722 | AU81: 1.541984733 | AV81: 44214.30141 | AW81: 1.503816794 | AX81: 44214.28956 | AY81: 1.341984733 | AZ81: 44214.28609 | BA81: 1.303816794 | BB81: 44214.28124 | BC81: 1.403816794 | BD81: 44214.2361 | BE81: 1.15648855 | BF81: 44214.33194 | BH81: 44214.36389 | BI81: 44214.33889 | BK81: 2025-01-19T08:44:00 | BL81: 44214.36389
A82: 0 | B82: =IF(Instructions!$C$2="BST",A82,0) -> 0 | C82: 2025-01-19T13:36:00 | D82: 2025-01-19 | F82: 1 | I82: 7 | K82: 44214.56667 | L82: 5.25 | M82: HW | N82: 0.6608695652 | O82: 13:36:00 | P82: 12:00:00 | Q82: 18:00:00 | R82: 0.7333333333 | S82: 44214.58125 | T82: 7.057391304 | U82: 44214.64722 | V82: 44214.5838 | W82: 6.791304348 | X82: 44214.51458 | Y82: 44214.5544 | Z82: 5.193043478 | AA82: 44214.54398 | AB82: 44214.54583 | AC82: 4.793043478 | AD82: Opn | AE82: 44214.43125 | AF82: 44214.54352 | AG82: 4.226956522 | AH82: 44214.51829 | AI82: 4.560869565 | AJ82: 44214.58218 | AK82: 6.957391304 | AL82: 44214.5831 | AM82: 6.923478261 | AN82: 44214.5787 | AO82: 6.691304348 | AP82: 44214.58148 | AQ82: 6.091304348 | AR82: 44214.55625 | AS82: 44214.57708 | AT82: 44214.53912 | AU82: 4.793043478 | AV82: 44214.53912 | AW82: 4.593043478 | AX82: 44214.51736 | AY82: 4.359130435 | AZ82: 44214.51389 | BA82: 4.193043478 | BB82: 44214.51042 | BC82: 4.126956522 | BD82: 44214.46574 | BE82: 3.993043478 | BF82: 44214.55625 | BH82: 44214.59792 | BI82: 44214.59792 | BK82: 2025-01-19T14:21:00 | BL82: 44214.59792
A83: 0 | B83: =IF(Instructions!$C$2="BST",A83,0) -> 0 | C83: 2025-01-19T19:56:00 | D83: 2025-01-19 | F83: 1 | I83: 7 | K83: 44214.83056 | L83: 1.42 | M83: LW | N83: 0.4580152672 | O83: 19:56:00 | P83: 17:00:00 | Q83: 23:00:00 | R83: 0.5111111111 | S83: 44214.86196 | T83: 1.721374046 | U83: 44214.92793 | V83: 44214.84599 | W83: 1.567175573 | X83: 44214.76458 | Y83: 44214.8412 | Z83: 1.450381679 | AA83: 44214.80949 | AB83: 44214.83418 | AC83: 1.304580153 | AD83: Cls | AE83: 44214.66042 | AF83: 44214.81998 | AG83: 1.250381679 | AH83: 44214.81312 | AI83: 1.350381679 | AJ83: 44214.86019 | AK83: 1.767175573 | AL83: 44214.86019 | AM83: 1.767175573 | AN83: 44214.85147 | AO83: 1.767175573 | AP83: 44214.85664 | AQ83: 1.612977099 | AR83: 44214.82014 | AS83: 44214.84444 | AT83: 44214.82014 | AU83: 1.450381679 | AV83: 44214.82369 | AW83: 1.404580153 | AX83: 44214.81312 | AY83: 1.250381679 | AZ83: 44214.80965 | BA83: 1.204580153 | BB83: 44214.80448 | BC83: 1.304580153 | BD83: 44214.75934 | BE83: 1.08778626 | BF83: 44214.85486 | BH83: 44214.88611 | BI83: 44214.86181 | BK83: 2025-01-19T21:16:00 | BL83: 44214.88611
A84: 0 | B84: =IF(Instructions!$C$2="BST",A84,0) -> 0 | C84: 2025-01-20T02:02:00 | D84: 2025-01-20 | E84: 2025-01-20 | F84: 1 | G84: Jan | H84: 20 | I84: 1 | J84: Mon | K84: 44215.08472 | L84: 4.79 | M84: HW | N84: 0.2608695652 | O84: 02:02:00 | P84: 00:00:00 | Q84: 06:00:00 | R84: 0.6611111111 | S84: 44215.09855 | T84: 6.417391304 | U84: 44215.16453 | V84: 44215.10085 | W84: 6.191304348 | X84: 44215.03403 | Y84: 44215.07195 | Z84: 4.713043478 | AA84: 44215.06154 | AB84: 44215.06389 | AC84: 4.313043478 | AD84: Opn | AE84: 44214.94931 | AF84: 44215.06283 | AG84: 3.786956522 | AH84: 44215.03735 | AI84: 4.160869565 | AJ84: 44215.09973 | AK84: 6.317391304 | AL84: 44215.10091 | AM84: 6.243478261 | AN84: 44215.09626 | AO84: 6.091304348 | AP84: 44215.09979 | AQ84: 5.491304348 | AR84: 44215.07431 | AS84: 44215.09514 | AT84: 44215.05818 | AU84: 4.313043478 | AV84: 44215.05818 | AW84: 4.113043478 | AX84: 44215.03617 | AY84: 3.839130435 | AZ84: 44215.0327 | BA84: 3.713043478 | BB84: 44215.02922 | BC84: 3.686956522 | BD84: 44214.98279 | BE84: 3.513043478 | BF84: 44215.07431 | BH84: 44215.11736 | BI84: 44215.11597 | BK84: 2025-01-20T02:49:00 | BL84: 44215.11736
A85: 0 | B85: =IF(Instructions!$C$2="BST",A85,0) -> 0 | C85: 2025-01-20T08:00:00 | D85: 2025-01-20 | E85: Mon | F85: 1 | I85: 1 | K85: 44215.33333 | L85: 1.73 | M85: LW | N85: 0.2213740458 | O85: 08:00:00 | P85: 05:00:00 | Q85: 11:00:00 | R85: 0.5 | S85: 44215.36458 | T85: 2.123664122 | U85: 44215.43056 | V85: 44215.34896 | W85: 1.945801527 | X85: 44215.28403 | Y85: 44215.34375 | Z85: 1.734351145 | AA85: 44215.3125 | AB85: 44215.33681 | AC85: 1.61221374 | AD85: Cls | AE85: 44215.17847 | AF85: 44215.32292 | AG85: 1.534351145 | AH85: 44215.31597 | AI85: 1.634351145 | AJ85: 44215.36285 | AK85: 2.145801527 | AL85: 44215.36285 | AM85: 2.145801527 | AN85: 44215.35417 | AO85: 2.145801527 | AP85: 44215.35938 | AQ85: 1.967938931 | AR85: 44215.32292 | AS85: 44215.34722 | AT85: 44215.32292 | AU85: 1.734351145 | AV85: 44215.32639 | AW85: 1.71221374 | AX85: 44215.31597 | AY85: 1.534351145 | AZ85: 44215.3125 | BA85: 1.51221374 | BB85: 44215.30729 | BC85: 1.61221374 | BD85: 44215.26215 | BE85: 1.300763359 | BF85: 44215.35764 | BH85: 44215.38472 | BI85: 44215.36458 | BK85: 2025-01-20T09:14:00 | BL85: 44215.38472
A86: 0 | B86: =IF(Instructions!$C$2="BST",A86,0) -> 0 | C86: 2025-01-20T14:13:00 | D86: 2025-01-20 | F86: 1 | I86: 1 | K86: 44215.59236 | L86: 5.03 | M86: HW | N86: 0.4695652174 | O86: 14:13:00 | P86: 12:00:00 | Q86: 18:00:00 | R86: 0.6305555555 | S86: 44215.60587 | T86: 6.751304348 | U86: 44215.67185 | V86: 44215.60806 | W86: 6.504347826 | X86: 44215.54028 | Y86: 44215.57938 | Z86: 4.963478261 | AA86: 44215.56896 | AB86: 44215.57153 | AC86: 4.563478261 | AD86: Opn | AE86: 44215.45694 | AF86: 44215.571 | AG86: 4.016521739 | AH86: 44215.54541 | AI86: 4.369565217 | AJ86: 44215.60716 | AK86: 6.651304348 | AL86: 44215.60844 | AM86: 6.59826087 | AN86: 44215.60368 | AO86: 6.404347826 | AP86: 44215.60753 | AQ86: 5.804347826 | AR86: 44215.58194 | AS86: 44215.60278 | AT86: 44215.56624 | AU86: 4.563478261 | AV86: 44215.56624 | AW86: 4.363478261 | AX86: 44215.54413 | AY86: 4.110434783 | AZ86: 44215.54065 | BA86: 3.963478261 | BB86: 44215.53718 | BC86: 3.916521739 | BD86: 44215.49001 | BE86: 3.763478261 | BF86: 44215.58194 | BH86: 44215.62361 | BI86: 44215.62361 | BK86: 2025-01-20T14:58:00 | BL86: 44215.62361
A87: 0 | B87: =IF(Instructions!$C$2="BST",A87,0) -> 0 | C87: 2025-01-20T20:36:00 | D87: 2025-01-20 | F87: 1 | I87: 1 | K87: 44215.85833 | L87: 1.66 | M87: LW | N87: 0.2748091603 | O87: 20:36:00 | P87: 17:00:00 | Q87: 23:00:00 | R87: 0.4 | S87: 44215.88819 | T87: 2.032824427 | U87: 44215.95417 | V87: 44215.87569 | W87: 1.860305344 | X87: 44215.79028 | Y87: 44215.86667 | Z87: 1.670229008 | AA87: 44215.83958 | AB87: 44215.86042 | AC87: 1.542748092 | AD87: Cls | AE87: 44215.68611 | AF87: 44215.84931 | AG87: 1.470229008 | AH87: 44215.84167 | AI87: 1.570229008 | AJ87: 44215.88681 | AK87: 2.060305344 | AL87: 44215.88681 | AM87: 2.060305344 | AN87: 44215.87847 | AO87: 2.060305344 | AP87: 44215.88403 | AQ87: 1.88778626 | AR87: 44215.84792 | AS87: 44215.87222 | AT87: 44215.84792 | AU87: 1.670229008 | AV87: 44215.85069 | AW87: 1.642748092 | AX87: 44215.84167 | AY87: 1.470229008 | AZ87: 44215.83819 | BA87: 1.442748092 | BB87: 44215.83264 | BC87: 1.542748092 | BD87: 44215.7875 | BE87: 1.252671756 | BF87: 44215.88264 | BH87: 44215.90833 | BI87: 44215.88958 | BK87: 2025-01-20T21:48:00 | BL87: 44215.90833
A88: 0 | B88: =IF(Instructions!$C$2="BST",A88,0) -> 0 | C88: 2025-01-21T02:42:00 | D88: 2025-01-21 | E88: 2025-01-21 | F88: 1 | G88: Jan | H88: 21 | I88: 2 | J88: Tue | K88: 44216.1125 | L88: 4.62 | M88: HW | N88: 0.1130434783 | O88: 02:42:00 | P88: 00:00:00 | Q88: 06:00:00 | R88: 0.55 | S88: 44216.12517 | T88: 6.180869565 | U88: 44216.19115 | V88: 44216.12708 | W88: 5.969565217 | X88: 44216.06111 | Y88: 44216.09896 | Z88: 4.535652174 | AA88: 44216.08854 | AB88: 44216.09167 | AC88: 4.135652174 | AD88: Opn | AE88: 44215.97708 | AF88: 44216.09253 | AG88: 3.624347826 | AH88: 44216.06667 | AI88: 4.013043478 | AJ88: 44216.12674 | AK88: 6.080869565 | AL88: 44216.1283 | AM88: 5.992173913 | AN88: 44216.12326 | AO88: 5.869565217 | AP88: 44216.12795 | AQ88: 5.269565217 | AR88: 44216.10208 | AS88: 44216.12292 | AT88: 44216.0875 | AU88: 4.135652174 | AV88: 44216.0875 | AW88: 3.935652174 | AX88: 44216.0651 | AY88: 3.646956522 | AZ88: 44216.06163 | BA88: 3.535652174 | BB88: 44216.05816 | BC88: 3.524347826 | BD88: 44216.00903 | BE88: 3.335652174 | BF88: 44216.10208 | BH88: 44216.14444 | BI88: 44216.14375 | BK88: 2025-01-21T03:28:00 | BL88: 44216.14444
A89: 0 | B89: =IF(Instructions!$C$2="BST",A89,0) -> 0 | C89: 2025-01-21T08:41:00 | D89: 2025-01-21 | E89: Tue | F89: 1 | I89: 2 | K89: 44216.36181 | L89: 1.96 | M89: LW | N89: 0.04580152672 | O89: 08:41:00 | P89: 05:00:00 | Q89: 11:00:00 | R89: 0.3861111111 | S89: 44216.39147 | T89: 2.422137405 | U89: 44216.45745 | V89: 44216.37941 | W89: 2.226717557 | X89: 44216.31111 | Y89: 44216.36985 | Z89: 1.945038168 | AA89: 44216.34334 | AB89: 44216.3637 | AC89: 1.840458015 | AD89: Cls | AE89: 44216.20625 | AF89: 44216.35297 | AG89: 1.745038168 | AH89: 44216.34524 | AI89: 1.845038168 | AJ89: 44216.39013 | AK89: 2.426717557 | AL89: 44216.39013 | AM89: 2.426717557 | AN89: 44216.38185 | AO89: 2.426717557 | AP89: 44216.38745 | AQ89: 2.23129771 | AR89: 44216.35139 | AS89: 44216.37569 | AT89: 44216.35139 | AU89: 1.945038168 | AV89: 44216.35407 | AW89: 1.940458015 | AX89: 44216.34524 | AY89: 1.745038168 | AZ89: 44216.34176 | BA89: 1.740458015 | BB89: 44216.33616 | BC89: 1.840458015 | BD89: 44216.29102 | BE89: 1.458778626 | BF89: 44216.38611 | BH89: 44216.41042 | BI89: 44216.39306 | BK89: 2025-01-21T09:51:00 | BL89: 44216.41042
A90: 0 | B90: =IF(Instructions!$C$2="BST",A90,0) -> 0 | C90: 2025-01-21T14:55:00 | D90: 2025-01-21 | F90: 1 | I90: 2 | K90: 44216.62153 | L90: 4.8 | M90: HW | N90: 0.2695652174 | O90: 14:55:00 | P90: 12:00:00 | Q90: 18:00:00 | R90: 0.5138888889 | S90: 44216.63383 | T90: 6.431304348 | U90: 44216.6998 | V90: 44216.63561 | W90: 6.204347826 | X90: 44216.56806 | Y90: 44216.60774 | Z90: 4.723478261 | AA90: 44216.59732 | AB90: 44216.60069 | AC90: 4.323478261 | AD90: Opn | AE90: 44216.48611 | AF90: 44216.60219 | AG90: 3.796521739 | AH90: 44216.5762 | AI90: 4.169565217 | AJ90: 44216.63551 | AK90: 6.331304348 | AL90: 44216.6372 | AM90: 6.25826087 | AN90: 44216.63204 | AO90: 6.104347826 | AP90: 44216.6371 | AQ90: 5.504347826 | AR90: 44216.61111 | AS90: 44216.63194 | AT90: 44216.59703 | AU90: 4.323478261 | AV90: 44216.59703 | AW90: 4.123478261 | AX90: 44216.57451 | AY90: 3.850434783 | AZ90: 44216.57104 | BA90: 3.723478261 | BB90: 44216.56756 | BC90: 3.696521739 | BD90: 44216.51755 | BE90: 3.523478261 | BF90: 44216.61111 | BH90: 44216.65139 | BI90: 44216.65278 | BK90: 2025-01-21T15:38:00 | BL90: 44216.65139
A91: 0 | B91: =IF(Instructions!$C$2="BST",A91,0) -> 0 | C91: 2025-01-21T21:20:00 | D91: 2025-01-21 | F91: 1 | I91: 2 | K91: 44216.88889 | L91: 1.92 | M91: LW | N91: 0.07633587786 | O91: 21:20:00 | P91: 17:00:00 | Q91: 23:00:00 | R91: 0.2777777778 | S91: 44216.91705 | T91: 2.370229008 | U91: 44216.98302 | V91: 44216.90837 | W91: 2.177862595 | X91: 44216.81806 | Y91: 44216.89468 | Z91: 1.908396947 | AA91: 44216.87269 | AB91: 44216.88927 | AC91: 1.800763359 | AD91: Cls | AE91: 44216.71528 | AF91: 44216.88156 | AG91: 1.708396947 | AH91: 44216.87307 | AI91: 1.808396947 | AJ91: 44216.91609 | AK91: 2.377862595 | AL91: 44216.91609 | AM91: 2.377862595 | AN91: 44216.90818 | AO91: 2.377862595 | AP91: 44216.91416 | AQ91: 2.185496183 | AR91: 44216.87847 | AS91: 44216.90278 | AT91: 44216.87847 | AU91: 1.908396947 | AV91: 44216.8804 | AW91: 1.900763359 | AX91: 44216.87307 | AY91: 1.708396947 | AZ91: 44216.8696 | BA91: 1.700763359 | BB91: 44216.86362 | BC91: 1.800763359 | BD91: 44216.81848 | BE91: 1.43129771 | BF91: 44216.91319 | BH91: 44216.93611 | BI91: 44216.92014 | BK91: 2025-01-21T22:28:00 | BL91: 44216.93611
A92: 0 | B92: =IF(Instructions!$C$2="BST",A92,0) -> 0 | C92: 2025-01-22T03:30:00 | D92: 2025-01-22 | E92: 2025-01-22 | F92: 1 | G92: Jan | H92: 22 | I92: 3 | J92: Wed | K92: 44217.14583 | L92: 4.46 | M92: HW | N92: -0.02608695652 | O92: 03:30:00 | P92: 00:00:00 | Q92: 06:00:00 | R92: 0.4166666667 | S92: 44217.15712 | T92: 5.95826087 | U92: 44217.22309 | V92: 44217.15856 | W92: 5.760869565 | X92: 44217.09306 | Y92: 44217.13137 | Z92: 4.368695652 | AA92: 44217.12095 | AB92: 44217.125 | AC92: 3.968695652 | AD92: Opn | AE92: 44217.01042 | AF92: 44217.12818 | AG92: 3.471304348 | AH92: 44217.10185 | AI92: 3.873913043 | AJ92: 44217.15914 | AK92: 5.85826087 | AL92: 44217.16117 | AM92: 5.755652174 | AN92: 44217.15567 | AO92: 5.660869565 | AP92: 44217.16175 | AQ92: 5.060869565 | AR92: 44217.13542 | AS92: 44217.15625 | AT92: 44217.12269 | AU92: 3.968695652 | AV92: 44217.12269 | AW92: 3.768695652 | AX92: 44217.09983 | AY92: 3.466086957 | AZ92: 44217.09635 | BA92: 3.368695652 | BB92: 44217.09288 | BC92: 3.371304348 | BD92: 44217.04051 | BE92: 3.168695652 | BF92: 44217.13542 | BH92: 44217.17639 | BI92: 44217.17708 | BK92: 2025-01-22T04:14:00 | BL92: 44217.17639
A93: 0 | B93: =IF(Instructions!$C$2="BST",A93,0) -> 0 | C93: 2025-01-22T09:32:00 | D93: 2025-01-22 | E93: Wed | F93: 1 | I93: 3 | K93: 44217.39722 | L93: 2.21 | M93: LW | N93: -0.1450381679 | O93: 09:32:00 | P93: 05:00:00 | Q93: 11:00:00 | R93: 0.2444444444 | S93: 44217.42492 | T93: 2.746564885 | U93: 44217.4909 | V93: 44217.41728 | W93: 2.532061069 | X93: 44217.34306 | Y93: 44217.40231 | Z93: 2.174045802 | AA93: 44217.38171 | AB93: 44217.39715 | AC93: 2.088549618 | AD93: Cls | AE93: 44217.23958 | AF93: 44217.39035 | AG93: 1.974045802 | AH93: 44217.38164 | AI93: 2.074045802 | AJ93: 44217.42407 | AK93: 2.732061069 | AL93: 44217.42407 | AM93: 2.732061069 | AN93: 44217.41628 | AO93: 2.732061069 | AP93: 44217.42238 | AQ93: 2.517557252 | AR93: 44217.38681 | AS93: 44217.41111 | AT93: 44217.38681 | AU93: 2.174045802 | AV93: 44217.3885 | AW93: 2.188549618 | AX93: 44217.38164 | AY93: 1.974045802 | AZ93: 44217.37816 | BA93: 1.988549618 | BB93: 44217.37207 | BC93: 2.088549618 | BD93: 44217.32693 | BE93: 1.630534351 | BF93: 44217.42153 | BH93: 44217.44306 | BI93: 44217.42847 | BK93: 2025-01-22T10:38:00 | BL93: 44217.44306
A94: 0 | B94: =IF(Instructions!$C$2="BST",A94,0) -> 0 | C94: 2025-01-22T15:46:00 | D94: 2025-01-22 | F94: 1 | I94: 3 | K94: 44217.65694 | L94: 4.56 | M94: HW | N94: 0.06086956522 | O94: 15:46:00 | P94: 12:00:00 | Q94: 18:00:00 | R94: 0.3722222222 | S94: =IF($M94="HW",$K94+S$6+(S$5-S$6)*$R94,$K94+S$8+(S$7-S$8)*$R94) -> 44217.66777 | T94: 6.097391304 | U94: 44217.73374 | V94: 44217.66906 | W94: 5.891304348 | X94: 44217.60278 | Y94: =IF($M94="HW",$K94+Y$6+(Y$5-Y$6)*$R94,$K94+Y$8+(Y$7-Y$8)*$R94) -> 44217.64217 | Z94: 4.473043478 | AA94: 44217.63175 | AB94: 44217.63611 | AC94: 4.073043478 | AD94: Opn | AE94: 44217.52153 | AF94: 44217.64007 | AG94: 3.566956522 | AH94: 44217.61358 | AI94: 3.960869565 | AJ94: 44217.66995 | AK94: 5.997391304 | AL94: 44217.67213 | AM94: 5.903478261 | AN94: 44217.66647 | AO94: 5.791304348 | AP94: 44217.67301 | AQ94: 5.191304348 | AR94: =IF($M94="HW",$K94+AR$6+(AR$5-AR$6)*$R94,$K94+AR$8+(AR$7-AR$8)*$R94) -> 44217.64653 | AS94: 44217.66736 | AT94: 44217.63441 | AU94: 4.073043478 | AV94: 44217.63441 | AW94: 3.873043478 | AX94: 44217.6114 | AY94: 3.579130435 | AZ94: 44217.60793 | BA94: 3.473043478 | BB94: 44217.60446 | BC94: 3.466956522 | BD94: 44217.551 | BE94: 3.273043478 | BF94: =IF($M94="HW",$K94+BF$6+(BF$5-BF$6)*$R94,$K94+BF$8+(BF$7-BF$8)*$R94) -> 44217.64653 | BH94: 44217.68611 | BI94: 44217.68819 | BK94: 2025-01-22T16:28:00 | BL94: 44217.68611
A95: 0 | B95: =IF(Instructions!$C$2="BST",A95,0) -> 0 | C95: 2025-01-22T22:16:00 | D95: 2025-01-22 | F95: 1 | I95: 3 | K95: 44217.92778 | L95: 2.15 | M95: LW | N95: -0.09923664122 | O95: 22:16:00 | P95: 17:00:00 | Q95: 23:00:00 | R95: 0.1222222222 | S95: 44217.95378 | T95: 2.66870229 | U95: 44218.01975 | V95: 44217.94996 | W95: 2.458778626 | X95: 44217.85278 | Y95: 44217.93032 | Z95: 2.119083969 | AA95: 44217.91481 | AB95: 44217.926 | AC95: 2.029007634 | AD95: Cls | AE95: 44217.75069 | AF95: 44217.92261 | AG95: 1.919083969 | AH95: 44217.91304 | AI95: 2.019083969 | AJ95: 44217.95336 | AK95: 2.658778626 | AL95: 44217.95336 | AM95: 2.658778626 | AN95: 44217.94599 | AO95: 2.658778626 | AP95: 44217.95251 | AQ95: 2.448854962 | AR95: 44217.91736 | AS95: 44217.94167 | AT95: 44217.91736 | AU95: 2.119083969 | AV95: 44217.91821 | AW95: 2.129007634 | AX95: 44217.91304 | AY95: 1.919083969 | AZ95: 44217.90957 | BA95: 1.929007634 | BB95: 44217.90305 | BC95: 2.029007634 | BD95: 44217.85791 | BE95: 1.589312977 | BF95: 44217.95208 | BH95: 44217.97222 | BI95: 44217.95903 | BK95: 2025-01-22T23:20:00 | BL95: 44217.97222
A96: 0 | B96: =IF(Instructions!$C$2="BST",A96,0) -> 0 | C96: 2025-01-23T04:29:00 | D96: 2025-01-23 | E96: 2025-01-23 | F96: 1 | G96: Jan | H96: 23 | I96: 4 | J96: Thu | K96: 44218.18681 | L96: 4.34 | M96: HW | N96: -0.1304347826 | O96: 04:29:00 | P96: 00:00:00 | Q96: 06:00:00 | R96: 0.2527777778 | S96: 44218.19638 | T96: 5.791304348 | U96: 44218.26236 | V96: 44218.19726 | W96: 5.604347826 | X96: 44218.13264 | Y96: 44218.1712 | Z96: 4.243478261 | AA96: 44218.16078 | AB96: 44218.16597 | AC96: 3.843478261 | AD96: Opn | AE96: 44218.05139 | AF96: 44218.172 | AG96: 3.356521739 | AH96: 44218.1451 | AI96: 3.769565217 | AJ96: 44218.19898 | AK96: 5.691304348 | AL96: 44218.20157 | AM96: 5.57826087 | AN96: 44218.19551 | AO96: 5.504347826 | AP96: 44218.20329 | AQ96: 4.904347826 | AR96: 44218.17639 | AS96: 44218.19722 | AT96: 44218.16593 | AU96: 3.843478261 | AV96: 44218.16593 | AW96: 3.643478261 | AX96: 44218.14251 | AY96: 3.330434783 | AZ96: 44218.13903 | BA96: 3.243478261 | BB96: 44218.13556 | BC96: 3.256521739 | BD96: 44218.07921 | BE96: 3.043478261 | BF96: 44218.17639 | BH96: 44218.21597 | BI96: 44218.21806 | BK96: 2025-01-23T05:11:00 | BL96: 44218.21597
A97: 0 | B97: =IF(Instructions!$C$2="BST",A97,0) -> 0 | C97: 2025-01-23T10:36:00 | D97: 2025-01-23 | E97: Thu | F97: 1 | I97: 4 | K97: 44218.44167 | L97: 2.41 | M97: LW | N97: -0.2977099237 | O97: 10:36:00 | P97: 05:00:00 | Q97: 11:00:00 | R97: 0.06666666667 | S97: 44218.4669 | T97: 3.00610687 | U97: 44218.53287 | V97: 44218.46481 | W97: 2.776335878 | X97: 44218.38264 | Y97: 44218.44306 | Z97: 2.357251908 | AA97: 44218.42986 | AB97: 44218.43912 | AC97: 2.287022901 | AD97: Cls | AE97: 44218.28056 | AF97: 44218.43727 | AG97: 2.157251908 | AH97: 44218.42731 | AI97: 2.257251908 | AJ97: 44218.46667 | AK97: 2.976335878 | AL97: 44218.46667 | AM97: 2.976335878 | AN97: 44218.45949 | AO97: 2.976335878 | AP97: 44218.4662 | AQ97: 2.746564885 | AR97: 44218.43125 | AS97: 44218.45556 | AT97: 44218.43125 | AU97: 2.357251908 | AV97: 44218.43171 | AW97: 2.387022901 | AX97: 44218.42731 | AY97: 2.157251908 | AZ97: 44218.42384 | BA97: 2.187022901 | BB97: 44218.41713 | BC97: 2.287022901 | BD97: 44218.37199 | BE97: 1.767938931 | BF97: 44218.46597 | BH97: 44218.48611 | BI97: 44218.47292 | BK97: 2025-01-23T11:40:00 | BL97: 44218.48611
A98: 0 | B98: =IF(Instructions!$C$2="BST",A98,0) -> 0 | C98: 2025-01-23T16:53:00 | D98: 2025-01-23 | F98: 1 | I98: 4 | K98: 44218.70347 | L98: 4.38 | M98: HW | N98: -0.09565217391 | O98: 16:53:00 | P98: 12:00:00 | Q98: 18:00:00 | R98: 0.1861111111 | S98: 44218.71236 | T98: 5.846956522 | U98: 44218.77833 | V98: 44218.713 | W98: 5.656521739 | X98: 44218.64722 | Y98: 44218.6874 | Z98: 4.285217391 | AA98: 44218.67699 | AB98: 44218.68264 | AC98: 3.885217391 | AD98: Opn | AE98: 44218.56806 | AF98: 44218.68982 | AG98: 3.394782609 | AH98: 44218.66269 | AI98: 3.804347826 | AJ98: 44218.71518 | AK98: 5.746956522 | AL98: 44218.71801 | AM98: 5.637391304 | AN98: 44218.71171 | AO98: 5.556521739 | AP98: 44218.72019 | AQ98: 4.956521739 | AR98: 44218.69306 | AS98: 44218.71389 | AT98: 44218.68353 | AU98: 3.885217391 | AV98: 44218.68353 | AW98: 3.685217391 | AX98: 44218.65987 | AY98: 3.375652174 | AZ98: 44218.65639 | BA98: 3.285217391 | BB98: 44218.65292 | BC98: 3.294782609 | BD98: 44218.59495 | BE98: 3.085217391 | BF98: 44218.69306 | BH98: 44218.73056 | BI98: 44218.73472 | BK98: 2025-01-23T17:32:00 | BL98: 44218.73056
A99: 0 | B99: =IF(Instructions!$C$2="BST",A99,0) -> 0 | C99: 2025-01-23T23:27:00 | D99: 2025-01-23 | F99: 1 | I99: 4 | K99: 44218.97708 | L99: 2.3 | M99: LW | N99: -0.213740458 | O99: 23:27:00 | P99: 1.208333333 | Q99: 23:00:00 | R99: 0.07499999999 | S99: 44219.00243 | T99: 2.863358779 | U99: 44219.0684 | V99: 44219.00009 | W99: 2.641984733 | X99: 44218.89722 | Y99: 44218.97865 | Z99: 2.25648855 | AA99: 44218.9651 | AB99: 44218.97465 | AC99: 2.177862595 | AD99: Cls | AE99: 44218.79722 | AF99: 44218.97257 | AG99: 2.05648855 | AH99: 44218.96267 | AI99: 2.15648855 | AJ99: 44219.00217 | AK99: 2.841984733 | AL99: 44219.00217 | AM99: 2.841984733 | AN99: 44218.99497 | AO99: 2.841984733 | AP99: 44219.00165 | AQ99: 2.620610687 | AR99: 44218.96667 | AS99: 44218.99097 | AT99: 44218.96667 | AU99: 2.25648855 | AV99: 44218.96719 | AW99: 2.277862595 | AX99: 44218.96267 | AY99: 2.05648855 | AZ99: 44218.9592 | BA99: 2.077862595 | BB99: 44218.95252 | BC99: 2.177862595 | BD99: 44218.90738 | BE99: 1.692366412 | BF99: 44219.00139 | BH99: 44219.01875 | BI99: 44219.00833 | BK99: 2025-01-24T00:27:00 | BL99: 44219.01875
A100: 0 | B100: =IF(Instructions!$C$2="BST",A100,0) -> 0 | C100: 2025-01-24T05:46:00 | D100: 2025-01-24 | E100: 2025-01-24 | F100: 1 | G100: Jan | H100: 24 | I100: 5 | J100: Fri | K100: 44219.24028 | L100: 4.31 | M100: HW | N100: -0.1565217391 | O100: 05:46:00 | P100: 00:00:00 | Q100: 06:00:00 | R100: 0.0388888889 | S100: 44219.24763 | T100: 5.749565217 | U100: 44219.3136 | V100: 44219.24776 | W100: 5.565217391 | X100: 44219.18264 | Y100: 44219.22319 | Z100: 4.212173913 | AA100: 44219.21277 | AB100: 44219.21944 | AC100: 3.812173913 | AD100: Opn | AE100: 44219.10486 | AF100: 44219.22919 | AG100: 3.327826087 | AH100: 44219.20154 | AI100: 3.743478261 | AJ100: 44219.25096 | AK100: 5.649565217 | AL100: 44219.2543 | AM100: 5.533913043 | AN100: 44219.24749 | AO100: 5.465217391 | AP100: 44219.2575 | AQ100: 4.865217391 | AR100: 44219.22986 | AS100: 44219.25069 | AT100: 44219.22238 | AU100: 3.812173913 | AV100: 44219.22238 | AW100: 3.612173913 | AX100: 44219.19821 | AY100: 3.296521739 | AZ100: 44219.19473 | BA100: 3.212173913 | BB100: 44219.19126 | BC100: 3.227826087 | BD100: 44219.12971 | BE100: 3.012173913 | BF100: 44219.22986 | BH100: 44219.26597 | BI100: 44219.27153 | BK100: 2025-01-24T06:23:00 | BL100: 44219.26597
A101: 0 | B101: =IF(Instructions!$C$2="BST",A101,0) -> 0 | C101: 2025-01-24T11:58:00 | D101: 2025-01-24 | E101: Fri | F101: 1 | I101: 5 | K101: 44219.49861 | L101: 2.47 | M101: LW | N101: -0.3435114504 | O101: 11:58:00 | P101: 17:00:00 | Q101: 11:00:00 | R101: 0.1611111111 | S101: 44219.52515 | T101: 3.083969466 | U101: 44219.59113 | V101: 44219.52012 | W101: 2.849618321 | X101: 44219.43264 | Y101: 44219.50197 | Z101: 2.41221374 | AA101: 44219.48484 | AB101: 44219.49738 | AC101: 2.346564885 | AD101: Cls | AE101: 44219.33403 | AF101: 44219.4929 | AG101: 2.21221374 | AH101: 44219.4836 | AI101: 2.31221374 | AJ101: 44219.52459 | AK101: 3.049618321 | AL101: 44219.52459 | AM101: 3.049618321 | AN101: 44219.51709 | AO101: 3.049618321 | AP101: 44219.52348 | AQ101: 2.815267176 | AR101: 44219.48819 | AS101: 44219.5125 | AT101: 44219.48819 | AU101: 2.41221374 | AV101: 44219.48931 | AW101: 2.446564885 | AX101: 44219.4836 | AY101: 2.21221374 | AZ101: 44219.48013 | BA101: 2.246564885 | BB101: 44219.47375 | BC101: 2.346564885 | BD101: 44219.42861 | BE101: 1.809160305 | BF101: 44219.52292 | BH101: 44219.53889 | BI101: 44219.52986 | BK101: 2025-01-24T12:56:00 | BL101: 44219.53889
A102: 0 | B102: =IF(Instructions!$C$2="BST",A102,0) -> 0 | C102: 2025-01-24T18:19:00 | D102: 2025-01-24 | F102: 1 | I102: 5 | K102: 44219.76319 | L102: 4.34 | M102: HW | N102: -0.1304347826 | O102: 18:19:00 | P102: 1 | Q102: 18:00:00 | R102: 0.05277777778 | S102: 44219.77069 | T102: 5.791304348 | U102: 44219.83666 | V102: 44219.77087 | W102: 5.604347826 | X102: 44219.70486 | Y102: 44219.7462 | Z102: 4.243478261 | AA102: 44219.73578 | AB102: 44219.74236 | AC102: 3.843478261 | AD102: Opn | AE102: 44219.62778 | AF102: 44219.75186 | AG102: 3.356521739 | AH102: 44219.72427 | AI102: 3.769565217 | AJ102: 44219.77398 | AK102: 5.691304348 | AL102: 44219.77727 | AM102: 5.57826087 | AN102: 44219.77051 | AO102: 5.504347826 | AP102: 44219.78037 | AQ102: 4.904347826 | AR102: 44219.75278 | AS102: 44219.77361 | AT102: 44219.7451 | AU102: 3.843478261 | AV102: 44219.7451 | AW102: 3.643478261 | AX102: 44219.72098 | AY102: 3.330434783 | AZ102: 44219.71751 | BA102: 3.243478261 | BB102: 44219.71403 | BC102: 3.256521739 | BD102: 44219.65282 | BE102: 3.043478261 | BF102: 44219.75278 | BH102: 44219.78819 | BI102: 44219.79444 | BK102: 2025-01-24T18:55:00 | BL102: 44219.78819
A103: 0 | B103: =IF(Instructions!$C$2="BST",A103,0) -> 0 | C103: 2025-01-25T00:44:00 | D103: 2025-01-25 | E103: 2025-01-25 | F103: 1 | G103: Jan | H103: 25 | I103: 6 | J103: Sat | K103: 44220.03056 | L103: 2.27 | M103: LW | N103: -0.1908396947 | O103: 00:44:00 | P103: 05:00:00 | Q103: -0.04166666667 | R103: 0.2888888889 | S103: 44220.05887 | T103: 2.824427481 | U103: 44220.12485 | V103: 44220.04985 | W103: 2.605343511 | X103: 44219.95486 | Y103: 44220.03657 | Z103: 2.229007634 | AA103: 44220.01412 | AB103: 44220.0311 | AC103: 2.148091603 | AD103: Cls | AE103: 44219.85694 | AF103: 44220.02307 | AG103: 2.029007634 | AH103: 44220.01466 | AI103: 2.129007634 | AJ103: 44220.05787 | AK103: 2.805343511 | AL103: 44220.05787 | AM103: 2.805343511 | AN103: 44220.04992 | AO103: 2.805343511 | AP103: 44220.05586 | AQ103: 2.586259542 | AR103: 44220.02014 | AS103: 44220.04444 | AT103: 44220.02014 | AU103: 2.229007634 | AV103: 44220.02215 | AW103: 2.248091603 | AX103: 44220.01466 | AY103: 2.029007634 | AZ103: 44220.01119 | BA103: 2.048091603 | BB103: 44220.00525 | BC103: 2.148091603 | BD103: 44219.96011 | BE103: 1.671755725 | BF103: 44220.05486 | BH103: 44220.07153 | BI103: 44220.06181 | BK103: 2025-01-25T01:43:00 | BL103: 44220.07153
A104: 0 | B104: =IF(Instructions!$C$2="BST",A104,0) -> 0 | C104: 2025-01-25T07:05:00 | D104: 2025-01-25 | E104: Sat | F104: 1 | I104: 6 | K104: 44220.29514 | L104: 4.46 | M104: HW | N104: -0.02608695652 | O104: 07:05:00 | P104: 12:00:00 | Q104: 06:00:00 | R104: 0.1805555556 | S104: 44220.30396 | T104: 5.95826087 | U104: 44220.36994 | V104: 44220.30459 | W104: 5.760869565 | X104: 44220.23889 | Y104: 44220.27903 | Z104: 4.368695652 | AA104: 44220.26861 | AB104: 44220.27431 | AC104: 3.968695652 | AD104: Opn | AE104: 44220.15972 | AF104: 44220.28159 | AG104: 3.471304348 | AH104: 44220.25444 | AI104: 3.873913043 | AJ104: 44220.30681 | AK104: 5.85826087 | AL104: 44220.30965 | AM104: 5.755652174 | AN104: 44220.30334 | AO104: 5.660869565 | AP104: 44220.31187 | AQ104: 5.060869565 | AR104: 44220.28472 | AS104: 44220.30556 | AT104: 44220.27527 | AU104: 3.968695652 | AV104: 44220.27527 | AW104: 3.768695652 | AX104: 44220.25159 | AY104: 3.466086957 | AZ104: 44220.24812 | BA104: 3.368695652 | BB104: 44220.24465 | BC104: 3.371304348 | BD104: 44220.18654 | BE104: 3.168695652 | BF104: 44220.28472 | BH104: 44220.32222 | BI104: 44220.32639 | BK104: 2025-01-25T07:44:00 | BL104: 44220.32222
A105: 0 | B105: =IF(Instructions!$C$2="BST",A105,0) -> 0 | C105: 2025-01-25T13:17:00 | D105: 2025-01-25 | F105: 1 | I105: 6 | K105: 44220.55347 | L105: 2.31 | M105: LW | N105: -0.2213740458 | O105: 13:17:00 | P105: 17:00:00 | Q105: 11:00:00 | R105: 0.3805555556 | S105: 44220.58306 | T105: 2.876335878 | U105: 44220.64904 | V105: 44220.57117 | W105: 2.654198473 | X105: 44220.48889 | Y105: 44220.5614 | Z105: 2.265648855 | AA105: 44220.53513 | AB105: 44220.55529 | AC105: 2.18778626 | AD105: Cls | AE105: 44220.38889 | AF105: 44220.54471 | AG105: 2.065648855 | AH105: 44220.53694 | AI105: 2.165648855 | AJ105: 44220.58174 | AK105: 2.854198473 | AL105: 44220.58174 | AM105: 2.854198473 | AN105: 44220.57348 | AO105: 2.854198473 | AP105: 44220.5791 | AQ105: 2.632061069 | AR105: 44220.54306 | AS105: 44220.56736 | AT105: 44220.54306 | AU105: 2.265648855 | AV105: 44220.5457 | AW105: 2.28778626 | AX105: 44220.53694 | AY105: 2.065648855 | AZ105: 44220.53347 | BA105: 2.08778626 | BB105: 44220.52785 | BC105: 2.18778626 | BD105: 44220.48271 | BE105: 1.699236641 | BF105: 44220.57778 | BH105: 44220.59514 | BI105: 44220.58472 | BK105: 2025-01-25T14:17:00 | BL105: 44220.59514
A106: 0 | B106: =IF(Instructions!$C$2="BST",A106,0) -> 0 | C106: 2025-01-25T19:37:00 | D106: 2025-01-25 | F106: 1 | I106: 6 | K106: 44220.81736 | L106: 4.48 | M106: HW | N106: -0.008695652174 | O106: 19:37:00 | P106: 1 | Q106: 18:00:00 | R106: 0.2694444444 | S106: 44220.82711 | T106: 5.986086957 | U106: 44220.89308 | V106: 44220.82805 | W106: 5.786956522 | X106: 44220.76111 | Y106: 44220.80187 | Z106: 4.389565217 | AA106: 44220.79145 | AB106: 44220.79653 | AC106: 3.989565217 | AD106: Opn | AE106: 44220.68194 | AF106: 44220.80227 | AG106: 3.490434783 | AH106: 44220.77542 | AI106: 3.891304348 | AJ106: 44220.82965 | AK106: 5.886086957 | AL106: 44220.83219 | AM106: 5.785217391 | AN106: 44220.82618 | AO106: 5.686956522 | AP106: 44220.83379 | AQ106: 5.086956522 | AR106: 44220.80694 | AS106: 44220.82778 | AT106: 44220.79626 | AU106: 3.989565217 | AV106: 44220.79626 | AW106: 3.789565217 | AX106: 44220.77289 | AY106: 3.488695652 | AZ106: 44220.76942 | BA106: 3.389565217 | BB106: 44220.76594 | BC106: 3.390434783 | BD106: 44220.70999 | BE106: 3.189565217 | BF106: 44220.80694 | BH106: 44220.84444 | BI106: 44220.84861 | BK106: 2025-01-25T20:16:00 | BL106: 44220.84444
A107: 0 | B107: =IF(Instructions!$C$2="BST",A107,0) -> 0 | C107: 2025-01-26T01:48:00 | D107: 2025-01-26 | E107: 2025-01-26 | F107: 1 | G107: Jan | H107: 26 | I107: 7 | J107: Sun | K107: 44221.075 | L107: 2.1 | M107: LW | N107: -0.06106870229 | O107: 01:48:00 | P107: 05:00:00 | Q107: -0.04166666667 | R107: 0.4666666667 | S107: 44221.10579 | T107: 2.603816794 | U107: 44221.17176 | V107: 44221.0912 | W107: 2.397709924 | X107: 44221.01111 | Y107: 44221.08472 | Z107: 2.073282443 | AA107: 44221.05486 | AB107: 44221.07801 | AC107: 1.979389313 | AD107: Cls | AE107: 44220.91111 | AF107: 44221.06505 | AG107: 1.873282443 | AH107: 44221.05787 | AI107: 1.973282443 | AJ107: 44221.10417 | AK107: 2.597709924 | AL107: 44221.10417 | AM107: 2.597709924 | AN107: 44221.0956 | AO107: 2.597709924 | AP107: 44221.10093 | AQ107: 2.391603053 | AR107: 44221.06458 | AS107: 44221.08889 | AT107: 44221.06458 | AU107: 2.073282443 | AV107: 44221.06782 | AW107: 2.079389313 | AX107: 44221.05787 | AY107: 1.873282443 | AZ107: 44221.0544 | BA107: 1.879389313 | BB107: 44221.04907 | BC107: 1.979389313 | BD107: 44221.00394 | BE107: 1.554961832 | BF107: 44221.09931 | BH107: 44221.12014 | BI107: 44221.10625 | BK107: 2025-01-26T02:53:00 | BL107: 44221.12014
A108: 0 | B108: =IF(Instructions!$C$2="BST",A108,0) -> 0 | C108: 2025-01-26T08:07:00 | D108: 2025-01-26 | E108: Sun | F108: 1 | I108: 7 | K108: 44221.33819 | L108: 4.73 | M108: HW | N108: 0.2086956522 | O108: 08:07:00 | P108: 12:00:00 | Q108: 06:00:00 | R108: 0.3527777778 | S108: 44221.34881 | T108: 6.333913043 | U108: 44221.41479 | V108: 44221.35004 | W108: 6.113043478 | X108: 44221.28403 | Y108: 44221.32328 | Z108: 4.650434783 | AA108: 44221.31287 | AB108: 44221.31736 | AC108: 4.250434783 | AD108: Opn | AE108: 44221.20278 | AF108: 44221.32165 | AG108: 3.729565217 | AH108: 44221.2951 | AI108: 4.108695652 | AJ108: 44221.35106 | AK108: 6.233913043 | AL108: 44221.35331 | AM108: 6.154782609 | AN108: 44221.34759 | AO108: 6.013043478 | AP108: 44221.35433 | AQ108: 5.413043478 | AR108: 44221.32778 | AS108: 44221.34861 | AT108: 44221.31593 | AU108: 4.250434783 | AV108: 44221.31593 | AW108: 4.050434783 | AX108: 44221.29285 | AY108: 3.771304348 | AZ108: 44221.28938 | BA108: 3.650434783 | BB108: 44221.28591 | BC108: 3.629565217 | BD108: 44221.23198 | BE108: 3.450434783 | BF108: 44221.32778 | BH108: 44221.36736 | BI108: 44221.36944 | BK108: 2025-01-26T08:49:00 | BL108: 44221.36736
A109: 0 | B109: =IF(Instructions!$C$2="BST",A109,0) -> 0 | C109: 2025-01-26T14:15:00 | D109: 2025-01-26 | F109: 1 | I109: 7 | K109: 44221.59375 | L109: 2.02 | M109: LW | N109: 0 | O109: 14:15:00 | P109: 17:00:00 | Q109: 11:00:00 | R109: 0.5416666667 | S109: 44221.62558 | T109: 2.5 | U109: 44221.69155 | V109: 44221.60865 | W109: 2.3 | X109: 44221.53403 | Y109: 44221.60503 | Z109: 2 | AA109: 44221.57205 | AB109: 44221.5978 | AC109: 1.9 | AD109: Cls | AE109: 44221.43194 | AF109: 44221.58275 | AG109: 1.8 | AH109: 44221.5761 | AI109: 1.9 | AJ109: 44221.6237 | AK109: 2.5 | AL109: 44221.6237 | AM109: 2.5 | AN109: 44221.61487 | AO109: 2.5 | AP109: 44221.61994 | AQ109: 2.3 | AR109: 44221.58333 | AS109: 44221.60764 | AT109: 44221.58333 | AU109: 2 | AV109: 44221.58709 | AW109: 2 | AX109: 44221.5761 | AY109: 1.8 | AZ109: 44221.57263 | BA109: 1.8 | BB109: 44221.56756 | BC109: 1.9 | BD109: 44221.52242 | BE109: 1.5 | BF109: 44221.61806 | BH109: 44221.64236 | BI109: 44221.625 | BK109: 2025-01-26T15:25:00 | BL109: 44221.64236
A110: 0 | B110: =IF(Instructions!$C$2="BST",A110,0) -> 0 | C110: 2025-01-26T20:34:00 | D110: 2025-01-26 | F110: 1 | I110: 7 | K110: 44221.85694 | L110: 4.73 | M110: HW | N110: 0.2086956522 | O110: 20:34:00 | P110: 1 | Q110: 18:00:00 | R110: 0.4277777778 | S110: =IF($M110="HW",$K110+S$6+(S$5-S$6)*$R110,$K110+S$8+(S$7-S$8)*$R110) -> 44221.86834 | T110: 6.333913043 | U110: 44221.93432 | V110: 44221.86983 | W110: 6.113043478 | X110: 44221.80278 | Y110: =IF($M110="HW",$K110+Y$6+(Y$5-Y$6)*$R110,$K110+Y$8+(Y$7-Y$8)*$R110) -> 44221.84255 | Z110: 4.650434783 | AA110: 44221.83214 | AB110: 44221.83611 | AC110: 4.250434783 | AD110: Opn | AE110: 44221.72153 | AF110: 44221.8391 | AG110: 3.729565217 | AH110: 44221.81281 | AI110: 4.108695652 | AJ110: 44221.87033 | AK110: 6.233913043 | AL110: 44221.87232 | AM110: 6.154782609 | AN110: 44221.86686 | AO110: 6.013043478 | AP110: 44221.87282 | AQ110: 5.413043478 | AR110: =IF($M110="HW",$K110+AR$6+(AR$5-AR$6)*$R110,$K110+AR$8+(AR$7-AR$8)*$R110) -> 44221.84653 | AS110: 44221.86736 | AT110: 44221.83364 | AU110: 4.250434783 | AV110: 44221.83364 | AW110: 4.050434783 | AX110: 44221.81082 | AY110: 3.771304348 | AZ110: 44221.80735 | BA110: 3.650434783 | BB110: 44221.80388 | BC110: 3.629565217 | BD110: 44221.75177 | BE110: 3.450434783 | BF110: =IF($M110="HW",$K110+BF$6+(BF$5-BF$6)*$R110,$K110+BF$8+(BF$7-BF$8)*$R110) -> 44221.84653 | BH110: 44221.88611 | BI110: 44221.88819 | BK110: 2025-01-26T21:16:00 | BL110: 44221.88611
A111: 0 | B111: =IF(Instructions!$C$2="BST",A111,0) -> 0 | C111: 2025-01-27T02:37:00 | D111: 2025-01-27 | E111: 2025-01-27 | F111: 1 | G111: Jan | H111: 27 | I111: 1 | J111: Mon | K111: 44222.10903 | L111: 1.84 | M111: LW | N111: 0.1374045802 | O111: 02:37:00 | P111: 05:00:00 | Q111: -0.04166666667 | R111: 0.6027777778 | S111: 44222.14171 | T111: 2.266412214 | U111: 44222.20768 | V111: 44222.12287 | W111: 2.080152672 | X111: 44222.05278 | Y111: 44222.12159 | Z111: 1.835114504 | AA111: 44222.08605 | AB111: 44222.11393 | AC111: 1.721374046 | AD111: Cls | AE111: 44221.95069 | AF111: 44222.09718 | AG111: 1.635114504 | AH111: 44222.09095 | AI111: 1.735114504 | AJ111: 44222.13961 | AK111: 2.280152672 | AL111: 44222.13961 | AM111: 2.280152672 | AN111: 44222.13057 | AO111: 2.280152672 | AP111: 44222.13543 | AQ111: 2.09389313 | AR111: 44222.09861 | AS111: 44222.12292 | AT111: 44222.09861 | AU111: 1.835114504 | AV111: 44222.1028 | AW111: 1.821374046 | AX111: 44222.09095 | AY111: 1.635114504 | AZ111: 44222.08748 | BA111: 1.621374046 | BB111: 44222.08263 | BC111: 1.721374046 | BD111: 44222.03749 | BE111: 1.376335878 | BF111: 44222.13333 | BH111: 44222.16042 | BI111: 44222.14028 | BK111: 2025-01-27T03:51:00 | BL111: 44222.16042
A112: 0 | B112: =IF(Instructions!$C$2="BST",A112,0) -> 0 | C112: 2025-01-27T08:54:00 | D112: 2025-01-27 | E112: Mon | F112: 1 | I112: 1 | K112: 44222.37083 | L112: 5.03 | M112: HW | N112: 0.4695652174 | O112: 08:54:00 | P112: 12:00:00 | Q112: 06:00:00 | R112: 0.4833333333 | S112: 44222.38281 | T112: 6.751304348 | U112: 44222.44878 | V112: 44222.38449 | W112: 6.504347826 | X112: 44222.31806 | Y112: 44222.35683 | Z112: 4.963478261 | AA112: 44222.34641 | AB112: 44222.35 | AC112: 4.563478261 | AD112: Opn | AE112: 44222.23542 | AF112: 44222.35203 | AG112: 4.016521739 | AH112: 44222.32593 | AI112: 4.369565217 | AJ112: 44222.38461 | AK112: 6.651304348 | AL112: 44222.3864 | AM112: 6.59826087 | AN112: 44222.38113 | AO112: 6.404347826 | AP112: 44222.38652 | AQ112: 5.804347826 | AR112: 44222.36042 | AS112: 44222.38125 | AT112: 44222.34676 | AU112: 4.563478261 | AV112: 44222.34676 | AW112: 4.363478261 | AX112: 44222.32413 | AY112: 4.110434783 | AZ112: 44222.32066 | BA112: 3.963478261 | BB112: 44222.31719 | BC112: 3.916521739 | BD112: 44222.26644 | BE112: 3.763478261 | BF112: 44222.36042 | BH112: 44222.40139 | BI112: 44222.40208 | BK112: 2025-01-27T09:38:00 | BL112: 44222.40139
A113: 0 | B113: =IF(Instructions!$C$2="BST",A113,0) -> 0 | C113: 2025-01-27T15:01:00 | D113: 2025-01-27 | F113: 1 | I113: 1 | K113: 44222.62569 | L113: 1.67 | M113: LW | N113: 0.2671755725 | O113: 15:01:00 | P113: 17:00:00 | Q113: 11:00:00 | R113: 0.6694444445 | S113: 44222.6593 | T113: 2.045801527 | U113: 44222.72527 | V113: 44222.63838 | W113: 1.872519084 | X113: 44222.56806 | Y113: 44222.63964 | Z113: 1.679389313 | AA113: 44222.60133 | AB113: 44222.63152 | AC113: 1.552671756 | AD113: Cls | AE113: 44222.46458 | AF113: 44222.61292 | AG113: 1.479389313 | AH113: 44222.60716 | AI113: 1.579389313 | AJ113: 44222.65697 | AK113: 2.072519084 | AL113: 44222.65697 | AM113: 2.072519084 | AN113: 44222.6477 | AO113: 2.072519084 | AP113: 44222.65232 | AQ113: 1.899236641 | AR113: 44222.61528 | AS113: 44222.63958 | AT113: 44222.61528 | AU113: 1.679389313 | AV113: 44222.61993 | AW113: 1.652671756 | AX113: 44222.60716 | AY113: 1.479389313 | AZ113: 44222.60368 | BA113: 1.452671756 | BB113: 44222.59906 | BC113: 1.552671756 | BD113: 44222.55393 | BE113: 1.259541985 | BF113: 44222.65 | BH113: 44222.67986 | BI113: 44222.65694 | BK113: 2025-01-27T16:19:00 | BL113: 44222.67986
A114: 0 | B114: =IF(Instructions!$C$2="BST",A114,0) -> 0 | C114: 2025-01-27T21:18:00 | D114: 2025-01-27 | F114: 1 | I114: 1 | K114: 44222.8875 | L114: 4.98 | M114: HW | N114: 0.4260869565 | O114: 21:18:00 | P114: 1 | Q114: 18:00:00 | R114: 0.55 | S114: 44222.90017 | T114: 6.68173913 | U114: 44222.96615 | V114: 44222.90208 | W114: 6.439130435 | X114: 44222.83472 | Y114: 44222.87396 | Z114: 4.911304348 | AA114: 44222.86354 | AB114: 44222.86667 | AC114: 4.511304348 | AD114: Opn | AE114: 44222.75208 | AF114: 44222.86753 | AG114: 3.968695652 | AH114: 44222.84167 | AI114: 4.326086957 | AJ114: 44222.90174 | AK114: 6.58173913 | AL114: 44222.9033 | AM114: 6.524347826 | AN114: 44222.89826 | AO114: 6.339130435 | AP114: 44222.90295 | AQ114: 5.739130435 | AR114: 44222.87708 | AS114: 44222.89792 | AT114: 44222.8625 | AU114: 4.511304348 | AV114: 44222.8625 | AW114: 4.311304348 | AX114: 44222.8401 | AY114: 4.053913043 | AZ114: 44222.83663 | BA114: 3.911304348 | BB114: 44222.83316 | BC114: 3.868695652 | BD114: 44222.78403 | BE114: 3.711304348 | BF114: 44222.87708 | BH114: 44222.91806 | BI114: 44222.91875 | BK114: 2025-01-27T22:02:00 | BL114: 44222.91806
A115: 0 | B115: =IF(Instructions!$C$2="BST",A115,0) -> 0 | C115: 2025-01-28T03:19:00 | D115: 2025-01-28 | E115: 2025-01-28 | F115: 1 | G115: Jan | H115: 28 | I115: 2 | J115: Tue | K115: 44223.13819 | L115: 1.56 | M115: LW | N115: 0.3511450382 | O115: 03:19:00 | P115: 05:00:00 | Q115: -0.04166666667 | R115: 0.7194444444 | S115: 44223.17249 | T115: 1.903053435 | U115: 44223.23846 | V115: 44223.15001 | W115: 1.738167939 | X115: 44223.08472 | Y115: 44223.15318 | Z115: 1.578625954 | AA115: 44223.11279 | AB115: 44223.14471 | AC115: 1.44351145 | AD115: Cls | AE115: 44222.98125 | AF115: 44223.12473 | AG115: 1.378625954 | AH115: 44223.11931 | AI115: 1.478625954 | AJ115: 44223.16999 | AK115: 1.938167939 | AL115: 44223.16999 | AM115: 1.938167939 | AN115: 44223.16055 | AO115: 1.938167939 | AP115: 44223.165 | AQ115: 1.773282443 | AR115: 44223.12778 | AS115: 44223.15208 | AT115: 44223.12778 | AU115: 1.578625954 | AV115: 44223.13277 | AW115: 1.54351145 | AX115: 44223.11931 | AY115: 1.378625954 | AZ115: 44223.11584 | BA115: 1.34351145 | BB115: 44223.11139 | BC115: 1.44351145 | BD115: 44223.06625 | BE115: 1.183969466 | BF115: 44223.1625 | BH115: 44223.19444 | BI115: 44223.16944 | BK115: 2025-01-28T04:40:00 | BL115: 44223.19444
A116: 0 | B116: =IF(Instructions!$C$2="BST",A116,0) -> 0 | C116: 2025-01-28T09:34:00 | D116: 2025-01-28 | E116: Tue | F116: 1 | I116: 2 | K116: 44223.39861 | L116: 5.33 | M116: HW | N116: 0.7304347826 | O116: 09:34:00 | P116: 12:00:00 | Q116: 06:00:00 | R116: 0.5944444444 | S116: 44223.41175 | T116: 7.168695652 | U116: 44223.47772 | V116: 44223.41381 | W116: 6.895652174 | X116: 44223.34722 | Y116: 44223.38538 | Z116: 5.276521739 | AA116: 44223.37496 | AB116: 44223.37778 | AC116: 4.876521739 | AD116: Opn | AE116: 44223.26319 | AF116: 44223.37787 | AG116: 4.303478261 | AH116: 44223.35216 | AI116: 4.630434783 | AJ116: 44223.41316 | AK116: 7.068695652 | AL116: 44223.41456 | AM116: 7.04173913 | AN116: 44223.40968 | AO116: 6.795652174 | AP116: 44223.41391 | AQ116: 6.195652174 | AR116: 44223.38819 | AS116: 44223.40903 | AT116: 44223.37299 | AU116: 4.876521739 | AV116: 44223.37299 | AW116: 4.676521739 | AX116: 44223.35075 | AY116: 4.449565217 | AZ116: 44223.34728 | BA116: 4.276521739 | BB116: 44223.34381 | BC116: 4.203478261 | BD116: 44223.29576 | BE116: 4.076521739 | BF116: 44223.38819 | BH116: 44223.43056 | BI116: 44223.42986 | BK116: 2025-01-28T10:20:00 | BL116: 44223.43056
A117: 0 | B117: =IF(Instructions!$C$2="BST",A117,0) -> 0 | C117: 2025-01-28T15:42:00 | D117: 2025-01-28 | F117: 1 | I117: 2 | K117: 44223.65417 | L117: 1.31 | M117: LW | N117: 0.5419847328 | O117: 15:42:00 | P117: 17:00:00 | Q117: 11:00:00 | R117: 0.7833333333 | S117: 44223.68935 | T117: 1.578625954 | U117: 44223.75532 | V117: 44223.66487 | W117: 1.432824427 | X117: 44223.59722 | Y117: 44223.67049 | Z117: 1.349618321 | AA117: 44223.62743 | AB117: 44223.66157 | AC117: 1.195419847 | AD117: Cls | AE117: 44223.49236 | AF117: 44223.63981 | AG117: 1.149618321 | AH117: 44223.63484 | AI117: 1.249618321 | AJ117: 44223.68663 | AK117: 1.632824427 | AL117: 44223.68663 | AM117: 1.632824427 | AN117: 44223.67697 | AO117: 1.632824427 | AP117: 44223.68119 | AQ117: 1.487022901 | AR117: 44223.64375 | AS117: 44223.66806 | AT117: 44223.64375 | AU117: 1.349618321 | AV117: 44223.64919 | AW117: 1.295419847 | AX117: 44223.63484 | AY117: 1.149618321 | AZ117: 44223.63137 | BA117: 1.095419847 | BB117: 44223.62714 | BC117: 1.195419847 | BD117: 44223.582 | BE117: 1.01221374 | BF117: 44223.67847 | BH117: 44223.71319 | BI117: 44223.68542 | BK117: 2025-01-28T17:07:00 | BL117: 44223.71319
A118: 0 | B118: =IF(Instructions!$C$2="BST",A118,0) -> 0 | C118: 2025-01-28T21:58:00 | D118: 2025-01-28 | F118: 1 | I118: 2 | K118: 44223.91528 | L118: 5.21 | M118: HW | N118: 0.6260869565 | O118: 21:58:00 | P118: 1 | Q118: 18:00:00 | R118: 0.6611111111 | S118: 44223.92911 | T118: 7.00173913 | U118: 44223.99508 | V118: 44223.9314 | W118: 6.739130435 | X118: 44223.86389 | Y118: 44223.90251 | Z118: 5.151304348 | AA118: 44223.89209 | AB118: 44223.89444 | AC118: 4.751304348 | AD118: Opn | AE118: 44223.77986 | AF118: 44223.89338 | AG118: 4.188695652 | AH118: 44223.8679 | AI118: 4.526086957 | AJ118: 44223.93029 | AK118: 6.90173913 | AL118: 44223.93146 | AM118: 6.864347826 | AN118: 44223.92681 | AO118: 6.639130435 | AP118: 44223.93034 | AQ118: 6.039130435 | AR118: 44223.90486 | AS118: 44223.92569 | AT118: 44223.88873 | AU118: 4.751304348 | AV118: 44223.88873 | AW118: 4.551304348 | AX118: 44223.86672 | AY118: 4.313913043 | AZ118: 44223.86325 | BA118: 4.151304348 | BB118: 44223.85978 | BC118: 4.088695652 | BD118: 44223.81335 | BE118: 3.951304348 | BF118: 44223.90486 | BH118: 44223.94722 | BI118: 44223.94653 | BK118: 2025-01-28T22:44:00 | BL118: 44223.94722
A119: 0 | B119: =IF(Instructions!$C$2="BST",A119,0) -> 0 | C119: 2025-01-29T03:57:00 | D119: 2025-01-29 | E119: 2025-01-29 | F119: 1 | G119: Jan | H119: 29 | I119: 3 | J119: Wed | K119: 44224.16458 | L119: 1.29 | M119: LW | N119: 0.5572519084 | O119: 03:57:00 | P119: 05:00:00 | Q119: -0.04166666667 | R119: 0.825 | S119: 44224.20035 | T119: 1.552671756 | U119: 44224.26632 | V119: 44224.17457 | W119: 1.408396947 | X119: 44224.11389 | Y119: 44224.18177 | Z119: 1.33129771 | AA119: 44224.13698 | AB119: 44224.17257 | AC119: 1.175572519 | AD119: Cls | AE119: 44224.00903 | AF119: 44224.14965 | AG119: 1.13129771 | AH119: 44224.14497 | AI119: 1.23129771 | AJ119: 44224.19748 | AK119: 1.608396947 | AL119: 44224.19748 | AM119: 1.608396947 | AN119: 44224.18767 | AO119: 1.608396947 | AP119: 44224.19175 | AQ119: 1.464122137 | AR119: 44224.15417 | AS119: 44224.17847 | AT119: 44224.15417 | AU119: 1.33129771 | AV119: 44224.1599 | AW119: 1.275572519 | AX119: 44224.14497 | AY119: 1.13129771 | AZ119: 44224.14149 | BA119: 1.075572519 | BB119: 44224.13741 | BC119: 1.175572519 | BD119: 44224.09227 | BE119: 0.9984732824 | BF119: 44224.18889 | BH119: 44224.22569 | BI119: 44224.19583 | BK119: 2025-01-29T05:25:00 | BL119: 44224.22569
A120: 0 | B120: =IF(Instructions!$C$2="BST",A120,0) -> 0 | C120: 2025-01-29T10:12:00 | D120: 2025-01-29 | E120: Wed | F120: 1 | I120: 3 | K120: 44224.425 | L120: 5.59 | M120: HW | N120: 0.9565217391 | O120: 10:12:00 | P120: 12:00:00 | Q120: 06:00:00 | R120: 0.7 | S120: 44224.43924 | T120: 7.530434783 | U120: 44224.50521 | V120: 44224.44167 | W120: 7.234782609 | X120: 44224.37431 | Y120: 44224.4125 | Z120: 5.547826087 | AA120: 44224.40208 | AB120: 44224.40417 | AC120: 5.147826087 | AD120: Opn | AE120: 44224.28958 | AF120: 44224.40243 | AG120: 4.552173913 | AH120: 44224.37708 | AI120: 4.856521739 | AJ120: 44224.44028 | AK120: 7.430434783 | AL120: 44224.44132 | AM120: 7.426086957 | AN120: 44224.43681 | AO120: 7.134782609 | AP120: 44224.43993 | AQ120: 6.534782609 | AR120: 44224.41458 | AS120: 44224.43542 | AT120: 44224.39792 | AU120: 5.147826087 | AV120: 44224.39792 | AW120: 4.947826087 | AX120: 44224.37604 | AY120: 4.743478261 | AZ120: 44224.37257 | BA120: 4.547826087 | BB120: 44224.3691 | BC120: 4.452173913 | BD120: 44224.32361 | BE120: 4.347826087 | BF120: 44224.41458 | BH120: 44224.45764 | BI120: 44224.45625 | BK120: 2025-01-29T10:59:00 | BL120: 44224.45764
A121: 0 | B121: =IF(Instructions!$C$2="BST",A121,0) -> 0 | C121: 2025-01-29T16:21:00 | D121: 2025-01-29 | F121: 1 | I121: 3 | K121: 44224.68125 | L121: 0.98 | M121: LW | N121: 0.7938931298 | O121: 16:21:00 | P121: 17:00:00 | Q121: 11:00:00 | R121: 0.8916666667 | S121: 44224.71794 | T121: 1.150381679 | U121: 44224.78391 | V121: 44224.69008 | W121: 1.029770992 | X121: 44224.62431 | Y121: 44224.69983 | Z121: 1.047328244 | AA121: 44224.65226 | AB121: 44224.69016 | AC121: 0.8679389313 | AD121: Cls | AE121: 44224.51875 | AF121: 44224.66539 | AG121: 0.8473282443 | AH121: 44224.66117 | AI121: 0.9473282443 | AJ121: 44224.71484 | AK121: 1.229770992 | AL121: 44224.71484 | AM121: 1.229770992 | AN121: 44224.7048 | AO121: 1.229770992 | AP121: 44224.70865 | AQ121: 1.109160305 | AR121: 44224.67083 | AS121: 44224.69514 | AT121: 44224.67083 | AU121: 1.047328244 | AV121: 44224.67703 | AW121: 0.9679389313 | AX121: 44224.66117 | AY121: 0.8473282443 | AZ121: 44224.6577 | BA121: 0.7679389313 | BB121: 44224.65385 | BC121: 0.8679389313 | BD121: 44224.60871 | BE121: 0.7854961832 | BF121: 44224.70556 | BH121: 44224.74375 | BI121: 44224.7125 | BK121: 2025-01-29T17:51:00 | BL121: 44224.74375
A122: 0 | B122: =IF(Instructions!$C$2="BST",A122,0) -> 0 | C122: 2025-01-29T22:36:00 | D122: 2025-01-29 | F122: 1 | I122: 3 | K122: 44224.94167 | L122: 5.4 | M122: HW | N122: 0.7913043478 | O122: 22:36:00 | P122: 1 | Q122: 18:00:00 | R122: 0.7666666667 | S122: 44224.9566 | T122: 7.266086957 | U122: 44225.02257 | V122: 44224.95926 | W122: 6.986956522 | X122: 44224.89167 | Y122: 44224.92963 | Z122: 5.349565217 | AA122: 44224.91921 | AB122: 44224.92083 | AC122: 4.949565217 | AD122: Opn | AE122: 44224.80625 | AF122: 44224.91794 | AG122: 4.370434783 | AH122: 44224.89282 | AI122: 4.691304348 | AJ122: 44224.95741 | AK122: 7.166086957 | AL122: 44224.95822 | AM122: 7.145217391 | AN122: 44224.95394 | AO122: 6.886956522 | AP122: 44224.95637 | AQ122: 6.286956522 | AR122: 44224.93125 | AS122: 44224.95208 | AT122: 44224.91366 | AU122: 4.949565217 | AV122: 44224.91366 | AW122: 4.749565217 | AX122: 44224.89201 | AY122: 4.528695652 | AZ122: 44224.88854 | BA122: 4.349565217 | BB122: 44224.88507 | BC122: 4.270434783 | BD122: 44224.8412 | BE122: 4.149565217 | BF122: 44224.93125 | BH122: 44224.975 | BI122: 44224.97292 | BK122: 2025-01-29T23:24:00 | BL122: 44224.975
A123: 0 | B123: =IF(Instructions!$C$2="BST",A123,0) -> 0 | C123: 2025-01-30T04:35:00 | D123: 2025-01-30 | E123: 2025-01-30 | F123: 1 | G123: Jan | H123: 30 | I123: 4 | J123: Thu | K123: 44225.19097 | L123: 1.05 | M123: LW | N123: 0.7404580153 | O123: 04:35:00 | P123: 05:00:00 | Q123: -0.04166666667 | R123: 0.9305555555 | S123: 44225.2282 | T123: 1.241221374 | U123: 44225.29417 | V123: 44225.19912 | W123: 1.115267176 | X123: 44225.14167 | Y123: 44225.21036 | Z123: 1.111450382 | AA123: 44225.16117 | AB123: 44225.20042 | AC123: 0.9374045802 | AD123: Cls | AE123: 44225.03542 | AF123: 44225.17458 | AG123: 0.9114503817 | AH123: 44225.17062 | AI123: 1.011450382 | AJ123: 44225.22497 | AK123: 1.315267176 | AL123: 44225.22497 | AM123: 1.315267176 | AN123: 44225.2148 | AO123: 1.315267176 | AP123: 44225.21851 | AQ123: 1.189312977 | AR123: 44225.18056 | AS123: 44225.20486 | AT123: 44225.18056 | AU123: 1.111450382 | AV123: 44225.18702 | AW123: 1.03740458 | AX123: 44225.17062 | AY123: 0.9114503817 | AZ123: 44225.16715 | BA123: 0.8374045802 | BB123: 44225.16344 | BC123: 0.9374045802 | BD123: 44225.1183 | BE123: 0.8335877863 | BF123: 44225.21528 | BH123: 44225.25486 | BI123: 44225.22222 | BK123: 2025-01-30T06:07:00 | BL123: 44225.25486
A124: 0 | B124: =IF(Instructions!$C$2="BST",A124,0) -> 0 | C124: 2025-01-30T10:49:00 | D124: 2025-01-30 | E124: Thu | F124: 1 | I124: 4 | K124: 44225.45069 | L124: 5.8 | M124: HW | N124: 1.139130435 | O124: 10:49:00 | P124: 12:00:00 | Q124: 06:00:00 | R124: 0.8027777778 | S124: 44225.466 | T124: 7.822608696 | U124: 44225.53197 | V124: 44225.46879 | W124: 7.508695652 | X124: 44225.40069 | Y124: 44225.43891 | Z124: 5.766956522 | AA124: 44225.42849 | AB124: 44225.42986 | AC124: 5.366956522 | AD124: Opn | AE124: 44225.31528 | AF124: 44225.42634 | AG124: 4.753043478 | AH124: 44225.40135 | AI124: 5.039130435 | AJ124: 44225.46669 | AK124: 7.722608696 | AL124: 44225.46737 | AM124: 7.736521739 | AN124: 44225.46321 | AO124: 7.408695652 | AP124: 44225.46527 | AQ124: 6.808695652 | AR124: 44225.44028 | AS124: 44225.46111 | AT124: 44225.42218 | AU124: 5.366956522 | AV124: 44225.42218 | AW124: 5.166956522 | AX124: 44225.40067 | AY124: 4.980869565 | AZ124: 44225.39719 | BA124: 4.766956522 | BB124: 44225.39372 | BC124: 4.653043478 | BD124: 44225.35073 | BE124: 4.566956522 | BF124: 44225.44028 | BH124: 44225.48403 | BI124: 44225.48194 | BK124: 2025-01-30T11:37:00 | BL124: 44225.48403
A125: 0 | B125: =IF(Instructions!$C$2="BST",A125,0) -> 0 | C125: 2025-01-30T16:59:00 | D125: 2025-01-30 | F125: 1 | I125: 4 | K125: 44225.70764 | L125: 0.72 | M125: LW | N125: 0.9923664122 | O125: 16:59:00 | P125: 17:00:00 | Q125: 11:00:00 | R125: 0.9972222222 | S125: 44225.74579 | T125: 0.8129770992 | U125: 44225.81177 | V125: 44225.71463 | W125: 0.7122137405 | X125: 44225.65069 | Y125: 44225.72841 | Z125: 0.8091603053 | AA125: 44225.67645 | AB125: 44225.71802 | AC125: 0.6099236641 | AD125: Cls | AE125: 44225.54444 | AF125: 44225.69032 | AG125: 0.6091603053 | AH125: 44225.68682 | AI125: 0.7091603053 | AJ125: 44225.74233 | AK125: 0.9122137405 | AL125: 44225.74233 | AM125: 0.9122137405 | AN125: 44225.73193 | AO125: 0.9122137405 | AP125: 44225.73541 | AQ125: 0.8114503817 | AR125: 44225.69722 | AS125: 44225.72153 | AT125: 44225.69722 | AU125: 0.8091603053 | AV125: 44225.70415 | AW125: 0.7099236641 | AX125: 44225.68682 | AY125: 0.6091603053 | AZ125: 44225.68335 | BA125: 0.5099236641 | BB125: 44225.67987 | BC125: 0.6099236641 | BD125: 44225.63473 | BE125: 0.606870229 | BF125: 44225.73194 | BH125: 44225.77292 | BI125: 44225.73889 | BK125: 2025-01-30T18:33:00 | BL125: 44225.77292
A126: 0 | B126: =IF(Instructions!$C$2="BST",A126,0) -> 0 | C126: 2025-01-30T23:15:00 | D126: 2025-01-30 | F126: 1 | I126: 4 | K126: 44225.96875 | L126: 5.51 | M126: HW | N126: 0.8869565217 | O126: 23:15:00 | P126: 1 | Q126: 18:00:00 | R126: 0.875 | S126: 44225.98481 | T126: 7.419130435 | U126: 44226.05078 | V126: 44225.98785 | W126: 7.130434783 | X126: 44225.91806 | Y126: 44225.95747 | Z126: 5.464347826 | AA126: 44225.94705 | AB126: 44225.94792 | AC126: 5.064347826 | AD126: Opn | AE126: 44225.83333 | AF126: 44225.94314 | AG126: 4.475652174 | AH126: 44225.9184 | AI126: 4.786956522 | AJ126: 44225.98524 | AK126: 7.319130435 | AL126: 44225.98568 | AM126: 7.307826087 | AN126: 44225.98177 | AO126: 7.030434783 | AP126: 44225.98307 | AQ126: 6.430434783 | AR126: 44225.95833 | AS126: 44225.97917 | AT126: 44225.93924 | AU126: 5.064347826 | AV126: 44225.93924 | AW126: 4.864347826 | AX126: 44225.91797 | AY126: 4.653043478 | AZ126: 44225.9145 | BA126: 4.464347826 | BB126: 44225.91102 | BC126: 4.375652174 | BD126: 44225.86979 | BE126: 4.264347826 | BF126: 44225.95833 | BH126: 44226.00139 | BI126: 44226 | BK126: 2025-01-31T00:02:00 | BL126: 44226.00139
A127: 0 | B127: =IF(Instructions!$C$2="BST",A127,0) -> 0 | C127: 2025-01-31T05:14:00 | D127: 2025-01-31 | E127: 2025-01-31 | F127: 1 | G127: Jan | H127: 31 | I127: 5 | J127: Fri | K127: 44226.21806 | L127: 0.88 | M127: LW | N127: 0.8702290076 | O127: 05:14:00 | P127: 05:00:00 | Q127: 11:00:00 | R127: 0.9611111111 | S127: =IF($M127="HW",$K127+S$6+(S$5-S$6)*$R127,$K127+S$8+(S$7-S$8)*$R127) -> 44226.25571 | T127: 1.020610687 | U127: 44226.32168 | V127: 44226.22568 | W127: 0.9076335878 | X127: 44226.16806 | Y127: =IF($M127="HW",$K127+Y$6+(Y$5-Y$6)*$R127,$K127+Y$8+(Y$7-Y$8)*$R127) -> 44226.23808 | Z127: 0.9557251908 | AA127: 44226.18762 | AB127: 44226.22793 | AC127: 0.7687022901 | AD127: Cls | AE127: 44226.0625 | AF127: 44226.20123 | AG127: 0.7557251908 | AH127: 44226.19749 | AI127: 0.8557251908 | AJ127: 44226.25237 | AK127: 1.107633588 | AL127: 44226.25237 | AM127: 1.107633588 | AN127: 44226.24209 | AO127: 1.107633588 | AP127: 44226.2457 | AQ127: 0.9946564885 | AR127: =IF($M127="HW",$K127+AR$6+(AR$5-AR$6)*$R127,$K127+AR$8+(AR$7-AR$8)*$R127) -> 44226.20764 | AS127: 44226.23194 | AT127: 44226.20764 | AU127: 0.9557251908 | AV127: 44226.21431 | AW127: 0.8687022901 | AX127: 44226.19749 | AY127: 0.7557251908 | AZ127: 44226.19402 | BA127: 0.6687022901 | BB127: 44226.19041 | BC127: 0.7687022901 | BD127: 44226.14527 | BE127: 0.7167938931 | BF127: =IF($M127="HW",$K127+BF$6+(BF$5-BF$6)*$R127,$K127+BF$8+(BF$7-BF$8)*$R127) -> 44226.24236 | BH127: 44226.28403 | BI127: 44226.24931 | BK127: 2025-01-31T06:49:00 | BL127: 44226.28403
A128: 0 | B128: =IF(Instructions!$C$2="BST",A128,0) -> 0 | C128: 2025-01-31T11:27:00 | D128: 2025-01-31 | E128: Fri | F128: 1 | I128: 5 | K128: 44226.47708 | L128: 5.94 | M128: HW | N128: 1.260869565 | O128: 11:27:00 | P128: 12:00:00 | Q128: 06:00:00 | R128: 0.9083333333 | S128: 44226.49349 | T128: 8.017391304 | U128: 44226.55946 | V128: 44226.49664 | W128: 7.691304348 | X128: 44226.42778 | Y128: 44226.46603 | Z128: 5.913043478 | AA128: 44226.45561 | AB128: 44226.45625 | AC128: 5.513043478 | AD128: Opn | AE128: 44226.34167 | AF128: 44226.4509 | AG128: 4.886956522 | AH128: 44226.42627 | AI128: 5.160869565 | AJ128: 44226.49381 | AK128: 7.917391304 | AL128: 44226.49413 | AM128: 7.943478261 | AN128: 44226.49034 | AO128: 7.591304348 | AP128: 44226.49129 | AQ128: 6.991304348 | AR128: 44226.46667 | AS128: 44226.4875 | AT128: 44226.44711 | AU128: 5.513043478 | AV128: 44226.44711 | AW128: 5.313043478 | AX128: 44226.42595 | AY128: 5.139130435 | AZ128: 44226.42248 | BA128: 4.913043478 | BB128: 44226.41901 | BC128: 4.786956522 | BD128: 44226.37859 | BE128: 4.713043478 | BF128: 44226.46667 | BH128: 44226.51111 | BI128: 44226.50833 | BK128: 2025-01-31T12:16:00 | BL128: 44226.51111
A129: 0 | B129: =IF(Instructions!$C$2="BST",A129,0) -> 0 | C129: 2025-01-31T17:39:00 | D129: 2025-01-31 | F129: 1 | I129: 5 | K129: 44226.73542 | L129: 0.56 | M129: LW | N129: 1.114503817 | O129: 17:39:00 | P129: 17:00:00 | Q129: 23:00:00 | R129: 0.8916666667 | S129: 44226.77211 | T129: 0.6053435115 | U129: 44226.83808 | V129: 44226.74424 | W129: 0.5167938931 | X129: 44226.67778 | Y129: 44226.75399 | Z129: 0.6625954198 | AA129: 44226.70642 | AB129: 44226.74433 | AC129: 0.4511450382 | AD129: Cls | AE129: 44226.57083 | AF129: 44226.71956 | AG129: 0.4625954198 | AH129: 44226.71534 | AI129: 0.5625954198 | AJ129: 44226.76901 | AK129: 0.7167938931 | AL129: 44226.76901 | AM129: 0.7167938931 | AN129: 44226.75897 | AO129: 0.7167938931 | AP129: 44226.76282 | AQ129: 0.6282442748 | AR129: 44226.725 | AS129: 44226.74931 | AT129: 44226.725 | AU129: 0.6625954198 | AV129: 44226.73119 | AW129: 0.5511450382 | AX129: 44226.71534 | AY129: 0.4625954198 | AZ129: 44226.71186 | BA129: 0.3511450382 | BB129: 44226.70802 | BC129: 0.4511450382 | BD129: 44226.66288 | BE129: 0.4969465649 | BF129: 44226.75972 | BH129: 44226.80069 | BI129: 44226.76667 | BK129: 2025-01-31T19:13:00 | BL129: 44226.80069
A130: 0 | B130: =IF(Instructions!$C$2="BST",A130,0) -> 0 | C130: 2025-01-31T23:53:00 | D130: 2025-01-31 | F130: 1 | I130: 5 | K130: 44226.99514 | L130: 5.56 | M130: HW | N130: 0.9304347826 | O130: 23:53:00 | P130: 1 | Q130: 18:00:00 | R130: 0.9805555556 | S130: 44227.0123 | T130: 7.488695652 | U130: 44227.07827 | V130: 44227.0157 | W130: 7.195652174 | X130: 44226.94514 | Y130: 44226.98459 | Z130: 5.516521739 | AA130: 44226.97417 | AB130: 44226.97431 | AC130: 5.116521739 | AD130: Opn | AE130: 44226.85972 | AF130: 44226.9677 | AG130: 4.523478261 | AH130: 44226.94333 | AI130: 4.830434783 | AJ130: 44227.01236 | AK130: 7.388695652 | AL130: 44227.01243 | AM130: 7.38173913 | AN130: 44227.00889 | AO130: 7.095652174 | AP130: 44227.0091 | AQ130: 6.495652174 | AR130: 44226.98472 | AS130: 44227.00556 | AT130: 44226.96416 | AU130: 5.116521739 | AV130: 44226.96416 | AW130: 4.916521739 | AX130: 44226.94326 | AY130: 4.709565217 | AZ130: 44226.93979 | BA130: 4.516521739 | BB130: 44226.93631 | BC130: 4.423478261 | BD130: 44226.89765 | BE130: 4.316521739 | BF130: 44226.98472 | BH130: 44227.02847 | BI130: 44227.02639 | BK130: 2025-02-01T00:41:00 | BL130: 44227.02847
A131: 0 | B131: =IF(Instructions!$C$2="BST",A131,0) -> 0 | C131: 2025-02-01T05:53:00 | D131: 2025-02-01 | E131: 2025-02-01 | F131: 2 | G131: Feb | H131: 1 | I131: 6 | J131: Sat | K131: 44227.24514 | L131: 0.79 | M131: LW | N131: 0.9389312977 | O131: 05:53:00 | P131: 05:00:00 | Q131: 11:00:00 | R131: 0.8527777778 | S131: 44227.28129 | T131: 0.9038167939 | U131: 44227.34726 | V131: 44227.25464 | W131: 0.7977099237 | X131: 44227.19514 | Y131: 44227.26291 | Z131: 0.8732824427 | AA131: 44227.21696 | AB131: 44227.25351 | AC131: 0.679389313 | AD131: Cls | AE131: 44227.08889 | AF131: 44227.22982 | AG131: 0.6732824427 | AH131: 44227.22533 | AI131: 0.7732824427 | AJ131: 44227.27833 | AK131: 0.9977099237 | AL131: 44227.27833 | AM131: 0.9977099237 | AN131: 44227.26842 | AO131: 0.9977099237 | AP131: 44227.27241 | AQ131: 0.8916030534 | AR131: 44227.23472 | AS131: 44227.25903 | AT131: 44227.23472 | AU131: 0.8732824427 | AV131: 44227.24064 | AW131: 0.779389313 | AX131: 44227.22533 | AY131: 0.6732824427 | AZ131: 44227.22186 | BA131: 0.579389313 | BB131: 44227.21787 | BC131: 0.679389313 | BD131: 44227.17273 | BE131: 0.6549618321 | BF131: 44227.26944 | BH131: 44227.31111 | BI131: 44227.27639 | BK131: 2025-02-01T07:28:00 | BL131: 44227.31111
A132: 0 | B132: =IF(Instructions!$C$2="BST",A132,0) -> 0 | C132: 2025-02-01T12:07:00 | D132: 2025-02-01 | E132: Sat | F132: 2 | I132: 6 | K132: 44227.50486 | L132: 5.98 | M132: HW | N132: 1.295652174 | O132: 12:07:00 | P132: 12:00:00 | Q132: 18:00:00 | R132: 0.9805555556 | S132: 44227.52202 | T132: 8.073043478 | U132: 44227.58799 | V132: 44227.52542 | W132: 7.743478261 | X132: 44227.45417 | Y132: 44227.49431 | Z132: 5.954782609 | AA132: 44227.48389 | AB132: 44227.48403 | AC132: 5.554782609 | AD132: Opn | AE132: 44227.36944 | AF132: 44227.47742 | AG132: 4.925217391 | AH132: 44227.45305 | AI132: 5.195652174 | AJ132: 44227.52209 | AK132: 7.973043478 | AL132: 44227.52215 | AM132: 8.002608696 | AN132: 44227.51861 | AO132: 7.643478261 | AP132: 44227.51882 | AQ132: 7.043478261 | AR132: 44227.49444 | AS132: 44227.51528 | AT132: 44227.47388 | AU132: 5.554782609 | AV132: 44227.47388 | AW132: 5.354782609 | AX132: 44227.45298 | AY132: 5.184347826 | AZ132: 44227.44951 | BA132: 4.954782609 | BB132: 44227.44604 | BC132: 4.825217391 | BD132: 44227.40737 | BE132: 4.754782609 | BF132: 44227.49444 | BH132: 44227.5375 | BI132: 44227.53611 | BK132: 2025-02-01T12:54:00 | BL132: 44227.5375
A133: 0 | B133: =IF(Instructions!$C$2="BST",A133,0) -> 0 | C133: 2025-02-01T18:20:00 | D133: 2025-02-01 | F133: 2 | I133: 6 | K133: 44227.76389 | L133: 0.52 | M133: LW | N133: 1.145038168 | O133: 18:20:00 | P133: 17:00:00 | Q133: 23:00:00 | R133: 0.7777777778 | S133: 44227.799 | T133: 0.5534351145 | U133: 44227.86497 | V133: 44227.77469 | W133: 0.4679389313 | X133: 44227.70417 | Y133: 44227.78009 | Z133: 0.6259541985 | AA133: 44227.73727 | AB133: 44227.77122 | AC133: 0.4114503817 | AD133: Cls | AE133: 44227.59861 | AF133: 44227.74961 | AG133: 0.4259541985 | AH133: 44227.7446 | AI133: 0.5259541985 | AJ133: 44227.7963 | AK133: 0.6679389313 | AL133: 44227.7963 | AM133: 0.6679389313 | AN133: 44227.78665 | AO133: 0.6679389313 | AP133: 44227.7909 | AQ133: 0.5824427481 | AR133: 44227.75347 | AS133: 44227.77778 | AT133: 44227.75347 | AU133: 0.6259541985 | AV133: 44227.75887 | AW133: 0.5114503817 | AX133: 44227.7446 | AY133: 0.4259541985 | AZ133: 44227.74113 | BA133: 0.3114503817 | BB133: 44227.73688 | BC133: 0.4114503817 | BD133: 44227.69174 | BE133: 0.4694656489 | BF133: 44227.78819 | BH133: 44227.82847 | BI133: 44227.79514 | BK133: 2025-02-01T19:53:00 | BL133: 44227.82847
A134: 0 | B134: =IF(Instructions!$C$2="BST",A134,0) -> 0 | C134: 2025-02-02T00:33:00 | D134: 2025-02-02 | E134: 2025-02-02 | F134: 2 | G134: Feb | H134: 2 | I134: 7 | J134: Sun | K134: 44228.02292 | L134: 5.52 | M134: HW | N134: 0.8956521739 | O134: 00:33:00 | P134: 00:00:00 | Q134: 06:00:00 | R134: 0.9083333333 | S134: 44228.03932 | T134: 7.433043478 | U134: 44228.1053 | V134: 44228.04248 | W134: 7.143478261 | X134: 44227.97292 | Y134: 44228.01186 | Z134: 5.474782609 | AA134: 44228.00145 | AB134: 44228.00208 | AC134: 5.074782609 | AD134: Opn | AE134: 44227.8875 | AF134: 44227.99673 | AG134: 4.485217391 | AH134: 44227.97211 | AI134: 4.795652174 | AJ134: 44228.03964 | AK134: 7.333043478 | AL134: 44228.03996 | AM134: 7.322608696 | AN134: 44228.03617 | AO134: 7.043478261 | AP134: 44228.03712 | AQ134: 6.443478261 | AR134: 44228.0125 | AS134: 44228.03333 | AT134: 44227.99294 | AU134: 5.074782609 | AV134: 44227.99294 | AW134: 4.874782609 | AX134: 44227.97179 | AY134: 4.664347826 | AZ134: 44227.96832 | BA134: 4.474782609 | BB134: 44227.96484 | BC134: 4.385217391 | BD134: 44227.92442 | BE134: 4.274782609 | BF134: 44228.0125 | BH134: 44228.05625 | BI134: 44228.05417 | BK134: 2025-02-02T01:21:00 | BL134: 44228.05625
A135: 0 | B135: =IF(Instructions!$C$2="BST",A135,0) -> 0 | C135: 2025-02-02T06:34:00 | D135: 2025-02-02 | E135: Sun | F135: 2 | I135: 7 | K135: 44228.27361 | L135: 0.81 | M135: LW | N135: 0.9236641221 | O135: 06:34:00 | P135: 05:00:00 | Q135: 11:00:00 | R135: 0.7388888889 | S135: 44228.30818 | T135: 0.9297709924 | U135: 44228.37415 | V135: 44228.28509 | W135: 0.8221374046 | X135: 44228.22292 | Y135: 44228.289 | Z135: 0.8916030534 | AA135: 44228.2478 | AB135: 44228.2804 | AC135: 0.6992366412 | AD135: Cls | AE135: 44228.11667 | AF135: 44228.25988 | AG135: 0.6916030534 | AH135: 44228.25459 | AI135: 0.7916030534 | AJ135: 44228.30561 | AK135: 1.022137405 | AL135: 44228.30561 | AM135: 1.022137405 | AN135: 44228.2961 | AO135: 1.022137405 | AP135: 44228.30048 | AQ135: 0.9145038168 | AR135: 44228.26319 | AS135: 44228.2875 | AT135: 44228.26319 | AU135: 0.8916030534 | AV135: 44228.26833 | AW135: 0.7992366412 | AX135: 44228.25459 | AY135: 0.6916030534 | AZ135: 44228.25112 | BA135: 0.5992366412 | BB135: 44228.24674 | BC135: 0.6992366412 | BD135: 44228.2016 | BE135: 0.6687022901 | BF135: 44228.29792 | BH135: 44228.33889 | BI135: 44228.30486 | BK135: 2025-02-02T08:08:00 | BL135: 44228.33889
A136: 0 | B136: =IF(Instructions!$C$2="BST",A136,0) -> 0 | C136: 2025-02-02T12:48:00 | D136: 2025-02-02 | F136: 2 | I136: 7 | K136: 44228.53333 | L136: 5.93 | M136: HW | N136: 1.252173913 | O136: 12:48:00 | P136: 12:00:00 | Q136: 18:00:00 | R136: 0.8666666667 | S136: 44228.54931 | T136: 8.003478261 | U136: 44228.61528 | V136: 44228.55231 | W136: 7.67826087 | X136: 44228.48194 | Y136: 44228.52199 | Z136: 5.902608696 | AA136: 44228.51157 | AB136: 44228.5125 | AC136: 5.502608696 | AD136: Opn | AE136: 44228.39792 | AF136: 44228.50787 | AG136: 4.877391304 | AH136: 44228.4831 | AI136: 5.152173913 | AJ136: 44228.54977 | AK136: 7.903478261 | AL136: 44228.55023 | AM136: 7.928695652 | AN136: 44228.5463 | AO136: 7.57826087 | AP136: 44228.54769 | AQ136: 6.97826087 | AR136: 44228.52292 | AS136: 44228.54375 | AT136: 44228.50394 | AU136: 5.502608696 | AV136: 44228.50394 | AW136: 5.302608696 | AX136: 44228.48264 | AY136: 5.127826087 | AZ136: 44228.47917 | BA136: 4.902608696 | BB136: 44228.47569 | BC136: 4.777391304 | BD136: 44228.43426 | BE136: 4.702608696 | BF136: 44228.52292 | BH136: 44228.56528 | BI136: 44228.56458 | BK136: 2025-02-02T13:34:00 | BL136: 44228.56528
A137: 0 | B137: =IF(Instructions!$C$2="BST",A137,0) -> 0 | C137: 2025-02-02T19:03:00 | D137: 2025-02-02 | F137: 2 | I137: 7 | K137: 44228.79375 | L137: 0.6 | M137: LW | N137: 1.083969466 | O137: 19:03:00 | P137: 17:00:00 | Q137: 23:00:00 | R137: 0.6583333333 | S137: 44228.8272 | T137: 0.6572519084 | U137: 44228.89317 | V137: 44228.80663 | W137: 0.565648855 | X137: 44228.73194 | Y137: 44228.80747 | Z137: 0.6992366412 | AA137: 44228.76962 | AB137: 44228.79942 | AC137: 0.4908396947 | AD137: Cls | AE137: 44228.62708 | AF137: 44228.78113 | AG137: 0.4992366412 | AH137: 44228.77529 | AI137: 0.5992366412 | AJ137: 44228.82491 | AK137: 0.765648855 | AL137: 44228.82491 | AM137: 0.765648855 | AN137: 44228.81568 | AO137: 0.765648855 | AP137: 44228.82034 | AQ137: 0.6740458015 | AR137: 44228.78333 | AS137: 44228.80764 | AT137: 44228.78333 | AU137: 0.6992366412 | AV137: 44228.78791 | AW137: 0.5908396947 | AX137: 44228.77529 | AY137: 0.4992366412 | AZ137: 44228.77182 | BA137: 0.3908396947 | BB137: 44228.76716 | BC137: 0.4908396947 | BD137: 44228.72202 | BE137: 0.5244274809 | BF137: 44228.81806 | BH137: 44228.85625 | BI137: 44228.825 | BK137: 2025-02-02T20:33:00 | BL137: 44228.85625
A138: 0 | B138: =IF(Instructions!$C$2="BST",A138,0) -> 0 | C138: 2025-02-03T01:15:00 | D138: 2025-02-03 | E138: 2025-02-03 | F138: 2 | G138: Feb | H138: 3 | I138: 1 | J138: Mon | K138: 44229.05208 | L138: 5.4 | M138: HW | N138: 0.7913043478 | O138: 01:15:00 | P138: 00:00:00 | Q138: 06:00:00 | R138: 0.7916666667 | S138: 44229.06727 | T138: 7.266086957 | U138: 44229.13325 | V138: 44229.07002 | W138: 6.986956522 | X138: 44229.00069 | Y138: 44229.04022 | Z138: =IF($M138="HW",Y$2+(Y$1-Y$2)*$N138,Y$3+(Y$4-Y$3)*$N138) -> 5.349565217 | AA138: 44229.0298 | AB138: 44229.03125 | AC138: =IF($M138="HW",AB$2+(AB$1-AB$2)*$N138,AB$3+(AB$4-AB$3)*$N138) -> 4.949565217 | AD138: Opn | AE138: 44228.91667 | AF138: 44229.02792 | AG138: =IF($M138="HW",AF$2+(AF$1-AF$2)*$N138,AF$3+(AF$4-AF$3)*$N138) -> 4.370434783 | AH138: 44229.00289 | AI138: =IF($M138="HW",AH$2+(AH$1-AH$2)*$N138,AH$3+(AH$4-AH$3)*$N138) -> 4.691304348 | AJ138: 44229.068 | AK138: =IF($M138="HW",AJ$2+(AJ$1-AJ$2)*$N138,AJ$3+(AJ$4-AJ$3)*$N138) -> 7.166086957 | AL138: 44229.06872 | AM138: =IF($M138="HW",AL$2+(AL$1-AL$2)*$N138,AL$3+(AL$4-AL$3)*$N138) -> 7.145217391 | AN138: 44229.06453 | AO138: =IF($M138="HW",AN$2+(AN$1-AN$2)*$N138,AN$3+(AN$4-AN$3)*$N138) -> 6.886956522 | AP138: 44229.0667 | AQ138: =IF($M138="HW",AP$2+(AP$1-AP$2)*$N138,AP$3+(AP$4-AP$3)*$N138) -> 6.286956522 | AR138: 44229.04167 | AS138: 44229.0625 | AT138: 44229.02373 | AU138: =IF($M138="HW",AT$2+(AT$1-AT$2)*$N138,AT$3+(AT$4-AT$3)*$N138) -> 4.949565217 | AV138: 44229.02373 | AW138: =IF($M138="HW",AV$2+(AV$1-AV$2)*$N138,AV$3+(AV$4-AV$3)*$N138) -> 4.749565217 | AX138: 44229.00217 | AY138: =IF($M138="HW",AX$2+(AX$1-AX$2)*$N138,AX$3+(AX$4-AX$3)*$N138) -> 4.528695652 | AZ138: 44228.9987 | BA138: =IF($M138="HW",AZ$2+(AZ$1-AZ$2)*$N138,AZ$3+(AZ$4-AZ$3)*$N138) -> 4.349565217 | BB138: 44228.99523 | BC138: =IF($M138="HW",BB$2+(BB$1-BB$2)*$N138,BB$3+(BB$4-BB$3)*$N138) -> 4.270434783 | BD138: 44228.95197 | BE138: =IF($M138="HW",BD$2+(BD$1-BD$2)*$N138,BD$3+(BD$4-BD$3)*$N138) -> 4.149565217 | BF138: 44229.04167 | BH138: 44229.08403 | BI138: 44229.08333 | BK138: 2025-02-03T02:01:00 | BL138: 44229.08403
A139: 0 | B139: =IF(Instructions!$C$2="BST",A139,0) -> 0 | C139: 2025-02-03T07:18:00 | D139: =DATE(YEAR(K139),MONTH(K139),DAY(K139)) -> 2025-02-03 | E139: =IF(D139=D138,IF(J138="","",J138),D139) -> Mon | F139: 2 | I139: 1 | K139: =C139+B139/24 -> 44229.30417 | L139: 0.93 | M139: LW | N139: =IF(M139="HW",(L139-K$2)/(K$1-K$2),(L139-K$3)/(K$4-K$3)) -> 0.8320610687 | O139: =C139-INT(C139) -> 07:18:00 | P139: =IF(M139="HW",IF(AND(O139>=L$5,O139<L$6),L$5,IF(AND(O139>=L$6,O139<M$5),M$5,IF(AND(O139>=M$5,O139<M$6),M$5,IF(O139>=M$6,L$5+1,L$5)))),IF(AND(O139>=L$7,O139<L$8),L$7,IF(AND(O139>=L$8,O139<M$7),M$7,IF(AND(O139>=M$7,O139<M$8),M$7,IF(O139>=M$8,L$7+1,L$7))))) -> 05:00:00 | Q139: =IF(M139="HW",IF(AND(O139>=L$5,O139<L$6),L$6,IF(AND(O139>=L$6,O139<M$5),L$6,IF(AND(O139>=M$5,O139<M$6),M$6,IF(O139>=M$6,M$6,M$6-1)))),IF(AND(O139>=L$7,O139<L$8),L$8,IF(AND(O139>=L$8,O139<M$7),L$8,IF(AND(O139>=M$7,O139<M$8),M$8,IF(O139>=M$8,M$8,M$8-1))))) -> 11:00:00 | R139: 0.6166666667 | S139: 44229.33704 | T139: =IF($M139="HW",S$2+(S$1-S$2)*$N139,S$3+(S$4-S$3)*$N139) -> 1.085496183 | U139: 44229.40301 | V139: 44229.31777 | W139: =IF($M139="HW",V$2+(V$1-V$2)*$N139,V$3+(V$4-V$3)*$N139) -> 0.9687022901 | X139: 44229.25069 | Y139: 44229.31701 | Z139: 1.001526718 | AA139: 44229.2809 | AB139: =IF($M139="HW",$K139+AB$6+(AB$5-AB$6)*$R139,$K139+AB$8+(AB$7-AB$8)*$R139) -> 44229.30926 | AC139: 0.8183206107 | AD139: =IF($M139="HW","Opn","Cls") -> Cls | AE139: 44229.14583 | AF139: =IF($M139="HW",$K139+AF$6+(AF$5-AF$6)*$R139,$K139+AF$8+(AF$7-AF$8)*$R139) -> 44229.29213 | AG139: 0.8015267176 | AH139: =IF($M139="HW",$K139+AH$6+(AH$5-AH$6)*$R139,$K139+AH$8+(AH$7-AH$8)*$R139) -> 44229.286 | AI139: 0.9015267176 | AJ139: =IF($M139="HW",$K139+AJ$6+(AJ$5-AJ$6)*$R139,$K139+AJ$8+(AJ$7-AJ$8)*$R139) -> 44229.3349 | AK139: 1.16870229 | AL139: =IF($M139="HW",$K139+AL$6+(AL$5-AL$6)*$R139,$K139+AL$8+(AL$7-AL$8)*$R139) -> 44229.3349 | AM139: 1.16870229 | AN139: =IF($M139="HW",$K139+AN$6+(AN$5-AN$6)*$R139,$K139+AN$8+(AN$7-AN$8)*$R139) -> 44229.32581 | AO139: 1.16870229 | AP139: =IF($M139="HW",$K139+AP$6+(AP$5-AP$6)*$R139,$K139+AP$8+(AP$7-AP$8)*$R139) -> 44229.33061 | AQ139: 1.051908397 | AR139: 44229.29375 | AS139: 44229.31806 | AT139: =IF($M139="HW",$K139+AT$6+(AT$5-AT$6)*$R139,$K139+AT$8+(AT$7-AT$8)*$R139) -> 44229.29375 | AU139: 1.001526718 | AV139: =IF($M139="HW",$K139+AV$6+(AV$5-AV$6)*$R139,$K139+AV$8+(AV$7-AV$8)*$R139) -> 44229.29803 | AW139: 0.9183206107 | AX139: =IF($M139="HW",$K139+AX$6+(AX$5-AX$6)*$R139,$K139+AX$8+(AX$7-AX$8)*$R139) -> 44229.286 | AY139: 0.8015267176 | AZ139: =IF($M139="HW",$K139+AZ$6+(AZ$5-AZ$6)*$R139,$K139+AZ$8+(AZ$7-AZ$8)*$R139) -> 44229.28252 | BA139: 0.7183206107 | BB139: =IF($M139="HW",$K139+BB$6+(BB$5-BB$6)*$R139,$K139+BB$8+(BB$7-BB$8)*$R139) -> 44229.27772 | BC139: 0.8183206107 | BD139: =IF($M139="HW",$K139+BD$6+(BD$5-BD$6)*$R139,$K139+BD$8+(BD$7-BD$8)*$R139) -> 44229.23258 | BE139: 0.7511450382 | BF139: 44229.32847 | BH139: 44229.36667 | BI139: 44229.33542 | BK139: 2025-02-03T08:48:00 | BL139: =BK139+B139/24 -> 44229.36667
A140: 0 | B140: =IF(Instructions!$C$2="BST",A140,0) -> 0 | C140: 2025-02-03T13:32:00 | D140: 2025-02-03 | F140: =MONTH(K140) -> 2 | G140: =IF(H140="","",TEXT(F140*29,"mmm")) ->  | H140: =IF(I140=I139,"",DAY(K140)) ->  | I140: =WEEKDAY(K140,2) -> 1 | J140: =IF(I140=I139,"",TEXT(I140+2,"ddd")) ->  | K140: 44229.56389 | L140: 5.77 | M140: HW | N140: 1.113043478 | O140: 13:32:00 | P140: 12:00:00 | Q140: 18:00:00 | R140: =ABS((O140-Q140)/(P140-Q140)) -> 0.7444444445 | S140: 44229.57859 | T140: 7.780869565 | U140: 44229.64456 | V140: 44229.58117 | W140: 7.469565217 | X140: =IF($M140="HW",$BK140+X$6+$B140/24,$BK139+4/24+$B140/24) -> 44229.51181 | Y140: 44229.5517 | Z140: 5.735652174 | AA140: =IF($M140="HW",$K140+AA$6+(AA$5-AA$6)*$R140,$K140+AA$8+(AA$7-AA$8)*$R140) -> 44229.54128 | AB140: 44229.54306 | AC140: 5.335652174 | AD140: Opn | AE140: =IF($M140="HW",$AB140-AD$8,$AB139+AD$8) -> 44229.42847 | AF140: 44229.54055 | AG140: 4.724347826 | AH140: 44229.51535 | AI140: 5.013043478 | AJ140: 44229.57948 | AK140: 7.680869565 | AL140: 44229.58036 | AM140: 7.692173913 | AN140: 44229.576 | AO140: 7.369565217 | AP140: 44229.57867 | AQ140: 6.769565217 | AR140: 44229.55347 | AS140: 44229.57431 | AT140: 44229.53619 | AU140: 5.335652174 | AV140: 44229.53619 | AW140: 5.135652174 | AX140: 44229.51447 | AY140: 4.946956522 | AZ140: 44229.511 | BA140: 4.735652174 | BB140: 44229.50752 | BC140: 4.624347826 | BD140: 44229.46312 | BE140: 4.535652174 | BF140: 44229.55347 | BH140: =BL140 -> 44229.59514 | BI140: 44229.59514 | BK140: 2025-02-03T14:17:00 | BL140: 44229.59514
A141: 0 | B141: =IF(Instructions!$C$2="BST",A141,0) -> 0 | C141: 2025-02-03T19:49:00 | D141: 2025-02-03 | F141: 2 | I141: 1 | K141: 44229.82569 | L141: 0.82 | M141: LW | N141: 0.9160305344 | O141: 19:49:00 | P141: 17:00:00 | Q141: 23:00:00 | R141: 0.5305555556 | S141: 44229.85737 | T141: 0.9427480916 | U141: 44229.92334 | V141: 44229.84079 | W141: 0.834351145 | X141: 44229.76181 | Y141: 44229.83675 | Z141: 0.9007633588 | AA141: 44229.80422 | AB141: 44229.82959 | AC141: 0.7091603053 | AD141: Cls | AE141: 44229.65764 | AF141: 44229.81485 | AG141: 0.7007633588 | AH141: 44229.80812 | AI141: 0.8007633588 | AJ141: 44229.85553 | AK141: 1.034351145 | AL141: 44229.85553 | AM141: 1.034351145 | AN141: 44229.84674 | AO141: 1.034351145 | AP141: 44229.85184 | AQ141: 0.9259541985 | AR141: 44229.81528 | AS141: 44229.83958 | AT141: 44229.81528 | AU141: 0.9007633588 | AV141: 44229.81896 | AW141: 0.8091603053 | AX141: 44229.80812 | AY141: 0.7007633588 | AZ141: 44229.80465 | BA141: 0.6091603053 | BB141: 44229.79955 | BC141: 0.7091603053 | BD141: 44229.75441 | BE141: 0.6755725191 | BF141: 44229.85 | BH141: 44229.88472 | BI141: 44229.85694 | BK141: 2025-02-03T21:14:00 | BL141: 44229.88472
A142: 0 | B142: =IF(Instructions!$C$2="BST",A142,0) -> 0 | C142: 2025-02-04T02:00:00 | D142: 2025-02-04 | E142: 2025-02-04 | F142: 2 | G142: Feb | H142: 4 | I142: 2 | J142: Tue | K142: 44230.08333 | L142: 5.22 | M142: HW | N142: 0.6347826087 | O142: 02:00:00 | P142: 00:00:00 | Q142: 06:00:00 | R142: 0.6666666667 | S142: 44230.09722 | T142: 7.015652174 | U142: 44230.16319 | V142: 44230.09954 | W142: 6.752173913 | X142: 44230.03056 | Y142: 44230.0706 | Z142: 5.16173913 | AA142: 44230.06019 | AB142: 44230.0625 | AC142: 4.76173913 | AD142: Opn | AE142: 44229.94792 | AF142: 44230.06134 | AG142: 4.19826087 | AH142: 44230.03588 | AI142: 4.534782609 | AJ142: 44230.09838 | AK142: 6.915652174 | AL142: 44230.09954 | AM142: 6.879130435 | AN142: 44230.09491 | AO142: 6.652173913 | AP142: 44230.09838 | AQ142: 6.052173913 | AR142: 44230.07292 | AS142: 44230.09375 | AT142: 44230.05671 | AU142: 4.76173913 | AV142: 44230.05671 | AW142: 4.56173913 | AX142: 44230.03472 | AY142: 4.325217391 | AZ142: 44230.03125 | BA142: 4.16173913 | BB142: 44230.02778 | BC142: 4.09826087 | BD142: 44229.98148 | BE142: 3.96173913 | BF142: 44230.07292 | BH142: 44230.11389 | BI142: 44230.11458 | BK142: 2025-02-04T02:44:00 | BL142: 44230.11389
A143: 0 | B143: =IF(Instructions!$C$2="BST",A143,0) -> 0 | C143: 2025-02-04T08:06:00 | D143: 2025-02-04 | E143: Tue | F143: 2 | I143: 2 | K143: 44230.3375 | L143: 1.16 | M143: LW | N143: 0.6564885496 | O143: 08:06:00 | P143: 05:00:00 | Q143: 11:00:00 | R143: 0.4833333333 | S143: =IF($M143="HW",$K143+S$6+(S$5-S$6)*$R143,$K143+S$8+(S$7-S$8)*$R143) -> 44230.36852 | T143: 1.383969466 | U143: 44230.43449 | V143: 44230.35341 | W143: 1.249618321 | X143: 44230.28056 | Y143: =IF($M143="HW",$K143+Y$6+(Y$5-Y$6)*$R143,$K143+Y$8+(Y$7-Y$8)*$R143) -> 44230.34757 | Z143: 1.21221374 | AA143: 44230.31701 | AB143: 44230.34074 | AC143: 1.046564885 | AD143: Cls | AE143: 44230.17708 | AF143: 44230.32731 | AG143: 1.01221374 | AH143: 44230.32025 | AI143: 1.11221374 | AJ143: 44230.36684 | AK143: 1.449618321 | AL143: 44230.36684 | AM143: 1.449618321 | AN143: 44230.35822 | AO143: 1.449618321 | AP143: 44230.36348 | AQ143: 1.315267176 | AR143: =IF($M143="HW",$K143+AR$6+(AR$5-AR$6)*$R143,$K143+AR$8+(AR$7-AR$8)*$R143) -> 44230.32708 | AS143: 44230.35139 | AT143: 44230.32708 | AU143: 1.21221374 | AV143: 44230.33044 | AW143: 1.146564885 | AX143: 44230.32025 | AY143: 1.01221374 | AZ143: 44230.31678 | BA143: 0.9465648855 | BB143: 44230.31152 | BC143: 1.046564885 | BD143: 44230.26638 | BE143: 0.9091603053 | BF143: =IF($M143="HW",$K143+BF$6+(BF$5-BF$6)*$R143,$K143+BF$8+(BF$7-BF$8)*$R143) -> 44230.36181 | BH143: 44230.39583 | BI143: 44230.36875 | BK143: 2025-02-04T09:30:00 | BL143: 44230.39583
A144: 0 | B144: =IF(Instructions!$C$2="BST",A144,0) -> 0 | C144: 2025-02-04T14:21:00 | D144: 2025-02-04 | F144: 2 | I144: 2 | K144: 44230.59792 | L144: 5.5 | M144: HW | N144: 0.8782608696 | O144: 14:21:00 | P144: 12:00:00 | Q144: 18:00:00 | R144: 0.6083333333 | S144: 44230.6112 | T144: 7.405217391 | U144: 44230.67717 | V144: 44230.61331 | W144: 7.117391304 | X144: 44230.54444 | Y144: 44230.58478 | Z144: 5.453913043 | AA144: 44230.57436 | AB144: 44230.57708 | AC144: 5.053913043 | AD144: Opn | AE144: 44230.4625 | AF144: 44230.57694 | AG144: 4.466086957 | AH144: 44230.55127 | AI144: 4.77826087 | AJ144: 44230.61256 | AK144: 7.305217391 | AL144: 44230.61392 | AM144: 7.293043478 | AN144: 44230.60909 | AO144: 7.017391304 | AP144: 44230.61317 | AQ144: 6.417391304 | AR144: 44230.5875 | AS144: 44230.60833 | AT144: 44230.57211 | AU144: 5.053913043 | AV144: 44230.57211 | AW144: 4.853913043 | AX144: 44230.54991 | AY144: 4.64173913 | AZ144: 44230.54644 | BA144: 4.453913043 | BB144: 44230.54297 | BC144: 4.366086957 | BD144: 44230.49525 | BE144: 4.253913043 | BF144: 44230.5875 | BH144: 44230.62778 | BI144: 44230.62917 | BK144: 2025-02-04T15:04:00 | BL144: 44230.62778
A145: 0 | B145: =IF(Instructions!$C$2="BST",A145,0) -> 0 | C145: 2025-02-04T20:39:00 | D145: 2025-02-04 | F145: 2 | I145: 2 | K145: 44230.86042 | L145: 1.14 | M145: LW | N145: 0.6717557252 | O145: 20:39:00 | P145: 17:00:00 | Q145: 23:00:00 | R145: 0.3916666667 | S145: 44230.89016 | T145: 1.358015267 | U145: 44230.95613 | V145: 44230.87792 | W145: 1.22519084 | X145: 44230.79444 | Y145: 44230.86858 | Z145: 1.19389313 | AA145: 44230.84184 | AB145: 44230.86238 | AC145: 1.026717557 | AD145: Cls | AE145: 44230.69167 | AF145: 44230.8515 | AG145: 0.9938931298 | AH145: 44230.84381 | AI145: 1.09389313 | AJ145: 44230.8888 | AK145: 1.42519084 | AL145: 44230.8888 | AM145: 1.42519084 | AN145: 44230.8805 | AO145: 1.42519084 | AP145: 44230.88608 | AQ145: 1.292366412 | AR145: 44230.85 | AS145: 44230.87431 | AT145: 44230.85 | AU145: 1.19389313 | AV145: 44230.85272 | AW145: 1.126717557 | AX145: 44230.84381 | AY145: 0.9938931298 | AZ145: 44230.84034 | BA145: 0.9267175573 | BB145: 44230.83475 | BC145: 1.026717557 | BD145: 44230.78961 | BE145: 0.8954198473 | BF145: 44230.88472 | BH145: 44230.91528 | BI145: 44230.89167 | BK145: 2025-02-04T21:58:00 | BL145: 44230.91528
A146: 0 | B146: =IF(Instructions!$C$2="BST",A146,0) -> 0 | C146: 2025-02-05T02:51:00 | D146: 2025-02-05 | E146: 2025-02-05 | F146: 2 | G146: Feb | H146: 5 | I146: 3 | J146: Wed | K146: 44231.11875 | L146: 4.97 | M146: HW | N146: 0.4173913043 | O146: 02:51:00 | P146: 00:00:00 | Q146: 06:00:00 | R146: 0.525 | S146: 44231.13116 | T146: 6.667826087 | U146: 44231.19714 | V146: 44231.13299 | W146: 6.426086957 | X146: 44231.06458 | Y146: 44231.10503 | Z146: 4.900869565 | AA146: 44231.09462 | AB146: 44231.09792 | AC146: 4.500869565 | AD146: Opn | AE146: 44230.98333 | AF146: 44231.09922 | AG146: 3.959130435 | AH146: 44231.07326 | AI146: 4.317391304 | AJ146: 44231.13281 | AK146: 6.567826087 | AL146: 44231.13446 | AM146: 6.509565217 | AN146: 44231.12934 | AO146: 6.326086957 | AP146: 44231.13429 | AQ146: 5.726086957 | AR146: 44231.10833 | AS146: 44231.12917 | AT146: 44231.0941 | AU146: 4.500869565 | AV146: 44231.0941 | AW146: 4.300869565 | AX146: 44231.07161 | AY146: 4.042608696 | AZ146: 44231.06814 | BA146: 3.900869565 | BB146: 44231.06467 | BC146: 3.859130435 | BD146: 44231.01493 | BE146: 3.700869565 | BF146: 44231.10833 | BH146: 44231.14792 | BI146: 44231.15 | BK146: 2025-02-05T03:33:00 | BL146: 44231.14792
A147: 0 | B147: =IF(Instructions!$C$2="BST",A147,0) -> 0 | C147: 2025-02-05T09:01:00 | D147: 2025-02-05 | E147: Wed | F147: 2 | I147: 3 | K147: 44231.37569 | L147: 1.46 | M147: LW | N147: 0.427480916 | O147: 09:01:00 | P147: 05:00:00 | Q147: 11:00:00 | R147: 0.3305555555 | S147: 44231.40459 | T147: 1.773282443 | U147: 44231.47056 | V147: 44231.39426 | W147: 1.616030534 | X147: 44231.31458 | Y147: 44231.38258 | Z147: 1.487022901 | AA147: 44231.35839 | AB147: 44231.37681 | AC147: 1.344274809 | AD147: Cls | AE147: 44231.2125 | AF147: 44231.36763 | AG147: 1.287022901 | AH147: 44231.35951 | AI147: 1.387022901 | AJ147: 44231.40344 | AK147: 1.816030534 | AL147: 44231.40344 | AM147: 1.816030534 | AN147: 44231.39535 | AO147: 1.816030534 | AP147: 44231.40115 | AQ147: 1.658778626 | AR147: 44231.36528 | AS147: 44231.38958 | AT147: 44231.36528 | AU147: 1.487022901 | AV147: 44231.36757 | AW147: 1.444274809 | AX147: 44231.35951 | AY147: 1.287022901 | AZ147: 44231.35604 | BA147: 1.244274809 | BB147: 44231.35024 | BC147: 1.344274809 | BD147: 44231.3051 | BE147: 1.115267176 | BF147: 44231.4 | BH147: 44231.42917 | BI147: 44231.40694 | BK147: 2025-02-05T10:18:00 | BL147: 44231.42917
A148: 0 | B148: =IF(Instructions!$C$2="BST",A148,0) -> 0 | C148: 2025-02-05T15:17:00 | D148: 2025-02-05 | F148: 2 | I148: 3 | K148: 44231.63681 | L148: 5.16 | M148: HW | N148: 0.5826086957 | O148: 15:17:00 | P148: 12:00:00 | Q148: 18:00:00 | R148: 0.4527777778 | S148: 44231.64847 | T148: 6.932173913 | U148: 44231.71444 | V148: 44231.65004 | W148: 6.673913043 | X148: 44231.58194 | Y148: 44231.62259 | Z148: 5.099130435 | AA148: 44231.61217 | AB148: 44231.61597 | AC148: 4.699130435 | AD148: Opn | AE148: 44231.50139 | AF148: 44231.61853 | AG148: 4.140869565 | AH148: 44231.59232 | AI148: 4.482608696 | AJ148: 44231.65037 | AK148: 6.832173913 | AL148: 44231.65227 | AM148: 6.790434783 | AN148: 44231.64689 | AO148: 6.573913043 | AP148: 44231.65259 | AQ148: 5.973913043 | AR148: 44231.62639 | AS148: 44231.64722 | AT148: 44231.61316 | AU148: 4.699130435 | AV148: 44231.61316 | AW148: 4.499130435 | AX148: 44231.59042 | AY148: 4.257391304 | AZ148: 44231.58695 | BA148: 4.099130435 | BB148: 44231.58348 | BC148: 4.040869565 | BD148: 44231.53198 | BE148: 3.899130435 | BF148: 44231.62639 | BH148: 44231.66528 | BI148: 44231.66806 | BK148: 2025-02-05T15:58:00 | BL148: 44231.66528
A149: 0 | B149: =IF(Instructions!$C$2="BST",A149,0) -> 0 | C149: 2025-02-05T21:38:00 | D149: 2025-02-05 | F149: 2 | I149: 3 | K149: 44231.90139 | L149: 1.52 | M149: LW | N149: 0.3816793893 | O149: 21:38:00 | P149: 17:00:00 | Q149: 23:00:00 | R149: 0.2277777778 | S149: 44231.92886 | T149: 1.851145038 | U149: 44231.99483 | V149: 44231.92174 | W149: 1.689312977 | X149: 44231.83194 | Y149: 44231.90613 | Z149: 1.541984733 | AA149: 44231.88623 | AB149: 44231.90108 | AC149: 1.403816794 | AD149: Cls | AE149: 44231.73056 | AF149: 44231.89475 | AG149: 1.341984733 | AH149: 44231.88592 | AI149: 1.441984733 | AJ149: 44231.92807 | AK149: 1.889312977 | AL149: 44231.92807 | AM149: 1.889312977 | AN149: 44231.92033 | AO149: 1.889312977 | AP149: 44231.92649 | AQ149: 1.727480916 | AR149: 44231.89097 | AS149: 44231.91528 | AT149: 44231.89097 | AU149: 1.541984733 | AV149: 44231.89255 | AW149: 1.503816794 | AX149: 44231.88592 | AY149: 1.341984733 | AZ149: 44231.88245 | BA149: 1.303816794 | BB149: 44231.87629 | BC149: 1.403816794 | BD149: 44231.83115 | BE149: 1.15648855 | BF149: 44231.92569 | BH149: 44231.95139 | BI149: 44231.93264 | BK149: 2025-02-05T22:50:00 | BL149: 44231.95139
A150: 0 | B150: =IF(Instructions!$C$2="BST",A150,0) -> 0 | C150: 2025-02-06T03:53:00 | D150: 2025-02-06 | E150: 2025-02-06 | F150: 2 | G150: Feb | H150: 6 | I150: 4 | J150: Thu | K150: 44232.16181 | L150: 4.71 | M150: HW | N150: 0.1913043478 | O150: 03:53:00 | P150: 00:00:00 | Q150: 06:00:00 | R150: 0.3527777778 | S150: 44232.17242 | T150: 6.306086957 | U150: 44232.2384 | V150: 44232.17365 | W150: 6.086956522 | X150: 44232.10556 | Y150: 44232.14689 | Z150: 4.629565217 | AA150: 44232.13648 | AB150: 44232.14097 | AC150: 4.229565217 | AD150: Opn | AE150: 44232.02639 | AF150: 44232.14526 | AG150: 3.710434783 | AH150: 44232.11871 | AI150: 4.091304348 | AJ150: 44232.17467 | AK150: 6.206086957 | AL150: 44232.17692 | AM150: 6.125217391 | AN150: 44232.1712 | AO150: 5.986956522 | AP150: 44232.17794 | AQ150: 5.386956522 | AR150: 44232.15139 | AS150: 44232.17222 | AT150: 44232.13954 | AU150: 4.229565217 | AV150: 44232.13954 | AW150: 4.029565217 | AX150: 44232.11646 | AY150: 3.748695652 | AZ150: 44232.11299 | BA150: 3.629565217 | BB150: 44232.10952 | BC150: 3.610434783 | BD150: 44232.05559 | BE150: 3.429565217 | BF150: 44232.15139 | BH150: 44232.18889 | BI150: 44232.19306 | BK150: 2025-02-06T04:32:00 | BL150: 44232.18889
A151: 0 | B151: =IF(Instructions!$C$2="BST",A151,0) -> 0 | C151: 2025-02-06T10:08:00 | D151: 2025-02-06 | E151: Thu | F151: 2 | I151: 4 | K151: 44232.42222 | L151: 1.78 | M151: LW | N151: 0.1832061069 | O151: 10:08:00 | P151: 05:00:00 | Q151: 11:00:00 | R151: 0.1444444444 | S151: 44232.44853 | T151: 2.188549618 | U151: 44232.51451 | V151: 44232.44402 | W151: 2.006870229 | X151: 44232.35556 | Y151: 44232.42523 | Z151: 1.780152672 | AA151: 44232.4088 | AB151: 44232.42076 | AC151: 1.661832061 | AD151: Cls | AE151: 44232.25556 | AF151: 44232.41674 | AG151: 1.580152672 | AH151: 44232.40733 | AI151: 1.680152672 | AJ151: 44232.44803 | AK151: 2.206870229 | AL151: 44232.44803 | AM151: 2.206870229 | AN151: 44232.44059 | AO151: 2.206870229 | AP151: 44232.44703 | AQ151: 2.02519084 | AR151: 44232.41181 | AS151: 44232.43611 | AT151: 44232.41181 | AU151: 1.780152672 | AV151: 44232.41281 | AW151: 1.761832061 | AX151: 44232.40733 | AY151: 1.580152672 | AZ151: 44232.40386 | BA151: 1.561832061 | BB151: 44232.39742 | BC151: 1.661832061 | BD151: 44232.35228 | BE151: 1.335114504 | BF151: 44232.44653 | BH151: 44232.47083 | BI151: 44232.45347 | BK151: 2025-02-06T11:18:00 | BL151: 44232.47083
A152: 0 | B152: =IF(Instructions!$C$2="BST",A152,0) -> 0 | C152: 2025-02-06T16:28:00 | D152: 2025-02-06 | F152: 2 | I152: 4 | K152: 44232.68611 | L152: 4.83 | M152: HW | N152: 0.2956521739 | O152: 16:28:00 | P152: 12:00:00 | Q152: 18:00:00 | R152: 0.2555555555 | S152: 44232.69572 | T152: 6.473043478 | U152: 44232.76169 | V152: 44232.6966 | W152: 6.243478261 | X152: 44232.62917 | Y152: 44232.67052 | Z152: 4.754782609 | AA152: 44232.66011 | AB152: 44232.66528 | AC152: 4.354782609 | AD152: Opn | AE152: 44232.55069 | AF152: 44232.67126 | AG152: 3.825217391 | AH152: 44232.64437 | AI152: 4.195652174 | AJ152: 44232.6983 | AK152: 6.373043478 | AL152: 44232.70089 | AM152: 6.302608696 | AN152: 44232.69483 | AO152: 6.143478261 | AP152: 44232.70258 | AQ152: 5.543478261 | AR152: 44232.67569 | AS152: 44232.69653 | AT152: 44232.6652 | AU152: 4.354782609 | AV152: 44232.6652 | AW152: 4.154782609 | AX152: 44232.64178 | AY152: 3.884347826 | AZ152: 44232.63831 | BA152: 3.754782609 | BB152: 44232.63484 | BC152: 3.725217391 | BD152: 44232.57855 | BE152: 3.554782609 | BF152: 44232.67569 | BH152: 44232.7125 | BI152: 44232.71736 | BK152: 2025-02-06T17:06:00 | BL152: 44232.7125
A153: 0 | B153: =IF(Instructions!$C$2="BST",A153,0) -> 0 | C153: 2025-02-06T22:51:00 | D153: 2025-02-06 | F153: 2 | I153: 4 | K153: 44232.95208 | L153: 1.85 | M153: LW | N153: 0.1297709924 | O153: 22:51:00 | P153: 17:00:00 | Q153: 23:00:00 | R153: 0.02500000001 | S153: 44232.97674 | T153: 2.279389313 | U153: 44233.04271 | V153: 44232.97595 | W153: 2.092366412 | X153: 44232.87917 | Y153: 44232.9526 | Z153: 1.844274809 | AA153: 44232.94115 | AB153: 44232.94896 | AC153: 1.73129771 | AD153: Cls | AE153: 44232.77986 | AF153: 44232.94826 | AG153: 1.644274809 | AH153: 44232.93802 | AI153: 1.744274809 | AJ153: 44232.97665 | AK153: 2.292366412 | AL153: 44232.97665 | AM153: 2.292366412 | AN153: 44232.96962 | AO153: 2.292366412 | AP153: 44232.97648 | AQ153: 2.105343511 | AR153: 44232.94167 | AS153: 44232.96597 | AT153: 44232.94167 | AU153: 1.844274809 | AV153: 44232.94184 | AW153: 1.83129771 | AX153: 44232.93802 | AY153: 1.644274809 | AZ153: 44232.93455 | BA153: 1.63129771 | BB153: 44232.92769 | BC153: 1.73129771 | BD153: 44232.88255 | BE153: 1.383206107 | BF153: 44232.97639 | BH153: 44232.99653 | BI153: 44232.98333 | BK153: 2025-02-06T23:55:00 | BL153: 44232.99653
A154: 0 | B154: =IF(Instructions!$C$2="BST",A154,0) -> 0 | C154: 2025-02-07T05:15:00 | D154: 2025-02-07 | E154: 2025-02-07 | F154: 2 | G154: Feb | H154: 7 | I154: 5 | J154: Fri | K154: 44233.21875 | L154: 4.53 | M154: HW | N154: 0.0347826087 | O154: 05:15:00 | P154: 00:00:00 | Q154: 06:00:00 | R154: 0.125 | S154: 44233.227 | T154: 6.055652174 | U154: 44233.29297 | V154: 44233.22743 | W154: 5.852173913 | X154: 44233.15764 | Y154: 44233.20226 | Z154: 4.44173913 | AA154: 44233.19184 | AB154: 44233.19792 | AC154: 4.04173913 | AD154: Opn | AE154: 44233.08333 | AF154: 44233.20616 | AG154: 3.53826087 | AH154: 44233.17882 | AI154: 3.934782609 | AJ154: 44233.23003 | AK154: 5.955652174 | AL154: 44233.23307 | AM154: 5.859130435 | AN154: 44233.22656 | AO154: 5.752173913 | AP154: 44233.23568 | AQ154: 5.152173913 | AR154: 44233.20833 | AS154: 44233.22917 | AT154: 44233.19965 | AU154: 4.04173913 | AV154: 44233.19965 | AW154: 3.84173913 | AX154: 44233.17578 | AY154: 3.545217391 | AZ154: 44233.17231 | BA154: 3.44173913 | BB154: 44233.16884 | BC154: 3.43826087 | BD154: 44233.10938 | BE154: 3.24173913 | BF154: 44233.20833 | BH154: 44233.24097 | BI154: 44233.25 | BK154: 2025-02-07T05:47:00 | BL154: 44233.24097
A155: 0 | B155: =IF(Instructions!$C$2="BST",A155,0) -> 0 | C155: 2025-02-07T11:33:00 | D155: 2025-02-07 | E155: Fri | F155: 2 | I155: 5 | K155: 44233.48125 | L155: 1.96 | M155: LW | N155: 0.04580152672 | O155: 11:33:00 | P155: 17:00:00 | Q155: 11:00:00 | R155: 0.09166666666 | S155: 44233.50683 | T155: 2.422137405 | U155: 44233.5728 | V155: 44233.50396 | W155: 2.226717557 | X155: 44233.40764 | Y155: 44233.48316 | Z155: 1.945038168 | AA155: 44233.46892 | AB155: 44233.47905 | AC155: 1.840458015 | AD155: Cls | AE155: 44233.3125 | AF155: 44233.4765 | AG155: 1.745038168 | AH155: 44233.46672 | AI155: 1.845038168 | AJ155: 44233.50651 | AK155: 2.426717557 | AL155: 44233.50651 | AM155: 2.426717557 | AN155: 44233.49925 | AO155: 2.426717557 | AP155: 44233.50587 | AQ155: 2.23129771 | AR155: 44233.47083 | AS155: 44233.49514 | AT155: 44233.47083 | AU155: 1.945038168 | AV155: 44233.47147 | AW155: 1.940458015 | AX155: 44233.46672 | AY155: 1.745038168 | AZ155: 44233.46325 | BA155: 1.740458015 | BB155: 44233.45663 | BC155: 1.840458015 | BD155: 44233.41149 | BE155: 1.458778626 | BF155: 44233.50556 | BH155: 44233.525 | BI155: 44233.5125 | BK155: 2025-02-07T12:36:00 | BL155: 44233.525
A156: 0 | B156: =IF(Instructions!$C$2="BST",A156,0) -> 0 | C156: 2025-02-07T17:58:00 | D156: 2025-02-07 | F156: 2 | I156: 5 | K156: 44233.74861 | L156: 4.64 | M156: HW | N156: 0.1304347826 | O156: 17:58:00 | P156: 12:00:00 | Q156: 18:00:00 | R156: 0.005555555545 | S156: 44233.75561 | T156: 6.208695652 | U156: 44233.82159 | V156: 44233.75563 | W156: 5.995652174 | X156: 44233.68958 | Y156: 44233.73129 | Z156: 4.556521739 | AA156: 44233.72087 | AB156: 44233.72778 | AC156: 4.156521739 | AD156: Opn | AE156: 44233.61319 | AF156: 44233.7381 | AG156: 3.643478261 | AH156: 44233.71034 | AI156: 4.030434783 | AJ156: 44233.75907 | AK156: 6.108695652 | AL156: 44233.76252 | AM156: 6.02173913 | AN156: 44233.75559 | AO156: 5.895652174 | AP156: 44233.76595 | AQ156: 5.295652174 | AR156: 44233.73819 | AS156: 44233.75903 | AT156: 44233.73117 | AU156: 4.156521739 | AV156: 44233.73117 | AW156: 3.956521739 | AX156: 44233.70689 | AY156: 3.669565217 | AZ156: 44233.70341 | BA156: 3.556521739 | BB156: 44233.69994 | BC156: 3.543478261 | BD156: 44233.63758 | BE156: 3.356521739 | BF156: 44233.73819 | BH156: 44233.77292 | BI156: 44233.77986 | BK156: 2025-02-07T18:33:00 | BL156: 44233.77292
A157: 0 | B157: =IF(Instructions!$C$2="BST",A157,0) -> 0 | C157: 2025-02-08T00:16:00 | D157: 2025-02-08 | E157: 2025-02-08 | F157: 2 | G157: Feb | H157: 8 | I157: 6 | J157: Sat | K157: 44234.01111 | L157: 1.99 | M157: LW | N157: 0.02290076336 | O157: 00:16:00 | P157: 05:00:00 | Q157: -0.04166666667 | R157: 0.2111111111 | S157: 44234.03835 | T157: 2.461068702 | U157: 44234.10432 | V157: 44234.03175 | W157: 2.263358779 | X157: 44233.93958 | Y157: 44234.01551 | Z157: 1.972519084 | AA157: 44233.9963 | AB157: 44234.01057 | AC157: 1.870229008 | AD157: Cls | AE157: 44233.84236 | AF157: 44234.00471 | AG157: 1.772519084 | AH157: 44233.99576 | AI157: 1.872519084 | AJ157: 44234.03762 | AK157: 2.463358779 | AL157: 44234.03762 | AM157: 2.463358779 | AN157: 44234.02994 | AO157: 2.463358779 | AP157: 44234.03615 | AQ157: 2.265648855 | AR157: 44234.00069 | AS157: 44234.025 | AT157: 44234.00069 | AU157: 1.972519084 | AV157: 44234.00216 | AW157: 1.970229008 | AX157: 44233.99576 | AY157: 1.772519084 | AZ157: 44233.99228 | BA157: 1.770229008 | BB157: 44233.98607 | BC157: 1.870229008 | BD157: 44233.94093 | BE157: 1.479389313 | BF157: 44234.03542 | BH157: 44234.05556 | BI157: 44234.04236 | BK157: 2025-02-08T01:20:00 | BL157: 44234.05556
A158: 0 | B158: =IF(Instructions!$C$2="BST",A158,0) -> 0 | C158: 2025-02-08T06:48:00 | D158: 2025-02-08 | E158: Sat | F158: 2 | I158: 6 | K158: 44234.28333 | L158: 4.59 | M158: HW | N158: 0.08695652174 | O158: 06:48:00 | P158: 12:00:00 | Q158: 06:00:00 | R158: 0.1333333333 | S158: 44234.29167 | T158: 6.139130435 | U158: 44234.35764 | V158: 44234.29213 | W158: 5.930434783 | X158: 44234.22361 | Y158: 44234.2669 | Z158: 4.504347826 | AA158: 44234.25648 | AB158: 44234.2625 | AC158: 4.104347826 | AD158: Opn | AE158: 44234.14792 | AF158: 44234.2706 | AG158: 3.595652174 | AH158: 44234.24329 | AI158: 3.986956522 | AJ158: 44234.29468 | AK158: 6.039130435 | AL158: 44234.29769 | AM158: 5.947826087 | AN158: 44234.2912 | AO158: 5.830434783 | AP158: 44234.30023 | AQ158: 5.230434783 | AR158: 44234.27292 | AS158: 44234.29375 | AT158: 44234.26412 | AU158: 4.104347826 | AV158: 44234.26412 | AW158: 3.904347826 | AX158: 44234.24028 | AY158: 3.613043478 | AZ158: 44234.23681 | BA158: 3.504347826 | BB158: 44234.23333 | BC158: 3.495652174 | BD158: 44234.17407 | BE158: 3.304347826 | BF158: 44234.27292 | BH158: 44234.30694 | BI158: 44234.31458 | BK158: 2025-02-08T07:22:00 | BL158: 44234.30694
A159: 0 | B159: =IF(Instructions!$C$2="BST",A159,0) -> 0 | C159: 2025-02-08T13:00:00 | D159: 2025-02-08 | F159: 2 | I159: 6 | K159: 44234.54167 | L159: 1.88 | M159: LW | N159: 0.106870229 | O159: 13:00:00 | P159: 17:00:00 | Q159: 11:00:00 | R159: 0.3333333333 | S159: 44234.5706 | T159: 2.318320611 | U159: 44234.63657 | V159: 44234.56019 | W159: 2.129007634 | X159: 44234.47361 | Y159: 44234.54861 | Z159: 1.871755725 | AA159: 44234.52431 | AB159: 44234.54282 | AC159: 1.761068702 | AD159: Cls | AE159: 44234.37708 | AF159: 44234.53356 | AG159: 1.671755725 | AH159: 44234.52546 | AI159: 1.771755725 | AJ159: 44234.56944 | AK159: 2.329007634 | AL159: 44234.56944 | AM159: 2.329007634 | AN159: 44234.56134 | AO159: 2.329007634 | AP159: 44234.56713 | AQ159: 2.139694656 | AR159: 44234.53125 | AS159: 44234.55556 | AT159: 44234.53125 | AU159: 1.871755725 | AV159: 44234.53356 | AW159: 1.861068702 | AX159: 44234.52546 | AY159: 1.671755725 | AZ159: 44234.52199 | BA159: 1.661068702 | BB159: 44234.5162 | BC159: 1.761068702 | BD159: 44234.47106 | BE159: 1.403816794 | BF159: 44234.56597 | BH159: 44234.59236 | BI159: 44234.57292 | BK159: 2025-02-08T14:13:00 | BL159: 44234.59236
A160: 0 | B160: =IF(Instructions!$C$2="BST",A160,0) -> 0 | C160: 2025-02-08T19:27:00 | D160: 2025-02-08 | F160: 2 | I160: 6 | K160: 44234.81042 | L160: 4.7 | M160: HW | N160: 0.1826086957 | O160: 19:27:00 | P160: 1 | Q160: 18:00:00 | R160: 0.2416666667 | S160: =IF($M160="HW",$K160+S$6+(S$5-S$6)*$R160,$K160+S$8+(S$7-S$8)*$R160) -> 44234.81988 | T160: 6.292173913 | U160: 44234.88585 | V160: 44234.82072 | W160: 6.073913043 | X160: 44234.75417 | Y160: =IF($M160="HW",$K160+Y$6+(Y$5-Y$6)*$R160,$K160+Y$8+(Y$7-Y$8)*$R160) -> 44234.79473 | Z160: 4.619130435 | AA160: 44234.78432 | AB160: 44234.78958 | AC160: 4.219130435 | AD160: Opn | AE160: 44234.675 | AF160: 44234.7958 | AG160: 3.700869565 | AH160: 44234.76887 | AI160: 4.082608696 | AJ160: 44234.82251 | AK160: 6.192173913 | AL160: 44234.82514 | AM160: 6.110434783 | AN160: 44234.81904 | AO160: 5.973913043 | AP160: 44234.82694 | AQ160: 5.373913043 | AR160: =IF($M160="HW",$K160+AR$6+(AR$5-AR$6)*$R160,$K160+AR$8+(AR$7-AR$8)*$R160) -> 44234.8 | AS160: 44234.82083 | AT160: 44234.7897 | AU160: 4.219130435 | AV160: 44234.7897 | AW160: 4.019130435 | AX160: 44234.76623 | AY160: 3.737391304 | AZ160: 44234.76276 | BA160: 3.619130435 | BB160: 44234.75929 | BC160: 3.600869565 | BD160: 44234.70266 | BE160: 3.419130435 | BF160: =IF($M160="HW",$K160+BF$6+(BF$5-BF$6)*$R160,$K160+BF$8+(BF$7-BF$8)*$R160) -> 44234.8 | BH160: 44234.8375 | BI160: 44234.84167 | BK160: 2025-02-08T20:06:00 | BL160: 44234.8375
A161: 0 | B161: =IF(Instructions!$C$2="BST",A161,0) -> 0 | C161: 2025-02-09T01:34:00 | D161: 2025-02-09 | E161: 2025-02-09 | F161: 2 | G161: Feb | H161: 9 | I161: 7 | J161: Sun | K161: 44235.06528 | L161: 1.89 | M161: LW | N161: 0.09923664122 | O161: 01:34:00 | P161: 05:00:00 | Q161: -0.04166666667 | R161: 0.4277777778 | S161: 44235.09552 | T161: 2.33129771 | U161: 44235.1615 | V161: 44235.08216 | W161: 2.141221374 | X161: 44235.00417 | Y161: 44235.07419 | Z161: 1.880916031 | AA161: 44235.04595 | AB161: 44235.06775 | AC161: 1.770992366 | AD161: Cls | AE161: 44234.90417 | AF161: 44235.05586 | AG161: 1.680916031 | AH161: 44235.04842 | AI161: 1.780916031 | AJ161: 44235.09404 | AK161: 2.341221374 | AL161: 44235.09404 | AM161: 2.341221374 | AN161: 44235.08561 | AO161: 2.341221374 | AP161: 44235.09107 | AQ161: 2.151145038 | AR161: 44235.05486 | AS161: 44235.07917 | AT161: 44235.05486 | AU161: 1.880916031 | AV161: 44235.05783 | AW161: 1.870992366 | AX161: 44235.04842 | AY161: 1.680916031 | AZ161: 44235.04495 | BA161: 1.670992366 | BB161: 44235.03949 | BC161: 1.770992366 | BD161: 44234.99435 | BE161: 1.410687023 | BF161: 44235.08958 | BH161: 44235.11806 | BI161: 44235.09653 | BK161: 2025-02-09T02:50:00 | BL161: 44235.11806
A162: 0 | B162: =IF(Instructions!$C$2="BST",A162,0) -> 0 | C162: 2025-02-09T08:02:00 | D162: 2025-02-09 | E162: Sun | F162: 2 | I162: 7 | K162: 44235.33472 | L162: 4.85 | M162: HW | N162: 0.3130434783 | O162: 08:02:00 | P162: 12:00:00 | Q162: 06:00:00 | R162: 0.3388888889 | S162: 44235.3452 | T162: 6.500869565 | U162: 44235.41117 | V162: 44235.34637 | W162: 6.269565217 | X162: 44235.28056 | Y162: 44235.31971 | Z162: 4.775652174 | AA162: 44235.3093 | AB162: 44235.31389 | AC162: 4.375652174 | AD162: Opn | AE162: 44235.19931 | AF162: 44235.31842 | AG162: 3.844347826 | AH162: 44235.29182 | AI162: 4.213043478 | AJ162: 44235.34749 | AK162: 6.400869565 | AL162: 44235.34979 | AM162: 6.332173913 | AN162: 44235.34402 | AO162: 6.169565217 | AP162: 44235.35091 | AQ162: 5.569565217 | AR162: 44235.32431 | AS162: 44235.34514 | AT162: 44235.31265 | AU162: 4.375652174 | AV162: 44235.31265 | AW162: 4.175652174 | AX162: 44235.28953 | AY162: 3.906956522 | AZ162: 44235.28605 | BA162: 3.775652174 | BB162: 44235.28258 | BC162: 3.744347826 | BD162: 44235.22832 | BE162: 3.575652174 | BF162: 44235.32431 | BH162: 44235.36389 | BI162: 44235.36597 | BK162: 2025-02-09T08:44:00 | BL162: 44235.36389
A163: 0 | B163: =IF(Instructions!$C$2="BST",A163,0) -> 0 | C163: 2025-02-09T14:10:00 | D163: 2025-02-09 | F163: 2 | I163: 7 | K163: 44235.59028 | L163: 1.61 | M163: LW | N163: 0.3129770992 | O163: 14:10:00 | P163: 17:00:00 | Q163: 11:00:00 | R163: 0.5277777778 | S163: 44235.62191 | T163: 1.967938931 | U163: 44235.68789 | V163: 44235.60542 | W163: 1.799236641 | X163: 44235.53056 | Y163: 44235.60127 | Z163: 1.624427481 | AA163: 44235.56887 | AB163: 44235.59414 | AC163: 1.493129771 | AD163: Cls | AE163: 44235.42847 | AF163: 44235.57948 | AG163: 1.424427481 | AH163: 44235.57272 | AI163: 1.524427481 | AJ163: 44235.62008 | AK163: 1.999236641 | AL163: 44235.62008 | AM163: 1.999236641 | AN163: 44235.6113 | AO163: 1.999236641 | AP163: 44235.61642 | AQ163: 1.830534351 | AR163: 44235.57986 | AS163: 44235.60417 | AT163: 44235.57986 | AU163: 1.624427481 | AV163: 44235.58353 | AW163: 1.593129771 | AX163: 44235.57272 | AY163: 1.424427481 | AZ163: 44235.56925 | BA163: 1.393129771 | BB163: 44235.56414 | BC163: 1.493129771 | BD163: 44235.519 | BE163: 1.218320611 | BF163: 44235.61458 | BH163: 44235.64722 | BI163: 44235.62153 | BK163: 2025-02-09T15:32:00 | BL163: 44235.64722
A164: 0 | B164: =IF(Instructions!$C$2="BST",A164,0) -> 0 | C164: 2025-02-09T20:33:00 | D164: 2025-02-09 | F164: 2 | I164: 7 | K164: 44235.85625 | L164: 4.9 | M164: HW | N164: 0.3565217391 | O164: 20:33:00 | P164: 1 | Q164: 18:00:00 | R164: 0.425 | S164: 44235.86762 | T164: 6.570434783 | U164: 44235.93359 | V164: 44235.8691 | W164: 6.334782609 | X164: 44235.80208 | Y164: 44235.84184 | Z164: 4.827826087 | AA164: 44235.83142 | AB164: 44235.83542 | AC164: 4.427826087 | AD164: Opn | AE164: 44235.72083 | AF164: 44235.83845 | AG164: 3.892173913 | AH164: 44235.81215 | AI164: 4.256521739 | AJ164: 44235.86962 | AK164: 6.470434783 | AL164: 44235.87161 | AM164: 6.406086957 | AN164: 44235.86615 | AO164: 6.234782609 | AP164: 44235.87214 | AQ164: 5.634782609 | AR164: 44235.84583 | AS164: 44235.86667 | AT164: 44235.83299 | AU164: 4.427826087 | AV164: 44235.83299 | AW164: 4.227826087 | AX164: 44235.81016 | AY164: 3.963478261 | AZ164: 44235.80668 | BA164: 3.827826087 | BB164: 44235.80321 | BC164: 3.792173913 | BD164: 44235.75104 | BE164: 3.627826087 | BF164: 44235.84583 | BH164: 44235.88542 | BI164: 44235.8875 | BK164: 2025-02-09T21:15:00 | BL164: 44235.88542
A165: 0 | B165: =IF(Instructions!$C$2="BST",A165,0) -> 0 | C165: 2025-02-10T02:33:00 | D165: 2025-02-10 | E165: 2025-02-10 | F165: 2 | G165: Feb | H165: 10 | I165: 1 | J165: Mon | K165: 44236.10625 | L165: 1.67 | M165: LW | N165: 0.2671755725 | O165: 02:33:00 | P165: 05:00:00 | Q165: -0.04166666667 | R165: 0.5916666667 | S165: 44236.13877 | T165: 2.045801527 | U165: 44236.20475 | V165: 44236.12028 | W165: 1.872519084 | X165: 44236.05208 | Y165: 44236.11858 | Z165: 1.679389313 | AA165: 44236.08351 | AB165: 44236.111 | AC165: 1.552671756 | AD165: Cls | AE165: 44235.95 | AF165: 44236.09456 | AG165: 1.479389313 | AH165: 44236.08825 | AI165: 1.579389313 | AJ165: 44236.13672 | AK165: 2.072519084 | AL165: 44236.13672 | AM165: 2.072519084 | AN165: 44236.12772 | AO165: 2.072519084 | AP165: 44236.13261 | AQ165: 1.899236641 | AR165: 44236.09583 | AS165: 44236.12014 | AT165: 44236.09583 | AU165: 1.679389313 | AV165: 44236.09994 | AW165: 1.652671756 | AX165: 44236.08825 | AY165: 1.479389313 | AZ165: 44236.08478 | BA165: 1.452671756 | BB165: 44236.07989 | BC165: 1.552671756 | BD165: 44236.03475 | BE165: 1.259541985 | BF165: 44236.13056 | BH165: 44236.16528 | BI165: 44236.1375 | BK165: 2025-02-10T03:58:00 | BL165: 44236.16528
A166: 0 | B166: =IF(Instructions!$C$2="BST",A166,0) -> 0 | C166: 2025-02-10T08:57:00 | D166: 2025-02-10 | E166: Mon | F166: 2 | I166: 1 | K166: 44236.37292 | L166: 5.15 | M166: HW | N166: 0.5739130435 | O166: 08:57:00 | P166: 12:00:00 | Q166: 06:00:00 | R166: 0.4916666667 | S166: 44236.38498 | T166: 6.91826087 | U166: 44236.45095 | V166: 44236.38669 | W166: 6.660869565 | X166: 44236.32014 | Y166: 44236.35897 | Z166: 5.088695652 | AA166: 44236.34855 | AB166: 44236.35208 | AC166: 4.688695652 | AD166: Opn | AE166: 44236.2375 | AF166: 44236.35396 | AG166: 4.131304348 | AH166: 44236.32789 | AI166: 4.473913043 | AJ166: 44236.38675 | AK166: 6.81826087 | AL166: 44236.38851 | AM166: 6.775652174 | AN166: 44236.38328 | AO166: 6.560869565 | AP166: 44236.38857 | AQ166: 5.960869565 | AR166: 44236.3625 | AS166: 44236.38333 | AT166: 44236.34873 | AU166: 4.688695652 | AV166: 44236.34873 | AW166: 4.488695652 | AX166: 44236.32613 | AY166: 4.246086957 | AZ166: 44236.32266 | BA166: 4.088695652 | BB166: 44236.31918 | BC166: 4.031304348 | BD166: 44236.26863 | BE166: 3.888695652 | BF166: 44236.3625 | BH166: 44236.40347 | BI166: 44236.40417 | BK166: 2025-02-10T09:41:00 | BL166: 44236.40347
A167: 0 | B167: =IF(Instructions!$C$2="BST",A167,0) -> 0 | C167: 2025-02-10T15:05:00 | D167: 2025-02-10 | F167: 2 | I167: 1 | K167: 44236.62847 | L167: 1.3 | M167: LW | N167: 0.5496183206 | O167: 15:05:00 | P167: 17:00:00 | Q167: 11:00:00 | R167: 0.6805555555 | S167: 44236.66223 | T167: 1.565648855 | U167: 44236.7282 | V167: 44236.64096 | W167: 1.420610687 | X167: 44236.57014 | Y167: 44236.64265 | Z167: 1.340458015 | AA167: 44236.60388 | AB167: 44236.63445 | AC167: 1.185496183 | AD167: Cls | AE167: 44236.46667 | AF167: 44236.61555 | AG167: 1.140458015 | AH167: 44236.60986 | AI167: 1.240458015 | AJ167: 44236.65987 | AK167: 1.620610687 | AL167: 44236.65987 | AM167: 1.620610687 | AN167: 44236.65056 | AO167: 1.620610687 | AP167: 44236.65514 | AQ167: 1.475572519 | AR167: 44236.61806 | AS167: 44236.64236 | AT167: 44236.61806 | AU167: 1.340458015 | AV167: 44236.62278 | AW167: 1.285496183 | AX167: 44236.60986 | AY167: 1.140458015 | AZ167: 44236.60639 | BA167: 1.085496183 | BB167: 44236.6018 | BC167: 1.185496183 | BD167: 44236.55666 | BE167: 1.005343511 | BF167: 44236.65278 | BH167: 44236.68889 | BI167: 44236.65972 | BK167: 2025-02-10T16:32:00 | BL167: 44236.68889
A168: 0 | B168: =IF(Instructions!$C$2="BST",A168,0) -> 0 | C168: 2025-02-10T21:23:00 | D168: 2025-02-10 | F168: 2 | I168: 1 | K168: 44236.89097 | L168: 5.1 | M168: HW | N168: 0.5304347826 | O168: 21:23:00 | P168: 1 | Q168: 18:00:00 | R168: 0.5638888889 | S168: 44236.90379 | T168: 6.848695652 | U168: 44236.96976 | V168: 44236.90575 | W168: 6.595652174 | X168: 44236.83819 | Y168: 44236.87753 | Z168: 5.036521739 | AA168: 44236.86711 | AB168: 44236.87014 | AC168: 4.636521739 | AD168: Opn | AE168: 44236.75556 | AF168: 44236.87077 | AG168: 4.083478261 | AH168: 44236.84495 | AI168: 4.430434783 | AJ168: 44236.9053 | AK168: 6.748695652 | AL168: 44236.90682 | AM168: 6.70173913 | AN168: 44236.90183 | AO168: 6.495652174 | AP168: 44236.90638 | AQ168: 5.895652174 | AR168: 44236.88056 | AS168: 44236.90139 | AT168: 44236.86578 | AU168: 4.636521739 | AV168: 44236.86578 | AW168: 4.436521739 | AX168: 44236.84343 | AY168: 4.189565217 | AZ168: 44236.83996 | BA168: 4.036521739 | BB168: 44236.83649 | BC168: 3.983478261 | BD168: 44236.78769 | BE168: 3.836521739 | BF168: 44236.88056 | BH168: 44236.92153 | BI168: 44236.92222 | BK168: 2025-02-10T22:07:00 | BL168: 44236.92153
A169: 0 | B169: =IF(Instructions!$C$2="BST",A169,0) -> 0 | C169: 2025-02-11T03:21:00 | D169: 2025-02-11 | E169: 2025-02-11 | F169: 2 | G169: Feb | H169: 11 | I169: 2 | J169: Tue | K169: 44237.13958 | L169: 1.42 | M169: LW | N169: 0.4580152672 | O169: 03:21:00 | P169: 05:00:00 | Q169: -0.04166666667 | R169: 0.725 | S169: 44237.17396 | T169: 1.721374046 | U169: 44237.23993 | V169: 44237.1513 | W169: 1.567175573 | X169: 44237.08819 | Y169: 44237.15469 | Z169: 1.450381679 | AA169: 44237.11406 | AB169: 44237.14618 | AC169: 1.304580153 | AD169: Cls | AE169: 44236.98472 | AF169: 44237.12604 | AG169: 1.250381679 | AH169: 44237.12066 | AI169: 1.350381679 | AJ169: 44237.17144 | AK169: 1.767175573 | AL169: 44237.17144 | AM169: 1.767175573 | AN169: 44237.16198 | AO169: 1.767175573 | AP169: 44237.16641 | AQ169: 1.612977099 | AR169: 44237.12917 | AS169: 44237.15347 | AT169: 44237.12917 | AU169: 1.450381679 | AV169: 44237.1342 | AW169: 1.404580153 | AX169: 44237.12066 | AY169: 1.250381679 | AZ169: 44237.11719 | BA169: 1.204580153 | BB169: 44237.11276 | BC169: 1.304580153 | BD169: 44237.06762 | BE169: 1.08778626 | BF169: 44237.16389 | BH169: 44237.20208 | BI169: 44237.17083 | BK169: 2025-02-11T04:51:00 | BL169: 44237.20208
A170: 0 | B170: =IF(Instructions!$C$2="BST",A170,0) -> 0 | C170: 2025-02-11T09:41:00 | D170: 2025-02-11 | E170: Tue | F170: 2 | I170: 2 | K170: 44237.40347 | L170: 5.41 | M170: HW | N170: 0.8 | O170: 09:41:00 | P170: 12:00:00 | Q170: 06:00:00 | R170: 0.6138888889 | S170: 44237.41681 | T170: 7.28 | U170: 44237.48278 | V170: 44237.41894 | W170: 7 | X170: 44237.35208 | Y170: 44237.39037 | Z170: 5.36 | AA170: 44237.37996 | AB170: 44237.38264 | AC170: 4.96 | AD170: Opn | AE170: 44237.26806 | AF170: 44237.3824 | AG170: 4.38 | AH170: 44237.35675 | AI170: 4.7 | AJ170: 44237.41815 | AK170: 7.18 | AL170: 44237.41949 | AM170: 7.16 | AN170: 44237.41468 | AO170: 6.9 | AP170: 44237.4187 | AQ170: 6.3 | AR170: 44237.39306 | AS170: 44237.41389 | AT170: 44237.37758 | AU170: 4.96 | AV170: 44237.37758 | AW170: 4.76 | AX170: 44237.35541 | AY170: 4.54 | AZ170: 44237.35194 | BA170: 4.36 | BB170: 44237.34847 | BC170: 4.28 | BD170: 44237.30089 | BE170: 4.16 | BF170: 44237.39306 | BH170: 44237.43542 | BI170: 44237.43472 | BK170: 2025-02-11T10:27:00 | BL170: 44237.43542
A171: 0 | B171: =IF(Instructions!$C$2="BST",A171,0) -> 0 | C171: 2025-02-11T15:49:00 | D171: 2025-02-11 | F171: 2 | I171: 2 | K171: 44237.65903 | L171: 1.04 | M171: LW | N171: 0.7480916031 | O171: 15:49:00 | P171: 17:00:00 | Q171: 11:00:00 | R171: 0.8027777778 | S171: 44237.69448 | T171: 1.228244275 | U171: 44237.76046 | V171: 44237.6694 | W171: 1.103053435 | X171: 44237.60208 | Y171: 44237.67575 | Z171: 1.102290076 | AA171: 44237.63189 | AB171: 44237.66671 | AC171: 0.927480916 | AD171: Cls | AE171: 44237.49722 | AF171: 44237.64441 | AG171: 0.9022900763 | AH171: 44237.63956 | AI171: 1.002290076 | AJ171: 44237.6917 | AK171: 1.303053435 | AL171: 44237.6917 | AM171: 1.303053435 | AN171: 44237.68196 | AO171: 1.303053435 | AP171: 44237.68612 | AQ171: 1.177862595 | AR171: 44237.64861 | AS171: 44237.67292 | AT171: 44237.64861 | AU171: 1.102290076 | AV171: 44237.65419 | AW171: 1.027480916 | AX171: 44237.63956 | AY171: 0.9022900763 | AZ171: 44237.63609 | BA171: 0.827480916 | BB171: 44237.63193 | BC171: 0.927480916 | BD171: 44237.5868 | BE171: 0.8267175573 | BF171: 44237.68333 | BH171: 44237.72222 | BI171: 44237.69028 | BK171: 2025-02-11T17:20:00 | BL171: 44237.72222
A172: 0 | B172: =IF(Instructions!$C$2="BST",A172,0) -> 0 | C172: 2025-02-11T22:05:00 | D172: 2025-02-11 | F172: 2 | I172: 2 | K172: 44237.92014 | L172: 5.25 | M172: HW | N172: 0.6608695652 | O172: 22:05:00 | P172: 1 | Q172: 18:00:00 | R172: 0.6805555556 | S172: 44237.93417 | T172: 7.057391304 | U172: 44238.00014 | V172: 44237.93654 | W172: 6.791304348 | X172: 44237.86806 | Y172: 44237.9075 | Z172: 5.193043478 | AA172: 44237.89709 | AB172: 44237.89931 | AC172: 4.793043478 | AD172: Opn | AE172: 44237.78472 | AF172: 44237.89791 | AG172: 4.226956522 | AH172: 44237.87249 | AI172: 4.560869565 | AJ172: 44237.93528 | AK172: 6.957391304 | AL172: 44237.93639 | AM172: 6.923478261 | AN172: 44237.93181 | AO172: 6.691304348 | AP172: 44237.93514 | AQ172: 6.091304348 | AR172: 44237.90972 | AS172: 44237.93056 | AT172: 44237.89333 | AU172: 4.793043478 | AV172: 44237.89333 | AW172: 4.593043478 | AX172: 44237.87138 | AY172: 4.359130435 | AZ172: 44237.86791 | BA172: 4.193043478 | BB172: 44237.86444 | BC172: 4.126956522 | BD172: 44237.81848 | BE172: 3.993043478 | BF172: 44237.90972 | BH172: 44237.95139 | BI172: 44237.95139 | BK172: 2025-02-11T22:50:00 | BL172: 44237.95139
A173: 0 | B173: =IF(Instructions!$C$2="BST",A173,0) -> 0 | C173: 2025-02-12T04:01:00 | D173: 2025-02-12 | E173: 2025-02-12 | F173: 2 | G173: Feb | H173: 12 | I173: 3 | J173: Wed | K173: 44238.16736 | L173: 1.21 | M173: LW | N173: 0.6183206107 | O173: 04:01:00 | P173: 05:00:00 | Q173: -0.04166666667 | R173: 0.8361111111 | S173: 44238.20328 | T173: 1.448854962 | U173: 44238.26925 | V173: 44238.17715 | W173: 1.310687023 | X173: 44238.11806 | Y173: 44238.18478 | Z173: 1.258015267 | AA173: 44238.13953 | AB173: 44238.1755 | AC173: 1.096183206 | AD173: Cls | AE173: 44238.01389 | AF173: 44238.15228 | AG173: 1.058015267 | AH173: 44238.14767 | AI173: 1.158015267 | AJ173: 44238.20038 | AK173: 1.510687023 | AL173: 44238.20038 | AM173: 1.510687023 | AN173: 44238.19053 | AO173: 1.510687023 | AP173: 44238.19457 | AQ173: 1.372519084 | AR173: 44238.15694 | AS173: 44238.18125 | AT173: 44238.15694 | AU173: 1.258015267 | AV173: 44238.16275 | AW173: 1.196183206 | AX173: 44238.14767 | AY173: 1.058015267 | AZ173: 44238.14419 | BA173: 0.9961832061 | BB173: 44238.14015 | BC173: 1.096183206 | BD173: 44238.09501 | BE173: 0.9435114504 | BF173: 44238.19167 | BH173: 44238.23194 | BI173: 44238.19861 | BK173: 2025-02-12T05:34:00 | BL173: 44238.23194
A174: 0 | B174: =IF(Instructions!$C$2="BST",A174,0) -> 0 | C174: 2025-02-12T10:19:00 | D174: 2025-02-12 | E174: Wed | F174: 2 | I174: 3 | K174: 44238.42986 | L174: 5.59 | M174: HW | N174: 0.9565217391 | O174: 10:19:00 | P174: 12:00:00 | Q174: 06:00:00 | R174: 0.7194444444 | S174: 44238.4443 | T174: 7.530434783 | U174: 44238.51027 | V174: 44238.4468 | W174: 7.234782609 | X174: 44238.37917 | Y174: 44238.4175 | Z174: 5.547826087 | AA174: 44238.40708 | AB174: 44238.40903 | AC174: 5.147826087 | AD174: Opn | AE174: 44238.29444 | AF174: 44238.40695 | AG174: 4.552173913 | AH174: 44238.38167 | AI174: 4.856521739 | AJ174: 44238.44527 | AK174: 7.430434783 | AL174: 44238.44625 | AM174: 7.426086957 | AN174: 44238.4418 | AO174: 7.134782609 | AP174: 44238.44472 | AQ174: 6.534782609 | AR174: 44238.41944 | AS174: 44238.44028 | AT174: 44238.40251 | AU174: 5.147826087 | AV174: 44238.40251 | AW174: 4.947826087 | AX174: 44238.3807 | AY174: 4.743478261 | AZ174: 44238.37723 | BA174: 4.547826087 | BB174: 44238.37376 | BC174: 4.452173913 | BD174: 44238.32874 | BE174: 4.347826087 | BF174: 44238.41944 | BH174: 44238.4625 | BI174: 44238.46111 | BK174: 2025-02-12T11:06:00 | BL174: 44238.4625
A175: 0 | B175: =IF(Instructions!$C$2="BST",A175,0) -> 0 | C175: 2025-02-12T16:29:00 | D175: 2025-02-12 | F175: 2 | I175: 3 | K175: 44238.68681 | L175: 0.85 | M175: LW | N175: 0.893129771 | O175: 16:29:00 | P175: 17:00:00 | Q175: 11:00:00 | R175: 0.9138888889 | S175: 44238.7238 | T175: 0.9816793893 | U175: 44238.78978 | V175: 44238.69524 | W175: 0.8709923664 | X175: 44238.62917 | Y175: 44238.70584 | Z175: 0.9282442748 | AA175: 44238.65735 | AB175: 44238.69603 | AC175: 0.7389312977 | AD175: Cls | AE175: 44238.52361 | AF175: 44238.67064 | AG175: 0.7282442748 | AH175: 44238.66657 | AI175: 0.8282442748 | AJ175: 44238.72063 | AK175: 1.070992366 | AL175: 44238.72063 | AM175: 1.070992366 | AN175: 44238.71051 | AO175: 1.070992366 | AP175: 44238.71428 | AQ175: 0.9603053435 | AR175: 44238.67639 | AS175: 44238.70069 | AT175: 44238.67639 | AU175: 0.9282442748 | AV175: 44238.68274 | AW175: 0.8389312977 | AX175: 44238.66657 | AY175: 0.7282442748 | AZ175: 44238.6631 | BA175: 0.6389312977 | BB175: 44238.65933 | BC175: 0.7389312977 | BD175: 44238.61419 | BE175: 0.6961832061 | BF175: 44238.71111 | BH175: 44238.75069 | BI175: 44238.71806 | BK175: 2025-02-12T18:01:00 | BL175: 44238.75069
A176: 0 | B176: =IF(Instructions!$C$2="BST",A176,0) -> 0 | C176: 2025-02-12T22:41:00 | D176: 2025-02-12 | F176: 2 | I176: 3 | K176: 44238.94514 | L176: 5.33 | M176: HW | N176: 0.7304347826 | O176: 22:41:00 | P176: 1 | Q176: 18:00:00 | R176: 0.7805555556 | S176: =IF($M176="HW",$K176+S$6+(S$5-S$6)*$R176,$K176+S$8+(S$7-S$8)*$R176) -> 44238.96021 | T176: 7.168695652 | U176: 44239.02619 | V176: 44238.96292 | W176: 6.895652174 | X176: 44238.89444 | Y176: =IF($M176="HW",$K176+Y$6+(Y$5-Y$6)*$R176,$K176+Y$8+(Y$7-Y$8)*$R176) -> 44238.9332 | Z176: 5.276521739 | AA176: 44238.92278 | AB176: 44238.92431 | AC176: 4.876521739 | AD176: Opn | AE176: 44238.80972 | AF176: 44238.92117 | AG176: 4.303478261 | AH176: 44238.8961 | AI176: 4.630434783 | AJ176: 44238.96098 | AK176: 7.068695652 | AL176: 44238.96174 | AM176: 7.04173913 | AN176: 44238.9575 | AO176: 6.795652174 | AP176: 44238.95979 | AQ176: 6.195652174 | AR176: =IF($M176="HW",$K176+AR$6+(AR$5-AR$6)*$R176,$K176+AR$8+(AR$7-AR$8)*$R176) -> 44238.93472 | AS176: 44238.95556 | AT176: 44238.91694 | AU176: 4.876521739 | AV176: 44238.91694 | AW176: 4.676521739 | AX176: 44238.89534 | AY176: 4.449565217 | AZ176: 44238.89187 | BA176: 4.276521739 | BB176: 44238.8884 | BC176: 4.203478261 | BD176: 44238.84487 | BE176: 4.076521739 | BF176: =IF($M176="HW",$K176+BF$6+(BF$5-BF$6)*$R176,$K176+BF$8+(BF$7-BF$8)*$R176) -> 44238.93472 | BH176: 44238.97778 | BI176: 44238.97639 | BK176: 2025-02-12T23:28:00 | BL176: 44238.97778
A177: 0 | B177: =IF(Instructions!$C$2="BST",A177,0) -> 0 | C177: 2025-02-13T04:38:00 | D177: 2025-02-13 | E177: 2025-02-13 | F177: 2 | G177: Feb | H177: 13 | I177: 4 | J177: Thu | K177: 44239.19306 | L177: 1.06 | M177: LW | N177: 0.7328244275 | O177: 04:38:00 | P177: 05:00:00 | Q177: -0.04166666667 | R177: 0.9388888889 | S177: 44239.2304 | T177: 1.254198473 | U177: 44239.29637 | V177: 44239.20106 | W177: 1.127480916 | X177: 44239.14444 | Y177: 44239.21262 | Z177: 1.120610687 | AA177: 44239.16308 | AB177: 44239.20262 | AC177: 0.9473282443 | AD177: Cls | AE177: 44239.03889 | AF177: 44239.17654 | AG177: 0.920610687 | AH177: 44239.17265 | AI177: 1.020610687 | AJ177: 44239.22714 | AK177: 1.327480916 | AL177: 44239.22714 | AM177: 1.327480916 | AN177: 44239.21694 | AO177: 1.327480916 | AP177: 44239.22062 | AQ177: 1.200763359 | AR177: 44239.18264 | AS177: 44239.20694 | AT177: 44239.18264 | AU177: 1.120610687 | AV177: 44239.18916 | AW177: 1.047328244 | AX177: 44239.17265 | AY177: 0.920610687 | AZ177: 44239.16917 | BA177: 0.8473282443 | BB177: 44239.16549 | BC177: 0.9473282443 | BD177: 44239.12035 | BE177: 0.8404580153 | BF177: 44239.21736 | BH177: 44239.25833 | BI177: 44239.22431 | BK177: 2025-02-13T06:12:00 | BL177: 44239.25833
A178: 0 | B178: =IF(Instructions!$C$2="BST",A178,0) -> 0 | C178: 2025-02-13T10:54:00 | D178: 2025-02-13 | E178: Thu | F178: 2 | I178: 4 | K178: 44239.45417 | L178: 5.68 | M178: HW | N178: 1.034782609 | O178: 10:54:00 | P178: 12:00:00 | Q178: 06:00:00 | R178: 0.8166666667 | S178: 44239.46962 | T178: 7.655652174 | U178: 44239.53559 | V178: 44239.47245 | W178: 7.352173913 | X178: 44239.40347 | Y178: 44239.44248 | Z178: 5.64173913 | AA178: 44239.43206 | AB178: 44239.43333 | AC178: 5.24173913 | AD178: Opn | AE178: 44239.31875 | AF178: 44239.42957 | AG178: 4.63826087 | AH178: 44239.40463 | AI178: 4.934782609 | AJ178: 44239.47025 | AK178: 7.555652174 | AL178: 44239.47089 | AM178: 7.559130435 | AN178: 44239.46678 | AO178: 7.252173913 | AP178: 44239.46869 | AQ178: 6.652173913 | AR178: 44239.44375 | AS178: 44239.46458 | AT178: 44239.42546 | AU178: 5.24173913 | AV178: 44239.42546 | AW178: 5.04173913 | AX178: 44239.40399 | AY178: 4.845217391 | AZ178: 44239.40052 | BA178: 4.64173913 | BB178: 44239.39705 | BC178: 4.53826087 | BD178: 44239.3544 | BE178: 4.44173913 | BF178: 44239.44375 | BH178: 44239.48681 | BI178: 44239.48542 | BK178: 2025-02-13T11:41:00 | BL178: 44239.48681
A179: 0 | B179: =IF(Instructions!$C$2="BST",A179,0) -> 0 | C179: 2025-02-13T17:04:00 | D179: 2025-02-13 | F179: 2 | I179: 4 | K179: 44239.71111 | L179: 0.76 | M179: LW | N179: 0.9618320611 | O179: 17:04:00 | P179: 17:00:00 | Q179: 23:00:00 | R179: 0.9888888889 | S179: 44239.74915 | T179: 0.8648854962 | U179: 44239.81512 | V179: 44239.71825 | W179: 0.7610687023 | X179: 44239.65347 | Y179: 44239.73171 | Z179: 0.8458015267 | AA179: 44239.68009 | AB179: 44239.72137 | AC179: 0.6496183206 | AD179: Cls | AE179: 44239.54792 | AF179: 44239.6939 | AG179: 0.6458015267 | AH179: 44239.69035 | AI179: 0.7458015267 | AJ179: 44239.74572 | AK179: 0.9610687023 | AL179: 44239.74572 | AM179: 0.9610687023 | AN179: 44239.73534 | AO179: 0.9610687023 | AP179: 44239.73885 | AQ179: 0.8572519084 | AR179: 44239.70069 | AS179: 44239.725 | AT179: 44239.70069 | AU179: 0.8458015267 | AV179: 44239.70756 | AW179: 0.7496183206 | AX179: 44239.69035 | AY179: 0.6458015267 | AZ179: 44239.68688 | BA179: 0.5496183206 | BB179: 44239.68337 | BC179: 0.6496183206 | BD179: 44239.63823 | BE179: 0.634351145 | BF179: 44239.73542 | BH179: 44239.77639 | BI179: 44239.74236 | BK179: 2025-02-13T18:38:00 | BL179: 44239.77639
A180: 0 | B180: =IF(Instructions!$C$2="BST",A180,0) -> 0 | C180: 2025-02-13T23:14:00 | D180: 2025-02-13 | F180: 2 | I180: 4 | K180: 44239.96806 | L180: 5.35 | M180: HW | N180: 0.747826087 | O180: 23:14:00 | P180: 1 | Q180: 18:00:00 | R180: 0.8722222222 | S180: 44239.98409 | T180: 7.196521739 | U180: 44240.05006 | V180: 44239.98711 | W180: 6.92173913 | X180: 44239.91806 | Y180: 44239.95675 | Z180: 5.297391304 | AA180: 44239.94633 | AB180: 44239.94722 | AC180: 4.897391304 | AD180: Opn | AE180: 44239.83264 | AF180: 44239.9425 | AG180: 4.322608696 | AH180: 44239.91775 | AI180: 4.647826087 | AJ180: 44239.98453 | AK180: 7.096521739 | AL180: 44239.98497 | AM180: 7.071304348 | AN180: 44239.98106 | AO180: 6.82173913 | AP180: 44239.98239 | AQ180: 6.22173913 | AR180: 44239.95764 | AS180: 44239.97847 | AT180: 44239.93858 | AU180: 4.897391304 | AV180: 44239.93858 | AW180: 4.697391304 | AX180: 44239.9173 | AY180: 4.472173913 | AZ180: 44239.91383 | BA180: 4.297391304 | BB180: 44239.91036 | BC180: 4.222608696 | BD180: 44239.86906 | BE180: 4.097391304 | BF180: 44239.95764 | BH180: 44240.00139 | BI180: 44239.99931 | BK180: 2025-02-14T00:02:00 | BL180: 44240.00139
A181: 0 | B181: =IF(Instructions!$C$2="BST",A181,0) -> 0 | C181: 2025-02-14T05:11:00 | D181: 2025-02-14 | E181: 2025-02-14 | F181: 2 | G181: Feb | H181: 14 | I181: 5 | J181: Fri | K181: 44240.21597 | L181: 0.98 | M181: LW | N181: 0.7938931298 | O181: 05:11:00 | P181: 05:00:00 | Q181: 11:00:00 | R181: 0.9694444445 | S181: 44240.25374 | T181: 1.150381679 | U181: 44240.31971 | V181: 44240.22345 | W181: 1.029770992 | X181: 44240.16806 | Y181: 44240.23617 | Z181: 1.047328244 | AA181: 44240.18536 | AB181: 44240.22596 | AC181: 0.8679389313 | AD181: Cls | AE181: 44240.06181 | AF181: 44240.19904 | AG181: 0.8473282443 | AH181: 44240.19535 | AI181: 0.9473282443 | AJ181: 44240.25038 | AK181: 1.229770992 | AL181: 44240.25038 | AM181: 1.229770992 | AN181: 44240.24007 | AO181: 1.229770992 | AP181: 44240.24364 | AQ181: 1.109160305 | AR181: 44240.20556 | AS181: 44240.22986 | AT181: 44240.20556 | AU181: 1.047328244 | AV181: 44240.21229 | AW181: 0.9679389313 | AX181: 44240.19535 | AY181: 0.8473282443 | AZ181: 44240.19188 | BA181: 0.7679389313 | BB181: 44240.1883 | BC181: 0.8679389313 | BD181: 44240.14316 | BE181: 0.7854961832 | BF181: 44240.24028 | BH181: 44240.28194 | BI181: 44240.24722 | BK181: 2025-02-14T06:46:00 | BL181: 44240.28194
A182: 0 | B182: =IF(Instructions!$C$2="BST",A182,0) -> 0 | C182: 2025-02-14T11:27:00 | D182: 2025-02-14 | E182: Fri | F182: 2 | I182: 5 | K182: 44240.47708 | L182: 5.69 | M182: HW | N182: 1.043478261 | O182: 11:27:00 | P182: 12:00:00 | Q182: 06:00:00 | R182: 0.9083333333 | S182: 44240.49349 | T182: 7.669565217 | U182: 44240.55946 | V182: 44240.49664 | W182: 7.365217391 | X182: 44240.42569 | Y182: 44240.46603 | Z182: 5.652173913 | AA182: 44240.45561 | AB182: 44240.45625 | AC182: 5.252173913 | AD182: Opn | AE182: 44240.34167 | AF182: 44240.4509 | AG182: 4.647826087 | AH182: 44240.42627 | AI182: 4.943478261 | AJ182: 44240.49381 | AK182: 7.569565217 | AL182: 44240.49413 | AM182: 7.573913043 | AN182: 44240.49034 | AO182: 7.265217391 | AP182: 44240.49129 | AQ182: 6.665217391 | AR182: 44240.46667 | AS182: 44240.4875 | AT182: 44240.44711 | AU182: 5.252173913 | AV182: 44240.44711 | AW182: 5.052173913 | AX182: 44240.42595 | AY182: 4.856521739 | AZ182: 44240.42248 | BA182: 4.652173913 | BB182: 44240.41901 | BC182: 4.547826087 | BD182: 44240.37859 | BE182: 4.452173913 | BF182: 44240.46667 | BH182: 44240.50903 | BI182: 44240.50833 | BK182: 2025-02-14T12:13:00 | BL182: 44240.50903
A183: 0 | B183: =IF(Instructions!$C$2="BST",A183,0) -> 0 | C183: 2025-02-14T17:38:00 | D183: 2025-02-14 | F183: 2 | I183: 5 | K183: 44240.73472 | L183: 0.77 | M183: LW | N183: 0.9541984733 | O183: 17:38:00 | P183: 17:00:00 | Q183: 23:00:00 | R183: 0.8944444444 | S183: 44240.77145 | T183: 0.8778625954 | U183: 44240.83742 | V183: 44240.7435 | W183: 0.7732824427 | X183: 44240.67569 | Y183: 44240.75336 | Z183: 0.8549618321 | AA183: 44240.70567 | AB183: 44240.74367 | AC183: 0.6595419847 | AD183: Cls | AE183: 44240.57083 | AF183: 44240.71883 | AG183: 0.6549618321 | AH183: 44240.71462 | AI183: 0.7549618321 | AJ183: 44240.76834 | AK183: 0.9732824427 | AL183: 44240.76834 | AM183: 0.9732824427 | AN183: 44240.75829 | AO183: 0.9732824427 | AP183: 44240.76213 | AQ183: 0.8687022901 | AR183: 44240.72431 | AS183: 44240.74861 | AT183: 44240.72431 | AU183: 0.8549618321 | AV183: 44240.73052 | AW183: 0.7595419847 | AX183: 44240.71462 | AY183: 0.6549618321 | AZ183: 44240.71115 | BA183: 0.5595419847 | BB183: 44240.70731 | BC183: 0.6595419847 | BD183: 44240.66217 | BE183: 0.641221374 | BF183: 44240.75903 | BH183: 44240.8 | BI183: 44240.76597 | BK183: 2025-02-14T19:12:00 | BL183: 44240.8
A184: 0 | B184: =IF(Instructions!$C$2="BST",A184,0) -> 0 | C184: 2025-02-14T23:46:00 | D184: 2025-02-14 | F184: 2 | I184: 5 | K184: 44240.99028 | L184: 5.32 | M184: HW | N184: 0.7217391304 | O184: 23:46:00 | P184: 1 | Q184: 18:00:00 | R184: 0.9611111111 | S184: 44241.00723 | T184: 7.154782609 | U184: 44241.07321 | V184: 44241.01057 | W184: 6.882608696 | X184: 44240.94028 | Y184: 44240.97959 | Z184: 5.266086957 | AA184: 44240.96917 | AB184: 44240.96944 | AC184: 4.866086957 | AD184: Opn | AE184: 44240.85486 | AF184: 44240.96318 | AG184: 4.293913043 | AH184: 44240.93873 | AI184: 4.62173913 | AJ184: 44241.00737 | AK184: 7.054782609 | AL184: 44241.0075 | AM184: 7.026956522 | AN184: 44241.0039 | AO184: 6.782608696 | AP184: 44241.0043 | AQ184: 6.182608696 | AR184: 44240.97986 | AS184: 44241.00069 | AT184: 44240.95957 | AU184: 4.866086957 | AV184: 44240.95957 | AW184: 4.666086957 | AX184: 44240.9386 | AY184: 4.43826087 | AZ184: 44240.93513 | BA184: 4.266086957 | BB184: 44240.93166 | BC184: 4.193913043 | BD184: 44240.89252 | BE184: 4.066086957 | BF184: 44240.97986 | BH184: 44241.02361 | BI184: 44241.02153 | BK184: 2025-02-15T00:34:00 | BL184: 44241.02361
A185: 0 | B185: =IF(Instructions!$C$2="BST",A185,0) -> 0 | C185: 2025-02-15T05:44:00 | D185: 2025-02-15 | E185: 2025-02-15 | F185: 2 | G185: Feb | H185: 15 | I185: 6 | J185: Sat | K185: 44241.23889 | L185: 0.98 | M185: LW | N185: 0.7938931298 | O185: 05:44:00 | P185: 05:00:00 | Q185: 11:00:00 | R185: 0.8777777778 | S185: 44241.27539 | T185: 1.150381679 | U185: 44241.34136 | V185: 44241.24796 | W185: 1.029770992 | X185: 44241.19028 | Y185: 44241.25718 | Z185: 1.047328244 | AA185: 44241.21019 | AB185: 44241.24761 | AC185: 0.8679389313 | AD185: Cls | AE185: 44241.08403 | AF185: 44241.22323 | AG185: 0.8473282443 | AH185: 44241.2189 | AI185: 0.9473282443 | AJ185: 44241.27234 | AK185: 1.229770992 | AL185: 44241.27234 | AM185: 1.229770992 | AN185: 44241.26235 | AO185: 1.229770992 | AP185: 44241.26624 | AQ185: 1.109160305 | AR185: 44241.22847 | AS185: 44241.25278 | AT185: 44241.22847 | AU185: 1.047328244 | AV185: 44241.23457 | AW185: 0.9679389313 | AX185: 44241.2189 | AY185: 0.8473282443 | AZ185: 44241.21543 | BA185: 0.7679389313 | BB185: 44241.21154 | BC185: 0.8679389313 | BD185: 44241.1664 | BE185: 0.7854961832 | BF185: 44241.26319 | BH185: 44241.30208 | BI185: 44241.27014 | BK185: 2025-02-15T07:15:00 | BL185: 44241.30208
A186: 0 | B186: =IF(Instructions!$C$2="BST",A186,0) -> 0 | C186: 2025-02-15T11:57:00 | D186: 2025-02-15 | E186: Sat | F186: 2 | I186: 6 | K186: 44241.49792 | L186: 5.63 | M186: HW | N186: 0.9913043478 | O186: 11:57:00 | P186: 12:00:00 | Q186: 06:00:00 | R186: 0.9916666667 | S186: 44241.51519 | T186: 7.586086957 | U186: 44241.58116 | V186: 44241.51863 | W186: 7.286956522 | X186: 44241.44653 | Y186: 44241.48744 | Z186: 5.589565217 | AA186: 44241.47703 | AB186: 44241.47708 | AC186: 5.189565217 | AD186: Opn | AE186: 44241.3625 | AF186: 44241.47028 | AG186: 4.590434783 | AH186: 44241.44595 | AI186: 4.891304348 | AJ186: 44241.51522 | AK186: 7.486086957 | AL186: 44241.51525 | AM186: 7.485217391 | AN186: 44241.51175 | AO186: 7.186956522 | AP186: 44241.51183 | AQ186: 6.586956522 | AR186: 44241.4875 | AS186: 44241.50833 | AT186: 44241.46678 | AU186: 5.189565217 | AV186: 44241.46678 | AW186: 4.989565217 | AX186: 44241.44592 | AY186: 4.788695652 | AZ186: 44241.44245 | BA186: 4.589565217 | BB186: 44241.43898 | BC186: 4.490434783 | BD186: 44241.40058 | BE186: 4.389565217 | BF186: 44241.4875 | BH186: 44241.52986 | BI186: 44241.52917 | BK186: 2025-02-15T12:43:00 | BL186: 44241.52986
A187: 0 | B187: =IF(Instructions!$C$2="BST",A187,0) -> 0 | C187: 2025-02-15T18:10:00 | D187: 2025-02-15 | F187: 2 | I187: 6 | K187: 44241.75694 | L187: 0.85 | M187: LW | N187: 0.893129771 | O187: 18:10:00 | P187: 17:00:00 | Q187: 23:00:00 | R187: 0.8055555556 | S187: 44241.79244 | T187: 0.9816793893 | U187: 44241.85841 | V187: 44241.76726 | W187: 0.8709923664 | X187: 44241.69653 | Y187: 44241.77373 | Z187: 0.9282442748 | AA187: 44241.72975 | AB187: 44241.76466 | AC187: 0.7389312977 | AD187: Cls | AE187: 44241.59167 | AF187: 44241.74228 | AG187: 0.7282442748 | AH187: 44241.73746 | AI187: 0.8282442748 | AJ187: 44241.78964 | AK187: 1.070992366 | AL187: 44241.78964 | AM187: 1.070992366 | AN187: 44241.7799 | AO187: 1.070992366 | AP187: 44241.78405 | AQ187: 0.9603053435 | AR187: 44241.74653 | AS187: 44241.77083 | AT187: 44241.74653 | AU187: 0.9282442748 | AV187: 44241.75212 | AW187: 0.8389312977 | AX187: 44241.73746 | AY187: 0.7282442748 | AZ187: 44241.73399 | BA187: 0.6389312977 | BB187: 44241.72984 | BC187: 0.7389312977 | BD187: 44241.6847 | BE187: 0.6961832061 | BF187: 44241.78125 | BH187: 44241.82014 | BI187: 44241.78819 | BK187: 2025-02-15T19:41:00 | BL187: 44241.82014
A188: 0 | B188: =IF(Instructions!$C$2="BST",A188,0) -> 0 | C188: 2025-02-16T00:16:00 | D188: 2025-02-16 | E188: 2025-02-16 | F188: 2 | G188: Feb | H188: 16 | I188: 7 | J188: Sun | K188: 44242.01111 | L188: 5.25 | M188: HW | N188: 0.6608695652 | O188: 00:16:00 | P188: 00:00:00 | Q188: 06:00:00 | R188: 0.9555555556 | S188: 44242.02801 | T188: 7.057391304 | U188: 44242.09398 | V188: 44242.03133 | W188: 6.791304348 | X188: 44241.96111 | Y188: 44242.00039 | Z188: 5.193043478 | AA188: 44241.98997 | AB188: 44241.99028 | AC188: 4.793043478 | AD188: Opn | AE188: 44241.87569 | AF188: 44241.9841 | AG188: 4.226956522 | AH188: 44241.95965 | AI188: 4.560869565 | AJ188: 44242.02816 | AK188: 6.957391304 | AL188: 44242.02832 | AM188: 6.923478261 | AN188: 44242.02469 | AO188: 6.691304348 | AP188: 44242.02515 | AQ188: 6.091304348 | AR188: 44242.00069 | AS188: 44242.02153 | AT188: 44241.98048 | AU188: 4.793043478 | AV188: 44241.98048 | AW188: 4.593043478 | AX188: 44241.95949 | AY188: 4.359130435 | AZ188: 44241.95602 | BA188: 4.193043478 | BB188: 44241.95255 | BC188: 4.126956522 | BD188: 44241.91327 | BE188: 3.993043478 | BF188: 44242.00069 | BH188: 44242.04444 | BI188: 44242.04236 | BK188: 2025-02-16T01:04:00 | BL188: 44242.04444
A189: 0 | B189: =IF(Instructions!$C$2="BST",A189,0) -> 0 | C189: 2025-02-16T06:15:00 | D189: 2025-02-16 | E189: Sun | F189: 2 | I189: 7 | K189: 44242.26042 | L189: 1.06 | M189: LW | N189: 0.7328244275 | O189: 06:15:00 | P189: 05:00:00 | Q189: 11:00:00 | R189: 0.7916666667 | S189: 44242.29572 | T189: 1.254198473 | U189: 44242.36169 | V189: 44242.27098 | W189: 1.127480916 | X189: 44242.21111 | Y189: 44242.27691 | Z189: 1.120610687 | AA189: 44242.23351 | AB189: 44242.26794 | AC189: 0.9473282443 | AD189: Cls | AE189: 44242.10486 | AF189: 44242.24595 | AG189: 0.920610687 | AH189: 44242.24103 | AI189: 1.020610687 | AJ189: 44242.29297 | AK189: 1.327480916 | AL189: 44242.29297 | AM189: 1.327480916 | AN189: 44242.28328 | AO189: 1.327480916 | AP189: 44242.28747 | AQ189: 1.200763359 | AR189: 44242.25 | AS189: 44242.27431 | AT189: 44242.25 | AU189: 1.120610687 | AV189: 44242.2555 | AW189: 1.047328244 | AX189: 44242.24103 | AY189: 0.920610687 | AZ189: 44242.23756 | BA189: 0.8473282443 | BB189: 44242.23336 | BC189: 0.9473282443 | BD189: 44242.18822 | BE189: 0.8404580153 | BF189: 44242.28472 | BH189: 44242.32083 | BI189: 44242.29167 | BK189: 2025-02-16T07:42:00 | BL189: 44242.32083
A190: 0 | B190: =IF(Instructions!$C$2="BST",A190,0) -> 0 | C190: 2025-02-16T12:27:00 | D190: 2025-02-16 | F190: 2 | I190: 7 | K190: 44242.51875 | L190: 5.5 | M190: HW | N190: 0.8782608696 | O190: 12:27:00 | P190: 12:00:00 | Q190: 18:00:00 | R190: 0.925 | S190: 44242.53533 | T190: 7.405217391 | U190: 44242.6013 | V190: 44242.53854 | W190: 7.117391304 | X190: 44242.46667 | Y190: 44242.50781 | Z190: 5.453913043 | AA190: 44242.4974 | AB190: 44242.49792 | AC190: 5.053913043 | AD190: Opn | AE190: 44242.38333 | AF190: 44242.49227 | AG190: 4.466086957 | AH190: 44242.46771 | AI190: 4.77826087 | AJ190: 44242.53559 | AK190: 7.305217391 | AL190: 44242.53585 | AM190: 7.293043478 | AN190: 44242.53212 | AO190: 7.017391304 | AP190: 44242.5329 | AQ190: 6.417391304 | AR190: 44242.50833 | AS190: 44242.52917 | AT190: 44242.48854 | AU190: 5.053913043 | AV190: 44242.48854 | AW190: 4.853913043 | AX190: 44242.46745 | AY190: 4.64173913 | AZ190: 44242.46398 | BA190: 4.453913043 | BB190: 44242.4605 | BC190: 4.366086957 | BD190: 44242.42049 | BE190: 4.253913043 | BF190: 44242.50833 | BH190: 44242.55 | BI190: 44242.55 | BK190: 2025-02-16T13:12:00 | BL190: 44242.55
A191: 0 | B191: =IF(Instructions!$C$2="BST",A191,0) -> 0 | C191: 2025-02-16T18:41:00 | D191: 2025-02-16 | F191: 2 | I191: 7 | K191: 44242.77847 | L191: 1.01 | M191: LW | N191: 0.7709923664 | O191: 18:41:00 | P191: 17:00:00 | Q191: 23:00:00 | R191: 0.7194444445 | S191: 44242.81277 | T191: 1.189312977 | U191: 44242.87874 | V191: 44242.79029 | W191: 1.066412214 | X191: 44242.71667 | Y191: 44242.79346 | Z191: 1.07480916 | AA191: 44242.75307 | AB191: 44242.78499 | AC191: 0.8977099237 | AD191: Cls | AE191: 44242.6125 | AF191: 44242.76501 | AG191: 0.8748091603 | AH191: 44242.75959 | AI191: 0.9748091603 | AJ191: 44242.81027 | AK191: 1.266412214 | AL191: 44242.81027 | AM191: 1.266412214 | AN191: 44242.80083 | AO191: 1.266412214 | AP191: 44242.80528 | AQ191: 1.14351145 | AR191: 44242.76806 | AS191: 44242.79236 | AT191: 44242.76806 | AU191: 1.07480916 | AV191: 44242.77305 | AW191: 0.9977099237 | AX191: 44242.75959 | AY191: 0.8748091603 | AZ191: 44242.75611 | BA191: 0.7977099237 | BB191: 44242.75167 | BC191: 0.8977099237 | BD191: 44242.70653 | BE191: 0.8061068702 | BF191: 44242.80278 | BH191: 44242.83819 | BI191: 44242.80972 | BK191: 2025-02-16T20:07:00 | BL191: 44242.83819
A192: 0 | B192: =IF(Instructions!$C$2="BST",A192,0) -> 0 | C192: 2025-02-17T00:46:00 | D192: 2025-02-17 | E192: 2025-02-17 | F192: 2 | G192: Feb | H192: 17 | I192: 1 | J192: Mon | K192: 44243.03194 | L192: 5.15 | M192: HW | N192: 0.5739130435 | O192: 00:46:00 | P192: 00:00:00 | Q192: 06:00:00 | R192: 0.8722222222 | S192: 44243.04797 | T192: 6.91826087 | U192: 44243.11395 | V192: 44243.051 | W192: 6.660869565 | X192: 44242.98194 | Y192: 44243.02064 | Z192: 5.088695652 | AA192: 44243.01022 | AB192: 44243.01111 | AC192: 4.688695652 | AD192: Opn | AE192: 44242.89653 | AF192: 44243.00639 | AG192: 4.131304348 | AH192: 44242.98164 | AI192: 4.473913043 | AJ192: 44243.04842 | AK192: 6.81826087 | AL192: 44243.04886 | AM192: 6.775652174 | AN192: 44243.04495 | AO192: 6.560869565 | AP192: 44243.04628 | AQ192: 5.960869565 | AR192: 44243.02153 | AS192: 44243.04236 | AT192: 44243.00247 | AU192: 4.688695652 | AV192: 44243.00247 | AW192: 4.488695652 | AX192: 44242.98119 | AY192: 4.246086957 | AZ192: 44242.97772 | BA192: 4.088695652 | BB192: 44242.97425 | BC192: 4.031304348 | BD192: 44242.93295 | BE192: 3.888695652 | BF192: 44243.02153 | BH192: 44243.06528 | BI192: 44243.06319 | BK192: 2025-02-17T01:34:00 | BL192: 44243.06528
A193: 0 | B193: =IF(Instructions!$C$2="BST",A193,0) -> 0 | C193: 2025-02-17T06:46:00 | D193: 2025-02-17 | E193: Mon | F193: 2 | I193: 1 | K193: 44243.28194 | L193: 1.21 | M193: LW | N193: 0.6183206107 | O193: 06:46:00 | P193: 05:00:00 | Q193: 11:00:00 | R193: 0.7055555555 | S193: =IF($M193="HW",$K193+S$6+(S$5-S$6)*$R193,$K193+S$8+(S$7-S$8)*$R193) -> 44243.31605 | T193: 1.448854962 | U193: 44243.38202 | V193: 44243.294 | W193: 1.310687023 | X193: 44243.23194 | Y193: =IF($M193="HW",$K193+Y$6+(Y$5-Y$6)*$R193,$K193+Y$8+(Y$7-Y$8)*$R193) -> 44243.29664 | Z193: 1.258015267 | AA193: 44243.25683 | AB193: 44243.28827 | AC193: 1.096183206 | AD193: Cls | AE193: 44243.12569 | AF193: 44243.26867 | AG193: 1.058015267 | AH193: 44243.26316 | AI193: 1.158015267 | AJ193: 44243.3136 | AK193: 1.510687023 | AL193: 44243.3136 | AM193: 1.510687023 | AN193: 44243.30421 | AO193: 1.510687023 | AP193: 44243.3087 | AQ193: 1.372519084 | AR193: =IF($M193="HW",$K193+AR$6+(AR$5-AR$6)*$R193,$K193+AR$8+(AR$7-AR$8)*$R193) -> 44243.27153 | AS193: 44243.29583 | AT193: 44243.27153 | AU193: 1.258015267 | AV193: 44243.27643 | AW193: 1.196183206 | AX193: 44243.26316 | AY193: 1.058015267 | AZ193: 44243.25968 | BA193: 0.9961832061 | BB193: 44243.25519 | BC193: 1.096183206 | BD193: 44243.21005 | BE193: 0.9435114504 | BF193: =IF($M193="HW",$K193+BF$6+(BF$5-BF$6)*$R193,$K193+BF$8+(BF$7-BF$8)*$R193) -> 44243.30625 | BH193: 44243.33819 | BI193: 44243.31319 | BK193: 2025-02-17T08:07:00 | BL193: 44243.33819
A194: 0 | B194: =IF(Instructions!$C$2="BST",A194,0) -> 0 | C194: 2025-02-17T12:58:00 | D194: 2025-02-17 | F194: 2 | I194: 1 | K194: 44243.54028 | L194: 5.34 | M194: HW | N194: 0.7391304348 | O194: 12:58:00 | P194: 12:00:00 | Q194: 18:00:00 | R194: 0.8388888889 | S194: 44243.55596 | T194: 7.182608696 | U194: 44243.62193 | V194: 44243.55887 | W194: 6.908695652 | X194: 44243.4875 | Y194: 44243.52874 | Z194: 5.286956522 | AA194: 44243.51833 | AB194: 44243.51944 | AC194: 4.886956522 | AD194: Opn | AE194: 44243.40486 | AF194: 44243.5153 | AG194: 4.313043478 | AH194: 44243.49043 | AI194: 4.639130435 | AJ194: 44243.55652 | AK194: 7.082608696 | AL194: 44243.55708 | AM194: 7.056521739 | AN194: 44243.55305 | AO194: 6.808695652 | AP194: 44243.55473 | AQ194: 6.208695652 | AR194: 44243.52986 | AS194: 44243.55069 | AT194: 44243.51127 | AU194: 4.886956522 | AV194: 44243.51127 | AW194: 4.686956522 | AX194: 44243.48987 | AY194: 4.460869565 | AZ194: 44243.4864 | BA194: 4.286956522 | BB194: 44243.48293 | BC194: 4.213043478 | BD194: 44243.44082 | BE194: 4.086956522 | BF194: 44243.52986 | BH194: 44243.57083 | BI194: 44243.57153 | BK194: 2025-02-17T13:42:00 | BL194: 44243.57083
A195: 0 | B195: =IF(Instructions!$C$2="BST",A195,0) -> 0 | C195: 2025-02-17T19:12:00 | D195: 2025-02-17 | F195: 2 | I195: 1 | K195: 44243.8 | L195: 1.23 | M195: LW | N195: 0.6030534351 | O195: 19:12:00 | P195: 17:00:00 | Q195: 23:00:00 | R195: 0.6333333333 | S195: 44243.8331 | T195: 1.47480916 | U195: 44243.89907 | V195: 44243.81331 | W195: 1.335114504 | X195: 44243.7375 | Y195: 44243.81319 | Z195: 1.276335878 | AA195: 44243.77639 | AB195: 44243.80532 | AC195: 1.116030534 | AD195: Cls | AE195: 44243.63403 | AF195: 44243.78773 | AG195: 1.076335878 | AH195: 44243.78171 | AI195: 1.176335878 | AJ195: 44243.8309 | AK195: 1.535114504 | AL195: 44243.8309 | AM195: 1.535114504 | AN195: 44243.82176 | AO195: 1.535114504 | AP195: 44243.8265 | AQ195: 1.395419847 | AR195: 44243.78958 | AS195: 44243.81389 | AT195: 44243.78958 | AU195: 1.276335878 | AV195: 44243.79398 | AW195: 1.216030534 | AX195: 44243.78171 | AY195: 1.076335878 | AZ195: 44243.77824 | BA195: 1.016030534 | BB195: 44243.7735 | BC195: 1.116030534 | BD195: 44243.72836 | BE195: 0.9572519084 | BF195: 44243.82431 | BH195: 44243.85556 | BI195: 44243.83125 | BK195: 2025-02-17T20:32:00 | BL195: 44243.85556
A196: 0 | B196: =IF(Instructions!$C$2="BST",A196,0) -> 0 | C196: 2025-02-18T01:17:00 | D196: 2025-02-18 | E196: 2025-02-18 | F196: 2 | G196: Feb | H196: 18 | I196: 2 | J196: Tue | K196: 44244.05347 | L196: 5.02 | M196: HW | N196: 0.4608695652 | O196: 01:17:00 | P196: 00:00:00 | Q196: 06:00:00 | R196: 0.7861111111 | S196: 44244.06861 | T196: 6.737391304 | U196: 44244.13458 | V196: 44244.07133 | W196: 6.491304348 | X196: 44244.00278 | Y196: 44244.04157 | Z196: 4.953043478 | AA196: 44244.03115 | AB196: 44244.03264 | AC196: 4.553043478 | AD196: Opn | AE196: 44243.91806 | AF196: 44244.02941 | AG196: 4.006956522 | AH196: 44244.00436 | AI196: 4.360869565 | AJ196: 44244.06935 | AK196: 6.637391304 | AL196: 44244.07009 | AM196: 6.583478261 | AN196: 44244.06588 | AO196: 6.391304348 | AP196: 44244.0681 | AQ196: 5.791304348 | AR196: 44244.04306 | AS196: 44244.06389 | AT196: 44244.02519 | AU196: 4.553043478 | AV196: 44244.02519 | AW196: 4.353043478 | AX196: 44244.00362 | AY196: 4.099130435 | AZ196: 44244.00014 | BA196: 3.953043478 | BB196: 44243.99667 | BC196: 3.906956522 | BD196: 44243.95328 | BE196: 3.753043478 | BF196: 44244.04306 | BH196: 44244.08611 | BI196: 44244.08472 | BK196: 2025-02-18T02:04:00 | BL196: 44244.08611
A197: 0 | B197: =IF(Instructions!$C$2="BST",A197,0) -> 0 | C197: 2025-02-18T07:18:00 | D197: 2025-02-18 | E197: Tue | F197: 2 | I197: 2 | K197: 44244.30417 | L197: 1.42 | M197: LW | N197: 0.4580152672 | O197: 07:18:00 | P197: 05:00:00 | Q197: 11:00:00 | R197: 0.6166666667 | S197: 44244.33704 | T197: 1.721374046 | U197: 44244.40301 | V197: 44244.31777 | W197: 1.567175573 | X197: 44244.25278 | Y197: 44244.31701 | Z197: 1.450381679 | AA197: 44244.2809 | AB197: 44244.30926 | AC197: 1.304580153 | AD197: Cls | AE197: 44244.14722 | AF197: 44244.29213 | AG197: 1.250381679 | AH197: 44244.286 | AI197: 1.350381679 | AJ197: 44244.3349 | AK197: 1.767175573 | AL197: 44244.3349 | AM197: 1.767175573 | AN197: 44244.32581 | AO197: 1.767175573 | AP197: 44244.33061 | AQ197: 1.612977099 | AR197: 44244.29375 | AS197: 44244.31806 | AT197: 44244.29375 | AU197: 1.450381679 | AV197: 44244.29803 | AW197: 1.404580153 | AX197: 44244.286 | AY197: 1.250381679 | AZ197: 44244.28252 | BA197: 1.204580153 | BB197: 44244.27772 | BC197: 1.304580153 | BD197: 44244.23258 | BE197: 1.08778626 | BF197: 44244.32847 | BH197: 44244.35694 | BI197: 44244.33542 | BK197: 2025-02-18T08:34:00 | BL197: 44244.35694
A198: 0 | B198: =IF(Instructions!$C$2="BST",A198,0) -> 0 | C198: 2025-02-18T13:30:00 | D198: 2025-02-18 | F198: 2 | I198: 2 | K198: 44244.5625 | L198: 5.13 | M198: HW | N198: 0.5565217391 | O198: 13:30:00 | P198: 12:00:00 | Q198: 18:00:00 | R198: 0.75 | S198: 44244.57726 | T198: 6.890434783 | U198: 44244.64323 | V198: 44244.57986 | W198: 6.634782609 | X198: 44244.50833 | Y198: 44244.55035 | Z198: 5.067826087 | AA198: 44244.53993 | AB198: 44244.54167 | AC198: 4.667826087 | AD198: Opn | AE198: 44244.42708 | AF198: 44244.53906 | AG198: 4.112173913 | AH198: 44244.51389 | AI198: 4.456521739 | AJ198: 44244.57812 | AK198: 6.790434783 | AL198: 44244.57899 | AM198: 6.746086957 | AN198: 44244.57465 | AO198: 6.534782609 | AP198: 44244.57726 | AQ198: 5.934782609 | AR198: 44244.55208 | AS198: 44244.57292 | AT198: 44244.53472 | AU198: 4.667826087 | AV198: 44244.53472 | AW198: 4.467826087 | AX198: 44244.51302 | AY198: 4.223478261 | AZ198: 44244.50955 | BA198: 4.067826087 | BB198: 44244.50608 | BC198: 4.012173913 | BD198: 44244.46181 | BE198: 3.867826087 | BF198: 44244.55208 | BH198: 44244.59167 | BI198: 44244.59375 | BK198: 2025-02-18T14:12:00 | BL198: 44244.59167
A199: 0 | B199: =IF(Instructions!$C$2="BST",A199,0) -> 0 | C199: 2025-02-18T19:45:00 | D199: 2025-02-18 | F199: 2 | I199: 2 | K199: 44244.82292 | L199: 1.49 | M199: LW | N199: 0.4045801527 | O199: 19:45:00 | P199: 17:00:00 | Q199: 23:00:00 | R199: 0.5416666667 | S199: 44244.85475 | T199: 1.81221374 | U199: 44244.92072 | V199: 44244.83782 | W199: 1.652671756 | X199: 44244.75833 | Y199: 44244.8342 | Z199: 1.514503817 | AA199: 44244.80122 | AB199: 44244.82697 | AC199: 1.374045802 | AD199: Cls | AE199: 44244.65625 | AF199: 44244.81192 | AG199: 1.314503817 | AH199: 44244.80527 | AI199: 1.414503817 | AJ199: 44244.85286 | AK199: 1.852671756 | AL199: 44244.85286 | AM199: 1.852671756 | AN199: 44244.84404 | AO199: 1.852671756 | AP199: 44244.8491 | AQ199: 1.693129771 | AR199: 44244.8125 | AS199: 44244.83681 | AT199: 44244.8125 | AU199: 1.514503817 | AV199: 44244.81626 | AW199: 1.474045802 | AX199: 44244.80527 | AY199: 1.314503817 | AZ199: 44244.80179 | BA199: 1.274045802 | BB199: 44244.79673 | BC199: 1.374045802 | BD199: 44244.75159 | BE199: 1.135877863 | BF199: 44244.84722 | BH199: 44244.87431 | BI199: 44244.85417 | BK199: 2025-02-18T20:59:00 | BL199: 44244.87431
A200: 0 | B200: =IF(Instructions!$C$2="BST",A200,0) -> 0 | C200: 2025-02-19T01:52:00 | D200: 2025-02-19 | E200: 2025-02-19 | F200: 2 | G200: Feb | H200: 19 | I200: 3 | J200: Wed | K200: 44245.07778 | L200: 4.84 | M200: HW | N200: 0.3043478261 | O200: 01:52:00 | P200: 00:00:00 | Q200: 06:00:00 | R200: 0.6888888889 | S200: 44245.0919 | T200: 6.486956522 | U200: 44245.15787 | V200: 44245.09429 | W200: 6.256521739 | X200: 44245.025 | Y200: 44245.0652 | Z200: 4.765217391 | AA200: 44245.05478 | AB200: 44245.05694 | AC200: 4.365217391 | AD200: Opn | AE200: 44244.94236 | AF200: 44245.0554 | AG200: 3.834782609 | AH200: 44245.03002 | AI200: 4.204347826 | AJ200: 44245.09298 | AK200: 6.386956522 | AL200: 44245.09406 | AM200: 6.317391304 | AN200: 44245.08951 | AO200: 6.156521739 | AP200: 44245.09275 | AQ200: 5.556521739 | AR200: 44245.06736 | AS200: 44245.08819 | AT200: 44245.05085 | AU200: 4.365217391 | AV200: 44245.05085 | AW200: 4.165217391 | AX200: 44245.02894 | AY200: 3.895652174 | AZ200: 44245.02546 | BA200: 3.765217391 | BB200: 44245.02199 | BC200: 3.734782609 | BD200: 44244.97623 | BE200: 3.565217391 | BF200: 44245.06736 | BH200: 44245.10833 | BI200: 44245.10903 | BK200: 2025-02-19T02:36:00 | BL200: 44245.10833
... 1221 more rows

Sheet Tides Raw (hidden)
A1: HHD Datetime UTC | C1: Height | D1: H/L | F1: Lpl Datetime UTC | H1: Height | J1: Diff | L1: Check | M1: =MIN(L:L) -> 5.3
M2: =MAX(L:L) -> 7.133333333
A3: 2025-01-01T04:52:00 | C3: 1.32 | D3: LW | F3: 2025-01-01T06:21:00 | H3: 1.89 | J3: =(F3-A3)*24*60 -> 89 | M3: =MIN(L:L) -> 5.3
A4: 2025-01-01T11:07:00 | C4: 5.64 | D4: HW | F4: 2025-01-01T11:53:00 | H4: 9.08 | J4: =(F4-A4)*24*60 -> 46 | L4: =(F4-F3)*24 -> 5.533333333
A5: 2025-01-01T17:17:00 | C5: 1.12 | D5: LW | F5: 2025-01-01T18:46:00 | H5: 1.61 | J5: =(F5-A5)*24*60 -> 89.00000001 | L5: 6.883333333
A6: 2025-01-01T23:31:00 | C6: 5.34 | D6: HW | F6: 2025-01-02T00:18:00 | H6: 8.76 | J6: =(F6-A6)*24*60 -> 47 | L6: 5.533333333
A7: 2025-01-02T05:31:00 | C7: 1.27 | D7: LW | F7: 2025-01-02T07:02:00 | H7: 1.8 | J7: =(F7-A7)*24*60 -> 91 | L7: 6.733333333
A8: 2025-01-02T11:46:00 | C8: 5.7 | D8: HW | F8: 2025-01-02T12:32:00 | H8: 9.18 | J8: =(F8-A8)*24*60 -> 46 | L8: 5.5
A9: 2025-01-02T17:57:00 | C9: 1.02 | D9: LW | F9: 2025-01-02T19:28:00 | H9: 1.48 | J9: =(F9-A9)*24*60 -> 91 | L9: 6.933333333
A10: 2025-01-03T00:12:00 | C10: 5.32 | D10: HW | F10: 2025-01-03T00:58:00 | H10: 8.75 | J10: =(F10-A10)*24*60 -> 46 | L10: 5.5
A11: 2025-01-03T06:12:00 | C11: 1.26 | D11: LW | F11: 2025-01-03T07:43:00 | H11: 1.8 | J11: =(F11-A11)*24*60 -> 91 | L11: 6.75
A12: 2025-01-03T12:26:00 | C12: 5.7 | D12: HW | F12: 2025-01-03T13:12:00 | H12: 9.2 | J12: =(F12-A12)*24*60 -> 46 | L12: 5.483333333
A13: 2025-01-03T18:40:00 | C13: 0.99 | D13: LW | F13: 2025-01-03T20:09:00 | H13: 1.47 | J13: =(F13-A13)*24*60 -> 89 | L13: 6.95
A14: 2025-01-04T00:55:00 | C14: 5.25 | D14: HW | F14: 2025-01-04T01:40:00 | H14: 8.67 | J14: =(F14-A14)*24*60 -> 45 | L14: 5.516666667
A15: 2025-01-04T06:55:00 | C15: 1.31 | D15: LW | F15: 2025-01-04T08:24:00 | H15: 1.9 | J15: =(F15-A15)*24*60 -> 89 | L15: 6.733333333
A16: 2025-01-04T13:09:00 | C16: 5.65 | D16: HW | F16: 2025-01-04T13:54:00 | H16: 9.14 | J16: =(F16-A16)*24*60 -> 45 | L16: 5.5
A17: 2025-01-04T19:26:00 | C17: 1.02 | D17: LW | F17: 2025-01-04T20:52:00 | H17: 1.57 | J17: =(F17-A17)*24*60 -> 86 | L17: 6.966666666
A18: 2025-01-05T01:40:00 | C18: 5.15 | D18: HW | F18: 2025-01-05T02:25:00 | H18: 8.51 | J18: =(F18-A18)*24*60 -> 45 | L18: 5.55
A19: 2025-01-05T07:41:00 | C19: 1.4 | D19: LW | F19: 2025-01-05T09:06:00 | H19: 2.07 | J19: =(F19-A19)*24*60 -> 84.99999999 | L19: 6.683333333
A20: 2025-01-05T13:55:00 | C20: 5.54 | D20: HW | F20: 2025-01-05T14:39:00 | H20: 8.98 | J20: =(F20-A20)*24*60 -> 44.00000001 | L20: 5.55
A21: 2025-01-05T20:15:00 | C21: 1.13 | D21: LW | F21: 2025-01-05T21:37:00 | H21: 1.78 | J21: =(F21-A21)*24*60 -> 81.99999999 | L21: 6.966666666
A22: 2025-01-06T02:30:00 | C22: 5.01 | D22: HW | F22: 2025-01-06T03:12:00 | H22: 8.29 | J22: =(F22-A22)*24*60 -> 42 | L22: 5.583333333
A23: 2025-01-06T08:32:00 | C23: 1.54 | D23: LW | F23: 2025-01-06T09:53:00 | H23: 2.31 | J23: =(F23-A23)*24*60 -> 81 | L23: 6.683333333
A24: 2025-01-06T14:47:00 | C24: 5.39 | D24: HW | F24: 2025-01-06T15:30:00 | H24: 8.73 | J24: =(F24-A24)*24*60 -> 43 | L24: 5.616666667
A25: 2025-01-06T21:10:00 | C25: 1.29 | D25: LW | F25: 2025-01-06T22:26:00 | H25: 2.05 | J25: =(F25-A25)*24*60 -> 76 | L25: 6.933333333
A26: 2025-01-07T03:26:00 | C26: 4.86 | D26: HW | F26: 2025-01-07T04:06:00 | H26: 8.03 | J26: =(F26-A26)*24*60 -> 39.99999999 | L26: 5.666666667
A27: 2025-01-07T09:31:00 | C27: 1.7 | D27: LW | F27: 2025-01-07T10:46:00 | H27: 2.57 | J27: =(F27-A27)*24*60 -> 75 | L27: 6.666666667
A28: 2025-01-07T15:46:00 | C28: 5.2 | D28: HW | F28: 2025-01-07T16:27:00 | H28: 8.42 | J28: =(F28-A28)*24*60 -> 41 | L28: 5.683333333
A29: 2025-01-07T22:12:00 | C29: 1.47 | D29: LW | F29: 2025-01-07T23:23:00 | H29: 2.34 | J29: =(F29-A29)*24*60 -> 71 | L29: 6.933333333
A30: 2025-01-08T04:31:00 | C30: 4.75 | D30: HW | F30: 2025-01-08T05:06:00 | H30: 7.78 | J30: =(F30-A30)*24*60 -> 35 | L30: 5.716666667
A31: 2025-01-08T10:38:00 | C31: 1.83 | D31: LW | F31: 2025-01-08T11:49:00 | H31: 2.78 | J31: =(F31-A31)*24*60 -> 70.99999999 | L31: 6.716666667
A32: 2025-01-08T16:55:00 | C32: 5.04 | D32: HW | F32: 2025-01-08T17:33:00 | H32: 8.12 | J32: =(F32-A32)*24*60 -> 38 | L32: 5.733333333
A33: 2025-01-08T23:21:00 | C33: 1.6 | D33: LW | F33: 2025-01-09T00:30:00 | H33: 2.55 | J33: =(F33-A33)*24*60 -> 69 | L33: 6.95
A34: 2025-01-09T05:45:00 | C34: 4.72 | D34: HW | F34: 2025-01-09T06:16:00 | H34: 7.65 | J34: =(F34-A34)*24*60 -> 31 | L34: 5.766666667
A35: 2025-01-09T11:53:00 | C35: 1.85 | D35: LW | F35: 2025-01-09T13:04:00 | H35: 2.85 | J35: =(F35-A35)*24*60 -> 71 | L35: 6.8
A36: 2025-01-09T18:12:00 | C36: 4.96 | D36: HW | F36: 2025-01-09T18:48:00 | H36: 7.97 | J36: =(F36-A36)*24*60 -> 36 | L36: 5.733333333
A37: 2025-01-10T00:33:00 | C37: 1.64 | D37: LW | F37: 2025-01-10T01:45:00 | H37: 2.61 | J37: =(F37-A37)*24*60 -> 71.99999999 | L37: 6.95
A38: 2025-01-10T07:00:00 | C38: 4.82 | D38: HW | F38: 2025-01-10T07:35:00 | H38: 7.75 | J38: =(F38-A38)*24*60 -> 35 | L38: 5.833333333
A39: 2025-01-10T13:07:00 | C39: 1.74 | D39: LW | F39: 2025-01-10T14:24:00 | H39: 2.69 | J39: =(F39-A39)*24*60 -> 77 | L39: 6.816666667
A40: 2025-01-10T19:27:00 | C40: 5.02 | D40: HW | F40: 2025-01-10T20:07:00 | H40: 8.06 | J40: =(F40-A40)*24*60 -> 39.99999999 | L40: 5.716666667
A41: 2025-01-11T01:39:00 | C41: 1.57 | D41: LW | F41: 2025-01-11T02:59:00 | H41: 2.49 | J41: =(F41-A41)*24*60 -> 80 | L41: 6.866666667
A42: 2025-01-11T08:05:00 | C42: 5.03 | D42: HW | F42: 2025-01-11T08:46:00 | H42: 8.05 | J42: =(F42-A42)*24*60 -> 41 | L42: 5.783333333
A43: 2025-01-11T14:12:00 | C43: 1.52 | D43: LW | F43: 2025-01-11T15:35:00 | H43: 2.34 | J43: =(F43-A43)*24*60 -> 83 | L43: 6.816666667
A44: 2025-01-11T20:30:00 | C44: 5.15 | D44: HW | F44: 2025-01-11T21:15:00 | H44: 8.3 | J44: =(F44-A44)*24*60 -> 45 | L44: 5.666666667
A45: 2025-01-12T02:36:00 | C45: 1.44 | D45: LW | F45: 2025-01-12T04:03:00 | H45: 2.25 | J45: =(F45-A45)*24*60 -> 87 | L45: 6.8
A46: 2025-01-12T09:00:00 | C46: 5.27 | D46: HW | F46: 2025-01-12T09:44:00 | H46: 8.43 | J46: =(F46-A46)*24*60 -> 44 | L46: 5.683333333
A47: 2025-01-12T15:07:00 | C47: 1.28 | D47: LW | F47: 2025-01-12T16:36:00 | H47: 1.93 | J47: =(F47-A47)*24*60 -> 89 | L47: 6.866666667
A48: 2025-01-12T21:25:00 | C48: 5.29 | D48: HW | F48: 2025-01-12T22:10:00 | H48: 8.56 | J48: =(F48-A48)*24*60 -> 45 | L48: 5.566666667
A49: 2025-01-13T03:27:00 | C49: 1.3 | D49: LW | F49: 2025-01-13T04:58:00 | H49: 2 | J49: =(F49-A49)*24*60 -> 90.99999999 | L49: 6.8
A50: 2025-01-13T09:48:00 | C50: 5.48 | D50: HW | F50: 2025-01-13T10:33:00 | H50: 8.77 | J50: =(F50-A50)*24*60 -> 45 | L50: 5.583333333
A51: 2025-01-13T15:56:00 | C51: 1.06 | D51: LW | F51: 2025-01-13T17:28:00 | H51: 1.57 | J51: =(F51-A51)*24*60 -> 92 | L51: 6.916666667
A52: 2025-01-13T22:12:00 | C52: 5.38 | D52: HW | F52: 2025-01-13T22:58:00 | H52: 8.75 | J52: =(F52-A52)*24*60 -> 45.99999999 | L52: 5.5
A53: 2025-01-14T04:12:00 | C53: 1.2 | D53: LW | F53: 2025-01-14T05:46:00 | H53: 1.8 | J53: =(F53-A53)*24*60 -> 93.99999999 | L53: 6.8
A54: 2025-01-14T10:31:00 | C54: 5.63 | D54: HW | F54: 2025-01-14T11:17:00 | H54: 9.02 | J54: =(F54-A54)*24*60 -> 45.99999999 | L54: 5.516666667
A55: 2025-01-14T16:41:00 | C55: 0.92 | D55: LW | F55: 2025-01-14T18:15:00 | H55: 1.33 | J55: =(F55-A55)*24*60 -> 93.99999999 | L55: 6.966666667
A56: 2025-01-14T22:55:00 | C56: 5.41 | D56: HW | F56: 2025-01-14T23:42:00 | H56: 8.85 | J56: =(F56-A56)*24*60 -> 47.00000001 | L56: 5.45
A57: 2025-01-15T04:53:00 | C57: 1.14 | D57: LW | F57: 2025-01-15T06:29:00 | H57: 1.69 | J57: =(F57-A57)*24*60 -> 96 | L57: 6.783333333
A58: 2025-01-15T11:11:00 | C58: 5.71 | D58: HW | F58: 2025-01-15T11:58:00 | H58: 9.15 | J58: =(F58-A58)*24*60 -> 47.00000001 | L58: 5.483333333
A59: 2025-01-15T17:24:00 | C59: 0.86 | D59: LW | F59: 2025-01-15T18:58:00 | H59: 1.23 | J59: =(F59-A59)*24*60 -> 94 | L59: 7
A60: 2025-01-15T23:36:00 | C60: 5.37 | D60: HW | F60: 2025-01-16T00:23:00 | H60: 8.84 | J60: =(F60-A60)*24*60 -> 47.00000001 | L60: 5.416666667
A61: 2025-01-16T05:33:00 | C61: 1.14 | D61: LW | F61: 2025-01-16T07:08:00 | H61: 1.69 | J61: =(F61-A61)*24*60 -> 95.00000001 | L61: 6.75
A62: 2025-01-16T11:50:00 | C62: 5.69 | D62: HW | F62: 2025-01-16T12:36:00 | H62: 9.16 | J62: =(F62-A62)*24*60 -> 46 | L62: 5.466666667
A63: 2025-01-16T18:04:00 | C63: 0.89 | D63: LW | F63: 2025-01-16T19:37:00 | H63: 1.3 | J63: =(F63-A63)*24*60 -> 93 | L63: 7.016666667
A64: 2025-01-17T00:14:00 | C64: 5.26 | D64: HW | F64: 2025-01-17T01:01:00 | H64: 8.73 | J64: =(F64-A64)*24*60 -> 47 | L64: 5.4
A65: 2025-01-17T06:11:00 | C65: 1.22 | D65: LW | F65: 2025-01-17T07:43:00 | H65: 1.81 | J65: =(F65-A65)*24*60 -> 92 | L65: 6.7
A66: 2025-01-17T12:26:00 | C66: 5.59 | D66: HW | F66: 2025-01-17T13:12:00 | H66: 9.05 | J66: =(F66-A66)*24*60 -> 46 | L66: 5.483333333
A67: 2025-01-17T18:42:00 | C67: 1.01 | D67: LW | F67: 2025-01-17T20:12:00 | H67: 1.53 | J67: =(F67-A67)*24*60 -> 90 | L67: 7
A68: 2025-01-18T00:50:00 | C68: 5.12 | D68: HW | F68: 2025-01-18T01:38:00 | H68: 8.54 | J68: =(F68-A68)*24*60 -> 48.00000001 | L68: =(F68-F67)*24 -> 5.433333333
A69: 2025-01-18T06:47:00 | C69: 1.34 | D69: LW | F69: 2025-01-18T08:15:00 | H69: 2.03 | J69: =(F69-A69)*24*60 -> 88 | L69: 6.616666667
A70: 2025-01-18T13:01:00 | C70: 5.44 | D70: HW | F70: 2025-01-18T13:47:00 | H70: 8.85 | J70: =(F70-A70)*24*60 -> 46 | L70: 5.533333333
A71: 2025-01-18T19:19:00 | C71: 1.2 | D71: LW | F71: 2025-01-18T20:45:00 | H71: 1.87 | J71: =(F71-A71)*24*60 -> 86.00000001 | L71: 6.966666667
A72: 2025-01-19T01:26:00 | C72: 4.96 | D72: HW | F72: 2025-01-19T02:13:00 | H72: 8.29 | J72: =(F72-A72)*24*60 -> 47.00000001 | L72: 5.466666667
A73: 2025-01-19T07:23:00 | C73: 1.52 | D73: LW | F73: 2025-01-19T08:44:00 | H73: 2.31 | J73: =(F73-A73)*24*60 -> 81 | L73: 6.516666667
A74: 2025-01-19T13:36:00 | C74: 5.25 | D74: HW | F74: 2025-01-19T14:21:00 | H74: 8.56 | J74: =(F74-A74)*24*60 -> 45 | L74: 5.616666667
A75: 2025-01-19T19:56:00 | C75: 1.42 | D75: LW | F75: 2025-01-19T21:16:00 | H75: 2.25 | J75: =(F75-A75)*24*60 -> 80 | L75: 6.916666667
A76: 2025-01-20T02:02:00 | C76: 4.79 | D76: HW | F76: 2025-01-20T02:49:00 | H76: 8 | J76: =(F76-A76)*24*60 -> 47 | L76: 5.55
A77: 2025-01-20T08:00:00 | C77: 1.73 | D77: LW | F77: 2025-01-20T09:14:00 | H77: 2.62 | J77: =(F77-A77)*24*60 -> 74 | L77: 6.416666667
A78: 2025-01-20T14:13:00 | C78: 5.03 | D78: HW | F78: 2025-01-20T14:58:00 | H78: 8.22 | J78: =(F78-A78)*24*60 -> 45 | L78: 5.733333333
A79: 2025-01-20T20:36:00 | C79: 1.66 | D79: LW | F79: 2025-01-20T21:48:00 | H79: 2.64 | J79: =(F79-A79)*24*60 -> 72 | L79: 6.833333333
A80: 2025-01-21T02:42:00 | C80: 4.62 | D80: HW | F80: 2025-01-21T03:28:00 | H80: 7.69 | J80: =(F80-A80)*24*60 -> 45.99999999 | L80: 5.666666667
A81: 2025-01-21T08:41:00 | C81: 1.96 | D81: LW | F81: 2025-01-21T09:51:00 | H81: 2.96 | J81: =(F81-A81)*24*60 -> 70 | L81: 6.383333333
A82: 2025-01-21T14:55:00 | C82: 4.8 | D82: HW | F82: 2025-01-21T15:38:00 | H82: 7.83 | J82: =(F82-A82)*24*60 -> 42.99999999 | L82: 5.783333333
A83: 2025-01-21T21:20:00 | C83: 1.92 | D83: LW | F83: 2025-01-21T22:28:00 | H83: 3 | J83: =(F83-A83)*24*60 -> 68 | L83: 6.833333333
A84: 2025-01-22T03:30:00 | C84: 4.46 | D84: HW | F84: 2025-01-22T04:14:00 | H84: 7.37 | J84: =(F84-A84)*24*60 -> 44 | L84: 5.766666667
A85: 2025-01-22T09:32:00 | C85: 2.21 | D85: LW | F85: 2025-01-22T10:38:00 | H85: 3.31 | J85: =(F85-A85)*24*60 -> 66.00000001 | L85: 6.4
A86: 2025-01-22T15:46:00 | C86: 4.56 | D86: HW | F86: 2025-01-22T16:28:00 | H86: 7.43 | J86: =(F86-A86)*24*60 -> 42 | L86: 5.833333333
A87: 2025-01-22T22:16:00 | C87: 2.15 | D87: LW | F87: 2025-01-22T23:20:00 | H87: 3.32 | J87: =(F87-A87)*24*60 -> 64 | L87: 6.866666667
A88: 2025-01-23T04:29:00 | C88: 4.34 | D88: HW | F88: 2025-01-23T05:11:00 | H88: 7.1 | J88: =(F88-A88)*24*60 -> 42 | L88: 5.85
A89: 2025-01-23T10:36:00 | C89: 2.41 | D89: LW | F89: 2025-01-23T11:40:00 | H89: 3.59 | J89: =(F89-A89)*24*60 -> 64 | L89: 6.483333333
A90: 2025-01-23T16:53:00 | C90: 4.38 | D90: HW | F90: 2025-01-23T17:32:00 | H90: 7.11 | J90: =(F90-A90)*24*60 -> 39 | L90: 5.866666667
A91: 2025-01-23T23:27:00 | C91: 2.3 | D91: LW | F91: 2025-01-24T00:27:00 | H91: 3.5 | J91: =(F91-A91)*24*60 -> 60.00000001 | L91: 6.916666667
A92: 2025-01-24T05:46:00 | C92: 4.31 | D92: HW | F92: 2025-01-24T06:23:00 | H92: 7 | J92: =(F92-A92)*24*60 -> 37.00000001 | L92: 5.933333333
A93: 2025-01-24T11:58:00 | C93: 2.47 | D93: LW | F93: 2025-01-24T12:56:00 | H93: 3.67 | J93: =(F93-A93)*24*60 -> 58 | L93: 6.55
A94: 2025-01-24T18:19:00 | C94: 4.34 | D94: HW | F94: 2025-01-24T18:55:00 | H94: 7.02 | J94: =(F94-A94)*24*60 -> 36 | L94: 5.983333333
A95: 2025-01-25T00:44:00 | C95: 2.27 | D95: LW | F95: 2025-01-25T01:43:00 | H95: 3.45 | J95: =(F95-A95)*24*60 -> 59 | L95: 6.8
A96: 2025-01-25T07:05:00 | C96: 4.46 | D96: HW | F96: 2025-01-25T07:44:00 | H96: 7.19 | J96: =(F96-A96)*24*60 -> 39 | L96: 6.016666667
A97: 2025-01-25T13:17:00 | C97: 2.31 | D97: LW | F97: 2025-01-25T14:17:00 | H97: 3.47 | J97: =(F97-A97)*24*60 -> 60 | L97: 6.55
A98: 2025-01-25T19:37:00 | C98: 4.48 | D98: HW | F98: 2025-01-25T20:16:00 | H98: 7.26 | J98: =(F98-A98)*24*60 -> 39 | L98: 5.983333333
A99: 2025-01-26T01:48:00 | C99: 2.1 | D99: LW | F99: 2025-01-26T02:53:00 | H99: 3.17 | J99: =(F99-A99)*24*60 -> 65 | L99: 6.616666667
A100: 2025-01-26T08:07:00 | C100: 4.73 | D100: HW | F100: 2025-01-26T08:49:00 | H100: 7.61 | J100: =(F100-A100)*24*60 -> 42 | L100: 5.933333333
A101: 2025-01-26T14:15:00 | C101: 2.02 | D101: LW | F101: 2025-01-26T15:25:00 | H101: 3.04 | J101: =(F101-A101)*24*60 -> 70 | L101: 6.6
A102: 2025-01-26T20:34:00 | C102: 4.73 | D102: HW | F102: 2025-01-26T21:16:00 | H102: 7.69 | J102: =(F102-A102)*24*60 -> 42 | L102: 5.85
A103: 2025-01-27T02:37:00 | C103: 1.84 | D103: LW | F103: 2025-01-27T03:51:00 | H103: 2.77 | J103: =(F103-A103)*24*60 -> 74 | L103: 6.583333333
A104: 2025-01-27T08:54:00 | C104: 5.03 | D104: HW | F104: 2025-01-27T09:38:00 | H104: 8.1 | J104: =(F104-A104)*24*60 -> 44 | L104: 5.783333333
A105: 2025-01-27T15:01:00 | C105: 1.67 | D105: LW | F105: 2025-01-27T16:19:00 | H105: 2.51 | J105: =(F105-A105)*24*60 -> 77.99999999 | L105: 6.683333333
A106: 2025-01-27T21:18:00 | C106: 4.98 | D106: HW | F106: 2025-01-27T22:02:00 | H106: 8.14 | J106: =(F106-A106)*24*60 -> 44.00000001 | L106: 5.716666667
A107: 2025-01-28T03:19:00 | C107: 1.56 | D107: LW | F107: 2025-01-28T04:40:00 | H107: 2.33 | J107: =(F107-A107)*24*60 -> 81 | L107: 6.633333333
A108: 2025-01-28T09:34:00 | C108: 5.33 | D108: HW | F108: 2025-01-28T10:20:00 | H108: 8.59 | J108: =(F108-A108)*24*60 -> 46 | L108: 5.666666667
A109: 2025-01-28T15:42:00 | C109: 1.31 | D109: LW | F109: 2025-01-28T17:07:00 | H109: 1.96 | J109: =(F109-A109)*24*60 -> 84.99999999 | L109: 6.783333333
A110: 2025-01-28T21:58:00 | C110: 5.21 | D110: HW | F110: 2025-01-28T22:44:00 | H110: 8.56 | J110: =(F110-A110)*24*60 -> 46 | L110: 5.616666667
A111: 2025-01-29T03:57:00 | C111: 1.29 | D111: LW | F111: 2025-01-29T05:25:00 | H111: 1.89 | J111: =(F111-A111)*24*60 -> 88 | L111: 6.683333333
A112: 2025-01-29T10:12:00 | C112: 5.59 | D112: HW | F112: 2025-01-29T10:59:00 | H112: 9.04 | J112: =(F112-A112)*24*60 -> 47 | L112: 5.566666667
A113: 2025-01-29T16:21:00 | C113: 0.98 | D113: LW | F113: 2025-01-29T17:51:00 | H113: 1.47 | J113: =(F113-A113)*24*60 -> 90 | L113: 6.866666667
A114: 2025-01-29T22:36:00 | C114: 5.4 | D114: HW | F114: 2025-01-29T23:24:00 | H114: 8.91 | J114: =(F114-A114)*24*60 -> 48 | L114: 5.55
A115: 2025-01-30T04:35:00 | C115: 1.05 | D115: LW | F115: 2025-01-30T06:07:00 | H115: 1.53 | J115: =(F115-A115)*24*60 -> 92.00000001 | L115: 6.716666667
A116: 2025-01-30T10:49:00 | C116: 5.8 | D116: HW | F116: 2025-01-30T11:37:00 | H116: 9.4 | J116: =(F116-A116)*24*60 -> 48 | L116: 5.5
A117: 2025-01-30T16:59:00 | C117: 0.72 | D117: LW | F117: 2025-01-30T18:33:00 | H117: 1.07 | J117: =(F117-A117)*24*60 -> 94 | L117: 6.933333333
A118: 2025-01-30T23:15:00 | C118: 5.51 | D118: HW | F118: 2025-01-31T00:02:00 | H118: 9.14 | J118: =(F118-A118)*24*60 -> 47 | L118: 5.483333333
A119: 2025-01-31T05:14:00 | C119: 0.88 | D119: LW | F119: 2025-01-31T06:49:00 | H119: 1.27 | J119: =(F119-A119)*24*60 -> 95.00000001 | L119: 6.783333333
A120: 2025-01-31T11:27:00 | C120: 5.94 | D120: HW | F120: 2025-01-31T12:16:00 | H120: 9.65 | J120: =(F120-A120)*24*60 -> 49 | L120: 5.45
A121: 2025-01-31T17:39:00 | C121: 0.56 | D121: LW | F121: 2025-01-31T19:13:00 | H121: 0.84 | J121: =(F121-A121)*24*60 -> 93.99999999 | L121: 6.95
A122: 2025-01-31T23:53:00 | C122: 5.56 | D122: HW | F122: 2025-02-01T00:41:00 | H122: 9.25 | J122: =(F122-A122)*24*60 -> 48 | L122: 5.466666667
A123: 2025-02-01T05:53:00 | C123: 0.79 | D123: LW | F123: 2025-02-01T07:28:00 | H123: 1.16 | J123: =(F123-A123)*24*60 -> 95.00000001 | L123: 6.783333333
A124: 2025-02-01T12:07:00 | C124: 5.98 | D124: HW | F124: 2025-02-01T12:54:00 | H124: 9.75 | J124: =(F124-A124)*24*60 -> 47 | L124: 5.433333333
A125: 2025-02-01T18:20:00 | C125: 0.52 | D125: LW | F125: 2025-02-01T19:53:00 | H125: 0.8 | J125: =(F125-A125)*24*60 -> 93 | L125: 6.983333333
A126: 2025-02-02T00:33:00 | C126: 5.52 | D126: HW | F126: 2025-02-02T01:21:00 | H126: 9.21 | J126: =(F126-A126)*24*60 -> 48 | L126: 5.466666667
A127: 2025-02-02T06:34:00 | C127: 0.81 | D127: LW | F127: 2025-02-02T08:08:00 | H127: 1.22 | J127: =(F127-A127)*24*60 -> 94 | L127: 6.783333333
A128: 2025-02-02T12:48:00 | C128: 5.93 | D128: HW | F128: 2025-02-02T13:34:00 | H128: 9.68 | J128: =(F128-A128)*24*60 -> 46 | L128: 5.433333333
A129: 2025-02-02T19:03:00 | C129: 0.6 | D129: LW | F129: 2025-02-02T20:33:00 | H129: 0.97 | J129: =(F129-A129)*24*60 -> 90 | L129: 6.983333333
A130: 2025-02-03T01:15:00 | C130: 5.4 | D130: HW | F130: 2025-02-03T02:01:00 | H130: 9.02 | J130: =(F130-A130)*24*60 -> 45.99999999 | L130: 5.466666667
A131: 2025-02-03T07:18:00 | C131: 0.93 | D131: LW | F131: 2025-02-03T08:48:00 | H131: 1.45 | J131: =(F131-A131)*24*60 -> 90 | L131: 6.783333333
A132: 2025-02-03T13:32:00 | C132: 5.77 | D132: HW | F132: 2025-02-03T14:17:00 | H132: 9.43 | J132: =(F132-A132)*24*60 -> 45 | L132: =(F132-F131)*24 -> 5.483333333
A133: 2025-02-03T19:49:00 | C133: 0.82 | D133: LW | F133: 2025-02-03T21:14:00 | H133: 1.33 | J133: =(F133-A133)*24*60 -> 85 | L133: 6.95
A134: 2025-02-04T02:00:00 | C134: 5.22 | D134: HW | F134: 2025-02-04T02:44:00 | H134: 8.7 | J134: =(F134-A134)*24*60 -> 44 | L134: 5.5
A135: 2025-02-04T08:06:00 | C135: 1.16 | D135: LW | F135: 2025-02-04T09:30:00 | H135: 1.82 | J135: =(F135-A135)*24*60 -> 84 | L135: 6.766666667
A136: 2025-02-04T14:21:00 | C136: 5.5 | D136: HW | F136: 2025-02-04T15:04:00 | H136: 9.01 | J136: =(F136-A136)*24*60 -> 43 | L136: 5.566666667
A137: 2025-02-04T20:39:00 | C137: 1.14 | D137: LW | F137: 2025-02-04T21:58:00 | H137: 1.82 | J137: =(F137-A137)*24*60 -> 79 | L137: 6.9
A138: 2025-02-05T02:51:00 | C138: 4.97 | D138: HW | F138: 2025-02-05T03:33:00 | H138: 8.25 | J138: =(F138-A138)*24*60 -> 42 | L138: 5.583333333
A139: 2025-02-05T09:01:00 | C139: 1.46 | D139: LW | F139: 2025-02-05T10:18:00 | H139: 2.29 | J139: =(F139-A139)*24*60 -> 77 | L139: 6.75
A140: 2025-02-05T15:17:00 | C140: 5.16 | D140: HW | F140: 2025-02-05T15:58:00 | H140: 8.45 | J140: =(F140-A140)*24*60 -> 41 | L140: 5.666666667
A141: 2025-02-05T21:38:00 | C141: 1.52 | D141: LW | F141: 2025-02-05T22:50:00 | H141: 2.38 | J141: =(F141-A141)*24*60 -> 72 | L141: 6.866666667
A142: 2025-02-06T03:53:00 | C142: 4.71 | D142: HW | F142: 2025-02-06T04:32:00 | H142: 7.76 | J142: =(F142-A142)*24*60 -> 38.99999999 | L142: 5.7
A143: 2025-02-06T10:08:00 | C143: 1.78 | D143: LW | F143: 2025-02-06T11:18:00 | H143: 2.76 | J143: =(F143-A143)*24*60 -> 70 | L143: 6.766666667
A144: 2025-02-06T16:28:00 | C144: 4.83 | D144: HW | F144: 2025-02-06T17:06:00 | H144: 7.87 | J144: =(F144-A144)*24*60 -> 38 | L144: 5.8
A145: 2025-02-06T22:51:00 | C145: 1.85 | D145: LW | F145: 2025-02-06T23:55:00 | H145: 2.88 | J145: =(F145-A145)*24*60 -> 64.00000001 | L145: 6.816666667
A146: 2025-02-07T05:15:00 | C146: 4.53 | D146: HW | F146: 2025-02-07T05:47:00 | H146: 7.38 | J146: =(F146-A146)*24*60 -> 32 | L146: 5.866666667
A147: 2025-02-07T11:33:00 | C147: 1.96 | D147: LW | F147: 2025-02-07T12:36:00 | H147: 3.08 | J147: =(F147-A147)*24*60 -> 63.00000001 | L147: 6.816666667
A148: 2025-02-07T17:58:00 | C148: 4.64 | D148: HW | F148: 2025-02-07T18:33:00 | H148: 7.52 | J148: =(F148-A148)*24*60 -> 35 | L148: 5.95
A149: 2025-02-08T00:16:00 | C149: 1.99 | D149: LW | F149: 2025-02-08T01:20:00 | H149: 3.13 | J149: =(F149-A149)*24*60 -> 64 | L149: 6.783333333
A150: 2025-02-08T06:48:00 | C150: 4.59 | D150: HW | F150: 2025-02-08T07:22:00 | H150: 7.36 | J150: =(F150-A150)*24*60 -> 34 | L150: 6.033333333
A151: 2025-02-08T13:00:00 | C151: 1.88 | D151: LW | F151: 2025-02-08T14:13:00 | H151: 2.99 | J151: =(F151-A151)*24*60 -> 73.00000001 | L151: 6.85
A152: 2025-02-08T19:27:00 | C152: 4.7 | D152: HW | F152: 2025-02-08T20:06:00 | H152: 7.61 | J152: =(F152-A152)*24*60 -> 39 | L152: 5.883333333
A153: 2025-02-09T01:34:00 | C153: 1.89 | D153: LW | F153: 2025-02-09T02:50:00 | H153: 2.96 | J153: =(F153-A153)*24*60 -> 76 | L153: 6.733333333
A154: 2025-02-09T08:02:00 | C154: 4.85 | D154: HW | F154: 2025-02-09T08:44:00 | H154: 7.74 | J154: =(F154-A154)*24*60 -> 42 | L154: 5.9
A155: 2025-02-09T14:10:00 | C155: 1.61 | D155: LW | F155: 2025-02-09T15:32:00 | H155: 2.51 | J155: =(F155-A155)*24*60 -> 81.99999999 | L155: 6.8
A156: 2025-02-09T20:33:00 | C156: 4.9 | D156: HW | F156: 2025-02-09T21:15:00 | H156: 7.98 | J156: =(F156-A156)*24*60 -> 42 | L156: 5.716666667
A157: 2025-02-10T02:33:00 | C157: 1.67 | D157: LW | F157: 2025-02-10T03:58:00 | H157: 2.54 | J157: =(F157-A157)*24*60 -> 85 | L157: 6.716666667
A158: 2025-02-10T08:57:00 | C158: 5.15 | D158: HW | F158: 2025-02-10T09:41:00 | H158: 8.24 | J158: =(F158-A158)*24*60 -> 44 | L158: 5.716666667
A159: 2025-02-10T15:05:00 | C159: 1.3 | D159: LW | F159: 2025-02-10T16:32:00 | H159: 1.94 | J159: =(F159-A159)*24*60 -> 87 | L159: 6.85
A160: 2025-02-10T21:23:00 | C160: 5.1 | D160: HW | F160: 2025-02-10T22:07:00 | H160: 8.37 | J160: =(F160-A160)*24*60 -> 44 | L160: 5.583333333
A161: 2025-02-11T03:21:00 | C161: 1.42 | D161: LW | F161: 2025-02-11T04:51:00 | H161: 2.11 | J161: =(F161-A161)*24*60 -> 90 | L161: 6.733333333
A162: 2025-02-11T09:41:00 | C162: 5.41 | D162: HW | F162: 2025-02-11T10:27:00 | H162: 8.68 | J162: =(F162-A162)*24*60 -> 46 | L162: 5.6
A163: 2025-02-11T15:49:00 | C163: 1.04 | D163: LW | F163: 2025-02-11T17:20:00 | H163: 1.47 | J163: =(F163-A163)*24*60 -> 90.99999999 | L163: 6.883333333
A164: 2025-02-11T22:05:00 | C164: 5.25 | D164: HW | F164: 2025-02-11T22:50:00 | H164: 8.67 | J164: =(F164-A164)*24*60 -> 45 | L164: 5.5
A165: 2025-02-12T04:01:00 | C165: 1.21 | D165: LW | F165: 2025-02-12T05:34:00 | H165: 1.77 | J165: =(F165-A165)*24*60 -> 93 | L165: 6.733333333
A166: 2025-02-12T10:19:00 | C166: 5.59 | D166: HW | F166: 2025-02-12T11:06:00 | H166: 9 | J166: =(F166-A166)*24*60 -> 47.00000001 | L166: 5.533333333
A167: 2025-02-12T16:29:00 | C167: 0.85 | D167: LW | F167: 2025-02-12T18:01:00 | H167: 1.18 | J167: =(F167-A167)*24*60 -> 92.00000001 | L167: 6.916666667
A168: 2025-02-12T22:41:00 | C168: 5.33 | D168: HW | F168: 2025-02-12T23:28:00 | H168: 8.85 | J168: =(F168-A168)*24*60 -> 47 | L168: 5.45
A169: 2025-02-13T04:38:00 | C169: 1.06 | D169: LW | F169: 2025-02-13T06:12:00 | H169: 1.55 | J169: =(F169-A169)*24*60 -> 93.99999999 | L169: 6.733333333
A170: 2025-02-13T10:54:00 | C170: 5.68 | D170: HW | F170: 2025-02-13T11:41:00 | H170: 9.19 | J170: =(F170-A170)*24*60 -> 47 | L170: 5.483333333
A171: 2025-02-13T17:04:00 | C171: 0.76 | D171: LW | F171: 2025-02-13T18:38:00 | H171: 1.06 | J171: =(F171-A171)*24*60 -> 94 | L171: 6.95
A172: 2025-02-13T23:14:00 | C172: 5.35 | D172: HW | F172: 2025-02-14T00:02:00 | H172: 8.93 | J172: =(F172-A172)*24*60 -> 48 | L172: 5.4
A173: 2025-02-14T05:11:00 | C173: 0.98 | D173: LW | F173: 2025-02-14T06:46:00 | H173: 1.46 | J173: =(F173-A173)*24*60 -> 95.00000001 | L173: 6.733333333
A174: 2025-02-14T11:27:00 | C174: 5.69 | D174: HW | F174: 2025-02-14T12:13:00 | H174: 9.26 | J174: =(F174-A174)*24*60 -> 46 | L174: 5.45
A175: 2025-02-14T17:38:00 | C175: 0.77 | D175: LW | F175: 2025-02-14T19:12:00 | H175: 1.12 | J175: =(F175-A175)*24*60 -> 94 | L175: 6.983333333
A176: 2025-02-14T23:46:00 | C176: 5.32 | D176: HW | F176: 2025-02-15T00:34:00 | H176: 8.91 | J176: =(F176-A176)*24*60 -> 48 | L176: 5.366666667
A177: 2025-02-15T05:44:00 | C177: 0.98 | D177: LW | F177: 2025-02-15T07:15:00 | H177: 1.5 | J177: =(F177-A177)*24*60 -> 91 | L177: 6.683333333
A178: 2025-02-15T11:57:00 | C178: 5.63 | D178: HW | F178: 2025-02-15T12:43:00 | H178: 9.21 | J178: =(F178-A178)*24*60 -> 46 | L178: 5.466666667
A179: 2025-02-15T18:10:00 | C179: 0.85 | D179: LW | F179: 2025-02-15T19:41:00 | H179: 1.31 | J179: =(F179-A179)*24*60 -> 91 | L179: 6.966666667
A180: 2025-02-16T00:16:00 | C180: 5.25 | D180: HW | F180: 2025-02-16T01:04:00 | H180: 8.8 | J180: =(F180-A180)*24*60 -> 48 | L180: 5.383333333
A181: 2025-02-16T06:15:00 | C181: 1.06 | D181: LW | F181: 2025-02-16T07:42:00 | H181: 1.64 | J181: =(F181-A181)*24*60 -> 87 | L181: 6.633333333
A182: 2025-02-16T12:27:00 | C182: 5.5 | D182: HW | F182: 2025-02-16T13:12:00 | H182: 9.06 | J182: =(F182-A182)*24*60 -> 45 | L182: 5.5
A183: 2025-02-16T18:41:00 | C183: 1.01 | D183: LW | F183: 2025-02-16T20:07:00 | H183: 1.6 | J183: =(F183-A183)*24*60 -> 86 | L183: 6.916666667
A184: 2025-02-17T00:46:00 | C184: 5.15 | D184: HW | F184: 2025-02-17T01:34:00 | H184: 8.63 | J184: =(F184-A184)*24*60 -> 48 | L184: 5.45
A185: 2025-02-17T06:46:00 | C185: 1.21 | D185: LW | F185: 2025-02-17T08:07:00 | H185: 1.87 | J185: =(F185-A185)*24*60 -> 80.99999999 | L185: 6.55
A186: 2025-02-17T12:58:00 | C186: 5.34 | D186: HW | F186: 2025-02-17T13:42:00 | H186: 8.82 | J186: =(F186-A186)*24*60 -> 44 | L186: 5.583333333
A187: 2025-02-17T19:12:00 | C187: 1.23 | D187: LW | F187: 2025-02-17T20:32:00 | H187: 1.94 | J187: =(F187-A187)*24*60 -> 80 | L187: 6.833333333
A188: 2025-02-18T01:17:00 | C188: 5.02 | D188: HW | F188: 2025-02-18T02:04:00 | H188: 8.38 | J188: =(F188-A188)*24*60 -> 47 | L188: 5.533333333
A189: 2025-02-18T07:18:00 | C189: 1.42 | D189: LW | F189: 2025-02-18T08:34:00 | H189: 2.17 | J189: =(F189-A189)*24*60 -> 76 | L189: 6.5
A190: 2025-02-18T13:30:00 | C190: 5.13 | D190: HW | F190: 2025-02-18T14:12:00 | H190: 8.5 | J190: =(F190-A190)*24*60 -> 42 | L190: 5.633333333
A191: 2025-02-18T19:45:00 | C191: 1.49 | D191: LW | F191: 2025-02-18T20:59:00 | H191: 2.32 | J191: =(F191-A191)*24*60 -> 74 | L191: 6.783333333
A192: 2025-02-19T01:52:00 | C192: 4.84 | D192: HW | F192: 2025-02-19T02:36:00 | H192: 8.07 | J192: =(F192-A192)*24*60 -> 44 | L192: 5.616666667
A193: 2025-02-19T07:54:00 | C193: 1.69 | D193: LW | F193: 2025-02-19T09:06:00 | H193: 2.54 | J193: =(F193-A193)*24*60 -> 71.99999999 | L193: 6.5
A194: 2025-02-19T14:06:00 | C194: 4.87 | D194: HW | F194: 2025-02-19T14:47:00 | H194: 8.09 | J194: =(F194-A194)*24*60 -> 41 | L194: 5.683333333
A195: 2025-02-19T20:24:00 | C195: 1.8 | D195: LW | F195: 2025-02-19T21:33:00 | H195: 2.75 | J195: =(F195-A195)*24*60 -> 69 | L195: 6.766666667
A196: 2025-02-20T02:33:00 | C196: 4.63 | D196: HW | F196: 2025-02-20T03:15:00 | H196: 7.68 | J196: =(F196-A196)*24*60 -> 42 | L196: =(F196-F195)*24 -> 5.7
A197: 2025-02-20T08:38:00 | C197: 2.01 | D197: LW | F197: 2025-02-20T09:47:00 | H197: 2.99 | J197: =(F197-A197)*24*60 -> 68.99999999 | L197: 6.533333333
A198: 2025-02-20T14:51:00 | C198: 4.58 | D198: HW | F198: 2025-02-20T15:31:00 | H198: 7.59 | J198: =(F198-A198)*24*60 -> 39.99999999 | L198: 5.733333333
A199: 2025-02-20T21:12:00 | C199: 2.13 | D199: LW | F199: 2025-02-20T22:19:00 | H199: 3.2 | J199: =(F199-A199)*24*60 -> 67 | L199: 6.8
A200: 2025-02-21T03:27:00 | C200: 4.39 | D200: HW | F200: 2025-02-21T04:05:00 | H200: 7.25 | J200: =(F200-A200)*24*60 -> 38 | L200: 5.766666667
... 1224 more rows
